{"text_format":"1","workbook":"xlsx","n_sheets":2,"sheets":["Transaction","OldStock2021-2022"],"not_rendered":{"charts":0,"images":0,"macros":1,"external_links":0,"defined_names":5,"comments":0,"pivot_tables":0},"unopened":[],"bounds":{"document_bytes":16777216,"sheet_cells":100000,"rows_first":2000,"rows_last":500,"rows_between":2000,"halvings":0,"cell_chars":16384,"cell_head_chars":4096},"cells_cut":0,"cells_raw":0,"read":"whole","date_system":"1900"}

{"sheet":"Transaction","index":0,"n_rows":5341,"n_cols":16,"rows_kept":5341,"cut":false,"hidden":false,"merged":[]}
["Date","ItemCode","Description","Price (LBP)","Quantity in Stock","Transaction Type","Quantity","Receipt number","NewStock","Notes",null,"Price",{"$f":"SUM(L2:L4441)","v":75140000}]
["2021-09-20","CA-BL-SS-Blue-10","بلوزة قطنية زرقاء كم قصير ",80000,154,"Sell",1,"نحلة",153,null,"Locked",{"$f":"IF(G2<>\"\",IF(F2=\"sell\",D2*G2,-D2*G2),\"\")","v":80000}]
["2021-09-20","CA-BL-SS-Blue-12","بلوزة قطنية زرقاء كم قصير ",80000,150,"Sell",1,"طراد",149,null,"Locked",{"$f":"IF(G3<>\"\",IF(F3=\"sell\",D3*G3,-D3*G3),\"\")","v":80000}]
["2021-09-20","CA-BL-SS-Blue-14","بلوزة قطنية زرقاء كم قصير ",80000,194,"Sell",2,"طراد",192,null,"Locked",160000]
["2021-09-20","CA-SpSuit-Win-8","طقم رياضة شتوي",295000,105,"Sell",1,"أبوشاكر",104,null,"Locked",295000]
["2021-09-20","CA-SP-Blouse-S","TECTELبلوزة رياضة  ",100000,8,"Sell",1,"أبوشاكر",7,null,"Locked",100000]
["2021-09-20","CA-BL-SS-Blue-10","بلوزة قطنية زرقاء كم قصير ",80000,153,"Sell",1,"أبوشاكر",152,null,"Locked",80000]
["2021-09-20","CA-BL-LS-Blue-10","بلوزة قطنية زرقاء كم طويل",110000,220,"Sell",1,"أبوشاكر",219,null,"Locked",110000]
["2021-09-20","CA-BL-SS-Blue-8","بلوزة قطنية زرقاء كم قصير ",80000,122,"Sell",1,"الصمد",121,null,"Locked",80000]
["2021-09-20","CA-BL-LS-Blue-8","بلوزة قطنية زرقاء كم طويل",110000,104,"Sell",1,"الصمد",103,null,"Locked",110000]
["2021-09-20","CA-SpShort-8","شورت رياضة قطن",55000,78,"Sell",1,"الصمد",77,null,"Locked",55000]
["2021-09-20","CA-SpSuit-Win-6","طقم رياضة شتوي",295000,195,"Sell",1,"الصمد",194,null,"Locked",295000]
["2021-09-21","CA-BL-SS-Blue-10","بلوزة قطنية زرقاء كم قصير ",80000,152,"Sell",1,153,151,null,"Locked",80000]
["2021-09-21","CA-SpShort-10","شورت رياضة قطن",55000,74,"Sell",1,153,73,null,"Locked",55000]
["2021-09-21","CA-SpSuit-Sum-S","طقم رياضة صيفي. TECTEL",190000,131,"Sell",2,null,129,null,"Locked",380000]
["2021-09-21","CA-SpSuit-Sum-S","طقم رياضة صيفي. TECTEL",190000,129,"Return",2,null,131,null,"Locked",-380000]
["2021-09-21","CA-SpSuit-Sum-2XS","طقم رياضة صيفي. TECTEL",190000,120,"Sell",1,154,119,null,"Locked",190000]
["2021-09-21","CA-SpSuit-Sum-3XS","طقم رياضة صيفي. TECTEL",190000,99,"Sell",1,154,98,null,"Locked",190000]
["2021-09-21","CA-JacNavy-Win-10","جاكيت شتوي كحلي",135000,194,"Sell",1,155,193,"مصري","Locked",135000]
["2021-09-21","CA-BL-LS-Blue-10","بلوزة قطنية زرقاء كم طويل",110000,219,"Sell",1,157,218,null,"Locked",110000]
["2021-09-21","CA-BL-LS-Blue-14","بلوزة قطنية زرقاء كم طويل",110000,104,"Sell",1,158,103,null,"Locked",110000]
["2021-09-21","CA-SpSuit-Win-14","طقم رياضة شتوي",295000,139,"Sell",1,158,138,null,"Locked",295000]
["2021-09-21","CA-SpSuit-Sum-XS","طقم رياضة صيفي. TECTEL",190000,133,"Sell",1,158,132,null,"Locked",190000]
["2021-09-21","CA-BL-SS-Blue-6","بلوزة قطنية زرقاء كم قصير ",80000,136,"Sell",1,159,135,null,"Locked",80000]
["2021-09-21","CA-SpShort-6","شورت رياضة قطن",55000,65,"Sell",1,159,64,null,"Locked",55000]
["2021-09-21","CA-BL-SS-Blue-S","بلوزة قطنية زرقاء كم قصير ",80000,77,"Sell",1,"161-162",76,null,"Locked",80000]
["2021-09-21","CA-BL-LS-Blue-L","بلوزة قطنية زرقاء كم طويل",110000,86,"Sell",1,"161-162",85,null,"Locked",110000]
["2021-09-21","CA-BL-SS-Blue-12","بلوزة قطنية زرقاء كم قصير ",80000,149,"Sell",1,166,148,null,"Locked",80000]
["2021-09-21","CA-JacNavy-Win-16","جاكيت شتوي كحلي",135000,93,"Sell",1,167,92,null,"Locked",135000]
["2021-09-21","CA-JacNavy-Win-8","جاكيت شتوي كحلي",135000,63,"Sell",1,168,62,null,"Locked",135000]
["2021-09-21","CA-SpSuit-Win-10","طقم رياضة شتوي",295000,100,"Sell",1,168,99,null,"Locked",295000]
["2021-09-21","CA-BL-SS-Blue-12","بلوزة قطنية زرقاء كم قصير ",80000,148,"Sell",1,169,147,null,"Locked",80000]
["2021-09-21","CA-JacNavy-Win-16","جاكيت شتوي كحلي",135000,92,"Sell",1,172,91,null,"Locked",135000]
["2021-09-21","CA-JacNavy-Win-16","جاكيت شتوي كحلي",135000,91,"Sell",1,172,90,null,"Locked",135000]
["2021-09-21","CA-BL-SS-Blue-S","بلوزة قطنية زرقاء كم قصير ",80000,76,"Sell",1,178,75,null,"Locked",80000]
["2021-09-21","CA-BL-LS-Blue-10","بلوزة قطنية زرقاء كم طويل",110000,218,"Sell",1,178,217,null,"Locked",110000]
["2021-09-21","CA-SpShort-12","شورت رياضة قطن",55000,77,"Sell",1,179,76,null,"Locked",55000]
["2021-09-21","CA-BL-SS-Blue-12","بلوزة قطنية زرقاء كم قصير ",80000,147,"Sell",1,179,146,null,"Locked",80000]
["2021-09-21","CA-BL-LS-Blue-12","بلوزة قطنية زرقاء كم طويل",110000,218,"Sell",1,179,217,null,"Locked",110000]
["2021-09-21","CA-BL-LS-Blue-10","بلوزة قطنية زرقاء كم طويل",110000,217,"Sell",1,"-",216,null,"Locked",110000]
["2021-09-21","CA-BL-SS-Blue-10","بلوزة قطنية زرقاء كم قصير ",80000,151,"Sell",1,181,150,null,"Locked",80000]
["2021-09-21","CA-BL-LS-Blue-10","بلوزة قطنية زرقاء كم طويل",110000,216,"Return",1,"-",217,null,"Locked",-110000]
["2021-09-21","CA-SpShort-10","شورت رياضة قطن",55000,73,"Sell",1,181,72,null,"Locked",55000]
["2021-09-21","CA-SpSuit-Sum-L","طقم رياضة صيفي. TECTEL",190000,59,"Sell",1,185,58,null,"Locked",190000]
["2021-09-21","CA-BL-SS-Blue-14","بلوزة قطنية زرقاء كم قصير ",80000,192,"Sell",1,185,191,null,"Locked",80000]
["2021-09-21","CA-BL-LS-Blue-14","بلوزة قطنية زرقاء كم طويل",110000,103,"Sell",1,185,102,null,"Locked",110000]
["2021-09-21","CA-SpShort-14","شورت رياضة قطن",55000,135,"Sell",1,185,134,null,"Locked",55000]
["2021-09-21","CA-BL-SS-Blue-10","بلوزة قطنية زرقاء كم قصير ",80000,150,"Sell",1,187,149,null,"Locked",80000]
["2021-09-21","CA-SpShort-10","شورت رياضة قطن",55000,72,"Sell",1,187,71,null,"Locked",55000]
["2021-09-22","CA-JacNavy-Win-16","جاكيت شتوي كحلي",135000,90,"Return",2,172,92,null,"Locked",-270000]
["2021-09-22","CA-SP-Blouse-M","TECTELبلوزة رياضة  ",100000,24,"Sell",1,193,23,null,"Locked",100000]
["2021-09-22","CA-SP-Short-L","شورت رياضة TECTEL",90000,160,"Sell",1,193,159,null,"Locked",90000]
["2021-09-22","CA-SP-Blouse-XS","TECTELبلوزة رياضة  ",100000,51,"Sell",1,193,50,null,"Locked",100000]
["2021-09-22","CA-JacNavy-Win-M","جاكيت شتوي كحلي",135000,67,"Sell",2,172,65,null,"Locked",270000]
["2021-09-21","CA-JacNavy-Win-8","جاكيت شتوي كحلي",135000,62,"Sell",1,177,61,null,"Locked",135000]
["2021-09-22","CA-JacNavy-Win-14","جاكيت شتوي كحلي",135000,137,"Sell",1,2,136,null,"Locked",135000]
["2021-09-22","CA-JacNavy-Win-S","جاكيت شتوي كحلي",135000,152,"Sell",1,2,151,null,"Locked",135000]
["2021-09-22","CA-BL-SS-Blue-14","بلوزة قطنية زرقاء كم قصير ",80000,191,"Sell",1,3,190,null,"Locked",80000]
["2021-09-22","CA-BL-SS-Blue-10","بلوزة قطنية زرقاء كم قصير ",80000,149,"Sell",1,5,148,null,"Locked",80000]
["2021-09-22","CA-SpShort-8","شورت رياضة قطن",55000,77,"Sell",1,5,76,null,"Locked",55000]
["2021-09-22","CA-JacNavy-Win-8","جاكيت شتوي كحلي",135000,61,"Sell",1,6,60,null,"Locked",135000]
["2021-09-22","CA-Sp-Jacket-10","جاكيت رياضة افرادي",135000,46,"Sell",1,10,45,null,"Locked",135000]
["2021-09-22","CA-SpShort-8","شورت رياضة قطن",55000,76,"Sell",1,11,75,null,"Locked",55000]
["2021-09-22","CA-BL-SS-Blue-8","بلوزة قطنية زرقاء كم قصير ",80000,121,"Sell",1,11,120,null,"Locked",80000]
["2021-09-22","CA-SpSuit-Win-L","طقم رياضة شتوي",295000,154,"Sell",1,11,153,null,"Locked",295000]
["2021-09-22","CA-BL-SS-Blue-M","بلوزة قطنية زرقاء كم قصير ",80000,144,"Sell",1,11,143,null,"Locked",80000]
["2021-09-29","CA-BL-LS-Blue-M","بلوزة قطنية زرقاء كم طويل",110000,63,"Sell",1,11,62,null,"Locked",{"$f":"IF(G67<>\"\",IF(F67=\"sell\",D67*G67,-D67*G67),\"\")","v":110000}]
["2021-09-22","CA-BL-SS-Blue-14","بلوزة قطنية زرقاء كم قصير ",80000,190,"Sell",1,12,189,null,"Locked",80000]
["2021-09-22","CA-BL-LS-Blue-14","بلوزة قطنية زرقاء كم طويل",110000,102,"Sell",1,12,101,null,"Locked",110000]
["2021-09-22","CA-JacNavy-Win-12","جاكيت شتوي كحلي",135000,112,"Sell",1,12,111,null,"Locked",135000]
["2021-09-22","CA-BL-SS-Blue-14","بلوزة قطنية زرقاء كم قصير ",80000,189,"Sell",1,12,188,null,"Locked",80000]
["2021-09-22","CA-BL-LS-Blue-14","بلوزة قطنية زرقاء كم طويل",110000,101,"Sell",1,12,100,null,"Locked",110000]
["2021-09-22","CA-BL-LS-Blue-12","بلوزة قطنية زرقاء كم طويل",110000,217,"Sell",1,14,216,null,"Locked",110000]
["2021-09-22","CA-SpShort-S","شورت رياضة قطن",55000,10,"Sell",1,16,9,null,"Locked",55000]
["2021-09-22","CA-SpShort-14","شورت رياضة قطن",55000,134,"Sell",1,16,133,null,"Locked",55000]
["2021-09-22","CA-JacNavy-Win-6","جاكيت شتوي كحلي",135000,101,"Sell",1,17,100,null,"Locked",135000]
["2021-09-22","CA-SpShort-14","شورت رياضة قطن",55000,133,"Sell",1,23,132,null,"Locked",55000]
["2021-09-22","CA-BL-LS-Blue-14","بلوزة قطنية زرقاء كم طويل",110000,100,"Sell",1,23,99,null,"Locked",110000]
["2021-09-22","CA-SP-Short-XS","شورت رياضة TECTEL",90000,107,"Sell",1,23,106,null,"Locked",90000]
["2021-09-22","CA-SP-Blouse-3XS","TECTELبلوزة رياضة  ",100000,1,"Sell",1,23,0,null,"Locked",100000]
["2021-09-22","CA-SpSuit-Sum-XS","طقم رياضة صيفي. TECTEL",190000,132,"Sell",1,26,131,null,"Locked",190000]
["2021-09-22","CA-BL-LS-Blue-16","بلوزة قطنية زرقاء كم طويل",110000,181,"Sell",2,26,179,null,"Locked",220000]
["2021-09-22","CA-BL-SS-Blue-18","بلوزة قطنية زرقاء كم قصير ",80000,41,"Sell",2,26,39,null,"Locked",160000]
["2021-09-22","CA-BL-SS-Blue-12","بلوزة قطنية زرقاء كم قصير ",80000,146,"Sell",1,27,145,null,"Locked",80000]
["2021-09-22","CA-BL-SS-Blue-18","بلوزة قطنية زرقاء كم قصير ",80000,39,"Sell",1,27,38,null,"Locked",80000]
["2021-09-22","CA-BL-LS-Blue-16","بلوزة قطنية زرقاء كم طويل",110000,179,"Sell",1,27,178,null,"Locked",110000]
["2021-09-22","CA-JacNavy-Win-M","جاكيت شتوي كحلي",135000,65,"Sell",1,31,64,null,"Locked",135000]
["2021-09-22","CA-JacNavy-Win-12","جاكيت شتوي كحلي",135000,111,"Sell",1,32,110,null,"Locked",135000]
["2021-09-22","CA-JacNavy-Win-12","جاكيت شتوي كحلي",135000,110,"Sell",1,33,109,null,"Locked",135000]
["2021-09-22","CA-JacNavy-Win-10","جاكيت شتوي كحلي",135000,193,"Sell",1,33,192,null,"Locked",135000]
["2021-09-22","CA-Sp-Jacket-14","جاكيت رياضة افرادي",135000,174,"Sell",1,1,173,null,"Locked",135000]
["2021-09-23","CA-JacNavy-Win-12","جاكيت شتوي كحلي",135000,109,"Sell",1,38,108,null,"Locked",135000]
["2021-09-23","CA-BL-SS-Blue-12","بلوزة قطنية زرقاء كم قصير ",80000,145,"Sell",1,38,144,null,"Locked",80000]
["2021-09-23","CA-JacNavy-Win-8","جاكيت شتوي كحلي",135000,60,"Sell",1,41,59,null,"Locked",135000]
["2021-09-23","CA-BL-SS-Blue-8","بلوزة قطنية زرقاء كم قصير ",80000,120,"Sell",1,41,119,null,"Locked",80000]
["2021-09-23","CA-BL-LS-Blue-8","بلوزة قطنية زرقاء كم طويل",110000,103,"Sell",1,41,102,null,"Locked",110000]
["2021-09-23","CA-BL-SS-Blue-8","بلوزة قطنية زرقاء كم قصير ",80000,119,"Sell",1,42,118,null,"Locked",80000]
["2021-09-23","CA-BL-LS-Blue-14","بلوزة قطنية زرقاء كم طويل",110000,99,"Sell",1,48,98,null,"Locked",110000]
["2021-09-23","CA-BL-SS-Blue-14","بلوزة قطنية زرقاء كم قصير ",80000,188,"Sell",1,48,187,null,"Locked",80000]
["2021-09-23","CA-BL-LS-Blue-8","بلوزة قطنية زرقاء كم طويل",110000,102,"Sell",1,50,101,null,"Locked",110000]
["2021-09-23","CA-BL-SS-Blue-18","بلوزة قطنية زرقاء كم قصير ",80000,38,"Sell",1,53,37,null,"Locked",80000]
["2021-09-23","CA-BL-LS-Blue-18","بلوزة قطنية زرقاء كم طويل",110000,33,"Sell",1,53,32,null,"Locked",110000]
["2021-09-23","CA-SpShort-14","شورت رياضة قطن",55000,132,"Sell",1,53,131,null,"Locked",55000]
["2021-09-23","CA-SpSuit-Sum-M","طقم رياضة صيفي. TECTEL",190000,127,"Sell",1,62,126,null,"Locked",190000]
["2021-09-23","CA-BL-LS-Blue-6","بلوزة قطنية زرقاء كم طويل",110000,32,"Sell",1,66,31,null,"Locked",110000]
["2021-09-23","CA-BL-SS-Blue-18","بلوزة قطنية زرقاء كم قصير ",80000,37,"Sell",1,71,36,null,"Locked",80000]
["2021-09-23","CA-BL-LS-Blue-16","بلوزة قطنية زرقاء كم طويل",110000,178,"Sell",1,71,177,null,"Locked",110000]
["2021-09-23","CA-BL-LS-Blue-16","بلوزة قطنية زرقاء كم طويل",110000,177,"Sell",1,71,176,null,"Locked",110000]
["2021-09-23","CA-BL-LS-Blue-14","بلوزة قطنية زرقاء كم طويل",110000,98,"Sell",1,72,97,null,"Locked",110000]
["2021-09-23","CA-BL-LS-Blue-12","بلوزة قطنية زرقاء كم طويل",110000,216,"Sell",1,72,215,null,"Locked",110000]
["2021-09-23","CA-BL-LS-Blue-XL","بلوزة قطنية زرقاء كم طويل",110000,29,"Sell",1,73,28,null,"Locked",110000]
["2021-09-23","CA-BL-LS-Blue-XL","بلوزة قطنية زرقاء كم طويل",110000,28,"Sell",1,73,27,null,"Locked",110000]
["2021-09-23","CA-BL-LS-Blue-12","بلوزة قطنية زرقاء كم طويل",110000,215,"Sell",2,73,213,null,"Locked",220000]
["2021-09-23","CA-SpSuit-Sum-2XS","طقم رياضة صيفي. TECTEL",190000,119,"Sell",1,73,118,null,"Locked",190000]
["2021-09-23","CA-SpSuit-Sum-XL","طقم رياضة صيفي. TECTEL",190000,117,"Sell",1,73,116,null,"Locked",190000]
["2021-09-23","CA-SpSuit-Win-12","طقم رياضة شتوي",295000,226,"Sell",1,73,225,null,"Locked",295000]
["2021-09-23","CA-SpSuit-Win-XL","طقم رياضة شتوي",295000,100,"Sell",1,73,99,null,"Locked",295000]
["2021-09-23","CA-BL-LS-Blue-16","بلوزة قطنية زرقاء كم طويل",110000,176,"Return",1,27,177,null,"Locked",-110000]
["2021-09-23","CA-BL-LS-Blue-18","بلوزة قطنية زرقاء كم طويل",110000,32,"Sell",1,27,31,null,"Locked",110000]
["2021-09-23","CA-BL-LS-Blue-M","بلوزة قطنية زرقاء كم طويل",110000,68,"Sell",2,78,66,null,"Locked",220000]
["2021-09-23","CA-BL-SS-Blue-M","بلوزة قطنية زرقاء كم قصير ",80000,143,"Sell",2,78,141,null,"Locked",160000]
["2021-09-23","CA-SpSuit-Sum-M","طقم رياضة صيفي. TECTEL",190000,126,"Sell",1,78,125,null,"Locked",190000]
["2021-09-23","CA-BL-LS-Blue-8","بلوزة قطنية زرقاء كم طويل",110000,101,"Sell",1,80,100,null,"Locked",110000]
["2021-09-23","CA-SpSuit-Win-4","طقم رياضة شتوي",295000,39,"Sell",1,80,38,null,"Locked",295000]
["2021-09-23","CA-BL-SS-Blue-18","بلوزة قطنية زرقاء كم قصير ",80000,36,"Sell",1,86,35,null,"Locked",80000]
["2021-09-23","CA-SpSuit-Win-4","طقم رياضة شتوي",295000,38,"Sell",1,89,37,null,"Locked",295000]
["2021-09-23","CA-SpSuit-Win-10","طقم رياضة شتوي",295000,99,"Sell",1,89,98,null,"Locked",295000]
["2021-09-23","CA-BL-SS-Blue-10","بلوزة قطنية زرقاء كم قصير ",80000,148,"Sell",1,90,147,null,"Locked",80000]
["2021-09-23","CA-JacNavy-Win-8","جاكيت شتوي كحلي",135000,59,"Sell",1,90,58,null,"Locked",135000]
["2021-09-23","CA-BL-SS-Blue-10","بلوزة قطنية زرقاء كم قصير ",80000,147,"Sell",1,97,146,null,"Locked",80000]
["2021-09-23","CA-BL-LS-Blue-S","بلوزة قطنية زرقاء كم طويل",110000,50,"Sell",1,97,49,null,"Locked",{"$f":"IF(G131<>\"\",IF(F131=\"sell\",D131*G131,-D131*G131),\"\")","v":110000}]
["2021-09-23","CA-BL-LS-Blue-12","بلوزة قطنية زرقاء كم طويل",110000,213,"Sell",1,97,212,null,"Locked",110000]
["2021-09-23","CA-SpSuit-Sum-S","طقم رياضة صيفي. TECTEL",190000,131,"Sell",1,97,130,null,"Locked",190000]
["2021-09-23","CA-SpShort-8","شورت رياضة قطن",55000,75,"Sell",1,97,74,null,"Locked",55000]
["2021-09-27","CA-BL-SS-Blue-10","بلوزة قطنية زرقاء كم قصير ",80000,146,"Sell",1,118,145,null,"Locked",80000]
["2021-09-27","CA-BL-LS-Blue-8","بلوزة قطنية زرقاء كم طويل",110000,100,"Sell",1,119,99,null,"Locked",110000]
["2021-09-27","CA-BL-SS-Blue-XL","بلوزة قطنية زرقاء كم قصير ",80000,81,"Sell",1,120,80,null,"Locked",80000]
["2021-09-27","CA-BL-LS-Blue-8","بلوزة قطنية زرقاء كم طويل",110000,99,"Sell",2,120,97,null,"Locked",220000]
["2021-09-27","CA-BL-SS-Blue-8","بلوزة قطنية زرقاء كم قصير ",80000,118,"Sell",1,120,117,null,"Locked",80000]
["2021-09-27","CA-SpShort-8","شورت رياضة قطن",55000,74,"Sell",1,120,73,null,"Locked",55000]
["2021-09-27","CA-SpShort-6","شورت رياضة قطن",55000,64,"Sell",1,121,63,null,"Locked",55000]
["2021-09-27","CA-SpShort-8","شورت رياضة قطن",55000,73,"Sell",1,121,72,null,"Locked",55000]
["2021-09-27","CA-BL-SS-Blue-10","بلوزة قطنية زرقاء كم قصير ",80000,145,"Sell",2,121,143,null,"Locked",160000]
["2021-09-27","CA-BL-LS-Blue-8","بلوزة قطنية زرقاء كم طويل",110000,97,"Sell",1,121,96,null,"Locked",110000]
["2021-09-27","CA-BL-LS-Blue-10","بلوزة قطنية زرقاء كم طويل",110000,217,"Sell",1,121,216,null,"Locked",110000]
["2021-09-27","CA-BL-LS-Blue-12","بلوزة قطنية زرقاء كم طويل",110000,212,"Sell",1,122,211,null,"Locked",110000]
["2021-09-27","CA-BL-SS-Blue-8","بلوزة قطنية زرقاء كم قصير ",80000,117,"Sell",1,123,116,null,"Locked",80000]
["2021-09-27","CA-BL-LS-Blue-8","بلوزة قطنية زرقاء كم طويل",110000,96,"Sell",1,123,95,null,"Locked",110000]
["2021-09-27","CA-SpShort-8","شورت رياضة قطن",55000,72,"Sell",1,123,71,null,"Locked",55000]
["2021-09-27","CA-JacNavy-Win-6","جاكيت شتوي كحلي",135000,100,"Sell",1,126,99,null,"Locked",135000]
["2021-09-27","CA-JacNavy-Win-8","جاكيت شتوي كحلي",135000,58,"Sell",1,126,57,null,"Locked",135000]
["2021-09-27","CA-BL-LS-Blue-8","بلوزة قطنية زرقاء كم طويل",110000,95,"Sell",1,139,94,null,"Locked",110000]
["2021-09-27","CA-BL-SS-Blue-14","بلوزة قطنية زرقاء كم قصير ",80000,187,"Sell",1,128,186,null,"Locked",80000]
["2021-09-27","CA-BL-LS-Blue-16","بلوزة قطنية زرقاء كم طويل",110000,177,"Sell",1,128,176,null,"Locked",110000]
["2021-09-27","CA-JacNavy-Win-16","جاكيت شتوي كحلي",135000,92,"Sell",1,128,91,null,"Locked",135000]
["2021-09-27","CA-BL-LS-Blue-6","بلوزة قطنية زرقاء كم طويل",110000,31,"Sell",1,132,30,null,"Locked",110000]
["2021-09-27","CA-BL-LS-Blue-12","بلوزة قطنية زرقاء كم طويل",110000,211,"Sell",1,132,210,null,"Locked",110000]
["2021-09-27","CA-SpShort-12","شورت رياضة قطن",55000,76,"Sell",1,132,75,null,"Locked",55000]
["2021-09-27","CA-SpSuit-Win-14","طقم رياضة شتوي",295000,138,"Sell",1,133,137,null,"Locked",295000]
["2021-09-27","CA-BL-LS-Blue-16","بلوزة قطنية زرقاء كم طويل",110000,176,"Sell",1,133,175,null,"Locked",110000]
["2021-09-27","CA-SpSuit-Sum-2XS","طقم رياضة صيفي. TECTEL",190000,118,"Sell",1,146,117,null,"Locked",190000]
["2021-09-27","CA-BL-SS-Blue-8","بلوزة قطنية زرقاء كم قصير ",80000,116,"Return",1,42,117,null,"Locked",-80000]
["2021-09-27","CA-BL-LS-Blue-12","بلوزة قطنية زرقاء كم طويل",110000,210,"Sell",1,42,209,null,"Locked",110000]
["2021-09-27","CA-JacNavy-Win-S","جاكيت شتوي كحلي",135000,151,"Sell",3,147,148,null,"Locked",405000]
["2021-09-27","CA-JacNavy-Win-8","جاكيت شتوي كحلي",135000,57,"Sell",1,147,56,null,"Locked",135000]
["2021-09-27","CA-JacNavy-Win-6","جاكيت شتوي كحلي",135000,99,"Sell",1,147,98,null,"Locked",135000]
["2021-09-27","CA-BL-LS-Blue-8","بلوزة قطنية زرقاء كم طويل",110000,94,"Sell",1,148,93,null,"Locked",110000]
["2021-09-27","CA-BL-LS-Blue-10","بلوزة قطنية زرقاء كم طويل",110000,216,"Sell",1,148,215,null,"Locked",110000]
["2021-09-27","CA-BL-LS-Blue-16","بلوزة قطنية زرقاء كم طويل",110000,175,"Sell",1,148,174,null,"Locked",110000]
["2021-09-27","CA-BL-LS-Blue-18","بلوزة قطنية زرقاء كم طويل",110000,31,"Sell",1,148,30,null,"Locked",110000]
["2021-09-27","CA-BL-LS-Blue-16","بلوزة قطنية زرقاء كم طويل",110000,174,"Sell",1,"وعد الياسين",173,null,"Locked",110000]
["2021-09-27","CA-BL-LS-Blue-14","بلوزة قطنية زرقاء كم طويل",110000,97,"Sell",1,null,96,null,"Locked",110000]
["2021-09-27","CA-SP-Blouse-S","TECTELبلوزة رياضة  ",100000,7,"Sell",1,"وعد الياسين",6,null,"Locked",100000]
["2021-09-27","CA-SP-Short-M","شورت رياضة TECTEL",90000,65,"Sell",1,"وعد الياسين",64,null,"Locked",90000]
["2021-09-27","CA-BL-LS-Blue-14","بلوزة قطنية زرقاء كم طويل",110000,96,"Return",1,null,97,null,"Locked",-110000]
["2021-09-27","CA-JacNavy-Win-8","جاكيت شتوي كحلي",135000,56,"Sell",1,"يوسف الحجار",55,null,"Locked",135000]
["2021-09-27","CA-BL-LS-Blue-8","بلوزة قطنية زرقاء كم طويل",110000,93,"Sell",1,"يوسف الحجار",92,null,"Locked",110000]
["2021-09-27","CA-SpSuit-Win-6","طقم رياضة شتوي",295000,194,"Sell",1,"يوسف الحجار",193,null,"Locked",295000]
["2021-09-27","CA-SpShort-10","شورت رياضة قطن",55000,71,"Sell",1,"أيهم عيد",70,null,"Locked",55000]
["2021-09-27","CA-BL-SS-Blue-10","بلوزة قطنية زرقاء كم قصير ",80000,143,"Sell",1,"أيهم عيد",142,null,"Locked",80000]
["2021-09-27","CA-JacNavy-Win-8","جاكيت شتوي كحلي",135000,55,"Sell",1,"علا غنوم المصري",54,null,"Locked",135000]
["2021-09-27","CA-JacNavy-Win-14","جاكيت شتوي كحلي",135000,136,"Sell",1,"علا غنوم المصري",135,null,"Locked",135000]
["2021-09-27","CA-BL-SS-Blue-6","بلوزة قطنية زرقاء كم قصير ",80000,135,"Sell",1,"علا غنوم المصري",134,null,"Locked",80000]
["2021-09-27","CA-SpShort-6","شورت رياضة قطن",55000,63,"Sell",1,"علا غنوم المصري",62,null,"Locked",55000]
["2021-09-27","CA-SpSuit-Sum-XS","طقم رياضة صيفي. TECTEL",190000,131,"Sell",1,"علا غنوم المصري",130,null,"Locked",190000]
["2021-09-27","CA-JacNavy-Win-8","جاكيت شتوي كحلي",135000,54,"Sell",1,"رولا الشامي",53,null,"Locked",135000]
["2021-09-27","CA-SpSuit-Win-4","طقم رياضة شتوي",295000,37,"Sell",1,501,36,null,"Locked",295000]
["2021-09-27","CA-BL-LS-Blue-4","بلوزة قطنية زرقاء كم طويل",110000,73,"Sell",1,501,72,null,"Locked",110000]
["2021-09-27","CA-BL-LS-Blue-6","بلوزة قطنية زرقاء كم طويل",110000,30,"Sell",1,501,29,null,"Locked",110000]
["2021-09-27","CA-JacNavy-Win-16","جاكيت شتوي كحلي",135000,91,"Sell",1,505,90,null,"Locked",135000]
["2021-09-27","CA-BL-SS-Blue-10","بلوزة قطنية زرقاء كم قصير ",80000,142,"Sell",1,505,141,null,"Locked",80000]
["2021-09-27","CA-BL-LS-Blue-10","بلوزة قطنية زرقاء كم طويل",110000,215,"Sell",1,505,214,null,"Locked",110000]
["2021-09-27","CA-SpShort-12","شورت رياضة قطن",55000,75,"Sell",1,510,74,null,"Locked",55000]
["2021-09-27","CA-BL-LS-Blue-6","بلوزة قطنية زرقاء كم طويل",110000,29,"Return",1,132,30,null,"Locked",-110000]
["2021-09-27","CA-BL-LS-Blue-10","بلوزة قطنية زرقاء كم طويل",110000,214,"Sell",1,132,213,null,"Locked",{"$f":"IF(G195<>\"\",IF(F195=\"sell\",D195*G195,-D195*G195),\"\")","v":110000}]
["2021-09-27","CA-SpShort-12","شورت رياضة قطن",55000,74,"Return",1,132,75,null,"Locked",-55000]
["2021-09-27","CA-SPPant-12","بنطلون رياضة افرادي",160000,25,"Sell",1,132,24,null,"Locked",160000]
["2021-09-27","CA-JacNavy-Win-14","جاكيت شتوي كحلي",135000,135,"Sell",1,511,134,null,"Locked",135000]
["2021-09-27","CA-SpShort-14","شورت رياضة قطن",55000,131,"Sell",1,511,130,null,"Locked",55000]
["2021-09-27","CA-BL-SS-Blue-14","بلوزة قطنية زرقاء كم قصير ",80000,186,"Sell",1,511,185,null,"Locked",80000]
["2021-09-27","CA-BL-LS-Blue-16","بلوزة قطنية زرقاء كم طويل",110000,173,"Sell",1,511,172,null,"Locked",110000]
["2021-09-27","CA-SpSuit-Win-14","طقم رياضة شتوي",295000,137,"Sell",1,511,136,null,"Locked",295000]
["2021-09-27","CA-BL-SS-Blue-12","بلوزة قطنية زرقاء كم قصير ",80000,144,"Sell",1,515,143,null,"Locked",80000]
["2021-09-27","CA-BL-LS-Blue-12","بلوزة قطنية زرقاء كم طويل",110000,209,"Sell",1,515,208,null,"Locked",110000]
["2021-09-27","CA-JacNavy-Win-12","جاكيت شتوي كحلي",135000,108,"Sell",1,515,107,null,"Locked",135000]
["2021-09-27","CA-SpShort-12","شورت رياضة قطن",55000,75,"Sell",1,515,74,null,"Locked",55000]
["2021-09-27","CA-BL-LS-Blue-14","بلوزة قطنية زرقاء كم طويل",110000,97,"Sell",1,516,96,null,"Locked",110000]
["2021-09-27","CA-BL-LS-Blue-12","بلوزة قطنية زرقاء كم طويل",110000,208,"Sell",1,517,207,null,"Locked",110000]
["2021-09-27","CA-BL-LS-Blue-16","بلوزة قطنية زرقاء كم طويل",110000,172,"Sell",1,517,171,null,"Locked",110000]
["2021-09-27","CA-SpShort-12","شورت رياضة قطن",55000,74,"Sell",1,517,73,null,"Locked",55000]
["2021-09-27","CA-BL-LS-Blue-12","بلوزة قطنية زرقاء كم طويل",110000,207,"Return",1,139,208,null,"Locked",-110000]
["2021-09-27","CA-BL-LS-Blue-18","بلوزة قطنية زرقاء كم طويل",110000,30,"Sell",1,148,29,null,"Locked",110000]
["2021-09-27","CA-BL-LS-Blue-8","بلوزة قطنية زرقاء كم طويل",110000,92,"Sell",1,129,91,null,"Locked",110000]
["2021-09-27","CA-SpSuit-Sum-3XS","طقم رياضة صيفي. TECTEL",190000,98,"Sell",1,132,97,null,"Locked",190000]
["2021-09-28","CA-BL-LS-Blue-16","بلوزة قطنية زرقاء كم طويل",110000,170,"Sell",1,53307,169,null,"Locked",110000]
["2021-09-28","CA-BL-LS-Blue-14","بلوزة قطنية زرقاء كم طويل",110000,109,"Return",1,516,108,null,"Locked",-110000]
["2021-09-28","CA-BL-LS-Blue-16","بلوزة قطنية زرقاء كم طويل",110000,171,"Sell",1,516,170,null,"Locked",110000]
["2021-09-28","CA-BL-SS-Blue-14","بلوزة قطنية زرقاء كم قصير ",80000,185,"Sell",1,522,184,null,"Locked",80000]
["2021-09-28","CA-BL-SS-Blue-14","بلوزة قطنية زرقاء كم قصير ",80000,184,"Sell",1,525,183,null,"Locked",80000]
["2021-09-28","CA-SpShort-8","شورت رياضة قطن",55000,71,"Return",1,123,72,null,"Locked",-55000]
["2021-09-28","CA-SpShort-6","شورت رياضة قطن",55000,62,"Sell",1,123,61,null,"Locked",55000]
["2021-09-28","CA-JacNavy-Win-10","جاكيت شتوي كحلي",135000,192,"Sell",1,530,191,null,"Locked",135000]
["2021-09-28","CA-BL-LS-Blue-M","بلوزة قطنية زرقاء كم طويل",110000,66,"Sell",1,531,65,null,"Locked",110000]
["2021-09-28","CA-SpSuit-Sum-M","طقم رياضة صيفي. TECTEL",190000,125,"Sell",1,531,124,null,"Locked",190000]
["2021-09-28","CA-JacNavy-Win-8","جاكيت شتوي كحلي",135000,53,"Sell",1,542,52,null,"Locked",135000]
["2021-09-28","CA-BL-SS-Blue-10","بلوزة قطنية زرقاء كم قصير ",80000,141,"Sell",2,536,139,null,"Locked",160000]
["2021-09-28","CA-BL-LS-Blue-10","بلوزة قطنية زرقاء كم طويل",110000,213,"Sell",2,536,211,null,"Locked",220000]
["2021-09-28","CA-JacNavy-Win-6","جاكيت شتوي كحلي",135000,98,"Sell",1,"-",97,null,"Locked",135000]
["2021-09-28","CA-JacNavy-Win-6","جاكيت شتوي كحلي",135000,97,"Return",1,"-",98,null,"Locked",-135000]
["2021-09-28","CA-Sp-Jacket-6","جاكيت رياضة افرادي",135000,44,"Sell",1,537,43,null,"Locked",135000]
["2021-09-28","CA-SpSuit-Win-12","طقم رياضة شتوي",295000,225,"Sell",1,537,224,null,"Locked",295000]
["2021-09-28","CA-SpShort-10","شورت رياضة قطن",55000,70,"Sell",1,537,69,null,"Locked",55000]
["2021-09-28","CA-BL-SS-Blue-10","بلوزة قطنية زرقاء كم قصير ",80000,139,"Sell",1,537,138,null,"Locked",80000]
["2021-09-28","CA-BL-LS-Blue-10","بلوزة قطنية زرقاء كم طويل",110000,211,"Sell",1,537,210,null,"Locked",110000]
["2021-09-28","CA-BL-SS-Blue-S","بلوزة قطنية زرقاء كم قصير ",80000,75,"Sell",1,550,74,null,"Locked",80000]
["2021-09-28","CA-SpSuit-Win-M","طقم رياضة شتوي",295000,55,"Sell",1,550,54,null,"Locked",295000]
["2021-09-28","CA-SpShort-S","شورت رياضة قطن",55000,9,"Sell",1,550,8,null,"Locked",55000]
["2021-09-28","CA-BL-LS-Car-16","قميص كارو كم طويل",50000,215,"Sell",1,53309,214,null,"Locked",50000]
["2021-09-28","CA-JacNavy-Win-6","جاكيت شتوي كحلي",135000,98,"Sell",1,53310,97,null,"Locked",135000]
["2021-09-28","CA-JacNavy-Win-12","جاكيت شتوي كحلي",135000,107,"Sell",1,53310,106,null,"Locked",135000]
["2021-09-28","CA-BL-LS-Blue-8","بلوزة قطنية زرقاء كم طويل",110000,91,"Sell",1,53310,90,null,"Locked",110000]
["2021-09-28","CA-BL-LS-Blue-14","بلوزة قطنية زرقاء كم طويل",110000,108,"Sell",1,53310,107,null,"Locked",110000]
["2021-09-28","CA-BL-LS-Blue-18","بلوزة قطنية زرقاء كم طويل",110000,29,"Sell",1,53311,28,null,"Locked",110000]
["2021-09-28","CA-BL-SS-Blue-18","بلوزة قطنية زرقاء كم قصير ",80000,35,"Sell",1,53311,34,null,"Locked",80000]
["2021-09-28","CA-SPPant-16","بنطلون رياضة افرادي",160000,53,"Sell",1,53311,52,null,"Locked",160000]
["2021-09-28","CA-BL-LS-Blue-16","بلوزة قطنية زرقاء كم طويل",110000,169,"Sell",1,53313,168,null,"Locked",110000]
["2021-09-28","CA-BL-SS-Blue-8","بلوزة قطنية زرقاء كم قصير ",80000,117,"Sell",1,53314,116,null,"Locked",80000]
["2021-09-28","CA-BL-LS-Blue-8","بلوزة قطنية زرقاء كم طويل",110000,90,"Sell",1,53314,89,null,"Locked",110000]
["2021-09-28","CA-BL-SS-Blue-M","بلوزة قطنية زرقاء كم قصير ",80000,143,"Sell",1,53314,142,null,"Locked",80000]
["2021-09-28","CA-BL-LS-Blue-M","بلوزة قطنية زرقاء كم طويل",110000,65,"Sell",1,53314,64,null,"Locked",110000]
["2021-09-28","CA-SpShort-8","شورت رياضة قطن",55000,72,"Sell",1,53314,71,null,"Locked",55000]
["2021-09-28","CA-BL-SS-Blue-S","بلوزة قطنية زرقاء كم قصير ",80000,74,"Sell",1,53315,73,null,"Locked",80000]
["2021-09-28","CA-BL-LS-Blue-S","بلوزة قطنية زرقاء كم طويل",110000,49,"Sell",1,53315,48,null,"Locked",110000]
["2021-09-28","CA-SpShort-S","شورت رياضة قطن",55000,8,"Sell",1,53315,7,null,"Locked",55000]
["2021-09-28","CA-BL-SS-Car-S","قميص كارو كم قصير",50000,61,"Sell",1,53315,60,null,"Locked",50000]
["2021-09-28","CA-JacNavy-Win-6","جاكيت شتوي كحلي",135000,97,"Sell",1,53320,96,null,"Locked",{"$f":"IF(G256<>\"\",IF(F256=\"sell\",D256*G256,-D256*G256),\"\")","v":135000}]
["2021-09-28","CA-JacNavy-Win-14","جاكيت شتوي كحلي",135000,134,"Sell",1,53320,133,null,"Locked",135000]
["2021-09-28","CA-JacNavy-Win-16","جاكيت شتوي كحلي",135000,90,"Sell",1,53321,89,null,"Locked",135000]
["2021-09-28","CA-BL-LS-Blue-16","بلوزة قطنية زرقاء كم طويل",110000,168,"Return",1,"وعد الياسين",169,null,"Locked",-110000]
["2021-09-28","CA-BL-LS-Blue-18","بلوزة قطنية زرقاء كم طويل",110000,28,"Sell",1,"وعد الياسين",27,null,"Locked",110000]
["2021-09-28","CA-JacNavy-Win-6","جاكيت شتوي كحلي",135000,96,"Sell",1,53321,95,null,"Locked",135000]
["2021-09-28","CA-JacNavy-Win-S","جاكيت شتوي كحلي",135000,148,"Sell",1,53321,147,null,"Locked",135000]
["2021-09-28","CA-SpShort-8","شورت رياضة قطن",55000,71,"Return",1,97,72,null,"Locked",-55000]
["2021-09-28","CA-SpShort-10","شورت رياضة قطن",55000,69,"Sell",1,97,68,null,"Locked",55000]
["2021-09-28","CA-BL-SS-Blue-16","بلوزة قطنية زرقاء كم قصير ",80000,152,"Sell",1,53325,151,null,"Locked",80000]
["2021-09-28","CA-Sp-Jacket-M","جاكيت رياضة افرادي",135000,45,"Sell",1,53325,44,null,"Locked",135000]
["2021-09-28","CA-BL-SS-Blue-12","بلوزة قطنية زرقاء كم قصير ",80000,143,"Sell",2,53327,141,null,"Locked",160000]
["2021-09-28","CA-BL-LS-Blue-12","بلوزة قطنية زرقاء كم طويل",110000,208,"Sell",2,53327,206,null,"Locked",220000]
["2021-09-28","CA-SpSuit-Win-10","طقم رياضة شتوي",295000,98,"Sell",1,53327,97,null,"Locked",295000]
["2021-09-28","CA-SpSuit-Win-12","طقم رياضة شتوي",295000,224,"Sell",1,53327,223,null,"Locked",295000]
["2021-09-28","CA-SpShort-4","شورت رياضة قطن",55000,26,"Sell",1,53331,25,null,"Locked",55000]
["2021-09-28","CA-BL-SS-Blue-8","بلوزة قطنية زرقاء كم قصير ",80000,116,"Sell",1,53331,115,null,"Locked",80000]
["2021-09-28","CA-BL-SS-Blue-S","بلوزة قطنية زرقاء كم قصير ",80000,73,"Sell",1,53332,72,null,"Locked",80000]
["2021-09-28","CA-BL-LS-Blue-16","بلوزة قطنية زرقاء كم طويل",110000,169,"Sell",1,53332,168,null,"Locked",110000]
["2021-09-28","CA-JacNavy-Win-S","جاكيت شتوي كحلي",135000,147,"Sell",1,53332,146,null,"Locked",135000]
["2021-09-28","CA-JacNavy-Win-16","جاكيت شتوي كحلي",135000,89,"Sell",1,53332,88,null,"Locked",135000]
["2021-09-28","CA-SPPant-S","بنطلون رياضة افرادي",160000,87,"Sell",1,53332,86,null,"Locked",160000]
["2021-09-28","CA-JacNavy-Win-12","جاكيت شتوي كحلي",135000,106,"Sell",1,53333,105,null,"Locked",135000]
["2021-09-28","CA-BL-LS-Blue-12","بلوزة قطنية زرقاء كم طويل",110000,206,"Sell",1,53334,205,null,"Locked",110000]
["2021-09-28","CA-SpShort-12","شورت رياضة قطن",55000,73,"Sell",1,53334,72,null,"Locked",55000]
["2021-09-28","CA-BL-SS-Blue-16","بلوزة قطنية زرقاء كم قصير ",80000,151,"Sell",1,"-",150,null,"Locked",80000]
["2021-09-28","CA-SPPant-16","بنطلون رياضة افرادي",160000,52,"Sell",1,53335,51,null,"Locked",160000]
["2021-09-28","CA-SpShort-12","شورت رياضة قطن",55000,72,"Return",1,"-",73,null,"Locked",-55000]
["2021-09-28","CA-BL-LS-Blue-16","بلوزة قطنية زرقاء كم طويل",110000,168,"Sell",1,53335,167,null,"Locked",110000]
["2021-09-28","CA-SpShort-12","شورت رياضة قطن",55000,73,"Sell",1,"-",72,null,"Locked",55000]
["2021-09-28","CA-BL-SS-Blue-16","بلوزة قطنية زرقاء كم قصير ",80000,150,"Return",1,"-",151,null,"Locked",-80000]
["2021-09-28","CA-SpShort-8","شورت رياضة قطن",55000,72,"Return",1,120,73,null,"Locked",-55000]
["2021-09-28","CA-SpShort-6","شورت رياضة قطن",55000,61,"Sell",1,120,60,null,"Locked",55000]
["2021-09-28","CA-BL-SS-Blue-XL","بلوزة قطنية زرقاء كم قصير ",80000,80,"Return",1,120,81,null,"Locked",-80000]
["2021-09-28","CA-BL-SS-Blue-L","بلوزة قطنية زرقاء كم قصير ",80000,174,"Sell",1,120,173,null,"Locked",80000]
["2021-09-28","CA-BL-SS-Blue-10","بلوزة قطنية زرقاء كم قصير ",80000,138,"Sell",1,53346,137,null,"Locked",80000]
["2021-09-28","CA-BL-LS-Blue-10","بلوزة قطنية زرقاء كم طويل",110000,210,"Sell",1,53346,209,null,"Locked",110000]
["2021-09-28","CA-SpSuit-Win-6","طقم رياضة شتوي",295000,193,"Sell",1,53346,192,null,"Locked",295000]
["2021-09-28","CA-SpShort-10","شورت رياضة قطن",55000,68,"Sell",1,53346,67,null,"Locked",55000]
["2021-09-28","CA-SpSuit-Win-14","طقم رياضة شتوي",295000,136,"Sell",1,53346,135,null,"Locked",295000]
["2021-09-28","CA-BL-LS-Blue-4","بلوزة قطنية زرقاء كم طويل",110000,72,"Sell",1,53346,71,null,"Locked",110000]
["2021-09-28","CA-BL-LS-Blue-S","بلوزة قطنية زرقاء كم طويل",110000,48,"Sell",1,53346,47,null,"Locked",110000]
["2021-09-29","CA-BL-SS-Blue-10","بلوزة قطنية زرقاء كم قصير ",80000,137,"Return",2,536,139,null,"Locked",-160000]
["2021-09-29","CA-BL-LS-Blue-10","بلوزة قطنية زرقاء كم طويل",110000,209,"Return",2,536,211,null,"Locked",-220000]
["2021-09-29","CA-BL-SS-Blue-12","بلوزة قطنية زرقاء كم قصير ",80000,141,"Sell",2,536,139,null,"Locked",160000]
["2021-09-29","CA-BL-LS-Blue-12","بلوزة قطنية زرقاء كم طويل",110000,205,"Sell",2,536,203,null,"Locked",220000]
["2021-09-29","CA-SpSuit-Win-6","طقم رياضة شتوي",295000,192,"Sell",1,53347,191,null,"Locked",295000]
["2021-09-29","CA-BL-SS-Blue-18","بلوزة قطنية زرقاء كم قصير ",80000,34,"Sell",1,53349,33,null,"Locked",80000]
["2021-09-29","CA-BL-LS-Blue-10","بلوزة قطنية زرقاء كم طويل",110000,211,"Sell",1,53349,210,null,"Locked",110000]
["2021-09-29","CA-BL-LS-Blue-16","بلوزة قطنية زرقاء كم طويل",110000,167,"Sell",1,53349,166,null,"Locked",110000]
["2021-09-29","CA-BL-SS-Blue-M","بلوزة قطنية زرقاء كم قصير ",80000,142,"Sell",1,53351,141,null,"Locked",80000]
["2021-09-29","CA-SpShort-12","شورت رياضة قطن",55000,72,"Sell",1,53354,71,null,"Locked",55000]
["2021-09-29","CA-BL-LS-Blue-12","بلوزة قطنية زرقاء كم طويل",110000,203,"Sell",1,53354,202,null,"Locked",110000]
["2021-09-29","CA-BL-LS-Blue-M","بلوزة قطنية زرقاء كم طويل",110000,64,"Sell",1,53355,63,null,"Locked",110000]
["2021-09-29","CA-BL-LS-Blue-12","بلوزة قطنية زرقاء كم طويل",110000,202,"Sell",1,53357,201,null,"Locked",110000]
["2021-09-29","CA-BL-SS-Blue-10","بلوزة قطنية زرقاء كم قصير ",80000,139,"Sell",1,53358,138,null,"Locked",80000]
["2021-09-29","CA-BL-LS-Blue-14","بلوزة قطنية زرقاء كم طويل",110000,92,"Sell",1,53363,91,null,"Locked",110000]
["2021-09-29","CA-BL-LS-Blue-8","بلوزة قطنية زرقاء كم طويل",110000,89,"Sell",1,53366,88,null,"Locked",110000]
["2021-09-29","CA-BL-LS-Blue-16","بلوزة قطنية زرقاء كم طويل",110000,166,"Sell",1,53366,165,null,"Locked",110000]
["2021-09-29","CA-BL-SS-Blue-12","بلوزة قطنية زرقاء كم قصير ",80000,139,"Sell",1,53371,138,null,"Locked",80000]
["2021-09-29","CA-SpShort-14","شورت رياضة قطن",55000,130,"Sell",1,53371,129,null,"Locked",55000]
["2021-09-29","CA-SpSuit-Sum-S","طقم رياضة صيفي. TECTEL",190000,130,"Sell",1,53372,129,null,"Locked",190000]
["2021-09-29","CA-SpSuit-Win-16","طقم رياضة شتوي",295000,112,"Sell",1,53372,111,null,"Locked",295000]
["2021-09-29","CA-JacNavy-Win-L","جاكيت شتوي كحلي",135000,136,"Sell",1,53372,135,null,"Locked",135000]
["2021-09-29","CA-JacNavy-Win-16","جاكيت شتوي كحلي",135000,88,"Sell",1,53374,87,null,"Locked",{"$f":"IF(G320<>\"\",IF(F320=\"sell\",D320*G320,-D320*G320),\"\")","v":135000}]
["2021-09-29","CA-BL-SS-Blue-8","بلوزة قطنية زرقاء كم قصير ",80000,115,"Sell",1,553,114,null,"Locked",80000]
["2021-09-29","CA-BL-SS-Blue-14","بلوزة قطنية زرقاء كم قصير ",80000,183,"Sell",1,555,182,null,"Locked",80000]
["2021-09-29","CA-BL-LS-Blue-14","بلوزة قطنية زرقاء كم طويل",110000,91,"Sell",1,555,90,null,"Locked",110000]
["2021-09-29","CA-BL-SS-Blue-16","بلوزة قطنية زرقاء كم قصير ",80000,151,"Return",1,53325,152,null,"Locked",-80000]
["2021-09-29","CA-BL-LS-Blue-S","بلوزة قطنية زرقاء كم طويل",110000,47,"Sell",1,53325,46,null,"Locked",110000]
["2021-09-29","CA-SpSuit-Win-12","طقم رياضة شتوي",295000,223,"Return",1,537,224,null,"Locked",-295000]
["2021-09-29","CA-SpSuit-Win-10","طقم رياضة شتوي",295000,97,"Sell",1,537,96,null,"Locked",295000]
["2021-09-29","CA-Sp-Jacket-6","جاكيت رياضة افرادي",135000,43,"Return",1,537,44,null,"Locked",-135000]
["2021-09-29","CA-Sp-Jacket-4","جاكيت رياضة افرادي",135000,34,"Sell",1,537,33,null,"Locked",135000]
["2021-09-29","CA-BL-LS-Blue-10","بلوزة قطنية زرقاء كم طويل",110000,210,"Sell",1,560,209,null,"Locked",110000]
["2021-09-29","CA-BL-LS-Blue-12","بلوزة قطنية زرقاء كم طويل",110000,201,"Sell",1,560,200,null,"Locked",110000]
["2021-09-29","CA-SpShort-12","شورت رياضة قطن",55000,71,"Return",1,"ukn",72,null,"Locked",-55000]
["2021-09-29","CA-SpShort-14","شورت رياضة قطن",55000,129,"Sell",1,"ukn",128,null,"Locked",55000]
["2021-09-30","CA-BL-LS-Blue-16","بلوزة قطنية زرقاء كم طويل",110000,165,"Return",1,53349,166,null,"Locked",-110000]
["2021-09-30","CA-BL-LS-Blue-18","بلوزة قطنية زرقاء كم طويل",110000,27,"Sell",1,53349,26,null,"Locked",110000]
["2021-09-30","CA-BL-LS-Blue-14","بلوزة قطنية زرقاء كم طويل",110000,90,"Sell",1,"-",89,null,"Locked",110000]
["2021-09-30","CA-BL-LS-Blue-14","بلوزة قطنية زرقاء كم طويل",110000,89,"Return",1,"-",90,null,"Locked",-110000]
["2021-09-30","CA-BL-SS-Blue-14","بلوزة قطنية زرقاء كم قصير ",80000,182,"Sell",1,564,181,null,"Locked",80000]
["2021-09-30","CA-BL-LS-Blue-14","بلوزة قطنية زرقاء كم طويل",110000,90,"Sell",1,565,89,null,"Locked",110000]
["2021-09-30","CA-BL-SS-Blue-M","بلوزة قطنية زرقاء كم قصير ",80000,141,"Return",1,53351,142,null,"Locked",-80000]
["2021-09-30","CA-BL-SS-Blue-14","بلوزة قطنية زرقاء كم قصير ",80000,181,"Sell",1,53351,180,null,"Locked",80000]
["2021-09-30","CA-BL-SS-Blue-18","بلوزة قطنية زرقاء كم قصير ",80000,33,"Sell",1,568,32,null,"Locked",80000]
["2021-09-30","CA-BL-LS-Blue-14","بلوزة قطنية زرقاء كم طويل",110000,89,"Sell",1,"-",88,null,"Locked",110000]
["2021-09-30","CA-BL-LS-Blue-14","بلوزة قطنية زرقاء كم طويل",110000,88,"Return",1,"-",89,null,"Locked",-110000]
["2021-09-30","CA-SpShort-14","شورت رياضة قطن",55000,128,"Sell",1,568,127,null,"Locked",55000]
["2021-09-30","CA-BL-SS-Blue-14","بلوزة قطنية زرقاء كم قصير ",80000,180,"Sell",1,567,179,null,"Locked",80000]
["2021-09-30","CA-BL-LS-Blue-14","بلوزة قطنية زرقاء كم طويل",110000,89,"Sell",1,567,88,null,"Locked",110000]
["2021-09-30","CA-BL-SS-Blue-14","بلوزة قطنية زرقاء كم قصير ",80000,179,"Sell",1,570,178,null,"Locked",80000]
["2021-09-30","CA-BL-LS-Blue-14","بلوزة قطنية زرقاء كم طويل",110000,88,"Sell",1,570,87,null,"Locked",110000]
["2021-09-30","CA-SP-Blouse-M","TECTELبلوزة رياضة  ",100000,23,"Return",1,null,24,"بدل وصل 581 بقميص","Locked",-100000]
["2021-09-30","CA-SpSuit-Sum-M","طقم رياضة صيفي. TECTEL",190000,124,"Sell",1,579,123,null,"Locked",190000]
["2021-09-30","CA-JacNavy-Win-10","جاكيت شتوي كحلي",135000,191,"Sell",1,580,190,null,"Locked",135000]
["2021-09-30","CA-BL-LS-Blue-8","بلوزة قطنية زرقاء كم طويل",110000,88,"Return",1,"unk",89,null,"Locked",-110000]
["2021-09-30","CA-BL-LS-Blue-16","بلوزة قطنية زرقاء كم طويل",110000,166,"Return",1,"unk",167,null,"Locked",-110000]
["2021-09-30","CA-BL-LS-Blue-8","بلوزة قطنية زرقاء كم طويل",110000,89,"Sell",1,"unk",88,null,"Locked",110000]
["2021-09-30","CA-BL-LS-Blue-16","بلوزة قطنية زرقاء كم طويل",110000,167,"Sell",1,"unk",166,null,"Locked",110000]
["2021-09-30","CA-Chazwel-XL","شازوبل بناتي افرادي",80000,2,"Sell",1,589,1,null,"Locked",80000]
["2021-09-30","CA-Chazwel-XL","شازوبل بناتي افرادي",80000,1,"Sell",1,590,0,null,"Locked",80000]
["2021-09-30","CA-BL-LS-Blue-14","بلوزة قطنية زرقاء كم طويل",110000,87,"Return",1,"unk",88,null,"Locked",-110000]
["2021-09-30","CA-BL-LS-Blue-12","بلوزة قطنية زرقاء كم طويل",110000,200,"Sell",1,"unk",199,null,"Locked",110000]
["2021-09-30","CA-SpShort-S","شورت رياضة قطن",55000,7,"Return",1,"unk",8,null,"Locked",-55000]
["2021-09-30","CA-SpShort-14","شورت رياضة قطن",55000,127,"Sell",1,"unk",126,null,"Locked",55000]
["2021-09-30","CA-SpSuit-Sum-M","طقم رياضة صيفي. TECTEL",190000,123,"Return",1,"unk",124,null,"Locked",-190000]
["2021-09-30","CA-SpSuit-Sum-L","طقم رياضة صيفي. TECTEL",190000,58,"Sell",1,"unk",57,null,"Locked",190000]
["2021-09-30","CA-BL-SS-Blue-M","بلوزة قطنية زرقاء كم قصير ",80000,142,"Return",2,"unk",144,null,"Locked",-160000]
["2021-09-30","CA-BL-SS-Blue-L","بلوزة قطنية زرقاء كم قصير ",80000,173,"Sell",2,"unk",171,null,"Locked",160000]
["2021-09-30","CA-BL-LS-Blue-14","بلوزة قطنية زرقاء كم طويل",110000,88,"Sell",1,594,87,null,"Locked",110000]
["2021-09-30","CA-BL-SS-Blue-12","بلوزة قطنية زرقاء كم قصير ",80000,138,"Sell",1,601,137,null,"Locked",80000]
["2021-09-30","CA-SpShort-12","شورت رياضة قطن",55000,72,"Sell",1,601,71,null,"Locked",55000]
["2021-09-30","CA-BL-SS-Blue-12","بلوزة قطنية زرقاء كم قصير ",80000,137,"Sell",1,602,136,null,"Locked",80000]
["2021-09-30","CA-BL-LS-Blue-12","بلوزة قطنية زرقاء كم طويل",110000,199,"Sell",1,602,198,null,"Locked",110000,null,null,null,{"$f":"1525-1365","v":160}]
["2021-10-04","CA-BL-LS-Blue-L","بلوزة قطنية زرقاء كم طويل",110000,85,"Sell",1,608,84,null,"Locked",110000]
["2021-10-04","CA-BL-LS-Blue-6","بلوزة قطنية زرقاء كم طويل",110000,30,"Sell",1,609,29,null,"Locked",110000]
["2021-10-04","CA-BL-SS-Blue-14","بلوزة قطنية زرقاء كم قصير ",80000,178,"Sell",1,610,177,null,"Locked",80000]
["2021-10-04","CA-BL-LS-Blue-14","بلوزة قطنية زرقاء كم طويل",110000,87,"Return",1,565,88,null,"Locked",-110000]
["2021-10-04","CA-BL-LS-Blue-16","بلوزة قطنية زرقاء كم طويل",110000,166,"Sell",1,565,165,null,"Locked",110000]
["2021-10-04","CA-BL-LS-Blue-12","بلوزة قطنية زرقاء كم طويل",110000,198,"Sell",1,612,197,"فرق وصل 580","Locked",110000]
["2021-10-04","CA-SpSuit-Win-12","طقم رياضة شتوي",295000,224,"Sell",1,612,223,"فرق وصل 580","Locked",295000]
["2021-10-04","CA-Sp-Jacket-4","جاكيت رياضة افرادي",135000,33,"Return",1,"-",34,null,"Locked",-135000]
["2021-10-04","CA-Sp-Jacket-6","جاكيت رياضة افرادي",135000,44,"Sell",1,"-",43,null,"Locked",135000]
["2021-10-04","CA-BL-SS-Blue-14","بلوزة قطنية زرقاء كم قصير ",80000,177,"Return",1,610,178,null,"Locked",-80000]
["2021-10-04","CA-BL-LS-Blue-10","بلوزة قطنية زرقاء كم طويل",110000,209,"Sell",1,619,208,null,"Locked",110000]
["2021-10-04","CA-BL-LS-Blue-12","بلوزة قطنية زرقاء كم طويل",110000,197,"Sell",1,619,196,null,"Locked",110000]
["2021-10-04","CA-JacNavy-Win-6","جاكيت شتوي كحلي",135000,95,"Sell",1,624,94,null,"Locked",{"$f":"IF(G384<>\"\",IF(F384=\"sell\",D384*G384,-D384*G384),\"\")","v":135000}]
["2021-10-04","CA-BL-SS-Blue-14","بلوزة قطنية زرقاء كم قصير ",80000,178,"Return",1,555,179,null,"Locked",-80000]
["2021-10-04","CA-BL-LS-Blue-14","بلوزة قطنية زرقاء كم طويل",110000,88,"Return",1,555,89,null,"Locked",-110000]
["2021-10-04","CA-SpSuit-Sum-S","طقم رياضة صيفي. TECTEL",190000,129,"Sell",1,630,128,null,"Locked",190000]
["2021-10-04","CA-JacNavy-Win-10","جاكيت شتوي كحلي",135000,190,"Sell",1,634,189,null,"Locked",135000]
["2021-10-04","CA-BL-LS-Blue-14","بلوزة قطنية زرقاء كم طويل",110000,89,"Sell",1,638,88,null,"Locked",110000]
["2021-10-04","CA-JacNavy-Win-16","جاكيت شتوي كحلي",135000,87,"Sell",1,638,86,null,"Locked",135000]
["2021-10-04","CA-BL-SS-Blue-S","بلوزة قطنية زرقاء كم قصير ",80000,72,"Sell",1,640,71,null,"Locked",80000]
["2021-10-04","CA-BL-LS-Blue-12","بلوزة قطنية زرقاء كم طويل",110000,196,"Sell",1,642,195,null,"Locked",110000]
["2021-10-04","CA-BL-LS-Blue-8","بلوزة قطنية زرقاء كم طويل",110000,88,"Sell",1,642,87,null,"Locked",110000]
["2021-10-04","CA-BL-LS-Blue-10","بلوزة قطنية زرقاء كم طويل",110000,208,"Sell",1,642,207,null,"Locked",110000]
["2021-10-04","CA-JacNavy-Win-8","جاكيت شتوي كحلي",135000,52,"Sell",1,642,51,null,"Locked",135000]
["2021-10-04","CA-JacNavy-Win-10","جاكيت شتوي كحلي",135000,189,"Sell",1,642,188,null,"Locked",135000]
["2021-10-04","CA-JacNavy-Win-12","جاكيت شتوي كحلي",135000,105,"Sell",1,642,104,null,"Locked",135000]
["2021-10-04","CA-SpShort-12","شورت رياضة قطن",55000,71,"Return",1,"unk",72,null,"Locked",-55000]
["2021-10-04","CA-SpShort-14","شورت رياضة قطن",55000,126,"Sell",1,"unk",125,null,"Locked",55000]
["2021-10-05","CA-SpSuit-Win-12","طقم رياضة شتوي",295000,223,"Return",1,"unk",224,null,"Locked",-295000]
["2021-10-05","CA-SpSuit-Win-10","طقم رياضة شتوي",295000,96,"Sell",1,"unk",95,null,"Locked",295000]
["2021-10-05","CA-BL-LS-Blue-16","بلوزة قطنية زرقاء كم طويل",110000,165,"Return",1,"unk",166,null,"Locked",-110000]
["2021-10-05","CA-BL-LS-Blue-18","بلوزة قطنية زرقاء كم طويل",110000,26,"Sell",1,"unk",25,null,"Locked",110000]
["2021-10-05","CA-BL-SS-Blue-10","بلوزة قطنية زرقاء كم قصير ",80000,138,"Sell",2,645,136,null,"Locked",160000]
["2021-10-05","CA-BL-SS-Blue-18","بلوزة قطنية زرقاء كم قصير ",80000,32,"Sell",1,645,31,null,"Locked",80000]
["2021-10-05","CA-SpShort-10","شورت رياضة قطن",55000,67,"Sell",2,645,65,null,"Locked",110000]
["2021-10-05","CA-SpShort-14","شورت رياضة قطن",55000,125,"Sell",1,645,124,null,"Locked",{"$f":"IF(G407<>\"\",IF(F407=\"sell\",D407*G407,-D407*G407),\"\")","v":55000}]
["2021-10-05","CA-SpShort-8","شورت رياضة قطن",55000,73,"Sell",1,650,72,null,"Locked",55000]
["2021-10-05","CA-SpSuit-Win-6","طقم رياضة شتوي",295000,191,"Sell",1,650,190,null,"Locked",295000]
["2021-10-05","CA-BL-SS-Blue-8","بلوزة قطنية زرقاء كم قصير ",80000,114,"Sell",1,650,113,null,"Locked",80000]
["2021-10-05","CA-BL-LS-Blue-8","بلوزة قطنية زرقاء كم طويل",110000,87,"Sell",1,650,86,null,"Locked",110000]
["2021-10-05","CA-BL-SS-Blue-10","بلوزة قطنية زرقاء كم قصير ",80000,136,"Sell",1,651,135,null,"Locked",80000]
["2021-10-05","CA-BL-SS-Blue-14","بلوزة قطنية زرقاء كم قصير ",80000,179,"Sell",1,651,178,null,"Locked",80000]
["2021-10-05","CA-SpSuit-Sum-2XS","طقم رياضة صيفي. TECTEL",190000,117,"Sell",1,651,116,null,"Locked",190000]
["2021-10-05","CA-SpShort-10","شورت رياضة قطن",55000,65,"Sell",1,651,64,null,"Locked",55000]
["2021-10-05","CA-SpShort-14","شورت رياضة قطن",55000,124,"Sell",1,651,123,null,"Locked",55000]
["2021-10-05","CA-SpSuit-Sum-S","طقم رياضة صيفي. TECTEL",190000,128,"Return",1,"-",129,null,"Locked",-190000]
["2021-10-05","CA-SpSuit-Sum-XS","طقم رياضة صيفي. TECTEL",190000,130,"Sell",1,"-",129,null,"Locked",190000]
["2021-10-05","CA-SpShort-12","شورت رياضة قطن",55000,72,"Sell",1,667,71,null,"Locked",55000]
["2021-10-05","CA-BL-SS-Blue-12","بلوزة قطنية زرقاء كم قصير ",80000,136,"Sell",1,667,135,null,"Locked",80000]
["2021-10-05","CA-JacNavy-Win-14","جاكيت شتوي كحلي",135000,133,"Sell",1,668,132,null,"Locked",135000]
["2021-10-05","CA-BL-LS-Blue-16","بلوزة قطنية زرقاء كم طويل",110000,166,"Sell",1,668,165,null,"Locked",110000]
["2021-10-05","CA-SpSuit-Sum-XS","طقم رياضة صيفي. TECTEL",190000,129,"Sell",1,668,128,null,"Locked",190000]
["2021-10-05","CA-SpShort-14","شورت رياضة قطن",55000,123,"Return",1,511,124,null,"Locked",-55000]
["2021-10-05","CA-SpShort-12","شورت رياضة قطن",55000,71,"Sell",1,511,70,null,"Locked",55000]
["2021-10-05","CA-SpSuit-Win-14","طقم رياضة شتوي",295000,135,"Sell",1,672,134,null,"Locked",295000]
["2021-10-05","CA-Sp-Jacket-14","جاكيت رياضة افرادي",135000,173,"Sell",1,672,172,null,"Locked",135000]
["2021-10-05","CA-BL-LS-Blue-14","بلوزة قطنية زرقاء كم طويل",110000,88,"Sell",1,672,87,null,"Locked",110000]
["2021-10-05","CA-BL-SS-Blue-10","بلوزة قطنية زرقاء كم قصير ",80000,135,"Sell",1,671,134,null,"Locked",80000]
["2021-10-05","CA-BL-LS-Blue-10","بلوزة قطنية زرقاء كم طويل",110000,207,"Sell",1,671,206,null,"Locked",110000]
["2021-10-05","CA-BL-LS-Blue-16","بلوزة قطنية زرقاء كم طويل",110000,165,"Sell",1,671,164,null,"Locked",110000]
["2021-10-05","CA-SpShort-8","شورت رياضة قطن",55000,72,"Sell",1,671,71,null,"Locked",55000]
["2021-10-05","CA-SpShort-10","شورت رياضة قطن",55000,64,"Sell",1,674,63,null,"Locked",55000]
["2021-10-05","CA-BL-SS-Blue-10","بلوزة قطنية زرقاء كم قصير ",80000,134,"Sell",1,674,133,null,"Locked",80000]
["2021-10-05","CA-BL-LS-Blue-12","بلوزة قطنية زرقاء كم طويل",110000,195,"Sell",1,676,194,null,"Locked",110000]
["2021-10-05","CA-BL-LS-Blue-18","بلوزة قطنية زرقاء كم طويل",110000,25,"Sell",1,676,24,null,"Locked",110000]
["2021-10-05","CA-SpShort-12","شورت رياضة قطن",55000,70,"Sell",1,676,69,null,"Locked",55000]
["2021-10-05","CA-SpShort-S","شورت رياضة قطن",55000,8,"Sell",1,676,7,null,"Locked",55000]
["2021-10-05","CA-BL-SS-Blue-12","بلوزة قطنية زرقاء كم قصير ",80000,135,"Sell",1,676,134,null,"Locked",80000]
["2021-10-05","CA-BL-SS-Blue-18","بلوزة قطنية زرقاء كم قصير ",80000,31,"Sell",1,676,30,null,"Locked",80000]
["2021-10-06","CA-BL-SS-Blue-10","بلوزة قطنية زرقاء كم قصير ",80000,133,"Sell",1,678,132,null,"Locked",80000]
["2021-10-06","CA-BL-SS-Blue-10","بلوزة قطنية زرقاء كم قصير ",80000,132,"Sell",1,679,131,null,"Locked",80000]
["2021-10-06","CA-SpShort-8","شورت رياضة قطن",55000,71,"Sell",1,679,70,null,"Locked",55000]
["2021-10-06","CA-SpShort-12","شورت رياضة قطن",55000,69,"Return",1,667,70,null,"Locked",-55000]
["2021-10-06","CA-SpShort-10","شورت رياضة قطن",55000,63,"Sell",1,667,62,null,"Locked",55000]
["2021-10-06","CA-SpShort-14","شورت رياضة قطن",55000,124,"Sell",1,686,123,null,"Locked",55000]
["2021-10-06","CA-BL-LS-Car-14","قميص كارو كم طويل",50000,36,"Sell",1,"-",35,null,"Locked",50000]
["2021-10-06","CA-BL-LS-Car-14","قميص كارو كم طويل",50000,35,"Return",1,"-",36,null,"Locked",{"$f":"IF(G448<>\"\",IF(F448=\"sell\",D448*G448,-D448*G448),\"\")","v":-50000}]
["2021-10-06","CA-BL-LS-Blue-14","بلوزة قطنية زرقاء كم طويل",110000,87,"Sell",1,686,86,null,"Locked",110000]
["2021-10-06","CA-Sp-Jacket-16","جاكيت رياضة افرادي",135000,78,"Sell",1,690,77,null,"Locked",135000]
["2021-10-06","CA-BL-SS-Blue-12","بلوزة قطنية زرقاء كم قصير ",80000,134,"Sell",1,691,133,null,"Locked",80000]
["2021-10-06","CA-BL-LS-Blue-12","بلوزة قطنية زرقاء كم طويل",110000,194,"Sell",1,691,193,null,"Locked",110000]
["2021-10-06","CA-BL-LS-Blue-12","بلوزة قطنية زرقاء كم طويل",110000,193,"Sell",1,696,192,null,"Locked",110000]
["2021-10-06","CA-BL-LS-Blue-12","بلوزة قطنية زرقاء كم طويل",110000,192,"Sell",1,698,191,null,"Locked",110000]
["2021-10-06","CA-BL-LS-Blue-10","بلوزة قطنية زرقاء كم طويل",110000,206,"Sell",1,700,205,null,"Locked",110000]
["2021-10-07","CA-SpSuit-Sum-XS","طقم رياضة صيفي. TECTEL",190000,128,"Return",1,668,129,null,"Locked",-190000]
["2021-10-07","CA-SpSuit-Sum-2XS","طقم رياضة صيفي. TECTEL",190000,116,"Sell",1,668,115,null,"Locked",190000]
["2021-10-07","CA-BL-LS-Blue-14","بلوزة قطنية زرقاء كم طويل",110000,86,"Sell",1,711,85,null,"Locked",110000]
["2021-10-07","CA-SPPant-14","بنطلون رياضة افرادي",160000,24,"Sell",1,711,23,null,"Locked",160000]
["2021-10-07","CA-BL-LS-Blue-16","بلوزة قطنية زرقاء كم طويل",110000,164,"Sell",1,720,163,null,"Locked",110000]
["2021-10-07","CA-JacNavy-Win-12","جاكيت شتوي كحلي",135000,104,"Sell",1,722,103,null,"Locked",135000]
["2021-10-07","CA-JacNavy-Win-8","جاكيت شتوي كحلي",135000,51,"Sell",1,722,50,null,"Locked",135000]
["2021-10-07","CA-JacNavy-Win-M","جاكيت شتوي كحلي",135000,64,"Sell",1,724,63,null,"Locked",135000]
["2021-10-07","CA-SpShort-10","شورت رياضة قطن",55000,62,"Sell",1,724,61,null,"Locked",55000]
["2021-10-07","CA-Sp-Jacket-10","جاكيت رياضة افرادي",135000,45,"Sell",1,724,44,null,"Locked",135000]
["2021-10-07","CA-BL-LS-Blue-L","بلوزة قطنية زرقاء كم طويل",110000,84,"Sell",1,724,83,null,"Locked",110000]
["2021-10-07","CA-BL-LS-Blue-8","بلوزة قطنية زرقاء كم طويل",110000,86,"Sell",1,725,85,null,"Locked",110000]
["2021-10-07","CA-BL-SS-Blue-8","بلوزة قطنية زرقاء كم قصير ",80000,113,"Sell",1,725,112,null,"Locked",80000]
["2021-10-07","CA-SpShort-8","شورت رياضة قطن",55000,70,"Sell",1,725,69,null,"Locked",55000]
["2021-10-07","CA-BL-LS-Blue-10","بلوزة قطنية زرقاء كم طويل",110000,205,"Sell",1,726,204,null,"Locked",110000]
["2021-10-07","CA-BL-SS-Blue-10","بلوزة قطنية زرقاء كم قصير ",80000,131,"Sell",1,726,130,null,"Locked",80000]
["2021-10-07","CA-SpShort-10","شورت رياضة قطن",55000,61,"Sell",1,726,60,null,"Locked",55000]
["2021-10-07","CA-JacNavy-Win-10","جاكيت شتوي كحلي",135000,188,"Sell",1,726,187,null,"Locked",135000]
["2021-10-07","CA-Sp-Jacket-10","جاكيت رياضة افرادي",135000,44,"Sell",1,726,43,null,"Locked",135000]
["2021-10-07","CA-SPPant-10","بنطلون رياضة افرادي",160000,45,"Sell",1,726,44,null,"Locked",160000]
["2021-10-07","CA-SpSuit-Win-10","طقم رياضة شتوي",295000,95,"Sell",1,727,94,"بدل مع Unk1","Locked",295000]
["2021-10-11","CA-BL-LS-Blue-14","بلوزة قطنية زرقاء كم طويل",110000,85,"Return",1,"-",86,null,"Locked",-110000]
["2021-10-11","CA-BL-LS-Blue-12","بلوزة قطنية زرقاء كم طويل",110000,191,"Sell",1,"-",190,null,"Locked",110000]
["2021-10-11","CA-BL-LS-Blue-12","بلوزة قطنية زرقاء كم طويل",110000,190,"Return",1,"-",191,null,"Locked",-110000]
["2021-10-11","CA-BL-SS-Blue-10","بلوزة قطنية زرقاء كم قصير ",80000,130,"Sell",1,730,129,null,"Locked",80000]
["2021-10-11","CA-SpShort-12","شورت رياضة قطن",55000,70,"Sell",1,730,69,null,"Locked",55000]
["2021-10-11","CA-SPPant-12","بنطلون رياضة افرادي",160000,24,"Sell",1,730,23,null,"Locked",160000]
["2021-10-11","CA-BL-SS-Blue-8","بلوزة قطنية زرقاء كم قصير ",80000,112,"Sell",1,738,111,null,"Locked",80000]
["2021-10-11","CA-BL-LS-Blue-14","بلوزة قطنية زرقاء كم طويل",110000,86,"Sell",1,"-",85,null,"Locked",110000]
["2021-10-11","CA-BL-LS-Blue-14","بلوزة قطنية زرقاء كم طويل",110000,85,"Sell",1,730,84,null,"Locked",110000]
["2021-10-12","CA-SpSuit-Win-S","طقم رياضة شتوي",295000,99,"Return",1,"unkn0",100,"unkn0","Locked",-295000]
["2021-10-12","CA-BL-LS-Blue-18","بلوزة قطنية زرقاء كم طويل",110000,24,"Sell",1,"unkn0",23," unkn0 تم رد 185000 754","Locked",110000]
["2021-10-12","CA-BL-SS-Blue-12","بلوزة قطنية زرقاء كم قصير ",80000,133,"Sell",1,743,132,null,"Locked",80000]
["2021-10-12","CA-BL-LS-Blue-8","بلوزة قطنية زرقاء كم طويل",110000,85,"Sell",1,745,84,null,"Locked",110000]
["2021-10-12","CA-BL-SS-Blue-10","بلوزة قطنية زرقاء كم قصير ",80000,129,"Sell",1,748,128,null,"Locked",80000]
["2021-10-12","CA-SP-Blouse-M","TECTELبلوزة رياضة  ",100000,24,"Sell",1,755,23,null,"Locked",100000]
["2021-10-13","CA-SpShort-12","شورت رياضة قطن",55000,69,"Return",1,511,70,null,"Locked",-55000]
["2021-10-13","CA-SP-Blouse-2XS","TECTELبلوزة رياضة  ",100000,15,"Sell",1,511,14,null,"Locked",100000]
["2021-10-13","CA-SP-Short-M","شورت رياضة TECTEL",90000,64,"Sell",1,511,63,null,"Locked",90000]
["2021-10-13","CA-Sp-Jacket-10","جاكيت رياضة افرادي",135000,43,"Sell",1,"-",42,null,"Locked",135000]
["2021-10-13","CA-BL-LS-Blue-10","بلوزة قطنية زرقاء كم طويل",110000,204,"Sell",1,758,203,null,"Locked",110000]
["2021-10-13","CA-BL-LS-Blue-12","بلوزة قطنية زرقاء كم طويل",110000,191,"Sell",1,758,190,null,"Locked",110000]
["2021-10-13","CA-BL-LS-Blue-12","بلوزة قطنية زرقاء كم طويل",110000,190,"Sell",1,763,189,null,"Locked",110000]
["2021-10-13","CA-BL-LS-Blue-18","بلوزة قطنية زرقاء كم طويل",110000,23,"Sell",1,763,22,null,"Locked",110000]
["2021-10-13","CA-BL-LS-Blue-12","بلوزة قطنية زرقاء كم طويل",110000,189,"Sell",1,765,188,null,"Locked",110000]
["2021-10-13","CA-BL-LS-Blue-10","بلوزة قطنية زرقاء كم طويل",110000,203,"Sell",1,766,202,null,"Locked",110000]
["2021-10-13","CA-BL-SS-Blue-12","بلوزة قطنية زرقاء كم قصير ",80000,132,"Sell",1,768,131,null,"Locked",80000]
["2021-10-13","CA-SpShort-12","شورت رياضة قطن",55000,70,"Sell",1,768,69,null,"Locked",55000]
["2021-10-13","CA-Sp-Jacket-10","جاكيت رياضة افرادي",135000,42,"Return",1,"-",43,null,"Locked",-135000]
["2021-10-13","CA-JacNavy-Win-10","جاكيت شتوي كحلي",135000,187,"Sell",1,758,186,null,"Locked",135000]
["2021-10-14","CA-SpShort-12","شورت رياضة قطن",55000,69,"Sell",1,769,68,null,"Locked",55000]
["2021-10-14","CA-BL-SS-Blue-12","بلوزة قطنية زرقاء كم قصير ",80000,131,"Sell",1,769,130,null,"Locked",80000]
["2021-10-19","CA-SpSuit-Win-10","طقم رياضة شتوي",295000,94,"Sell",1,775,93,null,"Locked",295000]
["2021-10-19","CA-BL-LS-Blue-10","بلوزة قطنية زرقاء كم طويل",110000,202,"Sell",1,775,201,null,"Locked",110000]
["2021-10-19","CA-BL-LS-Blue-16","بلوزة قطنية زرقاء كم طويل",110000,163,"Sell",1,779,162,null,"Locked",{"$f":"IF(G510<>\"\",IF(F510=\"sell\",D510*G510,-D510*G510),\"\")","v":110000}]
["2021-10-19","CA-JacNavy-Win-12","جاكيت شتوي كحلي",135000,103,"Sell",1,780,102,null,"Locked",135000]
["2021-10-19","CA-JacNavy-Win-8","جاكيت شتوي كحلي",135000,50,"Sell",1,781,49,null,"Locked",135000]
["2021-10-20","CA-JacNavy-Win-8","جاكيت شتوي كحلي",135000,49,"Sell",1,785,48,null,"Locked",135000]
["2021-10-20","CA-Sp-Jacket-12","جاكيت رياضة افرادي",135000,91,"Sell",1,789,90,null,"Locked",135000]
["2021-10-20","CA-Sp-Jacket-10","جاكيت رياضة افرادي",135000,43,"Sell",1,789,42,null,"Locked",135000]
["2021-10-20","CA-SPPant-8","بنطلون رياضة افرادي",160000,50,"Sell",1,789,49,null,"Locked",160000]
["2021-10-21","CA-Sp-Jacket-6","جاكيت رياضة افرادي",135000,43,"Return",1,"unkn0",44,null,"Locked",-135000]
["2021-10-21","CA-Sp-Jacket-12","جاكيت رياضة افرادي",135000,90,"Sell",1,"unkn0",89,null,"Locked",135000]
["2021-10-21","CA-SPPant-8","بنطلون رياضة افرادي",160000,49,"Sell",1,791,48,null,"Locked",160000]
["2021-10-21","CA-SpShort-8","شورت رياضة قطن",55000,69,"Sell",1,791,68,null,"Locked",55000]
["2021-10-21","CA-SpShort-10","شورت رياضة قطن",55000,60,"Sell",1,791,59,null,"Locked",55000]
["2021-10-21","CA-JacNavy-Win-8","جاكيت شتوي كحلي",135000,48,"Sell",1,791,47,null,"Locked",135000]
["2021-10-21","CA-BL-SS-Blue-8","بلوزة قطنية زرقاء كم قصير ",80000,111,"Sell",1,791,110,null,"Locked",80000]
["2021-10-21","CA-BL-LS-Blue-8","بلوزة قطنية زرقاء كم طويل",110000,85,"Sell",1,791,84,null,"Locked",110000]
["2021-10-21","CA-BL-LS-Blue-10","بلوزة قطنية زرقاء كم طويل",110000,201,"Sell",1,791,200,null,"Locked",110000]
["2021-10-21","CA-SpSuit-Win-10","طقم رياضة شتوي",295000,93,"Sell",1,793,92,null,"Locked",295000]
["2021-10-21","CA-BL-LS-Blue-8","بلوزة قطنية زرقاء كم طويل",110000,84,"Sell",1,793,83,null,"Locked",110000]
["2021-10-21","CA-SpSuit-Win-S","طقم رياضة شتوي",295000,100,"Sell",1,796,99,null,"Locked",295000]
["2021-10-21","CA-BL-LS-Blue-S","بلوزة قطنية زرقاء كم طويل",110000,46,"Sell",1,796,45,null,"Locked",110000]
["2021-10-25","CA-SpSuit-Win-10","طقم رياضة شتوي",295000,92,"Return",1,"unkn0",93,null,"Locked",-295000]
["2021-10-25","CA-SpSuit-Win-12","طقم رياضة شتوي",295000,224,"Sell",1,"unkn0",223,null,"Locked",295000]
["2021-10-25","CA-BL-LS-Blue-S","بلوزة قطنية زرقاء كم طويل",110000,45,"Return",1,796,46,null,"Locked",-110000]
["2021-10-25","CA-BL-LS-Blue-L","بلوزة قطنية زرقاء كم طويل",110000,83,"Sell",1,796,82,null,"Locked",110000]
["2021-10-25","CA-SpSuit-Win-S","طقم رياضة شتوي",295000,99,"Return",1,796,100,null,"Locked",-295000]
["2021-10-25","CA-Sp-Jacket-M","جاكيت رياضة افرادي",135000,44,"Sell",1,796,43,null,"Locked",135000]
["2021-10-25","CA-SPPant-L","بنطلون رياضة افرادي",160000,1,"Sell",1,796,0,null,"Locked",160000]
["2021-10-25","CA-BL-SS-Blue-12","بلوزة قطنية زرقاء كم قصير ",80000,130,"Sell",1,798,129,null,"Locked",80000]
["2021-10-25","CA-BL-LS-Blue-12","بلوزة قطنية زرقاء كم طويل",110000,188,"Sell",1,798,187,null,"Locked",110000]
["2021-10-25","CA-Sp-Jacket-8","جاكيت رياضة افرادي",135000,50,"Sell",1,799,49,null,"Locked",135000]
["2021-10-25","CA-SPPant-8","بنطلون رياضة افرادي",160000,48,"Sell",1,799,47,null,"Locked",160000]
["2021-10-25","CA-BL-LS-Blue-8","بلوزة قطنية زرقاء كم طويل",110000,83,"Sell",1,799,82,null,"Locked",110000]
["2021-10-25","CA-JacNavy-Win-8","جاكيت شتوي كحلي",135000,47,"Sell",1,799,46,null,"Locked",135000]
["2021-10-25","CA-SpSuit-Win-10","طقم رياضة شتوي",295000,93,"Sell",2,800,91,null,"Locked",590000]
["2021-10-25","CA-SpSuit-Win-12","طقم رياضة شتوي",295000,223,"Sell",1,801,222,null,"Locked",295000]
["2021-10-25","CA-BL-LS-Blue-12","بلوزة قطنية زرقاء كم طويل",110000,187,"Sell",1,801,186,null,"Locked",110000]
["2021-10-25","CA-BL-LS-Blue-18","بلوزة قطنية زرقاء كم طويل",110000,22,"Sell",1,802,21,null,"Locked",110000]
["2021-10-25","CA-BL-SS-Blue-10","بلوزة قطنية زرقاء كم قصير ",80000,128,"Sell",1,803,127,null,"Locked",80000]
["2021-10-25","CA-BL-LS-Blue-10","بلوزة قطنية زرقاء كم طويل",110000,200,"Sell",1,803,199,null,"Locked",110000]
["2021-10-25","CA-JacNavy-Win-10","جاكيت شتوي كحلي",135000,186,"Sell",1,803,185,null,"Locked",135000]
["2021-10-25","CA-SPPant-8","بنطلون رياضة افرادي",160000,47,"Sell",1,803,46,null,"Locked",160000]
["2021-10-25","CA-SpSuit-Win-14","طقم رياضة شتوي",295000,134,"Sell",1,807,133,null,"Locked",295000]
["2021-10-25","CA-BL-LS-Blue-16","بلوزة قطنية زرقاء كم طويل",110000,162,"Sell",1,807,161,null,"Locked",110000]
["2021-10-25","CA-SPPant-10","بنطلون رياضة افرادي",160000,44,"Sell",1,808,43,null,"Locked",160000]
["2021-10-25","CA-SPPant-16","بنطلون رياضة افرادي",160000,51,"Sell",1,808,50,null,"Locked",160000]
["2021-10-25","CA-BL-LS-Blue-12","بلوزة قطنية زرقاء كم طويل",110000,186,"Sell",1,808,185,null,"Locked",110000]
["2021-10-25","CA-BL-LS-Blue-16","بلوزة قطنية زرقاء كم طويل",110000,161,"Sell",1,808,160,null,"Locked",110000]
["2021-10-25","CA-BL-LS-Blue-18","بلوزة قطنية زرقاء كم طويل",110000,21,"Sell",1,809,20,null,"Locked",110000]
["2021-10-25","CA-BL-LS-Blue-10","بلوزة قطنية زرقاء كم طويل",110000,199,"Sell",1,811,198,null,"Locked",110000]
["2021-10-25","CA-JacNavy-Win-6","جاكيت شتوي كحلي",135000,94,"Sell",1,812,93,null,"Locked",135000]
["2021-10-25","CA-BL-LS-Blue-8","بلوزة قطنية زرقاء كم طويل",110000,82,"Sell",1,812,81,null,"Locked",110000]
["2021-10-25","CA-BL-SS-Blue-8","بلوزة قطنية زرقاء كم قصير ",80000,110,"Sell",1,812,109,null,"Locked",80000]
["2021-10-25","CA-SpSuit-Win-6","طقم رياضة شتوي",295000,190,"Sell",1,813,189,null,"Locked",295000]
["2021-10-25","CA-BL-LS-Blue-6","بلوزة قطنية زرقاء كم طويل",110000,29,"Sell",1,813,28,null,"Locked",110000]
["2021-10-25","CA-BL-LS-Blue-16","بلوزة قطنية زرقاء كم طويل",110000,160,"Sell",1,814,159,null,"Locked",110000]
["2021-10-25","CA-BL-LS-Blue-12","بلوزة قطنية زرقاء كم طويل",110000,185,"Sell",1,814,184,null,"Locked",110000]
["2021-10-25","CA-SP-Blouse-2XS","TECTELبلوزة رياضة  ",100000,14,"Sell",1,814,13,null,"Locked",100000]
["2021-10-25","CA-SP-Short-S","شورت رياضة TECTEL",90000,99,"Sell",1,814,98,null,"Locked",90000]
["2021-10-26","CA-SpShort-8","شورت رياضة قطن",55000,68,"Return",1,791,69,null,"Locked",-55000]
["2021-10-26","CA-SpShort-12","شورت رياضة قطن",55000,68,"Sell",1,791,67,null,"Locked",55000]
["2021-10-26","CA-BL-LS-Blue-8","بلوزة قطنية زرقاء كم طويل",110000,81,"Return",1,791,82,null,"Locked",-110000]
["2021-10-26","CA-BL-LS-Blue-12","بلوزة قطنية زرقاء كم طويل",110000,184,"Sell",1,791,183,null,"Locked",110000]
["2021-10-26","CA-SpSuit-Win-14","طقم رياضة شتوي",295000,133,"Return",1,"-",134,null,"Locked",-295000]
["2021-10-26","CA-SpSuit-Win-14","طقم رياضة شتوي",295000,134,"Return",1,807,135,null,"Locked",-295000]
["2021-10-26","CA-Sp-Jacket-14","جاكيت رياضة افرادي",135000,172,"Sell",1,807,171,null,"Locked",{"$f":"IF(G574<>\"\",IF(F574=\"sell\",D574*G574,-D574*G574),\"\")","v":135000}]
["2021-10-26","CA-SPPant-16","بنطلون رياضة افرادي",160000,50,"Sell",1,807,49,null,"Locked",160000]
["2021-10-26","CA-BL-LS-Blue-6","بلوزة قطنية زرقاء كم طويل",110000,28,"Sell",1,807,27,null,"Locked",110000]
["2021-10-26","CA-SpSuit-Win-14","طقم رياضة شتوي",295000,135,"Sell",1,815,134,null,"Locked",295000]
["2021-10-26","CA-JacNavy-Win-12","جاكيت شتوي كحلي",135000,102,"Sell",1,817,101,null,"Locked",135000]
["2021-10-26","CA-BL-SS-Blue-8","بلوزة قطنية زرقاء كم قصير ",80000,109,"Sell",1,818,108,null,"Locked",80000]
["2021-10-26","CA-SpShort-8","شورت رياضة قطن",55000,69,"Sell",1,818,68,null,"Locked",55000]
["2021-10-26","CA-JacNavy-Win-8","جاكيت شتوي كحلي",135000,46,"Sell",1,"-",45,null,"Locked",135000]
["2021-10-26","CA-BL-LS-Blue-8","بلوزة قطنية زرقاء كم طويل",110000,82,"Sell",1,820,81,null,"Locked",110000]
["2021-10-26","CA-BL-LS-Blue-14","بلوزة قطنية زرقاء كم طويل",110000,84,"Sell",1,821,83,null,"Locked",110000]
["2021-10-26","CA-JacNavy-Win-8","جاكيت شتوي كحلي",135000,45,"Sell",1,824,44,null,"Locked",135000]
["2021-10-26","CA-BL-LS-Blue-10","بلوزة قطنية زرقاء كم طويل",110000,198,"Sell",1,828,197,null,"Locked",110000]
["2021-10-26","CA-SpSuit-Win-14","طقم رياضة شتوي",295000,134,"Return",1,822,135,"Mme Maarbani","Locked",-295000]
["2021-10-26","CA-SpSuit-Win-14","طقم رياضة شتوي",295000,135,"Sell",1,829,134,null,"Locked",295000]
["2021-10-26","CA-BL-LS-Blue-12","بلوزة قطنية زرقاء كم طويل",110000,183,"Sell",1,832,182,null,"Locked",110000]
["2021-10-26","CA-BL-LS-Blue-10","بلوزة قطنية زرقاء كم طويل",110000,197,"Sell",1,835,196,null,"Locked",110000]
["2021-10-26","CA-BL-LS-Blue-8","بلوزة قطنية زرقاء كم طويل",110000,81,"Sell",1,835,80,null,"Locked",110000]
["2021-10-26","CA-JacNavy-Win-8","جاكيت شتوي كحلي",135000,44,"Return",1,"-",45,null,"Locked",-135000]
["2021-10-26","CA-SpSuit-Win-8","طقم رياضة شتوي",295000,104,"Sell",1,820,103,null,"Locked",295000]
["2021-10-26","CA-SpSuit-Win-14","طقم رياضة شتوي",295000,134,"Sell",1,"-",133,null,"Locked",295000]
["2021-10-27","CA-SpSuit-Win-14","طقم رياضة شتوي",295000,133,"Return",1,815,134,null,"Locked",-295000]
["2021-10-27","CA-SpSuit-Win-12","طقم رياضة شتوي",295000,222,"Sell",1,815,221,null,"Locked",295000]
["2021-10-27","CA-JacNavy-Win-12","جاكيت شتوي كحلي",135000,101,"Return",1,817,102,null,"Locked",-135000]
["2021-10-27","CA-BL-SS-Turq-14","بلوزة قطنية تركواز كم قصير POLO ",80000,23,"Sell",1,817,22,null,"Locked",80000]
["2021-10-27","CA-SpShort-12","شورت رياضة قطن",55000,67,"Sell",1,817,66,null,"Locked",55000]
["2021-10-27","CA-BL-LS-Blue-8","بلوزة قطنية زرقاء كم طويل",110000,80,"Return",1,820,81,null,"Locked",-110000]
["2021-10-27","CA-BL-LS-Blue-10","بلوزة قطنية زرقاء كم طويل",110000,196,"Sell",1,820,195,null,"Locked",110000]
["2021-10-27","CA-BL-LS-Blue-12","بلوزة قطنية زرقاء كم طويل",110000,182,"Return",1,801,183,null,"Locked",-110000]
["2021-10-27","CA-BL-LS-Blue-14","بلوزة قطنية زرقاء كم طويل",110000,83,"Sell",1,801,82,null,"Locked",110000]
["2021-10-27","CA-BL-LS-Blue-8","بلوزة قطنية زرقاء كم طويل",110000,81,"Sell",1,839,80,null,"Locked",110000]
["2021-10-27","CA-BL-LS-Blue-10","بلوزة قطنية زرقاء كم طويل",110000,195,"Sell",1,840,194,null,"Locked",110000]
["2021-10-27","CA-BL-LS-Blue-8","بلوزة قطنية زرقاء كم طويل",110000,80,"Sell",1,842,79,null,"Locked",110000]
["2021-10-27","CA-JacNavy-Win-6","جاكيت شتوي كحلي",135000,93,"Sell",1,842,92,null,"Locked",135000]
["2021-10-27","CA-SPPant-6","بنطلون رياضة افرادي",160000,92,"Sell",1,842,91,null,"Locked",160000]
["2021-10-27","CA-BL-SS-Blue-10","بلوزة قطنية زرقاء كم قصير ",80000,127,"Sell",1,843,126,null,"Locked",80000]
["2021-10-27","CA-BL-LS-Blue-10","بلوزة قطنية زرقاء كم طويل",110000,194,"Sell",1,844,193,null,"Locked",110000]
["2021-10-27","CA-BL-SS-Blue-10","بلوزة قطنية زرقاء كم قصير ",80000,126,"Sell",1,844,125,null,"Locked",80000]
["2021-10-27","CA-JacNavy-Win-8","جاكيت شتوي كحلي",135000,45,"Sell",1,844,44,null,"Locked",135000]
["2021-10-27","CA-SPPant-6","بنطلون رياضة افرادي",160000,91,"Sell",1,844,90,null,"Locked",160000]
["2021-10-27","CA-BL-LS-Blue-16","بلوزة قطنية زرقاء كم طويل",110000,159,"Sell",1,845,158,null,"Locked",110000]
["2021-10-27","CA-BL-LS-Blue-18","بلوزة قطنية زرقاء كم طويل",110000,20,"Sell",1,845,19,null,"Locked",110000]
["2021-10-28","CA-BL-SS-Blue-10","بلوزة قطنية زرقاء كم قصير ",80000,125,"Return",1,803,126,null,"Locked",-80000]
["2021-10-28","CA-BL-SS-Blue-8","بلوزة قطنية زرقاء كم قصير ",80000,108,"Sell",1,803,107,null,"Locked",80000]
["2021-10-28","CA-Sp-Jacket-10","جاكيت رياضة افرادي",135000,42,"Return",1,803,43,null,"Locked",-135000]
["2021-10-28","CA-JacNavy-Win-S","جاكيت شتوي كحلي",135000,146,"Sell",1,838,145,null,"Locked",135000]
["2021-10-28","CA-SpSuit-Win-M","طقم رياضة شتوي",295000,54,"Return",1,"unkno",55,null,"Locked",-295000]
["2021-10-28","CA-SpSuit-Sum-S","طقم رياضة صيفي. TECTEL",190000,129,"Sell",1,"unkno",128,null,"Locked",190000]
["2021-10-28","CA-JacNavy-Win-8","جاكيت شتوي كحلي",135000,44,"Sell",1,"-",43,null,"Locked",135000]
["2021-10-28","CA-JacNavy-Win-8","جاكيت شتوي كحلي",135000,43,"Return",1,"-",44,null,"Locked",-135000]
["2021-10-28","CA-JacNavy-Win-6","جاكيت شتوي كحلي",135000,92,"Sell",1,847,91,null,"Locked",135000]
["2021-10-28","CA-BL-LS-Blue-4","بلوزة قطنية زرقاء كم طويل",110000,71,"Sell",1,847,70,null,"Locked",110000]
["2021-10-28","CA-SPPant-4","بنطلون رياضة افرادي",160000,57,"Sell",1,847,56,null,"Locked",160000]
["2021-10-28","CA-JacNavy-Win-16","جاكيت شتوي كحلي",135000,86,"Sell",2,848,84,null,"Locked",270000]
["2021-10-28","CA-JacNavy-Win-6","جاكيت شتوي كحلي",135000,91,"Sell",1,848,90,null,"Locked",135000]
["2021-10-28","CA-Sp-Jacket-8","جاكيت رياضة افرادي",135000,49,"Sell",1,850,48,null,"Locked",135000]
["2021-10-28","CA-BL-LS-Blue-8","بلوزة قطنية زرقاء كم طويل",110000,79,"Sell",1,851,78,null,"Locked",110000]
["2021-10-28","CA-BL-LS-Blue-16","بلوزة قطنية زرقاء كم طويل",110000,158,"Sell",1,851,157,null,"Locked",110000]
["2021-11-01","CA-BL-LS-Blue-4","بلوزة قطنية زرقاء كم طويل",110000,70,"Return",1,"unkno",71,null,"Locked",-110000]
["2021-11-01","CA-BL-LS-Blue-6","بلوزة قطنية زرقاء كم طويل",110000,27,"Sell",1,"unkno",26,null,"Locked",110000]
["2021-11-01","CA-SpSuit-Win-14","طقم رياضة شتوي",295000,134,"Return",1,829,135,null,"Locked",-295000]
["2021-11-01","CA-SpSuit-Win-12","طقم رياضة شتوي",295000,221,"Sell",1,829,220,null,"Locked",295000]
["2021-11-01","CA-BL-LS-Blue-M","بلوزة قطنية زرقاء كم طويل",110000,62,"Return",1,5355,63,null,"Locked",-110000]
["2021-11-01","CA-BL-LS-Blue-S","بلوزة قطنية زرقاء كم طويل",110000,46,"Sell",1,5355,45,null,"Locked",110000]
["2021-11-01","CA-BL-LS-Blue-8","بلوزة قطنية زرقاء كم طويل",110000,78,"Sell",1,854,77,null,"Locked",110000]
["2021-11-01","CA-SP-Short-XS","شورت رياضة TECTEL",90000,106,"Sell",1,856,105,null,"Locked",{"$f":"IF(G638<>\"\",IF(F638=\"sell\",D638*G638,-D638*G638),\"\")","v":90000}]
["2021-11-01","CA-BL-LS-Blue-S","بلوزة قطنية زرقاء كم طويل",110000,45,"Sell",1,857,44,null,"Locked",110000]
["2021-11-01","CA-BL-LS-Blue-18","بلوزة قطنية زرقاء كم طويل",110000,19,"Sell",1,857,18,null,"Locked",110000]
["2021-11-01","CA-SPPant-16","بنطلون رياضة افرادي",160000,49,"Sell",1,857,48,null,"Locked",160000]
["2021-11-01","CA-JacNavy-Win-M","جاكيت شتوي كحلي",135000,63,"Sell",1,858,62,null,"Locked",135000]
["2021-11-01","CA-JacNavy-Win-L","جاكيت شتوي كحلي",135000,135,"Sell",1,858,134,null,"Locked",135000]
["2021-11-01","CA-BL-LS-Blue-14","بلوزة قطنية زرقاء كم طويل",110000,82,"Sell",1,863,81,null,"Locked",110000]
["2021-11-01","CA-SPPant-14","بنطلون رياضة افرادي",160000,23,"Sell",1,863,22,null,"Locked",160000]
["2021-11-01","CA-JacNavy-Win-8","جاكيت شتوي كحلي",135000,44,"Sell",1,864,43,null,"Locked",135000]
["2021-11-01","CA-JacNavy-Win-8","جاكيت شتوي كحلي",135000,43,"Sell",1,864,42,null,"Locked",135000]
["2021-11-01","CA-BL-LS-Blue-8","بلوزة قطنية زرقاء كم طويل",110000,77,"Sell",2,864,75,null,"Locked",220000]
["2021-11-01","CA-JacNavy-Win-8","جاكيت شتوي كحلي",135000,42,"Sell",1,865,41,null,"Locked",135000]
["2021-11-01","CA-JacNavy-Win-16","جاكيت شتوي كحلي",135000,84,"Sell",1,865,83,null,"Locked",135000]
["2021-11-01","CA-SpSuit-Win-8","طقم رياضة شتوي",295000,103,"Sell",1,865,102,null,"Locked",295000]
["2021-11-01","CA-SpSuit-Win-16","طقم رياضة شتوي",295000,111,"Sell",1,865,110,null,"Locked",295000]
["2021-11-01","CA-SPPant-8","بنطلون رياضة افرادي",160000,46,"Sell",1,867,45,null,"Locked",160000]
["2021-11-01","CA-SPPant-14","بنطلون رياضة افرادي",160000,22,"Sell",1,867,21,null,"Locked",160000]
["2021-11-01","CA-BL-LS-Blue-8","بلوزة قطنية زرقاء كم طويل",110000,75,"Sell",1,867,74,null,"Locked",110000]
["2021-11-01","CA-BL-LS-Blue-16","بلوزة قطنية زرقاء كم طويل",110000,157,"Sell",1,867,156,null,"Locked",110000]
["2021-11-01","CA-JacNavy-Win-6","جاكيت شتوي كحلي",135000,90,"Sell",1,862,89,null,"Locked",135000]
["2021-11-01","CA-JacNavy-Win-8","جاكيت شتوي كحلي",135000,41,"Sell",1,862,40,null,"Locked",135000]
["2021-11-02","CA-SpShort-12","شورت رياضة قطن",55000,66,"Return",1,817,67,null,"Locked",-55000]
["2021-11-02","CA-JacNavy-Win-L","جاكيت شتوي كحلي",135000,134,"Return",1,858,135,null,"Locked",-135000]
["2021-11-02","CA-JacNavy-Win-M","جاكيت شتوي كحلي",135000,62,"Sell",1,858,61,null,"Locked",135000]
["2021-11-02","CA-BL-LS-Blue-8","بلوزة قطنية زرقاء كم طويل",110000,74,"Sell",1,854,73,null,"Locked",110000]
["2021-11-02","CA-SpSuit-Win-S","طقم رياضة شتوي",295000,100,"Sell",1,873,99,null,"Locked",295000]
["2021-11-02","CA-SpSuit-Win-10","طقم رياضة شتوي",295000,91,"Sell",1,874,90,null,"Locked",295000]
["2021-11-02","CA-BL-LS-Blue-10","بلوزة قطنية زرقاء كم طويل",110000,193,"Sell",1,874,192,null,"Locked",110000]
["2021-11-02","CA-BL-SS-Blue-10","بلوزة قطنية زرقاء كم قصير ",80000,126,"Sell",1,877,125,null,"Locked",80000]
["2021-11-02","CA-BL-SS-Blue-14","بلوزة قطنية زرقاء كم قصير ",80000,178,"Sell",1,877,177,null,"Locked",80000]
["2021-11-02","CA-JacNavy-Win-10","جاكيت شتوي كحلي",135000,185,"Sell",1,883,184,null,"Locked",135000]
["2021-11-03","CA-JacNavy-Win-10","جاكيت شتوي كحلي",135000,184,"Return",1,883,185,null,"Locked",-135000]
["2021-11-03","CA-JacNavy-Win-8","جاكيت شتوي كحلي",135000,40,"Sell",1,883,39,null,"Locked",135000]
["2021-11-03","CA-SPPant-12","بنطلون رياضة افرادي",160000,23,"Sell",1,884,22,null,"Locked",160000]
["2021-11-03","CA-BL-LS-Blue-14","بلوزة قطنية زرقاء كم طويل",110000,81,"Sell",1,887,80,null,"Locked",110000]
["2021-11-03","CA-SpSuit-Win-S","طقم رياضة شتوي",295000,99,"Sell",1,889,98,null,"Locked",295000]
["2021-11-03","CA-BL-LS-Blue-S","بلوزة قطنية زرقاء كم طويل",110000,44,"Sell",1,889,43,null,"Locked",110000]
["2021-11-03","CA-BL-LS-Blue-16","بلوزة قطنية زرقاء كم طويل",110000,156,"Sell",1,890,155,null,"Locked",110000]
["2021-11-03","CA-JacNavy-Win-10","جاكيت شتوي كحلي",135000,185,"Sell",1,892,184,null,"Locked",135000]
["2021-11-03","CA-BL-LS-Blue-S","بلوزة قطنية زرقاء كم طويل",110000,43,"Sell",1,893,42,null,"Locked",110000]
["2021-11-03","CA-JacNavy-Win-L","جاكيت شتوي كحلي",135000,135,"Sell",1,893,134,null,"Locked",135000]
["2021-11-03","CA-JacNavy-Win-12","جاكيت شتوي كحلي",135000,102,"Sell",1,895,101,null,"Locked",135000]
["2021-11-03","CA-BL-LS-Blue-12","بلوزة قطنية زرقاء كم طويل",110000,183,"Sell",1,895,182,null,"Locked",110000]
["2021-11-03","CA-BL-LS-Blue-16","بلوزة قطنية زرقاء كم طويل",110000,155,"Sell",1,896,154,null,"Locked",110000]
["2021-11-04","CA-BL-LS-Blue-16","بلوزة قطنية زرقاء كم طويل",110000,154,"Return",1,896,155,null,"Locked",-110000,66260000]
["2021-11-04","CA-BL-LS-Blue-S","بلوزة قطنية زرقاء كم طويل",110000,42,"Sell",1,896,41,null,"Locked",110000]
["2021-11-04","CA-BL-LS-Blue-16","بلوزة قطنية زرقاء كم طويل",110000,155,"Sell",1,897,154,null,"Locked",110000]
["2021-11-04","CA-SPPant-S","بنطلون رياضة افرادي",160000,86,"Sell",1,897,85,null,"Locked",160000]
["2021-11-04","CA-BL-LS-Turq-14","بلوزة قطنية تركواز كم  طويلPOLO ",95000,74,"Sell",1,900,73,null,"Locked",95000]
["2021-11-04","CA-BL-LS-Blue-10","بلوزة قطنية زرقاء كم طويل",110000,192,"Sell",1,904,191,null,"Locked",110000]
["2021-11-04","CA-SpSuit-Win-6","طقم رياضة شتوي",295000,189,"Sell",1,905,188,null,"Locked",295000]
["2021-11-08","CA-BL-LS-Blue-S","بلوزة قطنية زرقاء كم طويل",110000,41,"Return",1,896,42,null,"Locked",-110000]
["2021-11-08","CA-BL-SS-Blue-18","بلوزة قطنية زرقاء كم قصير ",80000,30,"Sell",1,"-",29,null,"Locked",80000]
["2021-11-08","CA-JacNavy-Win-10","جاكيت شتوي كحلي",135000,184,"Sell",1,910,183,null,"Locked",135000]
["2021-11-08","CA-BL-SS-Blue-18","بلوزة قطنية زرقاء كم قصير ",80000,29,"Return",1,"-",30,null,"Locked",-80000]
["2021-11-08","CA-BL-LS-Turq-18","بلوزة قطنية تركواز كم  طويلPOLO ",95000,27,"Sell",1,896,26,null,"Locked",95000]
["2021-11-09","CA-BL-LS-Blue-8","بلوزة قطنية زرقاء كم طويل",110000,73,"Sell",1,911,72,null,"Locked",110000]
["2021-11-09","CA-SPPant-8","بنطلون رياضة افرادي",160000,45,"Sell",1,911,44,null,"Locked",160000]
["2021-11-09","CA-Sp-Jacket-8","جاكيت رياضة افرادي",135000,48,"Sell",1,911,47,null,"Locked",135000]
["2021-11-09","CA-BL-LS-Blue-8","بلوزة قطنية زرقاء كم طويل",110000,72,"Sell",1,915,71,null,"Locked",110000]
["2021-11-09","CA-BL-LS-Blue-14","بلوزة قطنية زرقاء كم طويل",110000,80,"Sell",1,915,79,null,"Locked",110000]
["2021-11-09","CA-SpSuit-Win-14","طقم رياضة شتوي",295000,135,"Sell",1,915,134,null,"Locked",295000]
["2021-11-09","CA-JacNavy-Win-8","جاكيت شتوي كحلي",135000,39,"Sell",1,915,38,null,"Locked",135000]
["2021-11-09","CA-JacNavy-Win-16","جاكيت شتوي كحلي",135000,83,"Sell",1,915,82,null,"Locked",135000]
["2021-11-09","CA-SPPant-8","بنطلون رياضة افرادي",160000,44,"Sell",1,915,43,null,"Locked",{"$f":"IF(G702<>\"\",IF(F702=\"sell\",D702*G702,-D702*G702),\"\")","v":160000}]
["2021-11-09","CA-Sp-Jacket-8","جاكيت رياضة افرادي",135000,47,"Sell",1,915,46,null,"Locked",135000]
["2021-11-09","CA-BL-LS-Blue-8","بلوزة قطنية زرقاء كم طويل",110000,71,"Sell",1,914,70,null,"Locked",110000]
["2021-11-10","CA-BL-LS-Blue-16","بلوزة قطنية زرقاء كم طويل",110000,154,"Return",1,890,155,null,"Locked",-110000]
["2021-11-10","CA-BL-SS-Blue-18","بلوزة قطنية زرقاء كم قصير ",80000,30,"Sell",1,890,29,null,"Locked",80000]
["2021-11-10","CA-BL-SS-Blue-6","بلوزة قطنية زرقاء كم قصير ",80000,134,"Sell",1,917,133,null,"Locked",80000]
["2021-11-10","CA-BL-LS-Blue-16","بلوزة قطنية زرقاء كم طويل",110000,155,"Sell",1,920,154,null,"Locked",110000]
["2021-11-15","CA-SPPant-8","بنطلون رياضة افرادي",160000,43,"Return",1,911,44,null,"Locked",-160000]
["2021-11-15","CA-SPPant-6","بنطلون رياضة افرادي",160000,90,"Sell",1,911,89,null,"Locked",160000]
["2021-11-15","CA-BL-LS-Blue-S","بلوزة قطنية زرقاء كم طويل",110000,42,"Sell",1,922,41,null,"Locked",110000]
["2021-11-15","CA-SpSuit-Win-10","طقم رياضة شتوي",295000,90,"Sell",1,923,89,null,"Locked",295000]
["2021-11-16","CA-Sp-Jacket-6","جاكيت رياضة افرادي",135000,44,"Return",1,"unkno",45,null,"Locked",-135000]
["2021-11-16","CA-Sp-Jacket-16","جاكيت رياضة افرادي",135000,77,"Sell",1,"unkno",76,null,"Locked",135000]
["2021-11-16","CA-BL-LS-Blue-8","بلوزة قطنية زرقاء كم طويل",110000,70,"Sell",1,926,69,null,"Locked",110000]
["2021-11-16","CA-BL-LS-Turq-16","بلوزة قطنية تركواز كم  طويلPOLO ",95000,19,"Sell",1,927,18,null,"Locked",95000]
["2021-11-16","CA-BL-LS-Blue-10","بلوزة قطنية زرقاء كم طويل",110000,191,"Sell",1,928,190,null,"Locked",110000]
["2021-11-16","CA-SPPant-8","بنطلون رياضة افرادي",160000,44,"Sell",1,928,43,null,"Locked",160000]
["2021-11-16","CA-BL-LS-Blue-8","بلوزة قطنية زرقاء كم طويل",110000,69,"Sell",1,929,68,null,"Locked",110000]
["2021-11-16","CA-JacNavy-Win-14","جاكيت شتوي كحلي",135000,132,"Sell",1,931,131,null,"Locked",135000]
["2021-11-16","CA-JacNavy-Win-12","جاكيت شتوي كحلي",135000,101,"Sell",1,931,100,null,"Locked",135000]
["2021-11-17","CA-JacNavy-Win-12","جاكيت شتوي كحلي",135000,100,"Return",1,931,101,null,"Locked",-135000]
["2021-11-17","CA-JacNavy-Win-16","جاكيت شتوي كحلي",135000,82,"Sell",1,931,81,null,"Locked",135000]
["2021-11-17","CA-JacNavy-Win-8","جاكيت شتوي كحلي",135000,38,"Sell",1,934,37,null,"Locked",135000]
["2021-11-17","CA-JacNavy-Win-8","جاكيت شتوي كحلي",135000,37,"Sell",1,935,36,null,"Locked",135000]
["2021-11-17","CA-JacNavy-Win-10","جاكيت شتوي كحلي",135000,183,"Sell",1,936,182,null,"Locked",135000]
["2021-11-17","CA-BL-LS-Turq-18","بلوزة قطنية تركواز كم  طويلPOLO ",95000,26,"Sell",1,936,25,null,"Locked",95000]
["2021-11-18","CA-JacNavy-Win-10","جاكيت شتوي كحلي",135000,182,"Return",1,"unkno",183,null,"Locked",-135000]
["2021-11-18","CA-JacNavy-Win-8","جاكيت شتوي كحلي",135000,36,"Sell",1,"unkno",35,null,"Locked",135000]
["2021-11-18","CA-SPPant-10","بنطلون رياضة افرادي",160000,43,"Sell",1,937,42,null,"Locked",160000]
["2021-11-18","CA-BL-LS-Blue-16","بلوزة قطنية زرقاء كم طويل",110000,154,"Sell",1,938,153,null,"Locked",110000]
["2021-11-18","CA-BL-SS-Blue-S","بلوزة قطنية زرقاء كم قصير ",80000,71,"Sell",2,"-",69,null,"Locked",160000]
["2021-11-18","CA-BL-LS-Blue-L","بلوزة قطنية زرقاء كم طويل",110000,82,"Sell",1,"-",81,null,"Locked",110000]
["2021-11-18","CA-SPPant-12","بنطلون رياضة افرادي",160000,22,"Sell",1,939,21,null,"Locked",160000]
["2021-11-18","CA-JacNavy-Win-M","جاكيت شتوي كحلي",135000,61,"Sell",1,941,60,null,"Locked",135000]
["2021-11-18","CA-BL-LS-Turq-S","بلوزة قطنية تركواز كم  طويلPOLO ",95000,82,"Sell",1,942,81,null,"Locked",95000]
["2021-11-18","CA-JacNavy-Win-S","جاكيت شتوي كحلي",135000,145,"Sell",1,944,144,null,"Locked",135000]
["2021-11-18","CA-BL-LS-Blue-10","بلوزة قطنية زرقاء كم طويل",110000,190,"Sell",1,944,189,null,"Locked",110000]
["2021-11-18","CA-BL-LS-Blue-12","بلوزة قطنية زرقاء كم طويل",110000,182,"Sell",1,945,181,null,"Locked",110000]
["2021-11-18","CA-SPPant-8","بنطلون رياضة افرادي",160000,43,"Sell",1,945,42,null,"Locked",160000]
["2021-11-18","CA-BL-LS-Blue-L","بلوزة قطنية زرقاء كم طويل",110000,81,"Return",1,"-",82,null,"Locked",-110000]
["2021-11-18","CA-BL-LS-Blue-XL","بلوزة قطنية زرقاء كم طويل",110000,27,"Sell",1,938,26,null,"Locked",110000]
["2021-11-18","CA-BL-SS-Blue-S","بلوزة قطنية زرقاء كم قصير ",80000,69,"Return",2,"-",71,null,"Locked",-160000]
["2021-11-18","CA-BL-LS-Blue-S","بلوزة قطنية زرقاء كم طويل",110000,41,"Sell",2,938,39,null,"Locked",220000]
["2021-11-23","CA-JacNavy-Win-S","جاكيت شتوي كحلي",135000,144,"Return",1,944,145,null,"Locked",-135000]
["2021-11-23","CA-JacNavy-Win-8","جاكيت شتوي كحلي",135000,35,"Return",1,"unkno",36,null,"Locked",-135000]
["2021-11-23","CA-JacNavy-Win-10","جاكيت شتوي كحلي",135000,183,"Sell",1,944,182,null,"Locked",135000]
["2021-11-23","CA-JacNavy-Win-M","جاكيت شتوي كحلي",135000,60,"Sell",1,944,59,null,"Locked",135000]
["2021-11-23","CA-BL-LS-Blue-10","بلوزة قطنية زرقاء كم طويل",110000,189,"Sell",1,944,188,null,"Locked",110000]
["2021-11-23","CA-BL-LS-Blue-14","بلوزة قطنية زرقاء كم طويل",110000,79,"Return",1,944,80,null,"Locked",-110000]
["2021-11-23","CA-SPPant-12","بنطلون رياضة افرادي",160000,21,"Return",1,939,22,null,"Locked",-160000]
["2021-11-23","CA-SPPant-10","بنطلون رياضة افرادي",160000,42,"Sell",1,939,41,null,"Locked",160000]
["2021-11-23","CA-SPPant-10","بنطلون رياضة افرادي",160000,41,"Return",1,937,42,null,"Locked",-160000]
["2021-11-23","CA-BL-LS-Blue-12","بلوزة قطنية زرقاء كم طويل",110000,181,"Sell",1,937,180,null,"Locked",110000]
["2021-11-23","CA-BL-LS-Blue-S","بلوزة قطنية زرقاء كم طويل",110000,39,"Sell",1,947,38,null,"Locked",110000]
["2021-11-24","CA-BL-LS-Blue-8","بلوزة قطنية زرقاء كم طويل",110000,68,"Sell",1,948,67,null,"Locked",110000]
["2021-11-24","CA-BL-LS-Blue-16","بلوزة قطنية زرقاء كم طويل",110000,153,"Sell",1,948,152,null,"Locked",110000]
["2021-11-24","CA-BL-LS-Blue-12","بلوزة قطنية زرقاء كم طويل",110000,180,"Sell",1,949,179,null,"Locked",110000]
["2021-11-30","CA-JacNavy-Win-M","جاكيت شتوي كحلي",135000,59,"Return",1,"unkno",60,"Jana Baba","Locked",-135000]
["2021-11-30","CA-JacNavy-Win-16","جاكيت شتوي كحلي",135000,81,"Sell",1,951,80,null,"Locked",135000]
["2021-11-30","CA-BL-LS-Blue-S","بلوزة قطنية زرقاء كم طويل",110000,38,"Sell",1,952,37,null,"Locked",110000]
["2021-12-02","CA-BL-SS-Blue-18","بلوزة قطنية زرقاء كم قصير ",80000,29,"Return",2,"unkno",31,null,"Locked",-160000]
["2021-12-02","CA-BL-SS-Blue-S","بلوزة قطنية زرقاء كم قصير ",80000,71,"Sell",2,"unkno",69,null,"Locked",160000]
["2021-12-02","CA-SPPant-M","بنطلون رياضة افرادي",160000,0,"Return",1,"unkno",1,null,"Locked",-160000]
["2021-12-02","CA-SPPant-L","بنطلون رياضة افرادي",160000,1,"Sell",1,"unkno",0,null,"Locked",160000]
["2021-12-06","CA-JacNavy-Win-8","جاكيت شتوي كحلي",135000,36,"Sell",1,957,35,null,"Locked",{"$f":"IF(G766<>\"\",IF(F766=\"sell\",D766*G766,-D766*G766),\"\")","v":135000}]
["2021-12-08","CA-JacNavy-Win-10","جاكيت شتوي كحلي",135000,182,"Sell",1,959,181,null,"Locked",135000]
["2021-12-08","CA-JacNavy-Win-12","جاكيت شتوي كحلي",135000,101,"Sell",1,959,100,null,"Locked",135000]
["2021-12-15","CA-JacNavy-Win-L","جاكيت شتوي كحلي",135000,134,"Return",1,"unkno",135,null,"Locked",-135000]
["2021-12-15","CA-JacNavy-Win-XXL","جاكيت شتوي كحلي",135000,13,"Sell",1,"unkno",12,null,"Locked",135000]
["2022-01-17","CA-SPPant-12","بنطلون رياضة افرادي",160000,22,"Sell",1,961,21,null,"Locked",160000]
["2022-01-17","CA-BL-LS-Blue-16","بلوزة قطنية زرقاء كم طويل",110000,152,"Sell",1,961,151,null,"Locked",110000]
["2022-01-17","CA-SpSuit-Win-S","طقم رياضة شتوي",295000,98,"Sell",1,962,97,null,"Locked",295000]
["2022-01-17","CA-BL-LS-Blue-S","بلوزة قطنية زرقاء كم طويل",110000,37,"Sell",1,962,36,null,"Locked",110000]
["2022-01-17","CA-BL-LS-Blue-10","بلوزة قطنية زرقاء كم طويل",110000,188,"Sell",1,962,187,null,"Locked",110000]
["2022-01-19","CA-BL-LS-Blue-10","بلوزة قطنية زرقاء كم طويل",110000,187,"Sell",1,964,186,null,"Locked",110000]
["2022-01-19","CA-JacNavy-Win-10","جاكيت شتوي كحلي",135000,181,"Sell",1,965,180,null,"Locked",135000]
["2022-01-31","CA-JacNavy-Win-12","جاكيت شتوي كحلي",135000,100,"Sell",1,966,99,null,"Locked",135000]
["2022-01-31","CA-SpSuit-Win-12","طقم رياضة شتوي",295000,220,"Sell",1,966,219,null,"Locked",295000]
["2022-01-31","CA-BL-LS-Blue-12","بلوزة قطنية زرقاء كم طويل",110000,179,"Sell",1,966,178,null,"Locked",110000]
["2022-01-31","CA-JacNavy-Win-S","جاكيت شتوي كحلي",135000,145,"Sell",1,967,144,null,"Locked",135000]
["2022-01-31","CA-JacNavy-Win-M","جاكيت شتوي كحلي",135000,60,"Sell",1,967,59,null,"Locked",135000]
["2022-01-31","CA-SP-Blouse-S","TECTELبلوزة رياضة  ",100000,6,"Sell",1,968,5,null,"Locked",100000]
["2022-03-16","CA-BL-LS-Blue-S","بلوزة قطنية زرقاء كم طويل",110000,36,"Sell",1,969,35,null,"Locked",110000]
["2022-03-16","CA-SPPant-16","بنطلون رياضة افرادي",160000,48,"Sell",1,970,47,null,"Locked",160000]
["2022-03-16","CA-JacNavy-Win-S","جاكيت شتوي كحلي",135000,144,"Sell",1,971,143,null,"Locked",135000]
["2022-03-17","CA-SPPant-16","بنطلون رياضة افرادي",160000,47,"Return",1,970,48,null,"Locked",-160000]
["2022-03-17","CA-SPPant-S","بنطلون رياضة افرادي",160000,85,"Sell",1,970,84,null,"Locked",160000]
["2022-04-05","CA-BL-SS-Blue-14","بلوزة قطنية زرقاء كم قصير ",80000,177,"Sell",1,973,176,null,"Locked",80000]
["2022-04-05","CA-SpShort-14","شورت رياضة قطن",55000,123,"Sell",1,973,122,null,"Locked",55000]
["2022-04-05","CA-BL-SS-Blue-10","بلوزة قطنية زرقاء كم قصير ",80000,125,"Sell",1,974,124,null,"Locked",80000]
["2022-04-05","CA-SpShort-14","شورت رياضة قطن",55000,122,"Sell",1,974,121,null,"Locked",55000]
["2022-04-05","CA-BL-SS-Blue-8","بلوزة قطنية زرقاء كم قصير ",80000,107,"Sell",1,975,106,null,"Locked",80000]
["2022-04-05","CA-SpShort-8","شورت رياضة قطن",55000,68,"Sell",1,975,67,null,"Locked",55000]
["2022-04-05","CA-SpShort-14","شورت رياضة قطن",55000,121,"Return",1,974,122,null,"Locked",-55000]
["2022-04-05","CA-SpShort-10","شورت رياضة قطن",55000,59,"Sell",1,974,58,null,"Locked",55000]
["2022-04-05","CA-SP-Blouse-M","TECTELبلوزة رياضة  ",100000,23,"Sell",1,976,22,null,"Locked",100000]
["2022-04-05","CA-SP-Short-XL","شورت رياضة TECTEL",90000,105,"Sell",1,976,104,null,"Locked",90000]
[null,null,{"$f":"IF(B799=\"\",\"\",VLOOKUP(B799,itemsdata,2,\"false\"))","v":""},{"$f":"IF(B799=\"\",\"\",VLOOKUP(B799,itemsdata,5,\"false\"))","v":""},{"$f":"IF(B799=\"\",\"\",VLOOKUP(B799,itemsdata,3,\"false\"))","v":""},null,null,null,null,null,null,""]
[null,null,"","","",null,null,null,null,null,null,""]
[null,null,"","","",null,null,null,null,null,null,""]
[null,null,"","","",null,null,null,null,null,null,""]
[null,null,"","","",null,null,null,null,null,null,""]
[null,null,"","","",null,null,null,null,null,null,""]
[null,null,"","","",null,null,null,null,null,null,""]
[null,null,"","","",null,null,null,null,null,null,""]
[null,null,"","","",null,null,null,null,null,null,""]
[null,null,"","","",null,null,null,null,null,null,""]
[null,null,"","","",null,null,null,null,null,null,""]
[null,null,"","","",null,null,null,null,null,null,""]
[null,null,"","","",null,null,null,null,null,null,""]
[null,null,"","","",null,null,null,null,null,null,""]
[null,null,"","","",null,null,null,null,null,null,""]
[null,null,"","","",null,null,null,null,null,null,""]
[null,null,"","","",null,null,null,null,null,null,""]
[null,null,"","","",null,null,null,null,null,null,""]
[null,null,"","","",null,null,null,null,null,null,""]
[null,null,"","","",null,null,null,null,null,null,""]
[null,null,"","","",null,null,null,null,null,null,""]
[null,null,"","","",null,null,null,null,null,null,""]
[null,null,"","","",null,null,null,null,null,null,""]
[null,null,"","","",null,null,null,null,null,null,""]
[null,null,"","","",null,null,null,null,null,null,""]
[null,null,"","","",null,null,null,null,null,null,""]
[null,null,"","","",null,null,null,null,null,null,""]
[null,null,"","","",null,null,null,null,null,null,""]
[null,null,"","","",null,null,null,null,null,null,""]
[null,null,"","","",null,null,null,null,null,null,""]
[null,null,"","",{"$f":"IF(B829=\"\",\"\",VLOOKUP(B829,itemsdata,3,\"false\"))","v":""},null,null,null,null,null,null,""]
[null,null,{"$f":"IF(B830=\"\",\"\",VLOOKUP(B830,itemsdata,2,\"false\"))","v":""},{"$f":"IF(B830=\"\",\"\",VLOOKUP(B830,itemsdata,5,\"false\"))","v":""},"",null,null,null,null,null,null,{"$f":"IF(G830<>\"\",IF(F830=\"sell\",D830*G830,-D830*G830),\"\")","v":""}]
[null,null,"","","",null,null,null,null,null,null,""]
[null,null,"","","",null,null,null,null,null,null,""]
[null,null,"","","",null,null,null,null,null,null,""]
[null,null,"","","",null,null,null,null,null,null,""]
[null,null,"","","",null,null,null,null,null,null,""]
[null,null,"","","",null,null,null,null,null,null,""]
[null,null,"","","",null,null,null,null,null,null,""]
[null,null,"","","",null,null,null,null,null,null,""]
[null,null,"","","",null,null,null,null,null,null,""]
[null,null,"","","",null,null,null,null,null,null,""]
[null,null,"","","",null,null,null,null,null,null,""]
[null,null,"","","",null,null,null,null,null,null,""]
[null,null,"","","",null,null,null,null,null,null,""]
[null,null,"","","",null,null,null,null,null,null,""]
[null,null,"","","",null,null,null,null,null,null,""]
[null,null,"","","",null,null,null,null,null,null,""]
[null,null,"","","",null,null,null,null,null,null,""]
[null,null,"","","",null,null,null,null,null,null,""]
[null,null,"","","",null,null,null,null,null,null,""]
[null,null,"","","",null,null,null,null,null,null,""]
[null,null,"","","",null,null,null,null,null,null,""]
[null,null,"","","",null,null,null,null,null,null,""]
[null,null,"","","",null,null,null,null,null,null,""]
[null,null,"","","",null,null,null,null,null,null,""]
[null,null,"","","",null,null,null,null,null,null,""]
[null,null,"","","",null,null,null,null,null,null,""]
[null,null,"","","",null,null,null,null,null,null,""]
[null,null,"","","",null,null,null,null,null,null,""]
[null,null,"","","",null,null,null,null,null,null,""]
[null,null,"","","",null,null,null,null,null,null,""]
[null,null,"","","",null,null,null,null,null,null,""]
[null,null,"","","",null,null,null,null,null,null,""]
[null,null,"","","",null,null,null,null,null,null,""]
[null,null,"","","",null,null,null,null,null,null,""]
[null,null,"","","",null,null,null,null,null,null,""]
[null,null,"","","",null,null,null,null,null,null,""]
[null,null,"","","",null,null,null,null,null,null,""]
[null,null,"","","",null,null,null,null,null,null,""]
[null,null,"","","",null,null,null,null,null,null,""]
[null,null,"","","",null,null,null,null,null,null,""]
[null,null,"","","",null,null,null,null,null,null,""]
[null,null,"","","",null,null,null,null,null,null,""]
[null,null,"","","",null,null,null,null,null,null,""]
[null,null,"","","",null,null,null,null,null,null,""]
[null,null,"","","",null,null,null,null,null,null,""]
[null,null,"","","",null,null,null,null,null,null,""]
[null,null,"","","",null,null,null,null,null,null,""]
[null,null,"","","",null,null,null,null,null,null,""]
[null,null,"","","",null,null,null,null,null,null,""]
[null,null,"","","",null,null,null,null,null,null,""]
[null,null,"","","",null,null,null,null,null,null,""]
[null,null,"","","",null,null,null,null,null,null,""]
[null,null,"","","",null,null,null,null,null,null,""]
[null,null,"","","",null,null,null,null,null,null,""]
[null,null,"","","",null,null,null,null,null,null,""]
[null,null,"","","",null,null,null,null,null,null,""]
[null,null,"","","",null,null,null,null,null,null,""]
[null,null,"","","",null,null,null,null,null,null,""]
[null,null,"","","",null,null,null,null,null,null,""]
[null,null,"","","",null,null,null,null,null,null,""]
[null,null,"","","",null,null,null,null,null,null,""]
[null,null,"","","",null,null,null,null,null,null,""]
[null,null,"","",{"$f":"IF(B893=\"\",\"\",VLOOKUP(B893,itemsdata,3,\"false\"))","v":""},null,null,null,null,null,null,""]
[null,null,{"$f":"IF(B894=\"\",\"\",VLOOKUP(B894,itemsdata,2,\"false\"))","v":""},{"$f":"IF(B894=\"\",\"\",VLOOKUP(B894,itemsdata,5,\"false\"))","v":""},"",null,null,null,null,null,null,{"$f":"IF(G894<>\"\",IF(F894=\"sell\",D894*G894,-D894*G894),\"\")","v":""}]
[null,null,"","","",null,null,null,null,null,null,""]
[null,null,"","","",null,null,null,null,null,null,""]
[null,null,"","","",null,null,null,null,null,null,""]
[null,null,"","","",null,null,null,null,null,null,""]
[null,null,"","","",null,null,null,null,null,null,""]
[null,null,"","","",null,null,null,null,null,null,""]
[null,null,"","","",null,null,null,null,null,null,""]
[null,null,"","","",null,null,null,null,null,null,""]
[null,null,"","","",null,null,null,null,null,null,""]
[null,null,"","","",null,null,null,null,null,null,""]
[null,null,"","","",null,null,null,null,null,null,""]
[null,null,"","","",null,null,null,null,null,null,""]
[null,null,"","","",null,null,null,null,null,null,""]
[null,null,"","","",null,null,null,null,null,null,""]
[null,null,"","","",null,null,null,null,null,null,""]
[null,null,"","","",null,null,null,null,null,null,""]
[null,null,"","","",null,null,null,null,null,null,""]
[null,null,"","","",null,null,null,null,null,null,""]
[null,null,"","","",null,null,null,null,null,null,""]
[null,null,"","","",null,null,null,null,null,null,""]
[null,null,"","","",null,null,null,null,null,null,""]
[null,null,"","","",null,null,null,null,null,null,""]
[null,null,"","","",null,null,null,null,null,null,""]
[null,null,"","","",null,null,null,null,null,null,""]
[null,null,"","","",null,null,null,null,null,null,""]
[null,null,"","","",null,null,null,null,null,null,""]
[null,null,"","","",null,null,null,null,null,null,""]
[null,null,"","","",null,null,null,null,null,null,""]
[null,null,"","","",null,null,null,null,null,null,""]
[null,null,"","","",null,null,null,null,null,null,""]
[null,null,"","","",null,null,null,null,null,null,""]
[null,null,"","","",null,null,null,null,null,null,""]
[null,null,"","","",null,null,null,null,null,null,""]
[null,null,"","","",null,null,null,null,null,null,""]
[null,null,"","","",null,null,null,null,null,null,""]
[null,null,"","","",null,null,null,null,null,null,""]
[null,null,"","","",null,null,null,null,null,null,""]
[null,null,"","","",null,null,null,null,null,null,""]
[null,null,"","","",null,null,null,null,null,null,""]
[null,null,"","","",null,null,null,null,null,null,""]
[null,null,"","","",null,null,null,null,null,null,""]
[null,null,"","","",null,null,null,null,null,null,""]
[null,null,"","","",null,null,null,null,null,null,""]
[null,null,"","","",null,null,null,null,null,null,""]
[null,null,"","","",null,null,null,null,null,null,""]
[null,null,"","","",null,null,null,null,null,null,""]
[null,null,"","","",null,null,null,null,null,null,""]
[null,null,"","","",null,null,null,null,null,null,""]
[null,null,"","","",null,null,null,null,null,null,""]
[null,null,"","","",null,null,null,null,null,null,""]
[null,null,"","","",null,null,null,null,null,null,""]
[null,null,"","","",null,null,null,null,null,null,""]
[null,null,"","","",null,null,null,null,null,null,""]
[null,null,"","","",null,null,null,null,null,null,""]
[null,null,"","","",null,null,null,null,null,null,""]
[null,null,"","","",null,null,null,null,null,null,""]
[null,null,"","","",null,null,null,null,null,null,""]
[null,null,"","","",null,null,null,null,null,null,""]
[null,null,"","","",null,null,null,null,null,null,""]
[null,null,"","","",null,null,null,null,null,null,""]
[null,null,"","","",null,null,null,null,null,null,""]
[null,null,"","","",null,null,null,null,null,null,""]
[null,null,"","",{"$f":"IF(B957=\"\",\"\",VLOOKUP(B957,itemsdata,3,\"false\"))","v":""},null,null,null,null,null,null,""]
[null,null,{"$f":"IF(B958=\"\",\"\",VLOOKUP(B958,itemsdata,2,\"false\"))","v":""},{"$f":"IF(B958=\"\",\"\",VLOOKUP(B958,itemsdata,5,\"false\"))","v":""},"",null,null,null,null,null,null,{"$f":"IF(G958<>\"\",IF(F958=\"sell\",D958*G958,-D958*G958),\"\")","v":""}]
[null,null,"","","",null,null,null,null,null,null,""]
[null,null,"","","",null,null,null,null,null,null,""]
[null,null,"","","",null,null,null,null,null,null,""]
[null,null,"","","",null,null,null,null,null,null,""]
[null,null,"","","",null,null,null,null,null,null,""]
[null,null,"","","",null,null,null,null,null,null,""]
[null,null,"","","",null,null,null,null,null,null,""]
[null,null,"","","",null,null,null,null,null,null,""]
[null,null,"","","",null,null,null,null,null,null,""]
[null,null,"","","",null,null,null,null,null,null,""]
[null,null,"","","",null,null,null,null,null,null,""]
[null,null,"","","",null,null,null,null,null,null,""]
[null,null,"","","",null,null,null,null,null,null,""]
[null,null,"","","",null,null,null,null,null,null,""]
[null,null,"","","",null,null,null,null,null,null,""]
[null,null,"","","",null,null,null,null,null,null,""]
[null,null,"","","",null,null,null,null,null,null,""]
[null,null,"","","",null,null,null,null,null,null,""]
[null,null,"","","",null,null,null,null,null,null,""]
[null,null,"","","",null,null,null,null,null,null,""]
[null,null,"","","",null,null,null,null,null,null,""]
[null,null,"","","",null,null,null,null,null,null,""]
[null,null,"","","",null,null,null,null,null,null,""]
[null,null,"","","",null,null,null,null,null,null,""]
[null,null,"","","",null,null,null,null,null,null,""]
[null,null,"","","",null,null,null,null,null,null,""]
[null,null,"","","",null,null,null,null,null,null,""]
[null,null,"","","",null,null,null,null,null,null,""]
[null,null,"","","",null,null,null,null,null,null,""]
[null,null,"","","",null,null,null,null,null,null,""]
[null,null,"","","",null,null,null,null,null,null,""]
[null,null,"","","",null,null,null,null,null,null,""]
[null,null,"","","",null,null,null,null,null,null,""]
[null,null,"","","",null,null,null,null,null,null,""]
[null,null,"","","",null,null,null,null,null,null,""]
[null,null,"","","",null,null,null,null,null,null,""]
[null,null,"","","",null,null,null,null,null,null,""]
[null,null,"","","",null,null,null,null,null,null,""]
[null,null,"","","",null,null,null,null,null,null,""]
[null,null,"","","",null,null,null,null,null,null,""]
[null,null,"","","",null,null,null,null,null,null,""]
[null,null,"","","",null,null,null,null,null,null,""]
[null,null,"","","",null,null,null,null,null,null,""]
[null,null,"","","",null,null,null,null,null,null,""]
[null,null,"","","",null,null,null,null,null,null,""]
[null,null,"","","",null,null,null,null,null,null,""]
[null,null,"","","",null,null,null,null,null,null,""]
[null,null,"","","",null,null,null,null,null,null,""]
[null,null,"","","",null,null,null,null,null,null,""]
[null,null,"","","",null,null,null,null,null,null,""]
[null,null,"","","",null,null,null,null,null,null,""]
[null,null,"","","",null,null,null,null,null,null,""]
[null,null,"","","",null,null,null,null,null,null,""]
[null,null,"","","",null,null,null,null,null,null,""]
[null,null,"","","",null,null,null,null,null,null,""]
[null,null,"","","",null,null,null,null,null,null,""]
[null,null,"","","",null,null,null,null,null,null,""]
[null,null,"","","",null,null,null,null,null,null,""]
[null,null,"","","",null,null,null,null,null,null,""]
[null,null,"","","",null,null,null,null,null,null,""]
[null,null,"","","",null,null,null,null,null,null,""]
[null,null,"","","",null,null,null,null,null,null,""]
[null,null,"","",{"$f":"IF(B1021=\"\",\"\",VLOOKUP(B1021,itemsdata,3,\"false\"))","v":""},null,null,null,null,null,null,""]
[null,null,{"$f":"IF(B1022=\"\",\"\",VLOOKUP(B1022,itemsdata,2,\"false\"))","v":""},{"$f":"IF(B1022=\"\",\"\",VLOOKUP(B1022,itemsdata,5,\"false\"))","v":""},"",null,null,null,null,null,null,{"$f":"IF(G1022<>\"\",IF(F1022=\"sell\",D1022*G1022,-D1022*G1022),\"\")","v":""}]
[null,null,"","","",null,null,null,null,null,null,""]
[null,null,"","","",null,null,null,null,null,null,""]
[null,null,"","","",null,null,null,null,null,null,""]
[null,null,"","","",null,null,null,null,null,null,""]
[null,null,"","","",null,null,null,null,null,null,""]
[null,null,"","","",null,null,null,null,null,null,""]
[null,null,"","","",null,null,null,null,null,null,""]
[null,null,"","","",null,null,null,null,null,null,""]
[null,null,"","","",null,null,null,null,null,null,""]
[null,null,"","","",null,null,null,null,null,null,""]
[null,null,"","","",null,null,null,null,null,null,""]
[null,null,"","","",null,null,null,null,null,null,""]
[null,null,"","","",null,null,null,null,null,null,""]
[null,null,"","","",null,null,null,null,null,null,""]
[null,null,"","","",null,null,null,null,null,null,""]
[null,null,"","","",null,null,null,null,null,null,""]
[null,null,"","","",null,null,null,null,null,null,""]
[null,null,"","","",null,null,null,null,null,null,""]
[null,null,"","","",null,null,null,null,null,null,""]
[null,null,"","","",null,null,null,null,null,null,""]
[null,null,"","","",null,null,null,null,null,null,""]
[null,null,"","","",null,null,null,null,null,null,""]
[null,null,"","","",null,null,null,null,null,null,""]
[null,null,"","","",null,null,null,null,null,null,""]
[null,null,"","","",null,null,null,null,null,null,""]
[null,null,"","","",null,null,null,null,null,null,""]
[null,null,"","","",null,null,null,null,null,null,""]
[null,null,"","","",null,null,null,null,null,null,""]
[null,null,"","","",null,null,null,null,null,null,""]
[null,null,"","","",null,null,null,null,null,null,""]
[null,null,"","","",null,null,null,null,null,null,""]
[null,null,"","","",null,null,null,null,null,null,""]
[null,null,"","","",null,null,null,null,null,null,""]
[null,null,"","","",null,null,null,null,null,null,""]
[null,null,"","","",null,null,null,null,null,null,""]
[null,null,"","","",null,null,null,null,null,null,""]
[null,null,"","","",null,null,null,null,null,null,""]
[null,null,"","","",null,null,null,null,null,null,""]
[null,null,"","","",null,null,null,null,null,null,""]
[null,null,"","","",null,null,null,null,null,null,""]
[null,null,"","","",null,null,null,null,null,null,""]
[null,null,"","","",null,null,null,null,null,null,""]
[null,null,"","","",null,null,null,null,null,null,""]
[null,null,"","","",null,null,null,null,null,null,""]
[null,null,"","","",null,null,null,null,null,null,""]
[null,null,"","","",null,null,null,null,null,null,""]
[null,null,"","","",null,null,null,null,null,null,""]
[null,null,"","","",null,null,null,null,null,null,""]
[null,null,"","","",null,null,null,null,null,null,""]
[null,null,"","","",null,null,null,null,null,null,""]
[null,null,"","","",null,null,null,null,null,null,""]
[null,null,"","","",null,null,null,null,null,null,""]
[null,null,"","","",null,null,null,null,null,null,""]
[null,null,"","","",null,null,null,null,null,null,""]
[null,null,"","","",null,null,null,null,null,null,""]
[null,null,"","","",null,null,null,null,null,null,""]
[null,null,"","","",null,null,null,null,null,null,""]
[null,null,"","","",null,null,null,null,null,null,""]
[null,null,"","","",null,null,null,null,null,null,""]
[null,null,"","","",null,null,null,null,null,null,""]
[null,null,"","","",null,null,null,null,null,null,""]
[null,null,"","","",null,null,null,null,null,null,""]
[null,null,"","",{"$f":"IF(B1085=\"\",\"\",VLOOKUP(B1085,itemsdata,3,\"false\"))","v":""},null,null,null,null,null,null,""]
[null,null,{"$f":"IF(B1086=\"\",\"\",VLOOKUP(B1086,itemsdata,2,\"false\"))","v":""},{"$f":"IF(B1086=\"\",\"\",VLOOKUP(B1086,itemsdata,5,\"false\"))","v":""},"",null,null,null,null,null,null,{"$f":"IF(G1086<>\"\",IF(F1086=\"sell\",D1086*G1086,-D1086*G1086),\"\")","v":""}]
[null,null,"","","",null,null,null,null,null,null,""]
[null,null,"","","",null,null,null,null,null,null,""]
[null,null,"","","",null,null,null,null,null,null,""]
[null,null,"","","",null,null,null,null,null,null,""]
[null,null,"","","",null,null,null,null,null,null,""]
[null,null,"","","",null,null,null,null,null,null,""]
[null,null,"","","",null,null,null,null,null,null,""]
[null,null,"","","",null,null,null,null,null,null,""]
[null,null,"","","",null,null,null,null,null,null,""]
[null,null,"","","",null,null,null,null,null,null,""]
[null,null,"","","",null,null,null,null,null,null,""]
[null,null,"","","",null,null,null,null,null,null,""]
[null,null,"","","",null,null,null,null,null,null,""]
[null,null,"","","",null,null,null,null,null,null,""]
[null,null,"","","",null,null,null,null,null,null,""]
[null,null,"","","",null,null,null,null,null,null,""]
[null,null,"","","",null,null,null,null,null,null,""]
[null,null,"","","",null,null,null,null,null,null,""]
[null,null,"","","",null,null,null,null,null,null,""]
[null,null,"","","",null,null,null,null,null,null,""]
[null,null,"","","",null,null,null,null,null,null,""]
[null,null,"","","",null,null,null,null,null,null,""]
[null,null,"","","",null,null,null,null,null,null,""]
[null,null,"","","",null,null,null,null,null,null,""]
[null,null,"","","",null,null,null,null,null,null,""]
[null,null,"","","",null,null,null,null,null,null,""]
[null,null,"","","",null,null,null,null,null,null,""]
[null,null,"","","",null,null,null,null,null,null,""]
[null,null,"","","",null,null,null,null,null,null,""]
[null,null,"","","",null,null,null,null,null,null,""]
[null,null,"","","",null,null,null,null,null,null,""]
[null,null,"","","",null,null,null,null,null,null,""]
[null,null,"","","",null,null,null,null,null,null,""]
[null,null,"","","",null,null,null,null,null,null,""]
[null,null,"","","",null,null,null,null,null,null,""]
[null,null,"","","",null,null,null,null,null,null,""]
[null,null,"","","",null,null,null,null,null,null,""]
[null,null,"","","",null,null,null,null,null,null,""]
[null,null,"","","",null,null,null,null,null,null,""]
[null,null,"","","",null,null,null,null,null,null,""]
[null,null,"","","",null,null,null,null,null,null,""]
[null,null,"","","",null,null,null,null,null,null,""]
[null,null,"","","",null,null,null,null,null,null,""]
[null,null,"","","",null,null,null,null,null,null,""]
[null,null,"","","",null,null,null,null,null,null,""]
[null,null,"","","",null,null,null,null,null,null,""]
[null,null,"","","",null,null,null,null,null,null,""]
[null,null,"","","",null,null,null,null,null,null,""]
[null,null,"","","",null,null,null,null,null,null,""]
[null,null,"","","",null,null,null,null,null,null,""]
[null,null,"","","",null,null,null,null,null,null,""]
[null,null,"","","",null,null,null,null,null,null,""]
[null,null,"","","",null,null,null,null,null,null,""]
[null,null,"","","",null,null,null,null,null,null,""]
[null,null,"","","",null,null,null,null,null,null,""]
[null,null,"","","",null,null,null,null,null,null,""]
[null,null,"","","",null,null,null,null,null,null,""]
[null,null,"","","",null,null,null,null,null,null,""]
[null,null,"","","",null,null,null,null,null,null,""]
[null,null,"","","",null,null,null,null,null,null,""]
[null,null,"","","",null,null,null,null,null,null,""]
[null,null,"","","",null,null,null,null,null,null,""]
[null,null,"","",{"$f":"IF(B1149=\"\",\"\",VLOOKUP(B1149,itemsdata,3,\"false\"))","v":""},null,null,null,null,null,null,""]
[null,null,{"$f":"IF(B1150=\"\",\"\",VLOOKUP(B1150,itemsdata,2,\"false\"))","v":""},{"$f":"IF(B1150=\"\",\"\",VLOOKUP(B1150,itemsdata,5,\"false\"))","v":""},"",null,null,null,null,null,null,{"$f":"IF(G1150<>\"\",IF(F1150=\"sell\",D1150*G1150,-D1150*G1150),\"\")","v":""}]
[null,null,"","","",null,null,null,null,null,null,""]
[null,null,"","","",null,null,null,null,null,null,""]
[null,null,"","","",null,null,null,null,null,null,""]
[null,null,"","","",null,null,null,null,null,null,""]
[null,null,"","","",null,null,null,null,null,null,""]
[null,null,"","","",null,null,null,null,null,null,""]
[null,null,"","","",null,null,null,null,null,null,""]
[null,null,"","","",null,null,null,null,null,null,""]
[null,null,"","","",null,null,null,null,null,null,""]
[null,null,"","","",null,null,null,null,null,null,""]
[null,null,"","","",null,null,null,null,null,null,""]
[null,null,"","","",null,null,null,null,null,null,""]
[null,null,"","","",null,null,null,null,null,null,""]
[null,null,"","","",null,null,null,null,null,null,""]
[null,null,"","","",null,null,null,null,null,null,""]
[null,null,"","","",null,null,null,null,null,null,""]
[null,null,"","","",null,null,null,null,null,null,""]
[null,null,"","","",null,null,null,null,null,null,""]
[null,null,"","","",null,null,null,null,null,null,""]
[null,null,"","","",null,null,null,null,null,null,""]
[null,null,"","","",null,null,null,null,null,null,""]
[null,null,"","","",null,null,null,null,null,null,""]
[null,null,"","","",null,null,null,null,null,null,""]
[null,null,"","","",null,null,null,null,null,null,""]
[null,null,"","","",null,null,null,null,null,null,""]
[null,null,"","","",null,null,null,null,null,null,""]
[null,null,"","","",null,null,null,null,null,null,""]
[null,null,"","","",null,null,null,null,null,null,""]
[null,null,"","","",null,null,null,null,null,null,""]
[null,null,"","","",null,null,null,null,null,null,""]
[null,null,"","","",null,null,null,null,null,null,""]
[null,null,"","","",null,null,null,null,null,null,""]
[null,null,"","","",null,null,null,null,null,null,""]
[null,null,"","","",null,null,null,null,null,null,""]
[null,null,"","","",null,null,null,null,null,null,""]
[null,null,"","","",null,null,null,null,null,null,""]
[null,null,"","","",null,null,null,null,null,null,""]
[null,null,"","","",null,null,null,null,null,null,""]
[null,null,"","","",null,null,null,null,null,null,""]
[null,null,"","","",null,null,null,null,null,null,""]
[null,null,"","","",null,null,null,null,null,null,""]
[null,null,"","","",null,null,null,null,null,null,""]
[null,null,"","","",null,null,null,null,null,null,""]
[null,null,"","","",null,null,null,null,null,null,""]
[null,null,"","","",null,null,null,null,null,null,""]
[null,null,"","","",null,null,null,null,null,null,""]
[null,null,"","","",null,null,null,null,null,null,""]
[null,null,"","","",null,null,null,null,null,null,""]
[null,null,"","","",null,null,null,null,null,null,""]
[null,null,"","","",null,null,null,null,null,null,""]
[null,null,"","","",null,null,null,null,null,null,""]
[null,null,"","","",null,null,null,null,null,null,""]
[null,null,"","","",null,null,null,null,null,null,""]
[null,null,"","","",null,null,null,null,null,null,""]
[null,null,"","","",null,null,null,null,null,null,""]
[null,null,"","","",null,null,null,null,null,null,""]
[null,null,"","","",null,null,null,null,null,null,""]
[null,null,"","","",null,null,null,null,null,null,""]
[null,null,"","","",null,null,null,null,null,null,""]
[null,null,"","","",null,null,null,null,null,null,""]
[null,null,"","","",null,null,null,null,null,null,""]
[null,null,"","","",null,null,null,null,null,null,""]
[null,null,"","",{"$f":"IF(B1213=\"\",\"\",VLOOKUP(B1213,itemsdata,3,\"false\"))","v":""},null,null,null,null,null,null,""]
[null,null,{"$f":"IF(B1214=\"\",\"\",VLOOKUP(B1214,itemsdata,2,\"false\"))","v":""},{"$f":"IF(B1214=\"\",\"\",VLOOKUP(B1214,itemsdata,5,\"false\"))","v":""},"",null,null,null,null,null,null,{"$f":"IF(G1214<>\"\",IF(F1214=\"sell\",D1214*G1214,-D1214*G1214),\"\")","v":""}]
[null,null,"","","",null,null,null,null,null,null,""]
[null,null,"","","",null,null,null,null,null,null,""]
[null,null,"","","",null,null,null,null,null,null,""]
[null,null,"","","",null,null,null,null,null,null,""]
[null,null,"","","",null,null,null,null,null,null,""]
[null,null,"","","",null,null,null,null,null,null,""]
[null,null,"","","",null,null,null,null,null,null,""]
[null,null,"","","",null,null,null,null,null,null,""]
[null,null,"","","",null,null,null,null,null,null,""]
[null,null,"","","",null,null,null,null,null,null,""]
[null,null,"","","",null,null,null,null,null,null,""]
[null,null,"","","",null,null,null,null,null,null,""]
[null,null,"","","",null,null,null,null,null,null,""]
[null,null,"","","",null,null,null,null,null,null,""]
[null,null,"","","",null,null,null,null,null,null,""]
[null,null,"","","",null,null,null,null,null,null,""]
[null,null,"","","",null,null,null,null,null,null,""]
[null,null,"","","",null,null,null,null,null,null,""]
[null,null,"","","",null,null,null,null,null,null,""]
[null,null,"","","",null,null,null,null,null,null,""]
[null,null,"","","",null,null,null,null,null,null,""]
[null,null,"","","",null,null,null,null,null,null,""]
[null,null,"","","",null,null,null,null,null,null,""]
[null,null,"","","",null,null,null,null,null,null,""]
[null,null,"","","",null,null,null,null,null,null,""]
[null,null,"","","",null,null,null,null,null,null,""]
[null,null,"","","",null,null,null,null,null,null,""]
[null,null,"","","",null,null,null,null,null,null,""]
[null,null,"","","",null,null,null,null,null,null,""]
[null,null,"","","",null,null,null,null,null,null,""]
[null,null,"","","",null,null,null,null,null,null,""]
[null,null,"","","",null,null,null,null,null,null,""]
[null,null,"","","",null,null,null,null,null,null,""]
[null,null,"","","",null,null,null,null,null,null,""]
[null,null,"","","",null,null,null,null,null,null,""]
[null,null,"","","",null,null,null,null,null,null,""]
[null,null,"","","",null,null,null,null,null,null,""]
[null,null,"","","",null,null,null,null,null,null,""]
[null,null,"","","",null,null,null,null,null,null,""]
[null,null,"","","",null,null,null,null,null,null,""]
[null,null,"","","",null,null,null,null,null,null,""]
[null,null,"","","",null,null,null,null,null,null,""]
[null,null,"","","",null,null,null,null,null,null,""]
[null,null,"","","",null,null,null,null,null,null,""]
[null,null,"","","",null,null,null,null,null,null,""]
[null,null,"","","",null,null,null,null,null,null,""]
[null,null,"","","",null,null,null,null,null,null,""]
[null,null,"","","",null,null,null,null,null,null,""]
[null,null,"","","",null,null,null,null,null,null,""]
[null,null,"","","",null,null,null,null,null,null,""]
[null,null,"","","",null,null,null,null,null,null,""]
[null,null,"","","",null,null,null,null,null,null,""]
[null,null,"","","",null,null,null,null,null,null,""]
[null,null,"","","",null,null,null,null,null,null,""]
[null,null,"","","",null,null,null,null,null,null,""]
[null,null,"","","",null,null,null,null,null,null,""]
[null,null,"","","",null,null,null,null,null,null,""]
[null,null,"","","",null,null,null,null,null,null,""]
[null,null,"","","",null,null,null,null,null,null,""]
[null,null,"","","",null,null,null,null,null,null,""]
[null,null,"","","",null,null,null,null,null,null,""]
[null,null,"","","",null,null,null,null,null,null,""]
[null,null,"","",{"$f":"IF(B1277=\"\",\"\",VLOOKUP(B1277,itemsdata,3,\"false\"))","v":""},null,null,null,null,null,null,""]
[null,null,{"$f":"IF(B1278=\"\",\"\",VLOOKUP(B1278,itemsdata,2,\"false\"))","v":""},{"$f":"IF(B1278=\"\",\"\",VLOOKUP(B1278,itemsdata,5,\"false\"))","v":""},"",null,null,null,null,null,null,{"$f":"IF(G1278<>\"\",IF(F1278=\"sell\",D1278*G1278,-D1278*G1278),\"\")","v":""}]
[null,null,"","","",null,null,null,null,null,null,""]
[null,null,"","","",null,null,null,null,null,null,""]
[null,null,"","","",null,null,null,null,null,null,""]
[null,null,"","","",null,null,null,null,null,null,""]
[null,null,"","","",null,null,null,null,null,null,""]
[null,null,"","","",null,null,null,null,null,null,""]
[null,null,"","","",null,null,null,null,null,null,""]
[null,null,"","","",null,null,null,null,null,null,""]
[null,null,"","","",null,null,null,null,null,null,""]
[null,null,"","","",null,null,null,null,null,null,""]
[null,null,"","","",null,null,null,null,null,null,""]
[null,null,"","","",null,null,null,null,null,null,""]
[null,null,"","","",null,null,null,null,null,null,""]
[null,null,"","","",null,null,null,null,null,null,""]
[null,null,"","","",null,null,null,null,null,null,""]
[null,null,"","","",null,null,null,null,null,null,""]
[null,null,"","","",null,null,null,null,null,null,""]
[null,null,"","","",null,null,null,null,null,null,""]
[null,null,"","","",null,null,null,null,null,null,""]
[null,null,"","","",null,null,null,null,null,null,""]
[null,null,"","","",null,null,null,null,null,null,""]
[null,null,"","","",null,null,null,null,null,null,""]
[null,null,"","","",null,null,null,null,null,null,""]
[null,null,"","","",null,null,null,null,null,null,""]
[null,null,"","","",null,null,null,null,null,null,""]
[null,null,"","","",null,null,null,null,null,null,""]
[null,null,"","","",null,null,null,null,null,null,""]
[null,null,"","","",null,null,null,null,null,null,""]
[null,null,"","","",null,null,null,null,null,null,""]
[null,null,"","","",null,null,null,null,null,null,""]
[null,null,"","","",null,null,null,null,null,null,""]
[null,null,"","","",null,null,null,null,null,null,""]
[null,null,"","","",null,null,null,null,null,null,""]
[null,null,"","","",null,null,null,null,null,null,""]
[null,null,"","","",null,null,null,null,null,null,""]
[null,null,"","","",null,null,null,null,null,null,""]
[null,null,"","","",null,null,null,null,null,null,""]
[null,null,"","","",null,null,null,null,null,null,""]
[null,null,"","","",null,null,null,null,null,null,""]
[null,null,"","","",null,null,null,null,null,null,""]
[null,null,"","","",null,null,null,null,null,null,""]
[null,null,"","","",null,null,null,null,null,null,""]
[null,null,"","","",null,null,null,null,null,null,""]
[null,null,"","","",null,null,null,null,null,null,""]
[null,null,"","","",null,null,null,null,null,null,""]
[null,null,"","","",null,null,null,null,null,null,""]
[null,null,"","","",null,null,null,null,null,null,""]
[null,null,"","","",null,null,null,null,null,null,""]
[null,null,"","","",null,null,null,null,null,null,""]
[null,null,"","","",null,null,null,null,null,null,""]
[null,null,"","","",null,null,null,null,null,null,""]
[null,null,"","","",null,null,null,null,null,null,""]
[null,null,"","","",null,null,null,null,null,null,""]
[null,null,"","","",null,null,null,null,null,null,""]
[null,null,"","","",null,null,null,null,null,null,""]
[null,null,"","","",null,null,null,null,null,null,""]
[null,null,"","","",null,null,null,null,null,null,""]
[null,null,"","","",null,null,null,null,null,null,""]
[null,null,"","","",null,null,null,null,null,null,""]
[null,null,"","","",null,null,null,null,null,null,""]
[null,null,"","","",null,null,null,null,null,null,""]
[null,null,"","","",null,null,null,null,null,null,""]
[null,null,"","",{"$f":"IF(B1341=\"\",\"\",VLOOKUP(B1341,itemsdata,3,\"false\"))","v":""},null,null,null,null,null,null,""]
[null,null,{"$f":"IF(B1342=\"\",\"\",VLOOKUP(B1342,itemsdata,2,\"false\"))","v":""},{"$f":"IF(B1342=\"\",\"\",VLOOKUP(B1342,itemsdata,5,\"false\"))","v":""},"",null,null,null,null,null,null,{"$f":"IF(G1342<>\"\",IF(F1342=\"sell\",D1342*G1342,-D1342*G1342),\"\")","v":""}]
[null,null,"","","",null,null,null,null,null,null,""]
[null,null,"","","",null,null,null,null,null,null,""]
[null,null,"","","",null,null,null,null,null,null,""]
[null,null,"","","",null,null,null,null,null,null,""]
[null,null,"","","",null,null,null,null,null,null,""]
[null,null,"","","",null,null,null,null,null,null,""]
[null,null,"","","",null,null,null,null,null,null,""]
[null,null,"","","",null,null,null,null,null,null,""]
[null,null,"","","",null,null,null,null,null,null,""]
[null,null,"","","",null,null,null,null,null,null,""]
[null,null,"","","",null,null,null,null,null,null,""]
[null,null,"","","",null,null,null,null,null,null,""]
[null,null,"","","",null,null,null,null,null,null,""]
[null,null,"","","",null,null,null,null,null,null,""]
[null,null,"","","",null,null,null,null,null,null,""]
[null,null,"","","",null,null,null,null,null,null,""]
[null,null,"","","",null,null,null,null,null,null,""]
[null,null,"","","",null,null,null,null,null,null,""]
[null,null,"","","",null,null,null,null,null,null,""]
[null,null,"","","",null,null,null,null,null,null,""]
[null,null,"","","",null,null,null,null,null,null,""]
[null,null,"","","",null,null,null,null,null,null,""]
[null,null,"","","",null,null,null,null,null,null,""]
[null,null,"","","",null,null,null,null,null,null,""]
[null,null,"","","",null,null,null,null,null,null,""]
[null,null,"","","",null,null,null,null,null,null,""]
[null,null,"","","",null,null,null,null,null,null,""]
[null,null,"","","",null,null,null,null,null,null,""]
[null,null,"","","",null,null,null,null,null,null,""]
[null,null,"","","",null,null,null,null,null,null,""]
[null,null,"","","",null,null,null,null,null,null,""]
[null,null,"","","",null,null,null,null,null,null,""]
[null,null,"","","",null,null,null,null,null,null,""]
[null,null,"","","",null,null,null,null,null,null,""]
[null,null,"","","",null,null,null,null,null,null,""]
[null,null,"","","",null,null,null,null,null,null,""]
[null,null,"","","",null,null,null,null,null,null,""]
[null,null,"","","",null,null,null,null,null,null,""]
[null,null,"","","",null,null,null,null,null,null,""]
[null,null,"","","",null,null,null,null,null,null,""]
[null,null,"","","",null,null,null,null,null,null,""]
[null,null,"","","",null,null,null,null,null,null,""]
[null,null,"","","",null,null,null,null,null,null,""]
[null,null,"","","",null,null,null,null,null,null,""]
[null,null,"","","",null,null,null,null,null,null,""]
[null,null,"","","",null,null,null,null,null,null,""]
[null,null,"","","",null,null,null,null,null,null,""]
[null,null,"","","",null,null,null,null,null,null,""]
[null,null,"","","",null,null,null,null,null,null,""]
[null,null,"","","",null,null,null,null,null,null,""]
[null,null,"","","",null,null,null,null,null,null,""]
[null,null,"","","",null,null,null,null,null,null,""]
[null,null,"","","",null,null,null,null,null,null,""]
[null,null,"","","",null,null,null,null,null,null,""]
[null,null,"","","",null,null,null,null,null,null,""]
[null,null,"","","",null,null,null,null,null,null,""]
[null,null,"","","",null,null,null,null,null,null,""]
[null,null,"","","",null,null,null,null,null,null,""]
[null,null,"","","",null,null,null,null,null,null,""]
[null,null,"","","",null,null,null,null,null,null,""]
[null,null,"","","",null,null,null,null,null,null,""]
[null,null,"","","",null,null,null,null,null,null,""]
[null,null,"","",{"$f":"IF(B1405=\"\",\"\",VLOOKUP(B1405,itemsdata,3,\"false\"))","v":""},null,null,null,null,null,null,""]
[null,null,{"$f":"IF(B1406=\"\",\"\",VLOOKUP(B1406,itemsdata,2,\"false\"))","v":""},{"$f":"IF(B1406=\"\",\"\",VLOOKUP(B1406,itemsdata,5,\"false\"))","v":""},"",null,null,null,null,null,null,{"$f":"IF(G1406<>\"\",IF(F1406=\"sell\",D1406*G1406,-D1406*G1406),\"\")","v":""}]
[null,null,"","","",null,null,null,null,null,null,""]
[null,null,"","","",null,null,null,null,null,null,""]
[null,null,"","","",null,null,null,null,null,null,""]
[null,null,"","","",null,null,null,null,null,null,""]
[null,null,"","","",null,null,null,null,null,null,""]
[null,null,"","","",null,null,null,null,null,null,""]
[null,null,"","","",null,null,null,null,null,null,""]
[null,null,"","","",null,null,null,null,null,null,""]
[null,null,"","","",null,null,null,null,null,null,""]
[null,null,"","","",null,null,null,null,null,null,""]
[null,null,"","","",null,null,null,null,null,null,""]
[null,null,"","","",null,null,null,null,null,null,""]
[null,null,"","","",null,null,null,null,null,null,""]
[null,null,"","","",null,null,null,null,null,null,""]
[null,null,"","","",null,null,null,null,null,null,""]
[null,null,"","","",null,null,null,null,null,null,""]
[null,null,"","","",null,null,null,null,null,null,""]
[null,null,"","","",null,null,null,null,null,null,""]
[null,null,"","","",null,null,null,null,null,null,""]
[null,null,"","","",null,null,null,null,null,null,""]
[null,null,"","","",null,null,null,null,null,null,""]
[null,null,"","","",null,null,null,null,null,null,""]
[null,null,"","","",null,null,null,null,null,null,""]
[null,null,"","","",null,null,null,null,null,null,""]
[null,null,"","","",null,null,null,null,null,null,""]
[null,null,"","","",null,null,null,null,null,null,""]
[null,null,"","","",null,null,null,null,null,null,""]
[null,null,"","","",null,null,null,null,null,null,""]
[null,null,"","","",null,null,null,null,null,null,""]
[null,null,"","","",null,null,null,null,null,null,""]
[null,null,"","","",null,null,null,null,null,null,""]
[null,null,"","","",null,null,null,null,null,null,""]
[null,null,"","","",null,null,null,null,null,null,""]
[null,null,"","","",null,null,null,null,null,null,""]
[null,null,"","","",null,null,null,null,null,null,""]
[null,null,"","","",null,null,null,null,null,null,""]
[null,null,"","","",null,null,null,null,null,null,""]
[null,null,"","","",null,null,null,null,null,null,""]
[null,null,"","","",null,null,null,null,null,null,""]
[null,null,"","","",null,null,null,null,null,null,""]
[null,null,"","","",null,null,null,null,null,null,""]
[null,null,"","","",null,null,null,null,null,null,""]
[null,null,"","","",null,null,null,null,null,null,""]
[null,null,"","","",null,null,null,null,null,null,""]
[null,null,"","","",null,null,null,null,null,null,""]
[null,null,"","","",null,null,null,null,null,null,""]
[null,null,"","","",null,null,null,null,null,null,""]
[null,null,"","","",null,null,null,null,null,null,""]
[null,null,"","","",null,null,null,null,null,null,""]
[null,null,"","","",null,null,null,null,null,null,""]
[null,null,"","","",null,null,null,null,null,null,""]
[null,null,"","","",null,null,null,null,null,null,""]
[null,null,"","","",null,null,null,null,null,null,""]
[null,null,"","","",null,null,null,null,null,null,""]
[null,null,"","","",null,null,null,null,null,null,""]
[null,null,"","","",null,null,null,null,null,null,""]
[null,null,"","","",null,null,null,null,null,null,""]
[null,null,"","","",null,null,null,null,null,null,""]
[null,null,"","","",null,null,null,null,null,null,""]
[null,null,"","","",null,null,null,null,null,null,""]
[null,null,"","","",null,null,null,null,null,null,""]
[null,null,"","","",null,null,null,null,null,null,""]
[null,null,"","",{"$f":"IF(B1469=\"\",\"\",VLOOKUP(B1469,itemsdata,3,\"false\"))","v":""},null,null,null,null,null,null,""]
[null,null,{"$f":"IF(B1470=\"\",\"\",VLOOKUP(B1470,itemsdata,2,\"false\"))","v":""},{"$f":"IF(B1470=\"\",\"\",VLOOKUP(B1470,itemsdata,5,\"false\"))","v":""},"",null,null,null,null,null,null,{"$f":"IF(G1470<>\"\",IF(F1470=\"sell\",D1470*G1470,-D1470*G1470),\"\")","v":""}]
[null,null,"","","",null,null,null,null,null,null,""]
[null,null,"","","",null,null,null,null,null,null,""]
[null,null,"","","",null,null,null,null,null,null,""]
[null,null,"","","",null,null,null,null,null,null,""]
[null,null,"","","",null,null,null,null,null,null,""]
[null,null,"","","",null,null,null,null,null,null,""]
[null,null,"","","",null,null,null,null,null,null,""]
[null,null,"","","",null,null,null,null,null,null,""]
[null,null,"","","",null,null,null,null,null,null,""]
[null,null,"","","",null,null,null,null,null,null,""]
[null,null,"","","",null,null,null,null,null,null,""]
[null,null,"","","",null,null,null,null,null,null,""]
[null,null,"","","",null,null,null,null,null,null,""]
[null,null,"","","",null,null,null,null,null,null,""]
[null,null,"","","",null,null,null,null,null,null,""]
[null,null,"","","",null,null,null,null,null,null,""]
[null,null,"","","",null,null,null,null,null,null,""]
[null,null,"","","",null,null,null,null,null,null,""]
[null,null,"","","",null,null,null,null,null,null,""]
[null,null,"","","",null,null,null,null,null,null,""]
[null,null,"","","",null,null,null,null,null,null,""]
[null,null,"","","",null,null,null,null,null,null,""]
[null,null,"","","",null,null,null,null,null,null,""]
[null,null,"","","",null,null,null,null,null,null,""]
[null,null,"","","",null,null,null,null,null,null,""]
[null,null,"","","",null,null,null,null,null,null,""]
[null,null,"","","",null,null,null,null,null,null,""]
[null,null,"","","",null,null,null,null,null,null,""]
[null,null,"","","",null,null,null,null,null,null,""]
[null,null,"","","",null,null,null,null,null,null,""]
[null,null,"","","",null,null,null,null,null,null,""]
[null,null,"","","",null,null,null,null,null,null,""]
[null,null,"","","",null,null,null,null,null,null,""]
[null,null,"","","",null,null,null,null,null,null,""]
[null,null,"","","",null,null,null,null,null,null,""]
[null,null,"","","",null,null,null,null,null,null,""]
[null,null,"","","",null,null,null,null,null,null,""]
[null,null,"","","",null,null,null,null,null,null,""]
[null,null,"","","",null,null,null,null,null,null,""]
[null,null,"","","",null,null,null,null,null,null,""]
[null,null,"","","",null,null,null,null,null,null,""]
[null,null,"","","",null,null,null,null,null,null,""]
[null,null,"","","",null,null,null,null,null,null,""]
[null,null,"","","",null,null,null,null,null,null,""]
[null,null,"","","",null,null,null,null,null,null,""]
[null,null,"","","",null,null,null,null,null,null,""]
[null,null,"","","",null,null,null,null,null,null,""]
[null,null,"","","",null,null,null,null,null,null,""]
[null,null,"","","",null,null,null,null,null,null,""]
[null,null,"","","",null,null,null,null,null,null,""]
[null,null,"","","",null,null,null,null,null,null,""]
[null,null,"","","",null,null,null,null,null,null,""]
[null,null,"","","",null,null,null,null,null,null,""]
[null,null,"","","",null,null,null,null,null,null,""]
[null,null,"","","",null,null,null,null,null,null,""]
[null,null,"","","",null,null,null,null,null,null,""]
[null,null,"","","",null,null,null,null,null,null,""]
[null,null,"","","",null,null,null,null,null,null,""]
[null,null,"","","",null,null,null,null,null,null,""]
[null,null,"","","",null,null,null,null,null,null,""]
[null,null,"","","",null,null,null,null,null,null,""]
[null,null,"","","",null,null,null,null,null,null,""]
[null,null,"","",{"$f":"IF(B1533=\"\",\"\",VLOOKUP(B1533,itemsdata,3,\"false\"))","v":""},null,null,null,null,null,null,""]
[null,null,{"$f":"IF(B1534=\"\",\"\",VLOOKUP(B1534,itemsdata,2,\"false\"))","v":""},{"$f":"IF(B1534=\"\",\"\",VLOOKUP(B1534,itemsdata,5,\"false\"))","v":""},"",null,null,null,null,null,null,{"$f":"IF(G1534<>\"\",IF(F1534=\"sell\",D1534*G1534,-D1534*G1534),\"\")","v":""}]
[null,null,"","","",null,null,null,null,null,null,""]
[null,null,"","","",null,null,null,null,null,null,""]
[null,null,"","","",null,null,null,null,null,null,""]
[null,null,"","","",null,null,null,null,null,null,""]
[null,null,"","","",null,null,null,null,null,null,""]
[null,null,"","","",null,null,null,null,null,null,""]
[null,null,"","","",null,null,null,null,null,null,""]
[null,null,"","","",null,null,null,null,null,null,""]
[null,null,"","","",null,null,null,null,null,null,""]
[null,null,"","","",null,null,null,null,null,null,""]
[null,null,"","","",null,null,null,null,null,null,""]
[null,null,"","","",null,null,null,null,null,null,""]
[null,null,"","","",null,null,null,null,null,null,""]
[null,null,"","","",null,null,null,null,null,null,""]
[null,null,"","","",null,null,null,null,null,null,""]
[null,null,"","","",null,null,null,null,null,null,""]
[null,null,"","","",null,null,null,null,null,null,""]
[null,null,"","","",null,null,null,null,null,null,""]
[null,null,"","","",null,null,null,null,null,null,""]
[null,null,"","","",null,null,null,null,null,null,""]
[null,null,"","","",null,null,null,null,null,null,""]
[null,null,"","","",null,null,null,null,null,null,""]
[null,null,"","","",null,null,null,null,null,null,""]
[null,null,"","","",null,null,null,null,null,null,""]
[null,null,"","","",null,null,null,null,null,null,""]
[null,null,"","","",null,null,null,null,null,null,""]
[null,null,"","","",null,null,null,null,null,null,""]
[null,null,"","","",null,null,null,null,null,null,""]
[null,null,"","","",null,null,null,null,null,null,""]
[null,null,"","","",null,null,null,null,null,null,""]
[null,null,"","","",null,null,null,null,null,null,""]
[null,null,"","","",null,null,null,null,null,null,""]
[null,null,"","","",null,null,null,null,null,null,""]
[null,null,"","","",null,null,null,null,null,null,""]
[null,null,"","","",null,null,null,null,null,null,""]
[null,null,"","","",null,null,null,null,null,null,""]
[null,null,"","","",null,null,null,null,null,null,""]
[null,null,"","","",null,null,null,null,null,null,""]
[null,null,"","","",null,null,null,null,null,null,""]
[null,null,"","","",null,null,null,null,null,null,""]
[null,null,"","","",null,null,null,null,null,null,""]
[null,null,"","","",null,null,null,null,null,null,""]
[null,null,"","","",null,null,null,null,null,null,""]
[null,null,"","","",null,null,null,null,null,null,""]
[null,null,"","","",null,null,null,null,null,null,""]
[null,null,"","","",null,null,null,null,null,null,""]
[null,null,"","","",null,null,null,null,null,null,""]
[null,null,"","","",null,null,null,null,null,null,""]
[null,null,"","","",null,null,null,null,null,null,""]
[null,null,"","","",null,null,null,null,null,null,""]
[null,null,"","","",null,null,null,null,null,null,""]
[null,null,"","","",null,null,null,null,null,null,""]
[null,null,"","","",null,null,null,null,null,null,""]
[null,null,"","","",null,null,null,null,null,null,""]
[null,null,"","","",null,null,null,null,null,null,""]
[null,null,"","","",null,null,null,null,null,null,""]
[null,null,"","","",null,null,null,null,null,null,""]
[null,null,"","","",null,null,null,null,null,null,""]
[null,null,"","","",null,null,null,null,null,null,""]
[null,null,"","","",null,null,null,null,null,null,""]
[null,null,"","","",null,null,null,null,null,null,""]
[null,null,"","","",null,null,null,null,null,null,""]
[null,null,"","",{"$f":"IF(B1597=\"\",\"\",VLOOKUP(B1597,itemsdata,3,\"false\"))","v":""},null,null,null,null,null,null,""]
[null,null,{"$f":"IF(B1598=\"\",\"\",VLOOKUP(B1598,itemsdata,2,\"false\"))","v":""},{"$f":"IF(B1598=\"\",\"\",VLOOKUP(B1598,itemsdata,5,\"false\"))","v":""},"",null,null,null,null,null,null,{"$f":"IF(G1598<>\"\",IF(F1598=\"sell\",D1598*G1598,-D1598*G1598),\"\")","v":""}]
[null,null,"","","",null,null,null,null,null,null,""]
[null,null,"","","",null,null,null,null,null,null,""]
[null,null,"","","",null,null,null,null,null,null,""]
[null,null,"","","",null,null,null,null,null,null,""]
[null,null,"","","",null,null,null,null,null,null,""]
[null,null,"","","",null,null,null,null,null,null,""]
[null,null,"","","",null,null,null,null,null,null,""]
[null,null,"","","",null,null,null,null,null,null,""]
[null,null,"","","",null,null,null,null,null,null,""]
[null,null,"","","",null,null,null,null,null,null,""]
[null,null,"","","",null,null,null,null,null,null,""]
[null,null,"","","",null,null,null,null,null,null,""]
[null,null,"","","",null,null,null,null,null,null,""]
[null,null,"","","",null,null,null,null,null,null,""]
[null,null,"","","",null,null,null,null,null,null,""]
[null,null,"","","",null,null,null,null,null,null,""]
[null,null,"","","",null,null,null,null,null,null,""]
[null,null,"","","",null,null,null,null,null,null,""]
[null,null,"","","",null,null,null,null,null,null,""]
[null,null,"","","",null,null,null,null,null,null,""]
[null,null,"","","",null,null,null,null,null,null,""]
[null,null,"","","",null,null,null,null,null,null,""]
[null,null,"","","",null,null,null,null,null,null,""]
[null,null,"","","",null,null,null,null,null,null,""]
[null,null,"","","",null,null,null,null,null,null,""]
[null,null,"","","",null,null,null,null,null,null,""]
[null,null,"","","",null,null,null,null,null,null,""]
[null,null,"","","",null,null,null,null,null,null,""]
[null,null,"","","",null,null,null,null,null,null,""]
[null,null,"","","",null,null,null,null,null,null,""]
[null,null,"","","",null,null,null,null,null,null,""]
[null,null,"","","",null,null,null,null,null,null,""]
[null,null,"","","",null,null,null,null,null,null,""]
[null,null,"","","",null,null,null,null,null,null,""]
[null,null,"","","",null,null,null,null,null,null,""]
[null,null,"","","",null,null,null,null,null,null,""]
[null,null,"","","",null,null,null,null,null,null,""]
[null,null,"","","",null,null,null,null,null,null,""]
[null,null,"","","",null,null,null,null,null,null,""]
[null,null,"","","",null,null,null,null,null,null,""]
[null,null,"","","",null,null,null,null,null,null,""]
[null,null,"","","",null,null,null,null,null,null,""]
[null,null,"","","",null,null,null,null,null,null,""]
[null,null,"","","",null,null,null,null,null,null,""]
[null,null,"","","",null,null,null,null,null,null,""]
[null,null,"","","",null,null,null,null,null,null,""]
[null,null,"","","",null,null,null,null,null,null,""]
[null,null,"","","",null,null,null,null,null,null,""]
[null,null,"","","",null,null,null,null,null,null,""]
[null,null,"","","",null,null,null,null,null,null,""]
[null,null,"","","",null,null,null,null,null,null,""]
[null,null,"","","",null,null,null,null,null,null,""]
[null,null,"","","",null,null,null,null,null,null,""]
[null,null,"","","",null,null,null,null,null,null,""]
[null,null,"","","",null,null,null,null,null,null,""]
[null,null,"","","",null,null,null,null,null,null,""]
[null,null,"","","",null,null,null,null,null,null,""]
[null,null,"","","",null,null,null,null,null,null,""]
[null,null,"","","",null,null,null,null,null,null,""]
[null,null,"","","",null,null,null,null,null,null,""]
[null,null,"","","",null,null,null,null,null,null,""]
[null,null,"","","",null,null,null,null,null,null,""]
[null,null,"","",{"$f":"IF(B1661=\"\",\"\",VLOOKUP(B1661,itemsdata,3,\"false\"))","v":""},null,null,null,null,null,null,""]
[null,null,{"$f":"IF(B1662=\"\",\"\",VLOOKUP(B1662,itemsdata,2,\"false\"))","v":""},{"$f":"IF(B1662=\"\",\"\",VLOOKUP(B1662,itemsdata,5,\"false\"))","v":""},"",null,null,null,null,null,null,{"$f":"IF(G1662<>\"\",IF(F1662=\"sell\",D1662*G1662,-D1662*G1662),\"\")","v":""}]
[null,null,"","","",null,null,null,null,null,null,""]
[null,null,"","","",null,null,null,null,null,null,""]
[null,null,"","","",null,null,null,null,null,null,""]
[null,null,"","","",null,null,null,null,null,null,""]
[null,null,"","","",null,null,null,null,null,null,""]
[null,null,"","","",null,null,null,null,null,null,""]
[null,null,"","","",null,null,null,null,null,null,""]
[null,null,"","","",null,null,null,null,null,null,""]
[null,null,"","","",null,null,null,null,null,null,""]
[null,null,"","","",null,null,null,null,null,null,""]
[null,null,"","","",null,null,null,null,null,null,""]
[null,null,"","","",null,null,null,null,null,null,""]
[null,null,"","","",null,null,null,null,null,null,""]
[null,null,"","","",null,null,null,null,null,null,""]
[null,null,"","","",null,null,null,null,null,null,""]
[null,null,"","","",null,null,null,null,null,null,""]
[null,null,"","","",null,null,null,null,null,null,""]
[null,null,"","","",null,null,null,null,null,null,""]
[null,null,"","","",null,null,null,null,null,null,""]
[null,null,"","","",null,null,null,null,null,null,""]
[null,null,"","","",null,null,null,null,null,null,""]
[null,null,"","","",null,null,null,null,null,null,""]
[null,null,"","","",null,null,null,null,null,null,""]
[null,null,"","","",null,null,null,null,null,null,""]
[null,null,"","","",null,null,null,null,null,null,""]
[null,null,"","","",null,null,null,null,null,null,""]
[null,null,"","","",null,null,null,null,null,null,""]
[null,null,"","","",null,null,null,null,null,null,""]
[null,null,"","","",null,null,null,null,null,null,""]
[null,null,"","","",null,null,null,null,null,null,""]
[null,null,"","","",null,null,null,null,null,null,""]
[null,null,"","","",null,null,null,null,null,null,""]
[null,null,"","","",null,null,null,null,null,null,""]
[null,null,"","","",null,null,null,null,null,null,""]
[null,null,"","","",null,null,null,null,null,null,""]
[null,null,"","","",null,null,null,null,null,null,""]
[null,null,"","","",null,null,null,null,null,null,""]
[null,null,"","","",null,null,null,null,null,null,""]
[null,null,"","","",null,null,null,null,null,null,""]
[null,null,"","","",null,null,null,null,null,null,""]
[null,null,"","","",null,null,null,null,null,null,""]
[null,null,"","","",null,null,null,null,null,null,""]
[null,null,"","","",null,null,null,null,null,null,""]
[null,null,"","","",null,null,null,null,null,null,""]
[null,null,"","","",null,null,null,null,null,null,""]
[null,null,"","","",null,null,null,null,null,null,""]
[null,null,"","","",null,null,null,null,null,null,""]
[null,null,"","","",null,null,null,null,null,null,""]
[null,null,"","","",null,null,null,null,null,null,""]
[null,null,"","","",null,null,null,null,null,null,""]
[null,null,"","","",null,null,null,null,null,null,""]
[null,null,"","","",null,null,null,null,null,null,""]
[null,null,"","","",null,null,null,null,null,null,""]
[null,null,"","","",null,null,null,null,null,null,""]
[null,null,"","","",null,null,null,null,null,null,""]
[null,null,"","","",null,null,null,null,null,null,""]
[null,null,"","","",null,null,null,null,null,null,""]
[null,null,"","","",null,null,null,null,null,null,""]
[null,null,"","","",null,null,null,null,null,null,""]
[null,null,"","","",null,null,null,null,null,null,""]
[null,null,"","","",null,null,null,null,null,null,""]
[null,null,"","","",null,null,null,null,null,null,""]
[null,null,"","",{"$f":"IF(B1725=\"\",\"\",VLOOKUP(B1725,itemsdata,3,\"false\"))","v":""},null,null,null,null,null,null,""]
[null,null,{"$f":"IF(B1726=\"\",\"\",VLOOKUP(B1726,itemsdata,2,\"false\"))","v":""},{"$f":"IF(B1726=\"\",\"\",VLOOKUP(B1726,itemsdata,5,\"false\"))","v":""},"",null,null,null,null,null,null,{"$f":"IF(G1726<>\"\",IF(F1726=\"sell\",D1726*G1726,-D1726*G1726),\"\")","v":""}]
[null,null,"","","",null,null,null,null,null,null,""]
[null,null,"","","",null,null,null,null,null,null,""]
[null,null,"","","",null,null,null,null,null,null,""]
[null,null,"","","",null,null,null,null,null,null,""]
[null,null,"","","",null,null,null,null,null,null,""]
[null,null,"","","",null,null,null,null,null,null,""]
[null,null,"","","",null,null,null,null,null,null,""]
[null,null,"","","",null,null,null,null,null,null,""]
[null,null,"","","",null,null,null,null,null,null,""]
[null,null,"","","",null,null,null,null,null,null,""]
[null,null,"","","",null,null,null,null,null,null,""]
[null,null,"","","",null,null,null,null,null,null,""]
[null,null,"","","",null,null,null,null,null,null,""]
[null,null,"","","",null,null,null,null,null,null,""]
[null,null,"","","",null,null,null,null,null,null,""]
[null,null,"","","",null,null,null,null,null,null,""]
[null,null,"","","",null,null,null,null,null,null,""]
[null,null,"","","",null,null,null,null,null,null,""]
[null,null,"","","",null,null,null,null,null,null,""]
[null,null,"","","",null,null,null,null,null,null,""]
[null,null,"","","",null,null,null,null,null,null,""]
[null,null,"","","",null,null,null,null,null,null,""]
[null,null,"","","",null,null,null,null,null,null,""]
[null,null,"","","",null,null,null,null,null,null,""]
[null,null,"","","",null,null,null,null,null,null,""]
[null,null,"","","",null,null,null,null,null,null,""]
[null,null,"","","",null,null,null,null,null,null,""]
[null,null,"","","",null,null,null,null,null,null,""]
[null,null,"","","",null,null,null,null,null,null,""]
[null,null,"","","",null,null,null,null,null,null,""]
[null,null,"","","",null,null,null,null,null,null,""]
[null,null,"","","",null,null,null,null,null,null,""]
[null,null,"","","",null,null,null,null,null,null,""]
[null,null,"","","",null,null,null,null,null,null,""]
[null,null,"","","",null,null,null,null,null,null,""]
[null,null,"","","",null,null,null,null,null,null,""]
[null,null,"","","",null,null,null,null,null,null,""]
[null,null,"","","",null,null,null,null,null,null,""]
[null,null,"","","",null,null,null,null,null,null,""]
[null,null,"","","",null,null,null,null,null,null,""]
[null,null,"","","",null,null,null,null,null,null,""]
[null,null,"","","",null,null,null,null,null,null,""]
[null,null,"","","",null,null,null,null,null,null,""]
[null,null,"","","",null,null,null,null,null,null,""]
[null,null,"","","",null,null,null,null,null,null,""]
[null,null,"","","",null,null,null,null,null,null,""]
[null,null,"","","",null,null,null,null,null,null,""]
[null,null,"","","",null,null,null,null,null,null,""]
[null,null,"","","",null,null,null,null,null,null,""]
[null,null,"","","",null,null,null,null,null,null,""]
[null,null,"","","",null,null,null,null,null,null,""]
[null,null,"","","",null,null,null,null,null,null,""]
[null,null,"","","",null,null,null,null,null,null,""]
[null,null,"","","",null,null,null,null,null,null,""]
[null,null,"","","",null,null,null,null,null,null,""]
[null,null,"","","",null,null,null,null,null,null,""]
[null,null,"","","",null,null,null,null,null,null,""]
[null,null,"","","",null,null,null,null,null,null,""]
[null,null,"","","",null,null,null,null,null,null,""]
[null,null,"","","",null,null,null,null,null,null,""]
[null,null,"","","",null,null,null,null,null,null,""]
[null,null,"","","",null,null,null,null,null,null,""]
[null,null,"","",{"$f":"IF(B1789=\"\",\"\",VLOOKUP(B1789,itemsdata,3,\"false\"))","v":""},null,null,null,null,null,null,""]
[null,null,{"$f":"IF(B1790=\"\",\"\",VLOOKUP(B1790,itemsdata,2,\"false\"))","v":""},{"$f":"IF(B1790=\"\",\"\",VLOOKUP(B1790,itemsdata,5,\"false\"))","v":""},"",null,null,null,null,null,null,{"$f":"IF(G1790<>\"\",IF(F1790=\"sell\",D1790*G1790,-D1790*G1790),\"\")","v":""}]
[null,null,"","","",null,null,null,null,null,null,""]
[null,null,"","","",null,null,null,null,null,null,""]
[null,null,"","","",null,null,null,null,null,null,""]
[null,null,"","","",null,null,null,null,null,null,""]
[null,null,"","","",null,null,null,null,null,null,""]
[null,null,"","","",null,null,null,null,null,null,""]
[null,null,"","","",null,null,null,null,null,null,""]
[null,null,"","","",null,null,null,null,null,null,""]
[null,null,"","","",null,null,null,null,null,null,""]
[null,null,"","","",null,null,null,null,null,null,""]
[null,null,"","","",null,null,null,null,null,null,""]
[null,null,"","","",null,null,null,null,null,null,""]
[null,null,"","","",null,null,null,null,null,null,""]
[null,null,"","","",null,null,null,null,null,null,""]
[null,null,"","","",null,null,null,null,null,null,""]
[null,null,"","","",null,null,null,null,null,null,""]
[null,null,"","","",null,null,null,null,null,null,""]
[null,null,"","","",null,null,null,null,null,null,""]
[null,null,"","","",null,null,null,null,null,null,""]
[null,null,"","","",null,null,null,null,null,null,""]
[null,null,"","","",null,null,null,null,null,null,""]
[null,null,"","","",null,null,null,null,null,null,""]
[null,null,"","","",null,null,null,null,null,null,""]
[null,null,"","","",null,null,null,null,null,null,""]
[null,null,"","","",null,null,null,null,null,null,""]
[null,null,"","","",null,null,null,null,null,null,""]
[null,null,"","","",null,null,null,null,null,null,""]
[null,null,"","","",null,null,null,null,null,null,""]
[null,null,"","","",null,null,null,null,null,null,""]
[null,null,"","","",null,null,null,null,null,null,""]
[null,null,"","","",null,null,null,null,null,null,""]
[null,null,"","","",null,null,null,null,null,null,""]
[null,null,"","","",null,null,null,null,null,null,""]
[null,null,"","","",null,null,null,null,null,null,""]
[null,null,"","","",null,null,null,null,null,null,""]
[null,null,"","","",null,null,null,null,null,null,""]
[null,null,"","","",null,null,null,null,null,null,""]
[null,null,"","","",null,null,null,null,null,null,""]
[null,null,"","","",null,null,null,null,null,null,""]
[null,null,"","","",null,null,null,null,null,null,""]
[null,null,"","","",null,null,null,null,null,null,""]
[null,null,"","","",null,null,null,null,null,null,""]
[null,null,"","","",null,null,null,null,null,null,""]
[null,null,"","","",null,null,null,null,null,null,""]
[null,null,"","","",null,null,null,null,null,null,""]
[null,null,"","","",null,null,null,null,null,null,""]
[null,null,"","","",null,null,null,null,null,null,""]
[null,null,"","","",null,null,null,null,null,null,""]
[null,null,"","","",null,null,null,null,null,null,""]
[null,null,"","","",null,null,null,null,null,null,""]
[null,null,"","","",null,null,null,null,null,null,""]
[null,null,"","","",null,null,null,null,null,null,""]
[null,null,"","","",null,null,null,null,null,null,""]
[null,null,"","","",null,null,null,null,null,null,""]
[null,null,"","","",null,null,null,null,null,null,""]
[null,null,"","","",null,null,null,null,null,null,""]
[null,null,"","","",null,null,null,null,null,null,""]
[null,null,"","","",null,null,null,null,null,null,""]
[null,null,"","","",null,null,null,null,null,null,""]
[null,null,"","","",null,null,null,null,null,null,""]
[null,null,"","","",null,null,null,null,null,null,""]
[null,null,"","","",null,null,null,null,null,null,""]
[null,null,"","",{"$f":"IF(B1853=\"\",\"\",VLOOKUP(B1853,itemsdata,3,\"false\"))","v":""},null,null,null,null,null,null,""]
[null,null,{"$f":"IF(B1854=\"\",\"\",VLOOKUP(B1854,itemsdata,2,\"false\"))","v":""},{"$f":"IF(B1854=\"\",\"\",VLOOKUP(B1854,itemsdata,5,\"false\"))","v":""},"",null,null,null,null,null,null,{"$f":"IF(G1854<>\"\",IF(F1854=\"sell\",D1854*G1854,-D1854*G1854),\"\")","v":""}]
[null,null,"","","",null,null,null,null,null,null,""]
[null,null,"","","",null,null,null,null,null,null,""]
[null,null,"","","",null,null,null,null,null,null,""]
[null,null,"","","",null,null,null,null,null,null,""]
[null,null,"","","",null,null,null,null,null,null,""]
[null,null,"","","",null,null,null,null,null,null,""]
[null,null,"","","",null,null,null,null,null,null,""]
[null,null,"","","",null,null,null,null,null,null,""]
[null,null,"","","",null,null,null,null,null,null,""]
[null,null,"","","",null,null,null,null,null,null,""]
[null,null,"","","",null,null,null,null,null,null,""]
[null,null,"","","",null,null,null,null,null,null,""]
[null,null,"","","",null,null,null,null,null,null,""]
[null,null,"","","",null,null,null,null,null,null,""]
[null,null,"","","",null,null,null,null,null,null,""]
[null,null,"","","",null,null,null,null,null,null,""]
[null,null,"","","",null,null,null,null,null,null,""]
[null,null,"","","",null,null,null,null,null,null,""]
[null,null,"","","",null,null,null,null,null,null,""]
[null,null,"","","",null,null,null,null,null,null,""]
[null,null,"","","",null,null,null,null,null,null,""]
[null,null,"","","",null,null,null,null,null,null,""]
[null,null,"","","",null,null,null,null,null,null,""]
[null,null,"","","",null,null,null,null,null,null,""]
[null,null,"","","",null,null,null,null,null,null,""]
[null,null,"","","",null,null,null,null,null,null,""]
[null,null,"","","",null,null,null,null,null,null,""]
[null,null,"","","",null,null,null,null,null,null,""]
[null,null,"","","",null,null,null,null,null,null,""]
[null,null,"","","",null,null,null,null,null,null,""]
[null,null,"","","",null,null,null,null,null,null,""]
[null,null,"","","",null,null,null,null,null,null,""]
[null,null,"","","",null,null,null,null,null,null,""]
[null,null,"","","",null,null,null,null,null,null,""]
[null,null,"","","",null,null,null,null,null,null,""]
[null,null,"","","",null,null,null,null,null,null,""]
[null,null,"","","",null,null,null,null,null,null,""]
[null,null,"","","",null,null,null,null,null,null,""]
[null,null,"","","",null,null,null,null,null,null,""]
[null,null,"","","",null,null,null,null,null,null,""]
[null,null,"","","",null,null,null,null,null,null,""]
[null,null,"","","",null,null,null,null,null,null,""]
[null,null,"","","",null,null,null,null,null,null,""]
[null,null,"","","",null,null,null,null,null,null,""]
[null,null,"","","",null,null,null,null,null,null,""]
[null,null,"","","",null,null,null,null,null,null,""]
[null,null,"","","",null,null,null,null,null,null,""]
[null,null,"","","",null,null,null,null,null,null,""]
[null,null,"","","",null,null,null,null,null,null,""]
[null,null,"","","",null,null,null,null,null,null,""]
[null,null,"","","",null,null,null,null,null,null,""]
[null,null,"","","",null,null,null,null,null,null,""]
[null,null,"","","",null,null,null,null,null,null,""]
[null,null,"","","",null,null,null,null,null,null,""]
[null,null,"","","",null,null,null,null,null,null,""]
[null,null,"","","",null,null,null,null,null,null,""]
[null,null,"","","",null,null,null,null,null,null,""]
[null,null,"","","",null,null,null,null,null,null,""]
[null,null,"","","",null,null,null,null,null,null,""]
[null,null,"","","",null,null,null,null,null,null,""]
[null,null,"","","",null,null,null,null,null,null,""]
[null,null,"","","",null,null,null,null,null,null,""]
[null,null,"","",{"$f":"IF(B1917=\"\",\"\",VLOOKUP(B1917,itemsdata,3,\"false\"))","v":""},null,null,null,null,null,null,""]
[null,null,{"$f":"IF(B1918=\"\",\"\",VLOOKUP(B1918,itemsdata,2,\"false\"))","v":""},{"$f":"IF(B1918=\"\",\"\",VLOOKUP(B1918,itemsdata,5,\"false\"))","v":""},"",null,null,null,null,null,null,{"$f":"IF(G1918<>\"\",IF(F1918=\"sell\",D1918*G1918,-D1918*G1918),\"\")","v":""}]
[null,null,"","","",null,null,null,null,null,null,""]
[null,null,"","","",null,null,null,null,null,null,""]
[null,null,"","","",null,null,null,null,null,null,""]
[null,null,"","","",null,null,null,null,null,null,""]
[null,null,"","","",null,null,null,null,null,null,""]
[null,null,"","","",null,null,null,null,null,null,""]
[null,null,"","","",null,null,null,null,null,null,""]
[null,null,"","","",null,null,null,null,null,null,""]
[null,null,"","","",null,null,null,null,null,null,""]
[null,null,"","","",null,null,null,null,null,null,""]
[null,null,"","","",null,null,null,null,null,null,""]
[null,null,"","","",null,null,null,null,null,null,""]
[null,null,"","","",null,null,null,null,null,null,""]
[null,null,"","","",null,null,null,null,null,null,""]
[null,null,"","","",null,null,null,null,null,null,""]
[null,null,"","","",null,null,null,null,null,null,""]
[null,null,"","","",null,null,null,null,null,null,""]
[null,null,"","","",null,null,null,null,null,null,""]
[null,null,"","","",null,null,null,null,null,null,""]
[null,null,"","","",null,null,null,null,null,null,""]
[null,null,"","","",null,null,null,null,null,null,""]
[null,null,"","","",null,null,null,null,null,null,""]
[null,null,"","","",null,null,null,null,null,null,""]
[null,null,"","","",null,null,null,null,null,null,""]
[null,null,"","","",null,null,null,null,null,null,""]
[null,null,"","","",null,null,null,null,null,null,""]
[null,null,"","","",null,null,null,null,null,null,""]
[null,null,"","","",null,null,null,null,null,null,""]
[null,null,"","","",null,null,null,null,null,null,""]
[null,null,"","","",null,null,null,null,null,null,""]
[null,null,"","","",null,null,null,null,null,null,""]
[null,null,"","","",null,null,null,null,null,null,""]
[null,null,"","","",null,null,null,null,null,null,""]
[null,null,"","","",null,null,null,null,null,null,""]
[null,null,"","","",null,null,null,null,null,null,""]
[null,null,"","","",null,null,null,null,null,null,""]
[null,null,"","","",null,null,null,null,null,null,""]
[null,null,"","","",null,null,null,null,null,null,""]
[null,null,"","","",null,null,null,null,null,null,""]
[null,null,"","","",null,null,null,null,null,null,""]
[null,null,"","","",null,null,null,null,null,null,""]
[null,null,"","","",null,null,null,null,null,null,""]
[null,null,"","","",null,null,null,null,null,null,""]
[null,null,"","","",null,null,null,null,null,null,""]
[null,null,"","","",null,null,null,null,null,null,""]
[null,null,"","","",null,null,null,null,null,null,""]
[null,null,"","","",null,null,null,null,null,null,""]
[null,null,"","","",null,null,null,null,null,null,""]
[null,null,"","","",null,null,null,null,null,null,""]
[null,null,"","","",null,null,null,null,null,null,""]
[null,null,"","","",null,null,null,null,null,null,""]
[null,null,"","","",null,null,null,null,null,null,""]
[null,null,"","","",null,null,null,null,null,null,""]
[null,null,"","","",null,null,null,null,null,null,""]
[null,null,"","","",null,null,null,null,null,null,""]
[null,null,"","","",null,null,null,null,null,null,""]
[null,null,"","","",null,null,null,null,null,null,""]
[null,null,"","","",null,null,null,null,null,null,""]
[null,null,"","","",null,null,null,null,null,null,""]
[null,null,"","","",null,null,null,null,null,null,""]
[null,null,"","","",null,null,null,null,null,null,""]
[null,null,"","","",null,null,null,null,null,null,""]
[null,null,"","",{"$f":"IF(B1981=\"\",\"\",VLOOKUP(B1981,itemsdata,3,\"false\"))","v":""},null,null,null,null,null,null,""]
[null,null,{"$f":"IF(B1982=\"\",\"\",VLOOKUP(B1982,itemsdata,2,\"false\"))","v":""},{"$f":"IF(B1982=\"\",\"\",VLOOKUP(B1982,itemsdata,5,\"false\"))","v":""},"",null,null,null,null,null,null,{"$f":"IF(G1982<>\"\",IF(F1982=\"sell\",D1982*G1982,-D1982*G1982),\"\")","v":""}]
[null,null,"","","",null,null,null,null,null,null,""]
[null,null,"","","",null,null,null,null,null,null,""]
[null,null,"","","",null,null,null,null,null,null,""]
[null,null,"","","",null,null,null,null,null,null,""]
[null,null,"","","",null,null,null,null,null,null,""]
[null,null,"","","",null,null,null,null,null,null,""]
[null,null,"","","",null,null,null,null,null,null,""]
[null,null,"","","",null,null,null,null,null,null,""]
[null,null,"","","",null,null,null,null,null,null,""]
[null,null,"","","",null,null,null,null,null,null,""]
[null,null,"","","",null,null,null,null,null,null,""]
[null,null,"","","",null,null,null,null,null,null,""]
[null,null,"","","",null,null,null,null,null,null,""]
[null,null,"","","",null,null,null,null,null,null,""]
[null,null,"","","",null,null,null,null,null,null,""]
[null,null,"","","",null,null,null,null,null,null,""]
[null,null,"","","",null,null,null,null,null,null,""]
[null,null,"","","",null,null,null,null,null,null,""]
[null,null,"","","",null,null,null,null,null,null,""]
[null,null,"","","",null,null,null,null,null,null,""]
[null,null,"","","",null,null,null,null,null,null,""]
[null,null,"","","",null,null,null,null,null,null,""]
[null,null,"","","",null,null,null,null,null,null,""]
[null,null,"","","",null,null,null,null,null,null,""]
[null,null,"","","",null,null,null,null,null,null,""]
[null,null,"","","",null,null,null,null,null,null,""]
[null,null,"","","",null,null,null,null,null,null,""]
[null,null,"","","",null,null,null,null,null,null,""]
[null,null,"","","",null,null,null,null,null,null,""]
[null,null,"","","",null,null,null,null,null,null,""]
[null,null,"","","",null,null,null,null,null,null,""]
[null,null,"","","",null,null,null,null,null,null,""]
[null,null,"","","",null,null,null,null,null,null,""]
[null,null,"","","",null,null,null,null,null,null,""]
[null,null,"","","",null,null,null,null,null,null,""]
[null,null,"","","",null,null,null,null,null,null,""]
[null,null,"","","",null,null,null,null,null,null,""]
[null,null,"","","",null,null,null,null,null,null,""]
[null,null,"","","",null,null,null,null,null,null,""]
[null,null,"","","",null,null,null,null,null,null,""]
[null,null,"","","",null,null,null,null,null,null,""]
[null,null,"","","",null,null,null,null,null,null,""]
[null,null,"","","",null,null,null,null,null,null,""]
[null,null,"","","",null,null,null,null,null,null,""]
[null,null,"","","",null,null,null,null,null,null,""]
[null,null,"","","",null,null,null,null,null,null,""]
[null,null,"","","",null,null,null,null,null,null,""]
[null,null,"","","",null,null,null,null,null,null,""]
[null,null,"","","",null,null,null,null,null,null,""]
[null,null,"","","",null,null,null,null,null,null,""]
[null,null,"","","",null,null,null,null,null,null,""]
[null,null,"","","",null,null,null,null,null,null,""]
[null,null,"","","",null,null,null,null,null,null,""]
[null,null,"","","",null,null,null,null,null,null,""]
[null,null,"","","",null,null,null,null,null,null,""]
[null,null,"","","",null,null,null,null,null,null,""]
[null,null,"","","",null,null,null,null,null,null,""]
[null,null,"","","",null,null,null,null,null,null,""]
[null,null,"","","",null,null,null,null,null,null,""]
[null,null,"","","",null,null,null,null,null,null,""]
[null,null,"","","",null,null,null,null,null,null,""]
[null,null,"","","",null,null,null,null,null,null,""]
[null,null,"","",{"$f":"IF(B2045=\"\",\"\",VLOOKUP(B2045,itemsdata,3,\"false\"))","v":""},null,null,null,null,null,null,""]
[null,null,{"$f":"IF(B2046=\"\",\"\",VLOOKUP(B2046,itemsdata,2,\"false\"))","v":""},{"$f":"IF(B2046=\"\",\"\",VLOOKUP(B2046,itemsdata,5,\"false\"))","v":""},"",null,null,null,null,null,null,{"$f":"IF(G2046<>\"\",IF(F2046=\"sell\",D2046*G2046,-D2046*G2046),\"\")","v":""}]
[null,null,"","","",null,null,null,null,null,null,""]
[null,null,"","","",null,null,null,null,null,null,""]
[null,null,"","","",null,null,null,null,null,null,""]
[null,null,"","","",null,null,null,null,null,null,""]
[null,null,"","","",null,null,null,null,null,null,""]
[null,null,"","","",null,null,null,null,null,null,""]
[null,null,"","","",null,null,null,null,null,null,""]
[null,null,"","","",null,null,null,null,null,null,""]
[null,null,"","","",null,null,null,null,null,null,""]
[null,null,"","","",null,null,null,null,null,null,""]
[null,null,"","","",null,null,null,null,null,null,""]
[null,null,"","","",null,null,null,null,null,null,""]
[null,null,"","","",null,null,null,null,null,null,""]
[null,null,"","","",null,null,null,null,null,null,""]
[null,null,"","","",null,null,null,null,null,null,""]
[null,null,"","","",null,null,null,null,null,null,""]
[null,null,"","","",null,null,null,null,null,null,""]
[null,null,"","","",null,null,null,null,null,null,""]
[null,null,"","","",null,null,null,null,null,null,""]
[null,null,"","","",null,null,null,null,null,null,""]
[null,null,"","","",null,null,null,null,null,null,""]
[null,null,"","","",null,null,null,null,null,null,""]
[null,null,"","","",null,null,null,null,null,null,""]
[null,null,"","","",null,null,null,null,null,null,""]
[null,null,"","","",null,null,null,null,null,null,""]
[null,null,"","","",null,null,null,null,null,null,""]
[null,null,"","","",null,null,null,null,null,null,""]
[null,null,"","","",null,null,null,null,null,null,""]
[null,null,"","","",null,null,null,null,null,null,""]
[null,null,"","","",null,null,null,null,null,null,""]
[null,null,"","","",null,null,null,null,null,null,""]
[null,null,"","","",null,null,null,null,null,null,""]
[null,null,"","","",null,null,null,null,null,null,""]
[null,null,"","","",null,null,null,null,null,null,""]
[null,null,"","","",null,null,null,null,null,null,""]
[null,null,"","","",null,null,null,null,null,null,""]
[null,null,"","","",null,null,null,null,null,null,""]
[null,null,"","","",null,null,null,null,null,null,""]
[null,null,"","","",null,null,null,null,null,null,""]
[null,null,"","","",null,null,null,null,null,null,""]
[null,null,"","","",null,null,null,null,null,null,""]
[null,null,"","","",null,null,null,null,null,null,""]
[null,null,"","","",null,null,null,null,null,null,""]
[null,null,"","","",null,null,null,null,null,null,""]
[null,null,"","","",null,null,null,null,null,null,""]
[null,null,"","","",null,null,null,null,null,null,""]
[null,null,"","","",null,null,null,null,null,null,""]
[null,null,"","","",null,null,null,null,null,null,""]
[null,null,"","","",null,null,null,null,null,null,""]
[null,null,"","","",null,null,null,null,null,null,""]
[null,null,"","","",null,null,null,null,null,null,""]
[null,null,"","","",null,null,null,null,null,null,""]
[null,null,"","","",null,null,null,null,null,null,""]
[null,null,"","","",null,null,null,null,null,null,""]
[null,null,"","","",null,null,null,null,null,null,""]
[null,null,"","","",null,null,null,null,null,null,""]
[null,null,"","","",null,null,null,null,null,null,""]
[null,null,"","","",null,null,null,null,null,null,""]
[null,null,"","","",null,null,null,null,null,null,""]
[null,null,"","","",null,null,null,null,null,null,""]
[null,null,"","","",null,null,null,null,null,null,""]
[null,null,"","","",null,null,null,null,null,null,""]
[null,null,"","",{"$f":"IF(B2109=\"\",\"\",VLOOKUP(B2109,itemsdata,3,\"false\"))","v":""},null,null,null,null,null,null,""]
[null,null,{"$f":"IF(B2110=\"\",\"\",VLOOKUP(B2110,itemsdata,2,\"false\"))","v":""},{"$f":"IF(B2110=\"\",\"\",VLOOKUP(B2110,itemsdata,5,\"false\"))","v":""},"",null,null,null,null,null,null,{"$f":"IF(G2110<>\"\",IF(F2110=\"sell\",D2110*G2110,-D2110*G2110),\"\")","v":""}]
[null,null,"","","",null,null,null,null,null,null,""]
[null,null,"","","",null,null,null,null,null,null,""]
[null,null,"","","",null,null,null,null,null,null,""]
[null,null,"","","",null,null,null,null,null,null,""]
[null,null,"","","",null,null,null,null,null,null,""]
[null,null,"","","",null,null,null,null,null,null,""]
[null,null,"","","",null,null,null,null,null,null,""]
[null,null,"","","",null,null,null,null,null,null,""]
[null,null,"","","",null,null,null,null,null,null,""]
[null,null,"","","",null,null,null,null,null,null,""]
[null,null,"","","",null,null,null,null,null,null,""]
[null,null,"","","",null,null,null,null,null,null,""]
[null,null,"","","",null,null,null,null,null,null,""]
[null,null,"","","",null,null,null,null,null,null,""]
[null,null,"","","",null,null,null,null,null,null,""]
[null,null,"","","",null,null,null,null,null,null,""]
[null,null,"","","",null,null,null,null,null,null,""]
[null,null,"","","",null,null,null,null,null,null,""]
[null,null,"","","",null,null,null,null,null,null,""]
[null,null,"","","",null,null,null,null,null,null,""]
[null,null,"","","",null,null,null,null,null,null,""]
[null,null,"","","",null,null,null,null,null,null,""]
[null,null,"","","",null,null,null,null,null,null,""]
[null,null,"","","",null,null,null,null,null,null,""]
[null,null,"","","",null,null,null,null,null,null,""]
[null,null,"","","",null,null,null,null,null,null,""]
[null,null,"","","",null,null,null,null,null,null,""]
[null,null,"","","",null,null,null,null,null,null,""]
[null,null,"","","",null,null,null,null,null,null,""]
[null,null,"","","",null,null,null,null,null,null,""]
[null,null,"","","",null,null,null,null,null,null,""]
[null,null,"","","",null,null,null,null,null,null,""]
[null,null,"","","",null,null,null,null,null,null,""]
[null,null,"","","",null,null,null,null,null,null,""]
[null,null,"","","",null,null,null,null,null,null,""]
[null,null,"","","",null,null,null,null,null,null,""]
[null,null,"","","",null,null,null,null,null,null,""]
[null,null,"","","",null,null,null,null,null,null,""]
[null,null,"","","",null,null,null,null,null,null,""]
[null,null,"","","",null,null,null,null,null,null,""]
[null,null,"","","",null,null,null,null,null,null,""]
[null,null,"","","",null,null,null,null,null,null,""]
[null,null,"","","",null,null,null,null,null,null,""]
[null,null,"","","",null,null,null,null,null,null,""]
[null,null,"","","",null,null,null,null,null,null,""]
[null,null,"","","",null,null,null,null,null,null,""]
[null,null,"","","",null,null,null,null,null,null,""]
[null,null,"","","",null,null,null,null,null,null,""]
[null,null,"","","",null,null,null,null,null,null,""]
[null,null,"","","",null,null,null,null,null,null,""]
[null,null,"","","",null,null,null,null,null,null,""]
[null,null,"","","",null,null,null,null,null,null,""]
[null,null,"","","",null,null,null,null,null,null,""]
[null,null,"","","",null,null,null,null,null,null,""]
[null,null,"","","",null,null,null,null,null,null,""]
[null,null,"","","",null,null,null,null,null,null,""]
[null,null,"","","",null,null,null,null,null,null,""]
[null,null,"","","",null,null,null,null,null,null,""]
[null,null,"","","",null,null,null,null,null,null,""]
[null,null,"","","",null,null,null,null,null,null,""]
[null,null,"","","",null,null,null,null,null,null,""]
[null,null,"","","",null,null,null,null,null,null,""]
[null,null,"","",{"$f":"IF(B2173=\"\",\"\",VLOOKUP(B2173,itemsdata,3,\"false\"))","v":""},null,null,null,null,null,null,""]
[null,null,{"$f":"IF(B2174=\"\",\"\",VLOOKUP(B2174,itemsdata,2,\"false\"))","v":""},{"$f":"IF(B2174=\"\",\"\",VLOOKUP(B2174,itemsdata,5,\"false\"))","v":""},"",null,null,null,null,null,null,{"$f":"IF(G2174<>\"\",IF(F2174=\"sell\",D2174*G2174,-D2174*G2174),\"\")","v":""}]
[null,null,"","","",null,null,null,null,null,null,""]
[null,null,"","","",null,null,null,null,null,null,""]
[null,null,"","","",null,null,null,null,null,null,""]
[null,null,"","","",null,null,null,null,null,null,""]
[null,null,"","","",null,null,null,null,null,null,""]
[null,null,"","","",null,null,null,null,null,null,""]
[null,null,"","","",null,null,null,null,null,null,""]
[null,null,"","","",null,null,null,null,null,null,""]
[null,null,"","","",null,null,null,null,null,null,""]
[null,null,"","","",null,null,null,null,null,null,""]
[null,null,"","","",null,null,null,null,null,null,""]
[null,null,"","","",null,null,null,null,null,null,""]
[null,null,"","","",null,null,null,null,null,null,""]
[null,null,"","","",null,null,null,null,null,null,""]
[null,null,"","","",null,null,null,null,null,null,""]
[null,null,"","","",null,null,null,null,null,null,""]
[null,null,"","","",null,null,null,null,null,null,""]
[null,null,"","","",null,null,null,null,null,null,""]
[null,null,"","","",null,null,null,null,null,null,""]
[null,null,"","","",null,null,null,null,null,null,""]
[null,null,"","","",null,null,null,null,null,null,""]
[null,null,"","","",null,null,null,null,null,null,""]
[null,null,"","","",null,null,null,null,null,null,""]
[null,null,"","","",null,null,null,null,null,null,""]
[null,null,"","","",null,null,null,null,null,null,""]
[null,null,"","","",null,null,null,null,null,null,""]
[null,null,"","","",null,null,null,null,null,null,""]
[null,null,"","","",null,null,null,null,null,null,""]
[null,null,"","","",null,null,null,null,null,null,""]
[null,null,"","","",null,null,null,null,null,null,""]
[null,null,"","","",null,null,null,null,null,null,""]
[null,null,"","","",null,null,null,null,null,null,""]
[null,null,"","","",null,null,null,null,null,null,""]
[null,null,"","","",null,null,null,null,null,null,""]
[null,null,"","","",null,null,null,null,null,null,""]
[null,null,"","","",null,null,null,null,null,null,""]
[null,null,"","","",null,null,null,null,null,null,""]
[null,null,"","","",null,null,null,null,null,null,""]
[null,null,"","","",null,null,null,null,null,null,""]
[null,null,"","","",null,null,null,null,null,null,""]
[null,null,"","","",null,null,null,null,null,null,""]
[null,null,"","","",null,null,null,null,null,null,""]
[null,null,"","","",null,null,null,null,null,null,""]
[null,null,"","","",null,null,null,null,null,null,""]
[null,null,"","","",null,null,null,null,null,null,""]
[null,null,"","","",null,null,null,null,null,null,""]
[null,null,"","","",null,null,null,null,null,null,""]
[null,null,"","","",null,null,null,null,null,null,""]
[null,null,"","","",null,null,null,null,null,null,""]
[null,null,"","","",null,null,null,null,null,null,""]
[null,null,"","","",null,null,null,null,null,null,""]
[null,null,"","","",null,null,null,null,null,null,""]
[null,null,"","","",null,null,null,null,null,null,""]
[null,null,"","","",null,null,null,null,null,null,""]
[null,null,"","","",null,null,null,null,null,null,""]
[null,null,"","","",null,null,null,null,null,null,""]
[null,null,"","","",null,null,null,null,null,null,""]
[null,null,"","","",null,null,null,null,null,null,""]
[null,null,"","","",null,null,null,null,null,null,""]
[null,null,"","","",null,null,null,null,null,null,""]
[null,null,"","","",null,null,null,null,null,null,""]
[null,null,"","","",null,null,null,null,null,null,""]
[null,null,"","",{"$f":"IF(B2237=\"\",\"\",VLOOKUP(B2237,itemsdata,3,\"false\"))","v":""},null,null,null,null,null,null,""]
[null,null,{"$f":"IF(B2238=\"\",\"\",VLOOKUP(B2238,itemsdata,2,\"false\"))","v":""},{"$f":"IF(B2238=\"\",\"\",VLOOKUP(B2238,itemsdata,5,\"false\"))","v":""},"",null,null,null,null,null,null,{"$f":"IF(G2238<>\"\",IF(F2238=\"sell\",D2238*G2238,-D2238*G2238),\"\")","v":""}]
[null,null,"","","",null,null,null,null,null,null,""]
[null,null,"","","",null,null,null,null,null,null,""]
[null,null,"","","",null,null,null,null,null,null,""]
[null,null,"","","",null,null,null,null,null,null,""]
[null,null,"","","",null,null,null,null,null,null,""]
[null,null,"","","",null,null,null,null,null,null,""]
[null,null,"","","",null,null,null,null,null,null,""]
[null,null,"","","",null,null,null,null,null,null,""]
[null,null,"","","",null,null,null,null,null,null,""]
[null,null,"","","",null,null,null,null,null,null,""]
[null,null,"","","",null,null,null,null,null,null,""]
[null,null,"","","",null,null,null,null,null,null,""]
[null,null,"","","",null,null,null,null,null,null,""]
[null,null,"","","",null,null,null,null,null,null,""]
[null,null,"","","",null,null,null,null,null,null,""]
[null,null,"","","",null,null,null,null,null,null,""]
[null,null,"","","",null,null,null,null,null,null,""]
[null,null,"","","",null,null,null,null,null,null,""]
[null,null,"","","",null,null,null,null,null,null,""]
[null,null,"","","",null,null,null,null,null,null,""]
[null,null,"","","",null,null,null,null,null,null,""]
[null,null,"","","",null,null,null,null,null,null,""]
[null,null,"","","",null,null,null,null,null,null,""]
[null,null,"","","",null,null,null,null,null,null,""]
[null,null,"","","",null,null,null,null,null,null,""]
[null,null,"","","",null,null,null,null,null,null,""]
[null,null,"","","",null,null,null,null,null,null,""]
[null,null,"","","",null,null,null,null,null,null,""]
[null,null,"","","",null,null,null,null,null,null,""]
[null,null,"","","",null,null,null,null,null,null,""]
[null,null,"","","",null,null,null,null,null,null,""]
[null,null,"","","",null,null,null,null,null,null,""]
[null,null,"","","",null,null,null,null,null,null,""]
[null,null,"","","",null,null,null,null,null,null,""]
[null,null,"","","",null,null,null,null,null,null,""]
[null,null,"","","",null,null,null,null,null,null,""]
[null,null,"","","",null,null,null,null,null,null,""]
[null,null,"","","",null,null,null,null,null,null,""]
[null,null,"","","",null,null,null,null,null,null,""]
[null,null,"","","",null,null,null,null,null,null,""]
[null,null,"","","",null,null,null,null,null,null,""]
[null,null,"","","",null,null,null,null,null,null,""]
[null,null,"","","",null,null,null,null,null,null,""]
[null,null,"","","",null,null,null,null,null,null,""]
[null,null,"","","",null,null,null,null,null,null,""]
[null,null,"","","",null,null,null,null,null,null,""]
[null,null,"","","",null,null,null,null,null,null,""]
[null,null,"","","",null,null,null,null,null,null,""]
[null,null,"","","",null,null,null,null,null,null,""]
[null,null,"","","",null,null,null,null,null,null,""]
[null,null,"","","",null,null,null,null,null,null,""]
[null,null,"","","",null,null,null,null,null,null,""]
[null,null,"","","",null,null,null,null,null,null,""]
[null,null,"","","",null,null,null,null,null,null,""]
[null,null,"","","",null,null,null,null,null,null,""]
[null,null,"","","",null,null,null,null,null,null,""]
[null,null,"","","",null,null,null,null,null,null,""]
[null,null,"","","",null,null,null,null,null,null,""]
[null,null,"","","",null,null,null,null,null,null,""]
[null,null,"","","",null,null,null,null,null,null,""]
[null,null,"","","",null,null,null,null,null,null,""]
[null,null,"","","",null,null,null,null,null,null,""]
[null,null,"","",{"$f":"IF(B2301=\"\",\"\",VLOOKUP(B2301,itemsdata,3,\"false\"))","v":""},null,null,null,null,null,null,""]
[null,null,{"$f":"IF(B2302=\"\",\"\",VLOOKUP(B2302,itemsdata,2,\"false\"))","v":""},{"$f":"IF(B2302=\"\",\"\",VLOOKUP(B2302,itemsdata,5,\"false\"))","v":""},"",null,null,null,null,null,null,{"$f":"IF(G2302<>\"\",IF(F2302=\"sell\",D2302*G2302,-D2302*G2302),\"\")","v":""}]
[null,null,"","","",null,null,null,null,null,null,""]
[null,null,"","","",null,null,null,null,null,null,""]
[null,null,"","","",null,null,null,null,null,null,""]
[null,null,"","","",null,null,null,null,null,null,""]
[null,null,"","","",null,null,null,null,null,null,""]
[null,null,"","","",null,null,null,null,null,null,""]
[null,null,"","","",null,null,null,null,null,null,""]
[null,null,"","","",null,null,null,null,null,null,""]
[null,null,"","","",null,null,null,null,null,null,""]
[null,null,"","","",null,null,null,null,null,null,""]
[null,null,"","","",null,null,null,null,null,null,""]
[null,null,"","","",null,null,null,null,null,null,""]
[null,null,"","","",null,null,null,null,null,null,""]
[null,null,"","","",null,null,null,null,null,null,""]
[null,null,"","","",null,null,null,null,null,null,""]
[null,null,"","","",null,null,null,null,null,null,""]
[null,null,"","","",null,null,null,null,null,null,""]
[null,null,"","","",null,null,null,null,null,null,""]
[null,null,"","","",null,null,null,null,null,null,""]
[null,null,"","","",null,null,null,null,null,null,""]
[null,null,"","","",null,null,null,null,null,null,""]
[null,null,"","","",null,null,null,null,null,null,""]
[null,null,"","","",null,null,null,null,null,null,""]
[null,null,"","","",null,null,null,null,null,null,""]
[null,null,"","","",null,null,null,null,null,null,""]
[null,null,"","","",null,null,null,null,null,null,""]
[null,null,"","","",null,null,null,null,null,null,""]
[null,null,"","","",null,null,null,null,null,null,""]
[null,null,"","","",null,null,null,null,null,null,""]
[null,null,"","","",null,null,null,null,null,null,""]
[null,null,"","","",null,null,null,null,null,null,""]
[null,null,"","","",null,null,null,null,null,null,""]
[null,null,"","","",null,null,null,null,null,null,""]
[null,null,"","","",null,null,null,null,null,null,""]
[null,null,"","","",null,null,null,null,null,null,""]
[null,null,"","","",null,null,null,null,null,null,""]
[null,null,"","","",null,null,null,null,null,null,""]
[null,null,"","","",null,null,null,null,null,null,""]
[null,null,"","","",null,null,null,null,null,null,""]
[null,null,"","","",null,null,null,null,null,null,""]
[null,null,"","","",null,null,null,null,null,null,""]
[null,null,"","","",null,null,null,null,null,null,""]
[null,null,"","","",null,null,null,null,null,null,""]
[null,null,"","","",null,null,null,null,null,null,""]
[null,null,"","","",null,null,null,null,null,null,""]
[null,null,"","","",null,null,null,null,null,null,""]
[null,null,"","","",null,null,null,null,null,null,""]
[null,null,"","","",null,null,null,null,null,null,""]
[null,null,"","","",null,null,null,null,null,null,""]
[null,null,"","","",null,null,null,null,null,null,""]
[null,null,"","","",null,null,null,null,null,null,""]
[null,null,"","","",null,null,null,null,null,null,""]
[null,null,"","","",null,null,null,null,null,null,""]
[null,null,"","","",null,null,null,null,null,null,""]
[null,null,"","","",null,null,null,null,null,null,""]
[null,null,"","","",null,null,null,null,null,null,""]
[null,null,"","","",null,null,null,null,null,null,""]
[null,null,"","","",null,null,null,null,null,null,""]
[null,null,"","","",null,null,null,null,null,null,""]
[null,null,"","","",null,null,null,null,null,null,""]
[null,null,"","","",null,null,null,null,null,null,""]
[null,null,"","","",null,null,null,null,null,null,""]
[null,null,"","",{"$f":"IF(B2365=\"\",\"\",VLOOKUP(B2365,itemsdata,3,\"false\"))","v":""},null,null,null,null,null,null,""]
[null,null,{"$f":"IF(B2366=\"\",\"\",VLOOKUP(B2366,itemsdata,2,\"false\"))","v":""},{"$f":"IF(B2366=\"\",\"\",VLOOKUP(B2366,itemsdata,5,\"false\"))","v":""},"",null,null,null,null,null,null,{"$f":"IF(G2366<>\"\",IF(F2366=\"sell\",D2366*G2366,-D2366*G2366),\"\")","v":""}]
[null,null,"","","",null,null,null,null,null,null,""]
[null,null,"","","",null,null,null,null,null,null,""]
[null,null,"","","",null,null,null,null,null,null,""]
[null,null,"","","",null,null,null,null,null,null,""]
[null,null,"","","",null,null,null,null,null,null,""]
[null,null,"","","",null,null,null,null,null,null,""]
[null,null,"","","",null,null,null,null,null,null,""]
[null,null,"","","",null,null,null,null,null,null,""]
[null,null,"","","",null,null,null,null,null,null,""]
[null,null,"","","",null,null,null,null,null,null,""]
[null,null,"","","",null,null,null,null,null,null,""]
[null,null,"","","",null,null,null,null,null,null,""]
[null,null,"","","",null,null,null,null,null,null,""]
[null,null,"","","",null,null,null,null,null,null,""]
[null,null,"","","",null,null,null,null,null,null,""]
[null,null,"","","",null,null,null,null,null,null,""]
[null,null,"","","",null,null,null,null,null,null,""]
[null,null,"","","",null,null,null,null,null,null,""]
[null,null,"","","",null,null,null,null,null,null,""]
[null,null,"","","",null,null,null,null,null,null,""]
[null,null,"","","",null,null,null,null,null,null,""]
[null,null,"","","",null,null,null,null,null,null,""]
[null,null,"","","",null,null,null,null,null,null,""]
[null,null,{"$f":"IF(B2390=\"\",\"\",VLOOKUP(B2390,itemsdata,2,\"false\"))","v":""},{"$f":"IF(B2390=\"\",\"\",VLOOKUP(B2390,itemsdata,5,\"false\"))","v":""},"",null,null,null,null,null,null,""]
[null,null,"","","",null,null,null,null,null,null,""]
[null,null,"","","",null,null,null,null,null,null,""]
[null,null,"","","",null,null,null,null,null,null,""]
[null,null,"","","",null,null,null,null,null,null,""]
[null,null,"","","",null,null,null,null,null,null,""]
[null,null,"","","",null,null,null,null,null,null,""]
[null,null,"","","",null,null,null,null,null,null,""]
[null,null,"","","",null,null,null,null,null,null,""]
[null,null,"","","",null,null,null,null,null,null,""]
[null,null,"","","",null,null,null,null,null,null,""]
[null,null,"","","",null,null,null,null,null,null,""]
[null,null,"","","",null,null,null,null,null,null,""]
[null,null,"","","",null,null,null,null,null,null,""]
[null,null,"","","",null,null,null,null,null,null,""]
[null,null,"","","",null,null,null,null,null,null,""]
[null,null,"","","",null,null,null,null,null,null,""]
[null,null,"","","",null,null,null,null,null,null,""]
[null,null,"","","",null,null,null,null,null,null,""]
[null,null,"","","",null,null,null,null,null,null,""]
[null,null,"","","",null,null,null,null,null,null,""]
[null,null,"","","",null,null,null,null,null,null,""]
[null,null,"","","",null,null,null,null,null,null,""]
[null,null,"","","",null,null,null,null,null,null,""]
[null,null,"","","",null,null,null,null,null,null,""]
[null,null,"","","",null,null,null,null,null,null,""]
[null,null,"","","",null,null,null,null,null,null,""]
[null,null,"","","",null,null,null,null,null,null,""]
[null,null,"","","",null,null,null,null,null,null,""]
[null,null,"","","",null,null,null,null,null,null,""]
[null,null,"","","",null,null,null,null,null,null,""]
[null,null,"","","",null,null,null,null,null,null,""]
[null,null,"","","",null,null,null,null,null,null,""]
[null,null,"","","",null,null,null,null,null,null,""]
[null,null,"","","",null,null,null,null,null,null,""]
[null,null,"","","",null,null,null,null,null,null,""]
[null,null,"","","",null,null,null,null,null,null,""]
[null,null,"","","",null,null,null,null,null,null,""]
[null,null,"","","",null,null,null,null,null,null,""]
[null,null,"","",{"$f":"IF(B2429=\"\",\"\",VLOOKUP(B2429,itemsdata,3,\"false\"))","v":""},null,null,null,null,null,null,""]
[null,null,"","","",null,null,null,null,null,null,{"$f":"IF(G2430<>\"\",IF(F2430=\"sell\",D2430*G2430,-D2430*G2430),\"\")","v":""}]
[null,null,"","","",null,null,null,null,null,null,""]
[null,null,"","","",null,null,null,null,null,null,""]
[null,null,"","","",null,null,null,null,null,null,""]
[null,null,"","","",null,null,null,null,null,null,""]
[null,null,"","","",null,null,null,null,null,null,""]
[null,null,"","","",null,null,null,null,null,null,""]
[null,null,"","","",null,null,null,null,null,null,""]
[null,null,"","","",null,null,null,null,null,null,""]
[null,null,"","","",null,null,null,null,null,null,""]
[null,null,"","","",null,null,null,null,null,null,""]
[null,null,"","","",null,null,null,null,null,null,""]
[null,null,"","","",null,null,null,null,null,null,""]
[null,null,"","","",null,null,null,null,null,null,""]
[null,null,"","","",null,null,null,null,null,null,""]
[null,null,"","","",null,null,null,null,null,null,""]
[null,null,"","","",null,null,null,null,null,null,""]
[null,null,"","","",null,null,null,null,null,null,""]
[null,null,"","","",null,null,null,null,null,null,""]
[null,null,"","","",null,null,null,null,null,null,""]
[null,null,"","","",null,null,null,null,null,null,""]
[null,null,"","","",null,null,null,null,null,null,""]
[null,null,"","","",null,null,null,null,null,null,""]
[null,null,"","","",null,null,null,null,null,null,""]
[null,null,{"$f":"IF(B2454=\"\",\"\",VLOOKUP(B2454,itemsdata,2,\"false\"))","v":""},{"$f":"IF(B2454=\"\",\"\",VLOOKUP(B2454,itemsdata,5,\"false\"))","v":""},"",null,null,null,null,null,null,""]
[null,null,"","","",null,null,null,null,null,null,""]
[null,null,"","","",null,null,null,null,null,null,""]
[null,null,"","","",null,null,null,null,null,null,""]
[null,null,"","","",null,null,null,null,null,null,""]
[null,null,"","","",null,null,null,null,null,null,""]
[null,null,"","","",null,null,null,null,null,null,""]
[null,null,"","","",null,null,null,null,null,null,""]
[null,null,"","","",null,null,null,null,null,null,""]
[null,null,"","","",null,null,null,null,null,null,""]
[null,null,"","","",null,null,null,null,null,null,""]
[null,null,"","","",null,null,null,null,null,null,""]
[null,null,"","","",null,null,null,null,null,null,""]
[null,null,"","","",null,null,null,null,null,null,""]
[null,null,"","","",null,null,null,null,null,null,""]
[null,null,"","","",null,null,null,null,null,null,""]
[null,null,"","","",null,null,null,null,null,null,""]
[null,null,"","","",null,null,null,null,null,null,""]
[null,null,"","","",null,null,null,null,null,null,""]
[null,null,"","","",null,null,null,null,null,null,""]
[null,null,"","","",null,null,null,null,null,null,""]
[null,null,"","","",null,null,null,null,null,null,""]
[null,null,"","","",null,null,null,null,null,null,""]
[null,null,"","","",null,null,null,null,null,null,""]
[null,null,"","","",null,null,null,null,null,null,""]
[null,null,"","","",null,null,null,null,null,null,""]
[null,null,"","","",null,null,null,null,null,null,""]
[null,null,"","","",null,null,null,null,null,null,""]
[null,null,"","","",null,null,null,null,null,null,""]
[null,null,"","","",null,null,null,null,null,null,""]
[null,null,"","","",null,null,null,null,null,null,""]
[null,null,"","","",null,null,null,null,null,null,""]
[null,null,"","","",null,null,null,null,null,null,""]
[null,null,"","","",null,null,null,null,null,null,""]
[null,null,"","","",null,null,null,null,null,null,""]
[null,null,"","","",null,null,null,null,null,null,""]
[null,null,"","","",null,null,null,null,null,null,""]
[null,null,"","","",null,null,null,null,null,null,""]
[null,null,"","","",null,null,null,null,null,null,""]
[null,null,"","",{"$f":"IF(B2493=\"\",\"\",VLOOKUP(B2493,itemsdata,3,\"false\"))","v":""},null,null,null,null,null,null,""]
[null,null,"","","",null,null,null,null,null,null,{"$f":"IF(G2494<>\"\",IF(F2494=\"sell\",D2494*G2494,-D2494*G2494),\"\")","v":""}]
[null,null,"","","",null,null,null,null,null,null,""]
[null,null,"","","",null,null,null,null,null,null,""]
[null,null,"","","",null,null,null,null,null,null,""]
[null,null,"","","",null,null,null,null,null,null,""]
[null,null,"","","",null,null,null,null,null,null,""]
[null,null,"","","",null,null,null,null,null,null,""]
[null,null,"","","",null,null,null,null,null,null,""]
[null,null,"","","",null,null,null,null,null,null,""]
[null,null,"","","",null,null,null,null,null,null,""]
[null,null,"","","",null,null,null,null,null,null,""]
[null,null,"","","",null,null,null,null,null,null,""]
[null,null,"","","",null,null,null,null,null,null,""]
[null,null,"","","",null,null,null,null,null,null,""]
[null,null,"","","",null,null,null,null,null,null,""]
[null,null,"","","",null,null,null,null,null,null,""]
[null,null,"","","",null,null,null,null,null,null,""]
[null,null,"","","",null,null,null,null,null,null,""]
[null,null,"","","",null,null,null,null,null,null,""]
[null,null,"","","",null,null,null,null,null,null,""]
[null,null,"","","",null,null,null,null,null,null,""]
[null,null,"","","",null,null,null,null,null,null,""]
[null,null,"","","",null,null,null,null,null,null,""]
[null,null,"","","",null,null,null,null,null,null,""]
[null,null,{"$f":"IF(B2518=\"\",\"\",VLOOKUP(B2518,itemsdata,2,\"false\"))","v":""},{"$f":"IF(B2518=\"\",\"\",VLOOKUP(B2518,itemsdata,5,\"false\"))","v":""},"",null,null,null,null,null,null,""]
[null,null,"","","",null,null,null,null,null,null,""]
[null,null,"","","",null,null,null,null,null,null,""]
[null,null,"","","",null,null,null,null,null,null,""]
[null,null,"","","",null,null,null,null,null,null,""]
[null,null,"","","",null,null,null,null,null,null,""]
[null,null,"","","",null,null,null,null,null,null,""]
[null,null,"","","",null,null,null,null,null,null,""]
[null,null,"","","",null,null,null,null,null,null,""]
[null,null,"","","",null,null,null,null,null,null,""]
[null,null,"","","",null,null,null,null,null,null,""]
[null,null,"","","",null,null,null,null,null,null,""]
[null,null,"","","",null,null,null,null,null,null,""]
[null,null,"","","",null,null,null,null,null,null,""]
[null,null,"","","",null,null,null,null,null,null,""]
[null,null,"","","",null,null,null,null,null,null,""]
[null,null,"","","",null,null,null,null,null,null,""]
[null,null,"","","",null,null,null,null,null,null,""]
[null,null,"","","",null,null,null,null,null,null,""]
[null,null,"","","",null,null,null,null,null,null,""]
[null,null,"","","",null,null,null,null,null,null,""]
[null,null,"","","",null,null,null,null,null,null,""]
[null,null,"","","",null,null,null,null,null,null,""]
[null,null,"","","",null,null,null,null,null,null,""]
[null,null,"","","",null,null,null,null,null,null,""]
[null,null,"","","",null,null,null,null,null,null,""]
[null,null,"","","",null,null,null,null,null,null,""]
[null,null,"","","",null,null,null,null,null,null,""]
[null,null,"","","",null,null,null,null,null,null,""]
[null,null,"","","",null,null,null,null,null,null,""]
[null,null,"","","",null,null,null,null,null,null,""]
[null,null,"","","",null,null,null,null,null,null,""]
[null,null,"","","",null,null,null,null,null,null,""]
[null,null,"","","",null,null,null,null,null,null,""]
[null,null,"","","",null,null,null,null,null,null,""]
[null,null,"","","",null,null,null,null,null,null,""]
[null,null,"","","",null,null,null,null,null,null,""]
[null,null,"","","",null,null,null,null,null,null,""]
[null,null,"","","",null,null,null,null,null,null,""]
[null,null,"","",{"$f":"IF(B2557=\"\",\"\",VLOOKUP(B2557,itemsdata,3,\"false\"))","v":""},null,null,null,null,null,null,""]
[null,null,"","","",null,null,null,null,null,null,{"$f":"IF(G2558<>\"\",IF(F2558=\"sell\",D2558*G2558,-D2558*G2558),\"\")","v":""}]
[null,null,"","","",null,null,null,null,null,null,""]
[null,null,"","","",null,null,null,null,null,null,""]
[null,null,"","","",null,null,null,null,null,null,""]
[null,null,"","","",null,null,null,null,null,null,""]
[null,null,"","","",null,null,null,null,null,null,""]
[null,null,"","","",null,null,null,null,null,null,""]
[null,null,"","","",null,null,null,null,null,null,""]
[null,null,"","","",null,null,null,null,null,null,""]
[null,null,"","","",null,null,null,null,null,null,""]
[null,null,"","","",null,null,null,null,null,null,""]
[null,null,"","","",null,null,null,null,null,null,""]
[null,null,"","","",null,null,null,null,null,null,""]
[null,null,"","","",null,null,null,null,null,null,""]
[null,null,"","","",null,null,null,null,null,null,""]
[null,null,"","","",null,null,null,null,null,null,""]
[null,null,"","","",null,null,null,null,null,null,""]
[null,null,"","","",null,null,null,null,null,null,""]
[null,null,"","","",null,null,null,null,null,null,""]
[null,null,"","","",null,null,null,null,null,null,""]
[null,null,"","","",null,null,null,null,null,null,""]
[null,null,"","","",null,null,null,null,null,null,""]
[null,null,"","","",null,null,null,null,null,null,""]
[null,null,"","","",null,null,null,null,null,null,""]
[null,null,{"$f":"IF(B2582=\"\",\"\",VLOOKUP(B2582,itemsdata,2,\"false\"))","v":""},{"$f":"IF(B2582=\"\",\"\",VLOOKUP(B2582,itemsdata,5,\"false\"))","v":""},"",null,null,null,null,null,null,""]
[null,null,"","","",null,null,null,null,null,null,""]
[null,null,"","","",null,null,null,null,null,null,""]
[null,null,"","","",null,null,null,null,null,null,""]
[null,null,"","","",null,null,null,null,null,null,""]
[null,null,"","","",null,null,null,null,null,null,""]
[null,null,"","","",null,null,null,null,null,null,""]
[null,null,"","","",null,null,null,null,null,null,""]
[null,null,"","","",null,null,null,null,null,null,""]
[null,null,"","","",null,null,null,null,null,null,""]
[null,null,"","","",null,null,null,null,null,null,""]
[null,null,"","","",null,null,null,null,null,null,""]
[null,null,"","","",null,null,null,null,null,null,""]
[null,null,"","","",null,null,null,null,null,null,""]
[null,null,"","","",null,null,null,null,null,null,""]
[null,null,"","","",null,null,null,null,null,null,""]
[null,null,"","","",null,null,null,null,null,null,""]
[null,null,"","","",null,null,null,null,null,null,""]
[null,null,"","","",null,null,null,null,null,null,""]
[null,null,"","","",null,null,null,null,null,null,""]
[null,null,"","","",null,null,null,null,null,null,""]
[null,null,"","","",null,null,null,null,null,null,""]
[null,null,"","","",null,null,null,null,null,null,""]
[null,null,"","","",null,null,null,null,null,null,""]
[null,null,"","","",null,null,null,null,null,null,""]
[null,null,"","","",null,null,null,null,null,null,""]
[null,null,"","","",null,null,null,null,null,null,""]
[null,null,"","","",null,null,null,null,null,null,""]
[null,null,"","","",null,null,null,null,null,null,""]
[null,null,"","","",null,null,null,null,null,null,""]
[null,null,"","","",null,null,null,null,null,null,""]
[null,null,"","","",null,null,null,null,null,null,""]
[null,null,"","","",null,null,null,null,null,null,""]
[null,null,"","","",null,null,null,null,null,null,""]
[null,null,"","","",null,null,null,null,null,null,""]
[null,null,"","","",null,null,null,null,null,null,""]
[null,null,"","","",null,null,null,null,null,null,""]
[null,null,"","","",null,null,null,null,null,null,""]
[null,null,"","","",null,null,null,null,null,null,""]
[null,null,"","",{"$f":"IF(B2621=\"\",\"\",VLOOKUP(B2621,itemsdata,3,\"false\"))","v":""},null,null,null,null,null,null,""]
[null,null,"","","",null,null,null,null,null,null,{"$f":"IF(G2622<>\"\",IF(F2622=\"sell\",D2622*G2622,-D2622*G2622),\"\")","v":""}]
[null,null,"","","",null,null,null,null,null,null,""]
[null,null,"","","",null,null,null,null,null,null,""]
[null,null,"","","",null,null,null,null,null,null,""]
[null,null,"","","",null,null,null,null,null,null,""]
[null,null,"","","",null,null,null,null,null,null,""]
[null,null,"","","",null,null,null,null,null,null,""]
[null,null,"","","",null,null,null,null,null,null,""]
[null,null,"","","",null,null,null,null,null,null,""]
[null,null,"","","",null,null,null,null,null,null,""]
[null,null,"","","",null,null,null,null,null,null,""]
[null,null,"","","",null,null,null,null,null,null,""]
[null,null,"","","",null,null,null,null,null,null,""]
[null,null,"","","",null,null,null,null,null,null,""]
[null,null,"","","",null,null,null,null,null,null,""]
[null,null,"","","",null,null,null,null,null,null,""]
[null,null,"","","",null,null,null,null,null,null,""]
[null,null,"","","",null,null,null,null,null,null,""]
[null,null,"","","",null,null,null,null,null,null,""]
[null,null,"","","",null,null,null,null,null,null,""]
[null,null,"","","",null,null,null,null,null,null,""]
[null,null,"","","",null,null,null,null,null,null,""]
[null,null,"","","",null,null,null,null,null,null,""]
[null,null,"","","",null,null,null,null,null,null,""]
[null,null,{"$f":"IF(B2646=\"\",\"\",VLOOKUP(B2646,itemsdata,2,\"false\"))","v":""},{"$f":"IF(B2646=\"\",\"\",VLOOKUP(B2646,itemsdata,5,\"false\"))","v":""},"",null,null,null,null,null,null,""]
[null,null,"","","",null,null,null,null,null,null,""]
[null,null,"","","",null,null,null,null,null,null,""]
[null,null,"","","",null,null,null,null,null,null,""]
[null,null,"","","",null,null,null,null,null,null,""]
[null,null,"","","",null,null,null,null,null,null,""]
[null,null,"","","",null,null,null,null,null,null,""]
[null,null,"","","",null,null,null,null,null,null,""]
[null,null,"","","",null,null,null,null,null,null,""]
[null,null,"","","",null,null,null,null,null,null,""]
[null,null,"","","",null,null,null,null,null,null,""]
[null,null,"","","",null,null,null,null,null,null,""]
[null,null,"","","",null,null,null,null,null,null,""]
[null,null,"","","",null,null,null,null,null,null,""]
[null,null,"","","",null,null,null,null,null,null,""]
[null,null,"","","",null,null,null,null,null,null,""]
[null,null,"","","",null,null,null,null,null,null,""]
[null,null,"","","",null,null,null,null,null,null,""]
[null,null,"","","",null,null,null,null,null,null,""]
[null,null,"","","",null,null,null,null,null,null,""]
[null,null,"","","",null,null,null,null,null,null,""]
[null,null,"","","",null,null,null,null,null,null,""]
[null,null,"","","",null,null,null,null,null,null,""]
[null,null,"","","",null,null,null,null,null,null,""]
[null,null,"","","",null,null,null,null,null,null,""]
[null,null,"","","",null,null,null,null,null,null,""]
[null,null,"","","",null,null,null,null,null,null,""]
[null,null,"","","",null,null,null,null,null,null,""]
[null,null,"","","",null,null,null,null,null,null,""]
[null,null,"","","",null,null,null,null,null,null,""]
[null,null,"","","",null,null,null,null,null,null,""]
[null,null,"","","",null,null,null,null,null,null,""]
[null,null,"","","",null,null,null,null,null,null,""]
[null,null,"","","",null,null,null,null,null,null,""]
[null,null,"","","",null,null,null,null,null,null,""]
[null,null,"","","",null,null,null,null,null,null,""]
[null,null,"","","",null,null,null,null,null,null,""]
[null,null,"","","",null,null,null,null,null,null,""]
[null,null,"","","",null,null,null,null,null,null,""]
[null,null,"","",{"$f":"IF(B2685=\"\",\"\",VLOOKUP(B2685,itemsdata,3,\"false\"))","v":""},null,null,null,null,null,null,""]
[null,null,"","","",null,null,null,null,null,null,{"$f":"IF(G2686<>\"\",IF(F2686=\"sell\",D2686*G2686,-D2686*G2686),\"\")","v":""}]
[null,null,"","","",null,null,null,null,null,null,""]
[null,null,"","","",null,null,null,null,null,null,""]
[null,null,"","","",null,null,null,null,null,null,""]
[null,null,"","","",null,null,null,null,null,null,""]
[null,null,"","","",null,null,null,null,null,null,""]
[null,null,"","","",null,null,null,null,null,null,""]
[null,null,"","","",null,null,null,null,null,null,""]
[null,null,"","","",null,null,null,null,null,null,""]
[null,null,"","","",null,null,null,null,null,null,""]
[null,null,"","","",null,null,null,null,null,null,""]
[null,null,"","","",null,null,null,null,null,null,""]
[null,null,"","","",null,null,null,null,null,null,""]
[null,null,"","","",null,null,null,null,null,null,""]
[null,null,"","","",null,null,null,null,null,null,""]
[null,null,"","","",null,null,null,null,null,null,""]
[null,null,"","","",null,null,null,null,null,null,""]
[null,null,"","","",null,null,null,null,null,null,""]
[null,null,"","","",null,null,null,null,null,null,""]
[null,null,"","","",null,null,null,null,null,null,""]
[null,null,"","","",null,null,null,null,null,null,""]
[null,null,"","","",null,null,null,null,null,null,""]
[null,null,"","","",null,null,null,null,null,null,""]
[null,null,"","","",null,null,null,null,null,null,""]
[null,null,{"$f":"IF(B2710=\"\",\"\",VLOOKUP(B2710,itemsdata,2,\"false\"))","v":""},{"$f":"IF(B2710=\"\",\"\",VLOOKUP(B2710,itemsdata,5,\"false\"))","v":""},"",null,null,null,null,null,null,""]
[null,null,"","","",null,null,null,null,null,null,""]
[null,null,"","","",null,null,null,null,null,null,""]
[null,null,"","","",null,null,null,null,null,null,""]
[null,null,"","","",null,null,null,null,null,null,""]
[null,null,"","","",null,null,null,null,null,null,""]
[null,null,"","","",null,null,null,null,null,null,""]
[null,null,"","","",null,null,null,null,null,null,""]
[null,null,"","","",null,null,null,null,null,null,""]
[null,null,"","","",null,null,null,null,null,null,""]
[null,null,"","","",null,null,null,null,null,null,""]
[null,null,"","","",null,null,null,null,null,null,""]
[null,null,"","","",null,null,null,null,null,null,""]
[null,null,"","","",null,null,null,null,null,null,""]
[null,null,"","","",null,null,null,null,null,null,""]
[null,null,"","","",null,null,null,null,null,null,""]
[null,null,"","","",null,null,null,null,null,null,""]
[null,null,"","","",null,null,null,null,null,null,""]
[null,null,"","","",null,null,null,null,null,null,""]
[null,null,"","","",null,null,null,null,null,null,""]
[null,null,"","","",null,null,null,null,null,null,""]
[null,null,"","","",null,null,null,null,null,null,""]
[null,null,"","","",null,null,null,null,null,null,""]
[null,null,"","","",null,null,null,null,null,null,""]
[null,null,"","","",null,null,null,null,null,null,""]
[null,null,"","","",null,null,null,null,null,null,""]
[null,null,"","","",null,null,null,null,null,null,""]
[null,null,"","","",null,null,null,null,null,null,""]
[null,null,"","","",null,null,null,null,null,null,""]
[null,null,"","","",null,null,null,null,null,null,""]
[null,null,"","","",null,null,null,null,null,null,""]
[null,null,"","","",null,null,null,null,null,null,""]
[null,null,"","","",null,null,null,null,null,null,""]
[null,null,"","","",null,null,null,null,null,null,""]
[null,null,"","","",null,null,null,null,null,null,""]
[null,null,"","","",null,null,null,null,null,null,""]
[null,null,"","","",null,null,null,null,null,null,""]
[null,null,"","","",null,null,null,null,null,null,""]
[null,null,"","","",null,null,null,null,null,null,""]
[null,null,"","",{"$f":"IF(B2749=\"\",\"\",VLOOKUP(B2749,itemsdata,3,\"false\"))","v":""},null,null,null,null,null,null,""]
[null,null,"","","",null,null,null,null,null,null,{"$f":"IF(G2750<>\"\",IF(F2750=\"sell\",D2750*G2750,-D2750*G2750),\"\")","v":""}]
[null,null,"","","",null,null,null,null,null,null,""]
[null,null,"","","",null,null,null,null,null,null,""]
[null,null,"","","",null,null,null,null,null,null,""]
[null,null,"","","",null,null,null,null,null,null,""]
[null,null,"","","",null,null,null,null,null,null,""]
[null,null,"","","",null,null,null,null,null,null,""]
[null,null,"","","",null,null,null,null,null,null,""]
[null,null,"","","",null,null,null,null,null,null,""]
[null,null,"","","",null,null,null,null,null,null,""]
[null,null,"","","",null,null,null,null,null,null,""]
[null,null,"","","",null,null,null,null,null,null,""]
[null,null,"","","",null,null,null,null,null,null,""]
[null,null,"","","",null,null,null,null,null,null,""]
[null,null,"","","",null,null,null,null,null,null,""]
[null,null,"","","",null,null,null,null,null,null,""]
[null,null,"","","",null,null,null,null,null,null,""]
[null,null,"","","",null,null,null,null,null,null,""]
[null,null,"","","",null,null,null,null,null,null,""]
[null,null,"","","",null,null,null,null,null,null,""]
[null,null,"","","",null,null,null,null,null,null,""]
[null,null,"","","",null,null,null,null,null,null,""]
[null,null,"","","",null,null,null,null,null,null,""]
[null,null,"","","",null,null,null,null,null,null,""]
[null,null,{"$f":"IF(B2774=\"\",\"\",VLOOKUP(B2774,itemsdata,2,\"false\"))","v":""},{"$f":"IF(B2774=\"\",\"\",VLOOKUP(B2774,itemsdata,5,\"false\"))","v":""},"",null,null,null,null,null,null,""]
[null,null,"","","",null,null,null,null,null,null,""]
[null,null,"","","",null,null,null,null,null,null,""]
[null,null,"","","",null,null,null,null,null,null,""]
[null,null,"","","",null,null,null,null,null,null,""]
[null,null,"","","",null,null,null,null,null,null,""]
[null,null,"","","",null,null,null,null,null,null,""]
[null,null,"","","",null,null,null,null,null,null,""]
[null,null,"","","",null,null,null,null,null,null,""]
[null,null,"","","",null,null,null,null,null,null,""]
[null,null,"","","",null,null,null,null,null,null,""]
[null,null,"","","",null,null,null,null,null,null,""]
[null,null,"","","",null,null,null,null,null,null,""]
[null,null,"","","",null,null,null,null,null,null,""]
[null,null,"","","",null,null,null,null,null,null,""]
[null,null,"","","",null,null,null,null,null,null,""]
[null,null,"","","",null,null,null,null,null,null,""]
[null,null,"","","",null,null,null,null,null,null,""]
[null,null,"","","",null,null,null,null,null,null,""]
[null,null,"","","",null,null,null,null,null,null,""]
[null,null,"","","",null,null,null,null,null,null,""]
[null,null,"","","",null,null,null,null,null,null,""]
[null,null,"","","",null,null,null,null,null,null,""]
[null,null,"","","",null,null,null,null,null,null,""]
[null,null,"","","",null,null,null,null,null,null,""]
[null,null,"","","",null,null,null,null,null,null,""]
[null,null,"","","",null,null,null,null,null,null,""]
[null,null,"","","",null,null,null,null,null,null,""]
[null,null,"","","",null,null,null,null,null,null,""]
[null,null,"","","",null,null,null,null,null,null,""]
[null,null,"","","",null,null,null,null,null,null,""]
[null,null,"","","",null,null,null,null,null,null,""]
[null,null,"","","",null,null,null,null,null,null,""]
[null,null,"","","",null,null,null,null,null,null,""]
[null,null,"","","",null,null,null,null,null,null,""]
[null,null,"","","",null,null,null,null,null,null,""]
[null,null,"","","",null,null,null,null,null,null,""]
[null,null,"","","",null,null,null,null,null,null,""]
[null,null,"","","",null,null,null,null,null,null,""]
[null,null,"","",{"$f":"IF(B2813=\"\",\"\",VLOOKUP(B2813,itemsdata,3,\"false\"))","v":""},null,null,null,null,null,null,""]
[null,null,"","","",null,null,null,null,null,null,{"$f":"IF(G2814<>\"\",IF(F2814=\"sell\",D2814*G2814,-D2814*G2814),\"\")","v":""}]
[null,null,"","","",null,null,null,null,null,null,""]
[null,null,"","","",null,null,null,null,null,null,""]
[null,null,"","","",null,null,null,null,null,null,""]
[null,null,"","","",null,null,null,null,null,null,""]
[null,null,"","","",null,null,null,null,null,null,""]
[null,null,"","","",null,null,null,null,null,null,""]
[null,null,"","","",null,null,null,null,null,null,""]
[null,null,"","","",null,null,null,null,null,null,""]
[null,null,"","","",null,null,null,null,null,null,""]
[null,null,"","","",null,null,null,null,null,null,""]
[null,null,"","","",null,null,null,null,null,null,""]
[null,null,"","","",null,null,null,null,null,null,""]
[null,null,"","","",null,null,null,null,null,null,""]
[null,null,"","","",null,null,null,null,null,null,""]
[null,null,"","","",null,null,null,null,null,null,""]
[null,null,"","","",null,null,null,null,null,null,""]
[null,null,"","","",null,null,null,null,null,null,""]
[null,null,"","","",null,null,null,null,null,null,""]
[null,null,"","","",null,null,null,null,null,null,""]
[null,null,"","","",null,null,null,null,null,null,""]
[null,null,"","","",null,null,null,null,null,null,""]
[null,null,"","","",null,null,null,null,null,null,""]
[null,null,"","","",null,null,null,null,null,null,""]
[null,null,{"$f":"IF(B2838=\"\",\"\",VLOOKUP(B2838,itemsdata,2,\"false\"))","v":""},{"$f":"IF(B2838=\"\",\"\",VLOOKUP(B2838,itemsdata,5,\"false\"))","v":""},"",null,null,null,null,null,null,""]
[null,null,"","","",null,null,null,null,null,null,""]
[null,null,"","","",null,null,null,null,null,null,""]
[null,null,"","","",null,null,null,null,null,null,""]
[null,null,"","","",null,null,null,null,null,null,""]
[null,null,"","","",null,null,null,null,null,null,""]
[null,null,"","","",null,null,null,null,null,null,""]
[null,null,"","","",null,null,null,null,null,null,""]
[null,null,"","","",null,null,null,null,null,null,""]
[null,null,"","","",null,null,null,null,null,null,""]
[null,null,"","","",null,null,null,null,null,null,""]
[null,null,"","","",null,null,null,null,null,null,""]
[null,null,"","","",null,null,null,null,null,null,""]
[null,null,"","","",null,null,null,null,null,null,""]
[null,null,"","","",null,null,null,null,null,null,""]
[null,null,"","","",null,null,null,null,null,null,""]
[null,null,"","","",null,null,null,null,null,null,""]
[null,null,"","","",null,null,null,null,null,null,""]
[null,null,"","","",null,null,null,null,null,null,""]
[null,null,"","","",null,null,null,null,null,null,""]
[null,null,"","","",null,null,null,null,null,null,""]
[null,null,"","","",null,null,null,null,null,null,""]
[null,null,"","","",null,null,null,null,null,null,""]
[null,null,"","","",null,null,null,null,null,null,""]
[null,null,"","","",null,null,null,null,null,null,""]
[null,null,"","","",null,null,null,null,null,null,""]
[null,null,"","","",null,null,null,null,null,null,""]
[null,null,"","","",null,null,null,null,null,null,""]
[null,null,"","","",null,null,null,null,null,null,""]
[null,null,"","","",null,null,null,null,null,null,""]
[null,null,"","","",null,null,null,null,null,null,""]
[null,null,"","","",null,null,null,null,null,null,""]
[null,null,"","","",null,null,null,null,null,null,""]
[null,null,"","","",null,null,null,null,null,null,""]
[null,null,"","","",null,null,null,null,null,null,""]
[null,null,"","","",null,null,null,null,null,null,""]
[null,null,"","","",null,null,null,null,null,null,""]
[null,null,"","","",null,null,null,null,null,null,""]
[null,null,"","","",null,null,null,null,null,null,""]
[null,null,"","",{"$f":"IF(B2877=\"\",\"\",VLOOKUP(B2877,itemsdata,3,\"false\"))","v":""},null,null,null,null,null,null,""]
[null,null,"","","",null,null,null,null,null,null,{"$f":"IF(G2878<>\"\",IF(F2878=\"sell\",D2878*G2878,-D2878*G2878),\"\")","v":""}]
[null,null,"","","",null,null,null,null,null,null,""]
[null,null,"","","",null,null,null,null,null,null,""]
[null,null,"","","",null,null,null,null,null,null,""]
[null,null,"","","",null,null,null,null,null,null,""]
[null,null,"","","",null,null,null,null,null,null,""]
[null,null,"","","",null,null,null,null,null,null,""]
[null,null,"","","",null,null,null,null,null,null,""]
[null,null,"","","",null,null,null,null,null,null,""]
[null,null,"","","",null,null,null,null,null,null,""]
[null,null,"","","",null,null,null,null,null,null,""]
[null,null,"","","",null,null,null,null,null,null,""]
[null,null,"","","",null,null,null,null,null,null,""]
[null,null,"","","",null,null,null,null,null,null,""]
[null,null,"","","",null,null,null,null,null,null,""]
[null,null,"","","",null,null,null,null,null,null,""]
[null,null,"","","",null,null,null,null,null,null,""]
[null,null,"","","",null,null,null,null,null,null,""]
[null,null,"","","",null,null,null,null,null,null,""]
[null,null,"","","",null,null,null,null,null,null,""]
[null,null,"","","",null,null,null,null,null,null,""]
[null,null,"","","",null,null,null,null,null,null,""]
[null,null,"","","",null,null,null,null,null,null,""]
[null,null,"","","",null,null,null,null,null,null,""]
[null,null,{"$f":"IF(B2902=\"\",\"\",VLOOKUP(B2902,itemsdata,2,\"false\"))","v":""},{"$f":"IF(B2902=\"\",\"\",VLOOKUP(B2902,itemsdata,5,\"false\"))","v":""},"",null,null,null,null,null,null,""]
[null,null,"","","",null,null,null,null,null,null,""]
[null,null,"","","",null,null,null,null,null,null,""]
[null,null,"","","",null,null,null,null,null,null,""]
[null,null,"","","",null,null,null,null,null,null,""]
[null,null,"","","",null,null,null,null,null,null,""]
[null,null,"","","",null,null,null,null,null,null,""]
[null,null,"","","",null,null,null,null,null,null,""]
[null,null,"","","",null,null,null,null,null,null,""]
[null,null,"","","",null,null,null,null,null,null,""]
[null,null,"","","",null,null,null,null,null,null,""]
[null,null,"","","",null,null,null,null,null,null,""]
[null,null,"","","",null,null,null,null,null,null,""]
[null,null,"","","",null,null,null,null,null,null,""]
[null,null,"","","",null,null,null,null,null,null,""]
[null,null,"","","",null,null,null,null,null,null,""]
[null,null,"","","",null,null,null,null,null,null,""]
[null,null,"","","",null,null,null,null,null,null,""]
[null,null,"","","",null,null,null,null,null,null,""]
[null,null,"","","",null,null,null,null,null,null,""]
[null,null,"","","",null,null,null,null,null,null,""]
[null,null,"","","",null,null,null,null,null,null,""]
[null,null,"","","",null,null,null,null,null,null,""]
[null,null,"","","",null,null,null,null,null,null,""]
[null,null,"","","",null,null,null,null,null,null,""]
[null,null,"","","",null,null,null,null,null,null,""]
[null,null,"","","",null,null,null,null,null,null,""]
[null,null,"","","",null,null,null,null,null,null,""]
[null,null,"","","",null,null,null,null,null,null,""]
[null,null,"","","",null,null,null,null,null,null,""]
[null,null,"","","",null,null,null,null,null,null,""]
[null,null,"","","",null,null,null,null,null,null,""]
[null,null,"","","",null,null,null,null,null,null,""]
[null,null,"","","",null,null,null,null,null,null,""]
[null,null,"","","",null,null,null,null,null,null,""]
[null,null,"","","",null,null,null,null,null,null,""]
[null,null,"","","",null,null,null,null,null,null,""]
[null,null,"","","",null,null,null,null,null,null,""]
[null,null,"","","",null,null,null,null,null,null,""]
[null,null,"","",{"$f":"IF(B2941=\"\",\"\",VLOOKUP(B2941,itemsdata,3,\"false\"))","v":""},null,null,null,null,null,null,""]
[null,null,"","","",null,null,null,null,null,null,{"$f":"IF(G2942<>\"\",IF(F2942=\"sell\",D2942*G2942,-D2942*G2942),\"\")","v":""}]
[null,null,"","","",null,null,null,null,null,null,""]
[null,null,"","","",null,null,null,null,null,null,""]
[null,null,"","","",null,null,null,null,null,null,""]
[null,null,"","","",null,null,null,null,null,null,""]
[null,null,"","","",null,null,null,null,null,null,""]
[null,null,"","","",null,null,null,null,null,null,""]
[null,null,"","","",null,null,null,null,null,null,""]
[null,null,"","","",null,null,null,null,null,null,""]
[null,null,"","","",null,null,null,null,null,null,""]
[null,null,"","","",null,null,null,null,null,null,""]
[null,null,"","","",null,null,null,null,null,null,""]
[null,null,"","","",null,null,null,null,null,null,""]
[null,null,"","","",null,null,null,null,null,null,""]
[null,null,"","","",null,null,null,null,null,null,""]
[null,null,"","","",null,null,null,null,null,null,""]
[null,null,"","","",null,null,null,null,null,null,""]
[null,null,"","","",null,null,null,null,null,null,""]
[null,null,"","","",null,null,null,null,null,null,""]
[null,null,"","","",null,null,null,null,null,null,""]
[null,null,"","","",null,null,null,null,null,null,""]
[null,null,"","","",null,null,null,null,null,null,""]
[null,null,"","","",null,null,null,null,null,null,""]
[null,null,"","","",null,null,null,null,null,null,""]
[null,null,{"$f":"IF(B2966=\"\",\"\",VLOOKUP(B2966,itemsdata,2,\"false\"))","v":""},{"$f":"IF(B2966=\"\",\"\",VLOOKUP(B2966,itemsdata,5,\"false\"))","v":""},"",null,null,null,null,null,null,""]
[null,null,"","","",null,null,null,null,null,null,""]
[null,null,"","","",null,null,null,null,null,null,""]
[null,null,"","","",null,null,null,null,null,null,""]
[null,null,"","","",null,null,null,null,null,null,""]
[null,null,"","","",null,null,null,null,null,null,""]
[null,null,"","","",null,null,null,null,null,null,""]
[null,null,"","","",null,null,null,null,null,null,""]
[null,null,"","","",null,null,null,null,null,null,""]
[null,null,"","","",null,null,null,null,null,null,""]
[null,null,"","","",null,null,null,null,null,null,""]
[null,null,"","","",null,null,null,null,null,null,""]
[null,null,"","","",null,null,null,null,null,null,""]
[null,null,"","","",null,null,null,null,null,null,""]
[null,null,"","","",null,null,null,null,null,null,""]
[null,null,"","","",null,null,null,null,null,null,""]
[null,null,"","","",null,null,null,null,null,null,""]
[null,null,"","","",null,null,null,null,null,null,""]
[null,null,"","","",null,null,null,null,null,null,""]
[null,null,"","","",null,null,null,null,null,null,""]
[null,null,"","","",null,null,null,null,null,null,""]
[null,null,"","","",null,null,null,null,null,null,""]
[null,null,"","","",null,null,null,null,null,null,""]
[null,null,"","","",null,null,null,null,null,null,""]
[null,null,"","","",null,null,null,null,null,null,""]
[null,null,"","","",null,null,null,null,null,null,""]
[null,null,"","","",null,null,null,null,null,null,""]
[null,null,"","","",null,null,null,null,null,null,""]
[null,null,"","","",null,null,null,null,null,null,""]
[null,null,"","","",null,null,null,null,null,null,""]
[null,null,"","","",null,null,null,null,null,null,""]
[null,null,"","","",null,null,null,null,null,null,""]
[null,null,"","","",null,null,null,null,null,null,""]
[null,null,"","","",null,null,null,null,null,null,""]
[null,null,"","","",null,null,null,null,null,null,""]
[null,null,"","","",null,null,null,null,null,null,""]
[null,null,"","","",null,null,null,null,null,null,""]
[null,null,"","","",null,null,null,null,null,null,""]
[null,null,"","","",null,null,null,null,null,null,""]
[null,null,"","",{"$f":"IF(B3005=\"\",\"\",VLOOKUP(B3005,itemsdata,3,\"false\"))","v":""},null,null,null,null,null,null,""]
[null,null,"","","",null,null,null,null,null,null,{"$f":"IF(G3006<>\"\",IF(F3006=\"sell\",D3006*G3006,-D3006*G3006),\"\")","v":""}]
[null,null,"","","",null,null,null,null,null,null,""]
[null,null,"","","",null,null,null,null,null,null,""]
[null,null,"","","",null,null,null,null,null,null,""]
[null,null,"","","",null,null,null,null,null,null,""]
[null,null,"","","",null,null,null,null,null,null,""]
[null,null,"","","",null,null,null,null,null,null,""]
[null,null,"","","",null,null,null,null,null,null,""]
[null,null,"","","",null,null,null,null,null,null,""]
[null,null,"","","",null,null,null,null,null,null,""]
[null,null,"","","",null,null,null,null,null,null,""]
[null,null,"","","",null,null,null,null,null,null,""]
[null,null,"","","",null,null,null,null,null,null,""]
[null,null,"","","",null,null,null,null,null,null,""]
[null,null,"","","",null,null,null,null,null,null,""]
[null,null,"","","",null,null,null,null,null,null,""]
[null,null,"","","",null,null,null,null,null,null,""]
[null,null,"","","",null,null,null,null,null,null,""]
[null,null,"","","",null,null,null,null,null,null,""]
[null,null,"","","",null,null,null,null,null,null,""]
[null,null,"","","",null,null,null,null,null,null,""]
[null,null,"","","",null,null,null,null,null,null,""]
[null,null,"","","",null,null,null,null,null,null,""]
[null,null,"","","",null,null,null,null,null,null,""]
[null,null,{"$f":"IF(B3030=\"\",\"\",VLOOKUP(B3030,itemsdata,2,\"false\"))","v":""},{"$f":"IF(B3030=\"\",\"\",VLOOKUP(B3030,itemsdata,5,\"false\"))","v":""},"",null,null,null,null,null,null,""]
[null,null,"","","",null,null,null,null,null,null,""]
[null,null,"","","",null,null,null,null,null,null,""]
[null,null,"","","",null,null,null,null,null,null,""]
[null,null,"","","",null,null,null,null,null,null,""]
[null,null,"","","",null,null,null,null,null,null,""]
[null,null,"","","",null,null,null,null,null,null,""]
[null,null,"","","",null,null,null,null,null,null,""]
[null,null,"","","",null,null,null,null,null,null,""]
[null,null,"","","",null,null,null,null,null,null,""]
[null,null,"","","",null,null,null,null,null,null,""]
[null,null,"","","",null,null,null,null,null,null,""]
[null,null,"","","",null,null,null,null,null,null,""]
[null,null,"","","",null,null,null,null,null,null,""]
[null,null,"","","",null,null,null,null,null,null,""]
[null,null,"","","",null,null,null,null,null,null,""]
[null,null,"","","",null,null,null,null,null,null,""]
[null,null,"","","",null,null,null,null,null,null,""]
[null,null,"","","",null,null,null,null,null,null,""]
[null,null,"","","",null,null,null,null,null,null,""]
[null,null,"","","",null,null,null,null,null,null,""]
[null,null,"","","",null,null,null,null,null,null,""]
[null,null,"","","",null,null,null,null,null,null,""]
[null,null,"","","",null,null,null,null,null,null,""]
[null,null,"","","",null,null,null,null,null,null,""]
[null,null,"","","",null,null,null,null,null,null,""]
[null,null,"","","",null,null,null,null,null,null,""]
[null,null,"","","",null,null,null,null,null,null,""]
[null,null,"","","",null,null,null,null,null,null,""]
[null,null,"","","",null,null,null,null,null,null,""]
[null,null,"","","",null,null,null,null,null,null,""]
[null,null,"","","",null,null,null,null,null,null,""]
[null,null,"","","",null,null,null,null,null,null,""]
[null,null,"","","",null,null,null,null,null,null,""]
[null,null,"","","",null,null,null,null,null,null,""]
[null,null,"","","",null,null,null,null,null,null,""]
[null,null,"","","",null,null,null,null,null,null,""]
[null,null,"","","",null,null,null,null,null,null,""]
[null,null,"","","",null,null,null,null,null,null,""]
[null,null,"","",{"$f":"IF(B3069=\"\",\"\",VLOOKUP(B3069,itemsdata,3,\"false\"))","v":""},null,null,null,null,null,null,""]
[null,null,"","","",null,null,null,null,null,null,{"$f":"IF(G3070<>\"\",IF(F3070=\"sell\",D3070*G3070,-D3070*G3070),\"\")","v":""}]
[null,null,"","","",null,null,null,null,null,null,""]
[null,null,"","","",null,null,null,null,null,null,""]
[null,null,"","","",null,null,null,null,null,null,""]
[null,null,"","","",null,null,null,null,null,null,""]
[null,null,"","","",null,null,null,null,null,null,""]
[null,null,"","","",null,null,null,null,null,null,""]
[null,null,"","","",null,null,null,null,null,null,""]
[null,null,"","","",null,null,null,null,null,null,""]
[null,null,"","","",null,null,null,null,null,null,""]
[null,null,"","","",null,null,null,null,null,null,""]
[null,null,"","","",null,null,null,null,null,null,""]
[null,null,"","","",null,null,null,null,null,null,""]
[null,null,"","","",null,null,null,null,null,null,""]
[null,null,"","","",null,null,null,null,null,null,""]
[null,null,"","","",null,null,null,null,null,null,""]
[null,null,"","","",null,null,null,null,null,null,""]
[null,null,"","","",null,null,null,null,null,null,""]
[null,null,"","","",null,null,null,null,null,null,""]
[null,null,"","","",null,null,null,null,null,null,""]
[null,null,"","","",null,null,null,null,null,null,""]
[null,null,"","","",null,null,null,null,null,null,""]
[null,null,"","","",null,null,null,null,null,null,""]
[null,null,"","","",null,null,null,null,null,null,""]
[null,null,{"$f":"IF(B3094=\"\",\"\",VLOOKUP(B3094,itemsdata,2,\"false\"))","v":""},{"$f":"IF(B3094=\"\",\"\",VLOOKUP(B3094,itemsdata,5,\"false\"))","v":""},"",null,null,null,null,null,null,""]
[null,null,"","","",null,null,null,null,null,null,""]
[null,null,"","","",null,null,null,null,null,null,""]
[null,null,"","","",null,null,null,null,null,null,""]
[null,null,"","","",null,null,null,null,null,null,""]
[null,null,"","","",null,null,null,null,null,null,""]
[null,null,"","","",null,null,null,null,null,null,""]
[null,null,"","","",null,null,null,null,null,null,""]
[null,null,"","","",null,null,null,null,null,null,""]
[null,null,"","","",null,null,null,null,null,null,""]
[null,null,"","","",null,null,null,null,null,null,""]
[null,null,"","","",null,null,null,null,null,null,""]
[null,null,"","","",null,null,null,null,null,null,""]
[null,null,"","","",null,null,null,null,null,null,""]
[null,null,"","","",null,null,null,null,null,null,""]
[null,null,"","","",null,null,null,null,null,null,""]
[null,null,"","","",null,null,null,null,null,null,""]
[null,null,"","","",null,null,null,null,null,null,""]
[null,null,"","","",null,null,null,null,null,null,""]
[null,null,"","","",null,null,null,null,null,null,""]
[null,null,"","","",null,null,null,null,null,null,""]
[null,null,"","","",null,null,null,null,null,null,""]
[null,null,"","","",null,null,null,null,null,null,""]
[null,null,"","","",null,null,null,null,null,null,""]
[null,null,"","","",null,null,null,null,null,null,""]
[null,null,"","","",null,null,null,null,null,null,""]
[null,null,"","","",null,null,null,null,null,null,""]
[null,null,"","","",null,null,null,null,null,null,""]
[null,null,"","","",null,null,null,null,null,null,""]
[null,null,"","","",null,null,null,null,null,null,""]
[null,null,"","","",null,null,null,null,null,null,""]
[null,null,"","","",null,null,null,null,null,null,""]
[null,null,"","","",null,null,null,null,null,null,""]
[null,null,"","","",null,null,null,null,null,null,""]
[null,null,"","","",null,null,null,null,null,null,""]
[null,null,"","","",null,null,null,null,null,null,""]
[null,null,"","","",null,null,null,null,null,null,""]
[null,null,"","","",null,null,null,null,null,null,""]
[null,null,"","","",null,null,null,null,null,null,""]
[null,null,"","",{"$f":"IF(B3133=\"\",\"\",VLOOKUP(B3133,itemsdata,3,\"false\"))","v":""},null,null,null,null,null,null,""]
[null,null,"","","",null,null,null,null,null,null,{"$f":"IF(G3134<>\"\",IF(F3134=\"sell\",D3134*G3134,-D3134*G3134),\"\")","v":""}]
[null,null,"","","",null,null,null,null,null,null,""]
[null,null,"","","",null,null,null,null,null,null,""]
[null,null,"","","",null,null,null,null,null,null,""]
[null,null,"","","",null,null,null,null,null,null,""]
[null,null,"","","",null,null,null,null,null,null,""]
[null,null,"","","",null,null,null,null,null,null,""]
[null,null,"","","",null,null,null,null,null,null,""]
[null,null,"","","",null,null,null,null,null,null,""]
[null,null,"","","",null,null,null,null,null,null,""]
[null,null,"","","",null,null,null,null,null,null,""]
[null,null,"","","",null,null,null,null,null,null,""]
[null,null,"","","",null,null,null,null,null,null,""]
[null,null,"","","",null,null,null,null,null,null,""]
[null,null,"","","",null,null,null,null,null,null,""]
[null,null,"","","",null,null,null,null,null,null,""]
[null,null,"","","",null,null,null,null,null,null,""]
[null,null,"","","",null,null,null,null,null,null,""]
[null,null,"","","",null,null,null,null,null,null,""]
[null,null,"","","",null,null,null,null,null,null,""]
[null,null,"","","",null,null,null,null,null,null,""]
[null,null,"","","",null,null,null,null,null,null,""]
[null,null,"","","",null,null,null,null,null,null,""]
[null,null,"","","",null,null,null,null,null,null,""]
[null,null,{"$f":"IF(B3158=\"\",\"\",VLOOKUP(B3158,itemsdata,2,\"false\"))","v":""},{"$f":"IF(B3158=\"\",\"\",VLOOKUP(B3158,itemsdata,5,\"false\"))","v":""},"",null,null,null,null,null,null,""]
[null,null,"","","",null,null,null,null,null,null,""]
[null,null,"","","",null,null,null,null,null,null,""]
[null,null,"","","",null,null,null,null,null,null,""]
[null,null,"","","",null,null,null,null,null,null,""]
[null,null,"","","",null,null,null,null,null,null,""]
[null,null,"","","",null,null,null,null,null,null,""]
[null,null,"","","",null,null,null,null,null,null,""]
[null,null,"","","",null,null,null,null,null,null,""]
[null,null,"","","",null,null,null,null,null,null,""]
[null,null,"","","",null,null,null,null,null,null,""]
[null,null,"","","",null,null,null,null,null,null,""]
[null,null,"","","",null,null,null,null,null,null,""]
[null,null,"","","",null,null,null,null,null,null,""]
[null,null,"","","",null,null,null,null,null,null,""]
[null,null,"","","",null,null,null,null,null,null,""]
[null,null,"","","",null,null,null,null,null,null,""]
[null,null,"","","",null,null,null,null,null,null,""]
[null,null,"","","",null,null,null,null,null,null,""]
[null,null,"","","",null,null,null,null,null,null,""]
[null,null,"","","",null,null,null,null,null,null,""]
[null,null,"","","",null,null,null,null,null,null,""]
[null,null,"","","",null,null,null,null,null,null,""]
[null,null,"","","",null,null,null,null,null,null,""]
[null,null,"","","",null,null,null,null,null,null,""]
[null,null,"","","",null,null,null,null,null,null,""]
[null,null,"","","",null,null,null,null,null,null,""]
[null,null,"","","",null,null,null,null,null,null,""]
[null,null,"","","",null,null,null,null,null,null,""]
[null,null,"","","",null,null,null,null,null,null,""]
[null,null,"","","",null,null,null,null,null,null,""]
[null,null,"","","",null,null,null,null,null,null,""]
[null,null,"","","",null,null,null,null,null,null,""]
[null,null,"","","",null,null,null,null,null,null,""]
[null,null,"","","",null,null,null,null,null,null,""]
[null,null,"","","",null,null,null,null,null,null,""]
[null,null,"","","",null,null,null,null,null,null,""]
[null,null,"","","",null,null,null,null,null,null,""]
[null,null,"","","",null,null,null,null,null,null,""]
[null,null,"","",{"$f":"IF(B3197=\"\",\"\",VLOOKUP(B3197,itemsdata,3,\"false\"))","v":""},null,null,null,null,null,null,""]
[null,null,"","","",null,null,null,null,null,null,{"$f":"IF(G3198<>\"\",IF(F3198=\"sell\",D3198*G3198,-D3198*G3198),\"\")","v":""}]
[null,null,"","","",null,null,null,null,null,null,""]
[null,null,"","","",null,null,null,null,null,null,""]
[null,null,"","","",null,null,null,null,null,null,""]
[null,null,"","","",null,null,null,null,null,null,""]
[null,null,"","","",null,null,null,null,null,null,""]
[null,null,"","","",null,null,null,null,null,null,""]
[null,null,"","","",null,null,null,null,null,null,""]
[null,null,"","","",null,null,null,null,null,null,""]
[null,null,"","","",null,null,null,null,null,null,""]
[null,null,"","","",null,null,null,null,null,null,""]
[null,null,"","","",null,null,null,null,null,null,""]
[null,null,"","","",null,null,null,null,null,null,""]
[null,null,"","","",null,null,null,null,null,null,""]
[null,null,"","","",null,null,null,null,null,null,""]
[null,null,"","","",null,null,null,null,null,null,""]
[null,null,"","","",null,null,null,null,null,null,""]
[null,null,"","","",null,null,null,null,null,null,""]
[null,null,"","","",null,null,null,null,null,null,""]
[null,null,"","","",null,null,null,null,null,null,""]
[null,null,"","","",null,null,null,null,null,null,""]
[null,null,"","","",null,null,null,null,null,null,""]
[null,null,"","","",null,null,null,null,null,null,""]
[null,null,"","","",null,null,null,null,null,null,""]
[null,null,{"$f":"IF(B3222=\"\",\"\",VLOOKUP(B3222,itemsdata,2,\"false\"))","v":""},{"$f":"IF(B3222=\"\",\"\",VLOOKUP(B3222,itemsdata,5,\"false\"))","v":""},"",null,null,null,null,null,null,""]
[null,null,"","","",null,null,null,null,null,null,""]
[null,null,"","","",null,null,null,null,null,null,""]
[null,null,"","","",null,null,null,null,null,null,""]
[null,null,"","","",null,null,null,null,null,null,""]
[null,null,"","","",null,null,null,null,null,null,""]
[null,null,"","","",null,null,null,null,null,null,""]
[null,null,"","","",null,null,null,null,null,null,""]
[null,null,"","","",null,null,null,null,null,null,""]
[null,null,"","","",null,null,null,null,null,null,""]
[null,null,"","","",null,null,null,null,null,null,""]
[null,null,"","","",null,null,null,null,null,null,""]
[null,null,"","","",null,null,null,null,null,null,""]
[null,null,"","","",null,null,null,null,null,null,""]
[null,null,"","","",null,null,null,null,null,null,""]
[null,null,"","","",null,null,null,null,null,null,""]
[null,null,"","","",null,null,null,null,null,null,""]
[null,null,"","","",null,null,null,null,null,null,""]
[null,null,"","","",null,null,null,null,null,null,""]
[null,null,"","","",null,null,null,null,null,null,""]
[null,null,"","","",null,null,null,null,null,null,""]
[null,null,"","","",null,null,null,null,null,null,""]
[null,null,"","","",null,null,null,null,null,null,""]
[null,null,"","","",null,null,null,null,null,null,""]
[null,null,"","","",null,null,null,null,null,null,""]
[null,null,"","","",null,null,null,null,null,null,""]
[null,null,"","","",null,null,null,null,null,null,""]
[null,null,"","","",null,null,null,null,null,null,""]
[null,null,"","","",null,null,null,null,null,null,""]
[null,null,"","","",null,null,null,null,null,null,""]
[null,null,"","","",null,null,null,null,null,null,""]
[null,null,"","","",null,null,null,null,null,null,""]
[null,null,"","","",null,null,null,null,null,null,""]
[null,null,"","","",null,null,null,null,null,null,""]
[null,null,"","","",null,null,null,null,null,null,""]
[null,null,"","","",null,null,null,null,null,null,""]
[null,null,"","","",null,null,null,null,null,null,""]
[null,null,"","","",null,null,null,null,null,null,""]
[null,null,"","","",null,null,null,null,null,null,""]
[null,null,"","",{"$f":"IF(B3261=\"\",\"\",VLOOKUP(B3261,itemsdata,3,\"false\"))","v":""},null,null,null,null,null,null,""]
[null,null,"","","",null,null,null,null,null,null,{"$f":"IF(G3262<>\"\",IF(F3262=\"sell\",D3262*G3262,-D3262*G3262),\"\")","v":""}]
[null,null,"","","",null,null,null,null,null,null,""]
[null,null,"","","",null,null,null,null,null,null,""]
[null,null,"","","",null,null,null,null,null,null,""]
[null,null,"","","",null,null,null,null,null,null,""]
[null,null,"","","",null,null,null,null,null,null,""]
[null,null,"","","",null,null,null,null,null,null,""]
[null,null,"","","",null,null,null,null,null,null,""]
[null,null,"","","",null,null,null,null,null,null,""]
[null,null,"","","",null,null,null,null,null,null,""]
[null,null,"","","",null,null,null,null,null,null,""]
[null,null,"","","",null,null,null,null,null,null,""]
[null,null,"","","",null,null,null,null,null,null,""]
[null,null,"","","",null,null,null,null,null,null,""]
[null,null,"","","",null,null,null,null,null,null,""]
[null,null,"","","",null,null,null,null,null,null,""]
[null,null,"","","",null,null,null,null,null,null,""]
[null,null,"","","",null,null,null,null,null,null,""]
[null,null,"","","",null,null,null,null,null,null,""]
[null,null,"","","",null,null,null,null,null,null,""]
[null,null,"","","",null,null,null,null,null,null,""]
[null,null,"","","",null,null,null,null,null,null,""]
[null,null,"","","",null,null,null,null,null,null,""]
[null,null,"","","",null,null,null,null,null,null,""]
[null,null,{"$f":"IF(B3286=\"\",\"\",VLOOKUP(B3286,itemsdata,2,\"false\"))","v":""},{"$f":"IF(B3286=\"\",\"\",VLOOKUP(B3286,itemsdata,5,\"false\"))","v":""},"",null,null,null,null,null,null,""]
[null,null,"","","",null,null,null,null,null,null,""]
[null,null,"","","",null,null,null,null,null,null,""]
[null,null,"","","",null,null,null,null,null,null,""]
[null,null,"","","",null,null,null,null,null,null,""]
[null,null,"","","",null,null,null,null,null,null,""]
[null,null,"","","",null,null,null,null,null,null,""]
[null,null,"","","",null,null,null,null,null,null,""]
[null,null,"","","",null,null,null,null,null,null,""]
[null,null,"","","",null,null,null,null,null,null,""]
[null,null,"","","",null,null,null,null,null,null,""]
[null,null,"","","",null,null,null,null,null,null,""]
[null,null,"","","",null,null,null,null,null,null,""]
[null,null,"","","",null,null,null,null,null,null,""]
[null,null,"","","",null,null,null,null,null,null,""]
[null,null,"","","",null,null,null,null,null,null,""]
[null,null,"","","",null,null,null,null,null,null,""]
[null,null,"","","",null,null,null,null,null,null,""]
[null,null,"","","",null,null,null,null,null,null,""]
[null,null,"","","",null,null,null,null,null,null,""]
[null,null,"","","",null,null,null,null,null,null,""]
[null,null,"","","",null,null,null,null,null,null,""]
[null,null,"","","",null,null,null,null,null,null,""]
[null,null,"","","",null,null,null,null,null,null,""]
[null,null,"","","",null,null,null,null,null,null,""]
[null,null,"","","",null,null,null,null,null,null,""]
[null,null,"","","",null,null,null,null,null,null,""]
[null,null,"","","",null,null,null,null,null,null,""]
[null,null,"","","",null,null,null,null,null,null,""]
[null,null,"","","",null,null,null,null,null,null,""]
[null,null,"","","",null,null,null,null,null,null,""]
[null,null,"","","",null,null,null,null,null,null,""]
[null,null,"","","",null,null,null,null,null,null,""]
[null,null,"","","",null,null,null,null,null,null,""]
[null,null,"","","",null,null,null,null,null,null,""]
[null,null,"","","",null,null,null,null,null,null,""]
[null,null,"","","",null,null,null,null,null,null,""]
[null,null,"","","",null,null,null,null,null,null,""]
[null,null,"","","",null,null,null,null,null,null,""]
[null,null,"","",{"$f":"IF(B3325=\"\",\"\",VLOOKUP(B3325,itemsdata,3,\"false\"))","v":""},null,null,null,null,null,null,""]
[null,null,"","","",null,null,null,null,null,null,{"$f":"IF(G3326<>\"\",IF(F3326=\"sell\",D3326*G3326,-D3326*G3326),\"\")","v":""}]
[null,null,"","","",null,null,null,null,null,null,""]
[null,null,"","","",null,null,null,null,null,null,""]
[null,null,"","","",null,null,null,null,null,null,""]
[null,null,"","","",null,null,null,null,null,null,""]
[null,null,"","","",null,null,null,null,null,null,""]
[null,null,"","","",null,null,null,null,null,null,""]
[null,null,"","","",null,null,null,null,null,null,""]
[null,null,"","","",null,null,null,null,null,null,""]
[null,null,"","","",null,null,null,null,null,null,""]
[null,null,"","","",null,null,null,null,null,null,""]
[null,null,"","","",null,null,null,null,null,null,""]
[null,null,"","","",null,null,null,null,null,null,""]
[null,null,"","","",null,null,null,null,null,null,""]
[null,null,"","","",null,null,null,null,null,null,""]
[null,null,"","","",null,null,null,null,null,null,""]
[null,null,"","","",null,null,null,null,null,null,""]
[null,null,"","","",null,null,null,null,null,null,""]
[null,null,"","","",null,null,null,null,null,null,""]
[null,null,"","","",null,null,null,null,null,null,""]
[null,null,"","","",null,null,null,null,null,null,""]
[null,null,"","","",null,null,null,null,null,null,""]
[null,null,"","","",null,null,null,null,null,null,""]
[null,null,"","","",null,null,null,null,null,null,""]
[null,null,{"$f":"IF(B3350=\"\",\"\",VLOOKUP(B3350,itemsdata,2,\"false\"))","v":""},{"$f":"IF(B3350=\"\",\"\",VLOOKUP(B3350,itemsdata,5,\"false\"))","v":""},"",null,null,null,null,null,null,""]
[null,null,"","","",null,null,null,null,null,null,""]
[null,null,"","","",null,null,null,null,null,null,""]
[null,null,"","","",null,null,null,null,null,null,""]
[null,null,"","","",null,null,null,null,null,null,""]
[null,null,"","","",null,null,null,null,null,null,""]
[null,null,"","","",null,null,null,null,null,null,""]
[null,null,"","","",null,null,null,null,null,null,""]
[null,null,"","","",null,null,null,null,null,null,""]
[null,null,"","","",null,null,null,null,null,null,""]
[null,null,"","","",null,null,null,null,null,null,""]
[null,null,"","","",null,null,null,null,null,null,""]
[null,null,"","","",null,null,null,null,null,null,""]
[null,null,"","","",null,null,null,null,null,null,""]
[null,null,"","","",null,null,null,null,null,null,""]
[null,null,"","","",null,null,null,null,null,null,""]
[null,null,"","","",null,null,null,null,null,null,""]
[null,null,"","","",null,null,null,null,null,null,""]
[null,null,"","","",null,null,null,null,null,null,""]
[null,null,"","","",null,null,null,null,null,null,""]
[null,null,"","","",null,null,null,null,null,null,""]
[null,null,"","","",null,null,null,null,null,null,""]
[null,null,"","","",null,null,null,null,null,null,""]
[null,null,"","","",null,null,null,null,null,null,""]
[null,null,"","","",null,null,null,null,null,null,""]
[null,null,"","","",null,null,null,null,null,null,""]
[null,null,"","","",null,null,null,null,null,null,""]
[null,null,"","","",null,null,null,null,null,null,""]
[null,null,"","","",null,null,null,null,null,null,""]
[null,null,"","","",null,null,null,null,null,null,""]
[null,null,"","","",null,null,null,null,null,null,""]
[null,null,"","","",null,null,null,null,null,null,""]
[null,null,"","","",null,null,null,null,null,null,""]
[null,null,"","","",null,null,null,null,null,null,""]
[null,null,"","","",null,null,null,null,null,null,""]
[null,null,"","","",null,null,null,null,null,null,""]
[null,null,"","","",null,null,null,null,null,null,""]
[null,null,"","","",null,null,null,null,null,null,""]
[null,null,"","","",null,null,null,null,null,null,""]
[null,null,"","",{"$f":"IF(B3389=\"\",\"\",VLOOKUP(B3389,itemsdata,3,\"false\"))","v":""},null,null,null,null,null,null,""]
[null,null,"","","",null,null,null,null,null,null,{"$f":"IF(G3390<>\"\",IF(F3390=\"sell\",D3390*G3390,-D3390*G3390),\"\")","v":""}]
[null,null,"","","",null,null,null,null,null,null,""]
[null,null,"","","",null,null,null,null,null,null,""]
[null,null,"","","",null,null,null,null,null,null,""]
[null,null,"","","",null,null,null,null,null,null,""]
[null,null,"","","",null,null,null,null,null,null,""]
[null,null,"","","",null,null,null,null,null,null,""]
[null,null,"","","",null,null,null,null,null,null,""]
[null,null,"","","",null,null,null,null,null,null,""]
[null,null,"","","",null,null,null,null,null,null,""]
[null,null,"","","",null,null,null,null,null,null,""]
[null,null,"","","",null,null,null,null,null,null,""]
[null,null,"","","",null,null,null,null,null,null,""]
[null,null,"","","",null,null,null,null,null,null,""]
[null,null,"","","",null,null,null,null,null,null,""]
[null,null,"","","",null,null,null,null,null,null,""]
[null,null,"","","",null,null,null,null,null,null,""]
[null,null,"","","",null,null,null,null,null,null,""]
[null,null,"","","",null,null,null,null,null,null,""]
[null,null,"","","",null,null,null,null,null,null,""]
[null,null,"","","",null,null,null,null,null,null,""]
[null,null,"","","",null,null,null,null,null,null,""]
[null,null,"","","",null,null,null,null,null,null,""]
[null,null,"","","",null,null,null,null,null,null,""]
[null,null,{"$f":"IF(B3414=\"\",\"\",VLOOKUP(B3414,itemsdata,2,\"false\"))","v":""},{"$f":"IF(B3414=\"\",\"\",VLOOKUP(B3414,itemsdata,5,\"false\"))","v":""},"",null,null,null,null,null,null,""]
[null,null,"","","",null,null,null,null,null,null,""]
[null,null,"","","",null,null,null,null,null,null,""]
[null,null,"","","",null,null,null,null,null,null,""]
[null,null,"","","",null,null,null,null,null,null,""]
[null,null,"","","",null,null,null,null,null,null,""]
[null,null,"","","",null,null,null,null,null,null,""]
[null,null,"","","",null,null,null,null,null,null,""]
[null,null,"","","",null,null,null,null,null,null,""]
[null,null,"","","",null,null,null,null,null,null,""]
[null,null,"","","",null,null,null,null,null,null,""]
[null,null,"","","",null,null,null,null,null,null,""]
[null,null,"","","",null,null,null,null,null,null,""]
[null,null,"","","",null,null,null,null,null,null,""]
[null,null,"","","",null,null,null,null,null,null,""]
[null,null,"","","",null,null,null,null,null,null,""]
[null,null,"","","",null,null,null,null,null,null,""]
[null,null,"","","",null,null,null,null,null,null,""]
[null,null,"","","",null,null,null,null,null,null,""]
[null,null,"","","",null,null,null,null,null,null,""]
[null,null,"","","",null,null,null,null,null,null,""]
[null,null,"","","",null,null,null,null,null,null,""]
[null,null,"","","",null,null,null,null,null,null,""]
[null,null,"","","",null,null,null,null,null,null,""]
[null,null,"","","",null,null,null,null,null,null,""]
[null,null,"","","",null,null,null,null,null,null,""]
[null,null,"","","",null,null,null,null,null,null,""]
[null,null,"","","",null,null,null,null,null,null,""]
[null,null,"","","",null,null,null,null,null,null,""]
[null,null,"","","",null,null,null,null,null,null,""]
[null,null,"","","",null,null,null,null,null,null,""]
[null,null,"","","",null,null,null,null,null,null,""]
[null,null,"","","",null,null,null,null,null,null,""]
[null,null,"","","",null,null,null,null,null,null,""]
[null,null,"","","",null,null,null,null,null,null,""]
[null,null,"","","",null,null,null,null,null,null,""]
[null,null,"","","",null,null,null,null,null,null,""]
[null,null,"","","",null,null,null,null,null,null,""]
[null,null,"","","",null,null,null,null,null,null,""]
[null,null,"","",{"$f":"IF(B3453=\"\",\"\",VLOOKUP(B3453,itemsdata,3,\"false\"))","v":""},null,null,null,null,null,null,""]
[null,null,"","","",null,null,null,null,null,null,{"$f":"IF(G3454<>\"\",IF(F3454=\"sell\",D3454*G3454,-D3454*G3454),\"\")","v":""}]
[null,null,"","","",null,null,null,null,null,null,""]
[null,null,"","","",null,null,null,null,null,null,""]
[null,null,"","","",null,null,null,null,null,null,""]
[null,null,"","","",null,null,null,null,null,null,""]
[null,null,"","","",null,null,null,null,null,null,""]
[null,null,"","","",null,null,null,null,null,null,""]
[null,null,"","","",null,null,null,null,null,null,""]
[null,null,"","","",null,null,null,null,null,null,""]
[null,null,"","","",null,null,null,null,null,null,""]
[null,null,"","","",null,null,null,null,null,null,""]
[null,null,"","","",null,null,null,null,null,null,""]
[null,null,"","","",null,null,null,null,null,null,""]
[null,null,"","","",null,null,null,null,null,null,""]
[null,null,"","","",null,null,null,null,null,null,""]
[null,null,"","","",null,null,null,null,null,null,""]
[null,null,"","","",null,null,null,null,null,null,""]
[null,null,"","","",null,null,null,null,null,null,""]
[null,null,"","","",null,null,null,null,null,null,""]
[null,null,"","","",null,null,null,null,null,null,""]
[null,null,"","","",null,null,null,null,null,null,""]
[null,null,"","","",null,null,null,null,null,null,""]
[null,null,"","","",null,null,null,null,null,null,""]
[null,null,"","","",null,null,null,null,null,null,""]
[null,null,{"$f":"IF(B3478=\"\",\"\",VLOOKUP(B3478,itemsdata,2,\"false\"))","v":""},{"$f":"IF(B3478=\"\",\"\",VLOOKUP(B3478,itemsdata,5,\"false\"))","v":""},"",null,null,null,null,null,null,""]
[null,null,"","","",null,null,null,null,null,null,""]
[null,null,"","","",null,null,null,null,null,null,""]
[null,null,"","","",null,null,null,null,null,null,""]
[null,null,"","","",null,null,null,null,null,null,""]
[null,null,"","","",null,null,null,null,null,null,""]
[null,null,"","","",null,null,null,null,null,null,""]
[null,null,"","","",null,null,null,null,null,null,""]
[null,null,"","","",null,null,null,null,null,null,""]
[null,null,"","","",null,null,null,null,null,null,""]
[null,null,"","","",null,null,null,null,null,null,""]
[null,null,"","","",null,null,null,null,null,null,""]
[null,null,"","","",null,null,null,null,null,null,""]
[null,null,"","","",null,null,null,null,null,null,""]
[null,null,"","","",null,null,null,null,null,null,""]
[null,null,"","","",null,null,null,null,null,null,""]
[null,null,"","","",null,null,null,null,null,null,""]
[null,null,"","","",null,null,null,null,null,null,""]
[null,null,"","","",null,null,null,null,null,null,""]
[null,null,"","","",null,null,null,null,null,null,""]
[null,null,"","","",null,null,null,null,null,null,""]
[null,null,"","","",null,null,null,null,null,null,""]
[null,null,"","","",null,null,null,null,null,null,""]
[null,null,"","","",null,null,null,null,null,null,""]
[null,null,"","","",null,null,null,null,null,null,""]
[null,null,"","","",null,null,null,null,null,null,""]
[null,null,"","","",null,null,null,null,null,null,""]
[null,null,"","","",null,null,null,null,null,null,""]
[null,null,"","","",null,null,null,null,null,null,""]
[null,null,"","","",null,null,null,null,null,null,""]
[null,null,"","","",null,null,null,null,null,null,""]
[null,null,"","","",null,null,null,null,null,null,""]
[null,null,"","","",null,null,null,null,null,null,""]
[null,null,"","","",null,null,null,null,null,null,""]
[null,null,"","","",null,null,null,null,null,null,""]
[null,null,"","","",null,null,null,null,null,null,""]
[null,null,"","","",null,null,null,null,null,null,""]
[null,null,"","","",null,null,null,null,null,null,""]
[null,null,"","","",null,null,null,null,null,null,""]
[null,null,"","",{"$f":"IF(B3517=\"\",\"\",VLOOKUP(B3517,itemsdata,3,\"false\"))","v":""},null,null,null,null,null,null,""]
[null,null,"","","",null,null,null,null,null,null,{"$f":"IF(G3518<>\"\",IF(F3518=\"sell\",D3518*G3518,-D3518*G3518),\"\")","v":""}]
[null,null,"","","",null,null,null,null,null,null,""]
[null,null,"","","",null,null,null,null,null,null,""]
[null,null,"","","",null,null,null,null,null,null,""]
[null,null,"","","",null,null,null,null,null,null,""]
[null,null,"","","",null,null,null,null,null,null,""]
[null,null,"","","",null,null,null,null,null,null,""]
[null,null,"","","",null,null,null,null,null,null,""]
[null,null,"","","",null,null,null,null,null,null,""]
[null,null,"","","",null,null,null,null,null,null,""]
[null,null,"","","",null,null,null,null,null,null,""]
[null,null,"","","",null,null,null,null,null,null,""]
[null,null,"","","",null,null,null,null,null,null,""]
[null,null,"","","",null,null,null,null,null,null,""]
[null,null,"","","",null,null,null,null,null,null,""]
[null,null,"","","",null,null,null,null,null,null,""]
[null,null,"","","",null,null,null,null,null,null,""]
[null,null,"","","",null,null,null,null,null,null,""]
[null,null,"","","",null,null,null,null,null,null,""]
[null,null,"","","",null,null,null,null,null,null,""]
[null,null,"","","",null,null,null,null,null,null,""]
[null,null,"","","",null,null,null,null,null,null,""]
[null,null,"","","",null,null,null,null,null,null,""]
[null,null,"","","",null,null,null,null,null,null,""]
[null,null,{"$f":"IF(B3542=\"\",\"\",VLOOKUP(B3542,itemsdata,2,\"false\"))","v":""},{"$f":"IF(B3542=\"\",\"\",VLOOKUP(B3542,itemsdata,5,\"false\"))","v":""},"",null,null,null,null,null,null,""]
[null,null,"","","",null,null,null,null,null,null,""]
[null,null,"","","",null,null,null,null,null,null,""]
[null,null,"","","",null,null,null,null,null,null,""]
[null,null,"","","",null,null,null,null,null,null,""]
[null,null,"","","",null,null,null,null,null,null,""]
[null,null,"","","",null,null,null,null,null,null,""]
[null,null,"","","",null,null,null,null,null,null,""]
[null,null,"","","",null,null,null,null,null,null,""]
[null,null,"","","",null,null,null,null,null,null,""]
[null,null,"","","",null,null,null,null,null,null,""]
[null,null,"","","",null,null,null,null,null,null,""]
[null,null,"","","",null,null,null,null,null,null,""]
[null,null,"","","",null,null,null,null,null,null,""]
[null,null,"","","",null,null,null,null,null,null,""]
[null,null,"","","",null,null,null,null,null,null,""]
[null,null,"","","",null,null,null,null,null,null,""]
[null,null,"","","",null,null,null,null,null,null,""]
[null,null,"","","",null,null,null,null,null,null,""]
[null,null,"","","",null,null,null,null,null,null,""]
[null,null,"","","",null,null,null,null,null,null,""]
[null,null,"","","",null,null,null,null,null,null,""]
[null,null,"","","",null,null,null,null,null,null,""]
[null,null,"","","",null,null,null,null,null,null,""]
[null,null,"","","",null,null,null,null,null,null,""]
[null,null,"","","",null,null,null,null,null,null,""]
[null,null,"","","",null,null,null,null,null,null,""]
[null,null,"","","",null,null,null,null,null,null,""]
[null,null,"","","",null,null,null,null,null,null,""]
[null,null,"","","",null,null,null,null,null,null,""]
[null,null,"","","",null,null,null,null,null,null,""]
[null,null,"","","",null,null,null,null,null,null,""]
[null,null,"","","",null,null,null,null,null,null,""]
[null,null,"","","",null,null,null,null,null,null,""]
[null,null,"","","",null,null,null,null,null,null,""]
[null,null,"","","",null,null,null,null,null,null,""]
[null,null,"","","",null,null,null,null,null,null,""]
[null,null,"","","",null,null,null,null,null,null,""]
[null,null,"","","",null,null,null,null,null,null,""]
[null,null,"","",{"$f":"IF(B3581=\"\",\"\",VLOOKUP(B3581,itemsdata,3,\"false\"))","v":""},null,null,null,null,null,null,""]
[null,null,"","","",null,null,null,null,null,null,{"$f":"IF(G3582<>\"\",IF(F3582=\"sell\",D3582*G3582,-D3582*G3582),\"\")","v":""}]
[null,null,"","","",null,null,null,null,null,null,""]
[null,null,"","","",null,null,null,null,null,null,""]
[null,null,"","","",null,null,null,null,null,null,""]
[null,null,"","","",null,null,null,null,null,null,""]
[null,null,"","","",null,null,null,null,null,null,""]
[null,null,"","","",null,null,null,null,null,null,""]
[null,null,"","","",null,null,null,null,null,null,""]
[null,null,"","","",null,null,null,null,null,null,""]
[null,null,"","","",null,null,null,null,null,null,""]
[null,null,"","","",null,null,null,null,null,null,""]
[null,null,"","","",null,null,null,null,null,null,""]
[null,null,"","","",null,null,null,null,null,null,""]
[null,null,"","","",null,null,null,null,null,null,""]
[null,null,"","","",null,null,null,null,null,null,""]
[null,null,"","","",null,null,null,null,null,null,""]
[null,null,"","","",null,null,null,null,null,null,""]
[null,null,"","","",null,null,null,null,null,null,""]
[null,null,"","","",null,null,null,null,null,null,""]
[null,null,"","","",null,null,null,null,null,null,""]
[null,null,"","","",null,null,null,null,null,null,""]
[null,null,"","","",null,null,null,null,null,null,""]
[null,null,"","","",null,null,null,null,null,null,""]
[null,null,"","","",null,null,null,null,null,null,""]
[null,null,{"$f":"IF(B3606=\"\",\"\",VLOOKUP(B3606,itemsdata,2,\"false\"))","v":""},{"$f":"IF(B3606=\"\",\"\",VLOOKUP(B3606,itemsdata,5,\"false\"))","v":""},"",null,null,null,null,null,null,""]
[null,null,"","","",null,null,null,null,null,null,""]
[null,null,"","","",null,null,null,null,null,null,""]
[null,null,"","","",null,null,null,null,null,null,""]
[null,null,"","","",null,null,null,null,null,null,""]
[null,null,"","","",null,null,null,null,null,null,""]
[null,null,"","","",null,null,null,null,null,null,""]
[null,null,"","","",null,null,null,null,null,null,""]
[null,null,"","","",null,null,null,null,null,null,""]
[null,null,"","","",null,null,null,null,null,null,""]
[null,null,"","","",null,null,null,null,null,null,""]
[null,null,"","","",null,null,null,null,null,null,""]
[null,null,"","","",null,null,null,null,null,null,""]
[null,null,"","","",null,null,null,null,null,null,""]
[null,null,"","","",null,null,null,null,null,null,""]
[null,null,"","","",null,null,null,null,null,null,""]
[null,null,"","","",null,null,null,null,null,null,""]
[null,null,"","","",null,null,null,null,null,null,""]
[null,null,"","","",null,null,null,null,null,null,""]
[null,null,"","","",null,null,null,null,null,null,""]
[null,null,"","","",null,null,null,null,null,null,""]
[null,null,"","","",null,null,null,null,null,null,""]
[null,null,"","","",null,null,null,null,null,null,""]
[null,null,"","","",null,null,null,null,null,null,""]
[null,null,"","","",null,null,null,null,null,null,""]
[null,null,"","","",null,null,null,null,null,null,""]
[null,null,"","","",null,null,null,null,null,null,""]
[null,null,"","","",null,null,null,null,null,null,""]
[null,null,"","","",null,null,null,null,null,null,""]
[null,null,"","","",null,null,null,null,null,null,""]
[null,null,"","","",null,null,null,null,null,null,""]
[null,null,"","","",null,null,null,null,null,null,""]
[null,null,"","","",null,null,null,null,null,null,""]
[null,null,"","","",null,null,null,null,null,null,""]
[null,null,"","","",null,null,null,null,null,null,""]
[null,null,"","","",null,null,null,null,null,null,""]
[null,null,"","","",null,null,null,null,null,null,""]
[null,null,"","","",null,null,null,null,null,null,""]
[null,null,"","","",null,null,null,null,null,null,""]
[null,null,"","",{"$f":"IF(B3645=\"\",\"\",VLOOKUP(B3645,itemsdata,3,\"false\"))","v":""},null,null,null,null,null,null,""]
[null,null,"","","",null,null,null,null,null,null,{"$f":"IF(G3646<>\"\",IF(F3646=\"sell\",D3646*G3646,-D3646*G3646),\"\")","v":""}]
[null,null,"","","",null,null,null,null,null,null,""]
[null,null,"","","",null,null,null,null,null,null,""]
[null,null,"","","",null,null,null,null,null,null,""]
[null,null,"","","",null,null,null,null,null,null,""]
[null,null,"","","",null,null,null,null,null,null,""]
[null,null,"","","",null,null,null,null,null,null,""]
[null,null,"","","",null,null,null,null,null,null,""]
[null,null,"","","",null,null,null,null,null,null,""]
[null,null,"","","",null,null,null,null,null,null,""]
[null,null,"","","",null,null,null,null,null,null,""]
[null,null,"","","",null,null,null,null,null,null,""]
[null,null,"","","",null,null,null,null,null,null,""]
[null,null,"","","",null,null,null,null,null,null,""]
[null,null,"","","",null,null,null,null,null,null,""]
[null,null,"","","",null,null,null,null,null,null,""]
[null,null,"","","",null,null,null,null,null,null,""]
[null,null,"","","",null,null,null,null,null,null,""]
[null,null,"","","",null,null,null,null,null,null,""]
[null,null,"","","",null,null,null,null,null,null,""]
[null,null,"","","",null,null,null,null,null,null,""]
[null,null,"","","",null,null,null,null,null,null,""]
[null,null,"","","",null,null,null,null,null,null,""]
[null,null,"","","",null,null,null,null,null,null,""]
[null,null,{"$f":"IF(B3670=\"\",\"\",VLOOKUP(B3670,itemsdata,2,\"false\"))","v":""},{"$f":"IF(B3670=\"\",\"\",VLOOKUP(B3670,itemsdata,5,\"false\"))","v":""},"",null,null,null,null,null,null,""]
[null,null,"","","",null,null,null,null,null,null,""]
[null,null,"","","",null,null,null,null,null,null,""]
[null,null,"","","",null,null,null,null,null,null,""]
[null,null,"","","",null,null,null,null,null,null,""]
[null,null,"","","",null,null,null,null,null,null,""]
[null,null,"","","",null,null,null,null,null,null,""]
[null,null,"","","",null,null,null,null,null,null,""]
[null,null,"","","",null,null,null,null,null,null,""]
[null,null,"","","",null,null,null,null,null,null,""]
[null,null,"","","",null,null,null,null,null,null,""]
[null,null,"","","",null,null,null,null,null,null,""]
[null,null,"","","",null,null,null,null,null,null,""]
[null,null,"","","",null,null,null,null,null,null,""]
[null,null,"","","",null,null,null,null,null,null,""]
[null,null,"","","",null,null,null,null,null,null,""]
[null,null,"","","",null,null,null,null,null,null,""]
[null,null,"","","",null,null,null,null,null,null,""]
[null,null,"","","",null,null,null,null,null,null,""]
[null,null,"","","",null,null,null,null,null,null,""]
[null,null,"","","",null,null,null,null,null,null,""]
[null,null,"","","",null,null,null,null,null,null,""]
[null,null,"","","",null,null,null,null,null,null,""]
[null,null,"","","",null,null,null,null,null,null,""]
[null,null,"","","",null,null,null,null,null,null,""]
[null,null,"","","",null,null,null,null,null,null,""]
[null,null,"","","",null,null,null,null,null,null,""]
[null,null,"","","",null,null,null,null,null,null,""]
[null,null,"","","",null,null,null,null,null,null,""]
[null,null,"","","",null,null,null,null,null,null,""]
[null,null,"","","",null,null,null,null,null,null,""]
[null,null,"","","",null,null,null,null,null,null,""]
[null,null,"","","",null,null,null,null,null,null,""]
[null,null,"","","",null,null,null,null,null,null,""]
[null,null,"","","",null,null,null,null,null,null,""]
[null,null,"","","",null,null,null,null,null,null,""]
[null,null,"","","",null,null,null,null,null,null,""]
[null,null,"","","",null,null,null,null,null,null,""]
[null,null,"","","",null,null,null,null,null,null,""]
[null,null,"","",{"$f":"IF(B3709=\"\",\"\",VLOOKUP(B3709,itemsdata,3,\"false\"))","v":""},null,null,null,null,null,null,""]
[null,null,"","","",null,null,null,null,null,null,{"$f":"IF(G3710<>\"\",IF(F3710=\"sell\",D3710*G3710,-D3710*G3710),\"\")","v":""}]
[null,null,"","","",null,null,null,null,null,null,""]
[null,null,"","","",null,null,null,null,null,null,""]
[null,null,"","","",null,null,null,null,null,null,""]
[null,null,"","","",null,null,null,null,null,null,""]
[null,null,"","","",null,null,null,null,null,null,""]
[null,null,"","","",null,null,null,null,null,null,""]
[null,null,"","","",null,null,null,null,null,null,""]
[null,null,"","","",null,null,null,null,null,null,""]
[null,null,"","","",null,null,null,null,null,null,""]
[null,null,"","","",null,null,null,null,null,null,""]
[null,null,"","","",null,null,null,null,null,null,""]
[null,null,"","","",null,null,null,null,null,null,""]
[null,null,"","","",null,null,null,null,null,null,""]
[null,null,"","","",null,null,null,null,null,null,""]
[null,null,"","","",null,null,null,null,null,null,""]
[null,null,"","","",null,null,null,null,null,null,""]
[null,null,"","","",null,null,null,null,null,null,""]
[null,null,"","","",null,null,null,null,null,null,""]
[null,null,"","","",null,null,null,null,null,null,""]
[null,null,"","","",null,null,null,null,null,null,""]
[null,null,"","","",null,null,null,null,null,null,""]
[null,null,"","","",null,null,null,null,null,null,""]
[null,null,"","","",null,null,null,null,null,null,""]
[null,null,{"$f":"IF(B3734=\"\",\"\",VLOOKUP(B3734,itemsdata,2,\"false\"))","v":""},{"$f":"IF(B3734=\"\",\"\",VLOOKUP(B3734,itemsdata,5,\"false\"))","v":""},"",null,null,null,null,null,null,""]
[null,null,"","","",null,null,null,null,null,null,""]
[null,null,"","","",null,null,null,null,null,null,""]
[null,null,"","","",null,null,null,null,null,null,""]
[null,null,"","","",null,null,null,null,null,null,""]
[null,null,"","","",null,null,null,null,null,null,""]
[null,null,"","","",null,null,null,null,null,null,""]
[null,null,"","","",null,null,null,null,null,null,""]
[null,null,"","","",null,null,null,null,null,null,""]
[null,null,"","","",null,null,null,null,null,null,""]
[null,null,"","","",null,null,null,null,null,null,""]
[null,null,"","","",null,null,null,null,null,null,""]
[null,null,"","","",null,null,null,null,null,null,""]
[null,null,"","","",null,null,null,null,null,null,""]
[null,null,"","","",null,null,null,null,null,null,""]
[null,null,"","","",null,null,null,null,null,null,""]
[null,null,"","","",null,null,null,null,null,null,""]
[null,null,"","","",null,null,null,null,null,null,""]
[null,null,"","","",null,null,null,null,null,null,""]
[null,null,"","","",null,null,null,null,null,null,""]
[null,null,"","","",null,null,null,null,null,null,""]
[null,null,"","","",null,null,null,null,null,null,""]
[null,null,"","","",null,null,null,null,null,null,""]
[null,null,"","","",null,null,null,null,null,null,""]
[null,null,"","","",null,null,null,null,null,null,""]
[null,null,"","","",null,null,null,null,null,null,""]
[null,null,"","","",null,null,null,null,null,null,""]
[null,null,"","","",null,null,null,null,null,null,""]
[null,null,"","","",null,null,null,null,null,null,""]
[null,null,"","","",null,null,null,null,null,null,""]
[null,null,"","","",null,null,null,null,null,null,""]
[null,null,"","","",null,null,null,null,null,null,""]
[null,null,"","","",null,null,null,null,null,null,""]
[null,null,"","","",null,null,null,null,null,null,""]
[null,null,"","","",null,null,null,null,null,null,""]
[null,null,"","","",null,null,null,null,null,null,""]
[null,null,"","","",null,null,null,null,null,null,""]
[null,null,"","","",null,null,null,null,null,null,""]
[null,null,"","","",null,null,null,null,null,null,""]
[null,null,"","",{"$f":"IF(B3773=\"\",\"\",VLOOKUP(B3773,itemsdata,3,\"false\"))","v":""},null,null,null,null,null,null,""]
[null,null,"","","",null,null,null,null,null,null,{"$f":"IF(G3774<>\"\",IF(F3774=\"sell\",D3774*G3774,-D3774*G3774),\"\")","v":""}]
[null,null,"","","",null,null,null,null,null,null,""]
[null,null,"","","",null,null,null,null,null,null,""]
[null,null,"","","",null,null,null,null,null,null,""]
[null,null,"","","",null,null,null,null,null,null,""]
[null,null,"","","",null,null,null,null,null,null,""]
[null,null,"","","",null,null,null,null,null,null,""]
[null,null,"","","",null,null,null,null,null,null,""]
[null,null,"","","",null,null,null,null,null,null,""]
[null,null,"","","",null,null,null,null,null,null,""]
[null,null,"","","",null,null,null,null,null,null,""]
[null,null,"","","",null,null,null,null,null,null,""]
[null,null,"","","",null,null,null,null,null,null,""]
[null,null,"","","",null,null,null,null,null,null,""]
[null,null,"","","",null,null,null,null,null,null,""]
[null,null,"","","",null,null,null,null,null,null,""]
[null,null,"","","",null,null,null,null,null,null,""]
[null,null,"","","",null,null,null,null,null,null,""]
[null,null,"","","",null,null,null,null,null,null,""]
[null,null,"","","",null,null,null,null,null,null,""]
[null,null,"","","",null,null,null,null,null,null,""]
[null,null,"","","",null,null,null,null,null,null,""]
[null,null,"","","",null,null,null,null,null,null,""]
[null,null,"","","",null,null,null,null,null,null,""]
[null,null,{"$f":"IF(B3798=\"\",\"\",VLOOKUP(B3798,itemsdata,2,\"false\"))","v":""},{"$f":"IF(B3798=\"\",\"\",VLOOKUP(B3798,itemsdata,5,\"false\"))","v":""},"",null,null,null,null,null,null,""]
[null,null,"","","",null,null,null,null,null,null,""]
[null,null,"","","",null,null,null,null,null,null,""]
[null,null,"","","",null,null,null,null,null,null,""]
[null,null,"","","",null,null,null,null,null,null,""]
[null,null,"","","",null,null,null,null,null,null,""]
[null,null,"","","",null,null,null,null,null,null,""]
[null,null,"","","",null,null,null,null,null,null,""]
[null,null,"","","",null,null,null,null,null,null,""]
[null,null,"","","",null,null,null,null,null,null,""]
[null,null,"","","",null,null,null,null,null,null,""]
[null,null,"","","",null,null,null,null,null,null,""]
[null,null,"","","",null,null,null,null,null,null,""]
[null,null,"","","",null,null,null,null,null,null,""]
[null,null,"","","",null,null,null,null,null,null,""]
[null,null,"","","",null,null,null,null,null,null,""]
[null,null,"","","",null,null,null,null,null,null,""]
[null,null,"","","",null,null,null,null,null,null,""]
[null,null,"","","",null,null,null,null,null,null,""]
[null,null,"","","",null,null,null,null,null,null,""]
[null,null,"","","",null,null,null,null,null,null,""]
[null,null,"","","",null,null,null,null,null,null,""]
[null,null,"","","",null,null,null,null,null,null,""]
[null,null,"","","",null,null,null,null,null,null,""]
[null,null,"","","",null,null,null,null,null,null,""]
[null,null,"","","",null,null,null,null,null,null,""]
[null,null,"","","",null,null,null,null,null,null,""]
[null,null,"","","",null,null,null,null,null,null,""]
[null,null,"","","",null,null,null,null,null,null,""]
[null,null,"","","",null,null,null,null,null,null,""]
[null,null,"","","",null,null,null,null,null,null,""]
[null,null,"","","",null,null,null,null,null,null,""]
[null,null,"","","",null,null,null,null,null,null,""]
[null,null,"","","",null,null,null,null,null,null,""]
[null,null,"","","",null,null,null,null,null,null,""]
[null,null,"","","",null,null,null,null,null,null,""]
[null,null,"","","",null,null,null,null,null,null,""]
[null,null,"","","",null,null,null,null,null,null,""]
[null,null,"","","",null,null,null,null,null,null,""]
[null,null,"","",{"$f":"IF(B3837=\"\",\"\",VLOOKUP(B3837,itemsdata,3,\"false\"))","v":""},null,null,null,null,null,null,""]
[null,null,"","","",null,null,null,null,null,null,{"$f":"IF(G3838<>\"\",IF(F3838=\"sell\",D3838*G3838,-D3838*G3838),\"\")","v":""}]
[null,null,"","","",null,null,null,null,null,null,""]
[null,null,"","","",null,null,null,null,null,null,""]
[null,null,"","","",null,null,null,null,null,null,""]
[null,null,"","","",null,null,null,null,null,null,""]
[null,null,"","","",null,null,null,null,null,null,""]
[null,null,"","","",null,null,null,null,null,null,""]
[null,null,"","","",null,null,null,null,null,null,""]
[null,null,"","","",null,null,null,null,null,null,""]
[null,null,"","","",null,null,null,null,null,null,""]
[null,null,"","","",null,null,null,null,null,null,""]
[null,null,"","","",null,null,null,null,null,null,""]
[null,null,"","","",null,null,null,null,null,null,""]
[null,null,"","","",null,null,null,null,null,null,""]
[null,null,"","","",null,null,null,null,null,null,""]
[null,null,"","","",null,null,null,null,null,null,""]
[null,null,"","","",null,null,null,null,null,null,""]
[null,null,"","","",null,null,null,null,null,null,""]
[null,null,"","","",null,null,null,null,null,null,""]
[null,null,"","","",null,null,null,null,null,null,""]
[null,null,"","","",null,null,null,null,null,null,""]
[null,null,"","","",null,null,null,null,null,null,""]
[null,null,"","","",null,null,null,null,null,null,""]
[null,null,"","","",null,null,null,null,null,null,""]
[null,null,{"$f":"IF(B3862=\"\",\"\",VLOOKUP(B3862,itemsdata,2,\"false\"))","v":""},{"$f":"IF(B3862=\"\",\"\",VLOOKUP(B3862,itemsdata,5,\"false\"))","v":""},"",null,null,null,null,null,null,""]
[null,null,"","","",null,null,null,null,null,null,""]
[null,null,"","","",null,null,null,null,null,null,""]
[null,null,"","","",null,null,null,null,null,null,""]
[null,null,"","","",null,null,null,null,null,null,""]
[null,null,"","","",null,null,null,null,null,null,""]
[null,null,"","","",null,null,null,null,null,null,""]
[null,null,"","","",null,null,null,null,null,null,""]
[null,null,"","","",null,null,null,null,null,null,""]
[null,null,"","","",null,null,null,null,null,null,""]
[null,null,"","","",null,null,null,null,null,null,""]
[null,null,"","","",null,null,null,null,null,null,""]
[null,null,"","","",null,null,null,null,null,null,""]
[null,null,"","","",null,null,null,null,null,null,""]
[null,null,"","","",null,null,null,null,null,null,""]
[null,null,"","","",null,null,null,null,null,null,""]
[null,null,"","","",null,null,null,null,null,null,""]
[null,null,"","","",null,null,null,null,null,null,""]
[null,null,"","","",null,null,null,null,null,null,""]
[null,null,"","","",null,null,null,null,null,null,""]
[null,null,"","","",null,null,null,null,null,null,""]
[null,null,"","","",null,null,null,null,null,null,""]
[null,null,"","","",null,null,null,null,null,null,""]
[null,null,"","","",null,null,null,null,null,null,""]
[null,null,"","","",null,null,null,null,null,null,""]
[null,null,"","","",null,null,null,null,null,null,""]
[null,null,"","","",null,null,null,null,null,null,""]
[null,null,"","","",null,null,null,null,null,null,""]
[null,null,"","","",null,null,null,null,null,null,""]
[null,null,"","","",null,null,null,null,null,null,""]
[null,null,"","","",null,null,null,null,null,null,""]
[null,null,"","","",null,null,null,null,null,null,""]
[null,null,"","","",null,null,null,null,null,null,""]
[null,null,"","","",null,null,null,null,null,null,""]
[null,null,"","","",null,null,null,null,null,null,""]
[null,null,"","","",null,null,null,null,null,null,""]
[null,null,"","","",null,null,null,null,null,null,""]
[null,null,"","","",null,null,null,null,null,null,""]
[null,null,"","","",null,null,null,null,null,null,""]
[null,null,"","",{"$f":"IF(B3901=\"\",\"\",VLOOKUP(B3901,itemsdata,3,\"false\"))","v":""},null,null,null,null,null,null,""]
[null,null,"","","",null,null,null,null,null,null,{"$f":"IF(G3902<>\"\",IF(F3902=\"sell\",D3902*G3902,-D3902*G3902),\"\")","v":""}]
[null,null,"","","",null,null,null,null,null,null,""]
[null,null,"","","",null,null,null,null,null,null,""]
[null,null,"","","",null,null,null,null,null,null,""]
[null,null,"","","",null,null,null,null,null,null,""]
[null,null,"","","",null,null,null,null,null,null,""]
[null,null,"","","",null,null,null,null,null,null,""]
[null,null,"","","",null,null,null,null,null,null,""]
[null,null,"","","",null,null,null,null,null,null,""]
[null,null,"","","",null,null,null,null,null,null,""]
[null,null,"","","",null,null,null,null,null,null,""]
[null,null,"","","",null,null,null,null,null,null,""]
[null,null,"","","",null,null,null,null,null,null,""]
[null,null,"","","",null,null,null,null,null,null,""]
[null,null,"","","",null,null,null,null,null,null,""]
[null,null,"","","",null,null,null,null,null,null,""]
[null,null,"","","",null,null,null,null,null,null,""]
[null,null,"","","",null,null,null,null,null,null,""]
[null,null,"","","",null,null,null,null,null,null,""]
[null,null,"","","",null,null,null,null,null,null,""]
[null,null,"","","",null,null,null,null,null,null,""]
[null,null,"","","",null,null,null,null,null,null,""]
[null,null,"","","",null,null,null,null,null,null,""]
[null,null,"","","",null,null,null,null,null,null,""]
[null,null,{"$f":"IF(B3926=\"\",\"\",VLOOKUP(B3926,itemsdata,2,\"false\"))","v":""},{"$f":"IF(B3926=\"\",\"\",VLOOKUP(B3926,itemsdata,5,\"false\"))","v":""},"",null,null,null,null,null,null,""]
[null,null,"","","",null,null,null,null,null,null,""]
[null,null,"","","",null,null,null,null,null,null,""]
[null,null,"","","",null,null,null,null,null,null,""]
[null,null,"","","",null,null,null,null,null,null,""]
[null,null,"","","",null,null,null,null,null,null,""]
[null,null,"","","",null,null,null,null,null,null,""]
[null,null,"","","",null,null,null,null,null,null,""]
[null,null,"","","",null,null,null,null,null,null,""]
[null,null,"","","",null,null,null,null,null,null,""]
[null,null,"","","",null,null,null,null,null,null,""]
[null,null,"","","",null,null,null,null,null,null,""]
[null,null,"","","",null,null,null,null,null,null,""]
[null,null,"","","",null,null,null,null,null,null,""]
[null,null,"","","",null,null,null,null,null,null,""]
[null,null,"","","",null,null,null,null,null,null,""]
[null,null,"","","",null,null,null,null,null,null,""]
[null,null,"","","",null,null,null,null,null,null,""]
[null,null,"","","",null,null,null,null,null,null,""]
[null,null,"","","",null,null,null,null,null,null,""]
[null,null,"","","",null,null,null,null,null,null,""]
[null,null,"","","",null,null,null,null,null,null,""]
[null,null,"","","",null,null,null,null,null,null,""]
[null,null,"","","",null,null,null,null,null,null,""]
[null,null,"","","",null,null,null,null,null,null,""]
[null,null,"","","",null,null,null,null,null,null,""]
[null,null,"","","",null,null,null,null,null,null,""]
[null,null,"","","",null,null,null,null,null,null,""]
[null,null,"","","",null,null,null,null,null,null,""]
[null,null,"","","",null,null,null,null,null,null,""]
[null,null,"","","",null,null,null,null,null,null,""]
[null,null,"","","",null,null,null,null,null,null,""]
[null,null,"","","",null,null,null,null,null,null,""]
[null,null,"","","",null,null,null,null,null,null,""]
[null,null,"","","",null,null,null,null,null,null,""]
[null,null,"","","",null,null,null,null,null,null,""]
[null,null,"","","",null,null,null,null,null,null,""]
[null,null,"","","",null,null,null,null,null,null,""]
[null,null,"","","",null,null,null,null,null,null,""]
[null,null,"","",{"$f":"IF(B3965=\"\",\"\",VLOOKUP(B3965,itemsdata,3,\"false\"))","v":""},null,null,null,null,null,null,""]
[null,null,"","","",null,null,null,null,null,null,{"$f":"IF(G3966<>\"\",IF(F3966=\"sell\",D3966*G3966,-D3966*G3966),\"\")","v":""}]
[null,null,"","","",null,null,null,null,null,null,""]
[null,null,"","","",null,null,null,null,null,null,""]
[null,null,"","","",null,null,null,null,null,null,""]
[null,null,"","","",null,null,null,null,null,null,""]
[null,null,"","","",null,null,null,null,null,null,""]
[null,null,"","","",null,null,null,null,null,null,""]
[null,null,"","","",null,null,null,null,null,null,""]
[null,null,"","","",null,null,null,null,null,null,""]
[null,null,"","","",null,null,null,null,null,null,""]
[null,null,"","","",null,null,null,null,null,null,""]
[null,null,"","","",null,null,null,null,null,null,""]
[null,null,"","","",null,null,null,null,null,null,""]
[null,null,"","","",null,null,null,null,null,null,""]
[null,null,"","","",null,null,null,null,null,null,""]
[null,null,"","","",null,null,null,null,null,null,""]
[null,null,"","","",null,null,null,null,null,null,""]
[null,null,"","","",null,null,null,null,null,null,""]
[null,null,"","","",null,null,null,null,null,null,""]
[null,null,"","","",null,null,null,null,null,null,""]
[null,null,"","","",null,null,null,null,null,null,""]
[null,null,"","","",null,null,null,null,null,null,""]
[null,null,"","","",null,null,null,null,null,null,""]
[null,null,"","","",null,null,null,null,null,null,""]
[null,null,{"$f":"IF(B3990=\"\",\"\",VLOOKUP(B3990,itemsdata,2,\"false\"))","v":""},{"$f":"IF(B3990=\"\",\"\",VLOOKUP(B3990,itemsdata,5,\"false\"))","v":""},"",null,null,null,null,null,null,""]
[null,null,"","","",null,null,null,null,null,null,""]
[null,null,"","","",null,null,null,null,null,null,""]
[null,null,"","","",null,null,null,null,null,null,""]
[null,null,"","","",null,null,null,null,null,null,""]
[null,null,"","","",null,null,null,null,null,null,""]
[null,null,"","","",null,null,null,null,null,null,""]
[null,null,"","","",null,null,null,null,null,null,""]
[null,null,"","","",null,null,null,null,null,null,""]
[null,null,"","","",null,null,null,null,null,null,""]
[null,null,"","","",null,null,null,null,null,null,""]
[null,null,"","","",null,null,null,null,null,null,""]
[null,null,"","","",null,null,null,null,null,null,""]
[null,null,"","","",null,null,null,null,null,null,""]
[null,null,"","","",null,null,null,null,null,null,""]
[null,null,"","","",null,null,null,null,null,null,""]
[null,null,"","","",null,null,null,null,null,null,""]
[null,null,"","","",null,null,null,null,null,null,""]
[null,null,"","","",null,null,null,null,null,null,""]
[null,null,"","","",null,null,null,null,null,null,""]
[null,null,"","","",null,null,null,null,null,null,""]
[null,null,"","","",null,null,null,null,null,null,""]
[null,null,"","","",null,null,null,null,null,null,""]
[null,null,"","","",null,null,null,null,null,null,""]
[null,null,"","","",null,null,null,null,null,null,""]
[null,null,"","","",null,null,null,null,null,null,""]
[null,null,"","","",null,null,null,null,null,null,""]
[null,null,"","","",null,null,null,null,null,null,""]
[null,null,"","","",null,null,null,null,null,null,""]
[null,null,"","","",null,null,null,null,null,null,""]
[null,null,"","","",null,null,null,null,null,null,""]
[null,null,"","","",null,null,null,null,null,null,""]
[null,null,"","","",null,null,null,null,null,null,""]
[null,null,"","","",null,null,null,null,null,null,""]
[null,null,"","","",null,null,null,null,null,null,""]
[null,null,"","","",null,null,null,null,null,null,""]
[null,null,"","","",null,null,null,null,null,null,""]
[null,null,"","","",null,null,null,null,null,null,""]
[null,null,"","","",null,null,null,null,null,null,""]
[null,null,"","",{"$f":"IF(B4029=\"\",\"\",VLOOKUP(B4029,itemsdata,3,\"false\"))","v":""},null,null,null,null,null,null,""]
[null,null,"","","",null,null,null,null,null,null,{"$f":"IF(G4030<>\"\",IF(F4030=\"sell\",D4030*G4030,-D4030*G4030),\"\")","v":""}]
[null,null,"","","",null,null,null,null,null,null,""]
[null,null,"","","",null,null,null,null,null,null,""]
[null,null,"","","",null,null,null,null,null,null,""]
[null,null,"","","",null,null,null,null,null,null,""]
[null,null,"","","",null,null,null,null,null,null,""]
[null,null,"","","",null,null,null,null,null,null,""]
[null,null,"","","",null,null,null,null,null,null,""]
[null,null,"","","",null,null,null,null,null,null,""]
[null,null,"","","",null,null,null,null,null,null,""]
[null,null,"","","",null,null,null,null,null,null,""]
[null,null,"","","",null,null,null,null,null,null,""]
[null,null,"","","",null,null,null,null,null,null,""]
[null,null,"","","",null,null,null,null,null,null,""]
[null,null,"","","",null,null,null,null,null,null,""]
[null,null,"","","",null,null,null,null,null,null,""]
[null,null,"","","",null,null,null,null,null,null,""]
[null,null,"","","",null,null,null,null,null,null,""]
[null,null,"","","",null,null,null,null,null,null,""]
[null,null,"","","",null,null,null,null,null,null,""]
[null,null,"","","",null,null,null,null,null,null,""]
[null,null,"","","",null,null,null,null,null,null,""]
[null,null,"","","",null,null,null,null,null,null,""]
[null,null,"","","",null,null,null,null,null,null,""]
[null,null,{"$f":"IF(B4054=\"\",\"\",VLOOKUP(B4054,itemsdata,2,\"false\"))","v":""},{"$f":"IF(B4054=\"\",\"\",VLOOKUP(B4054,itemsdata,5,\"false\"))","v":""},"",null,null,null,null,null,null,""]
[null,null,"","","",null,null,null,null,null,null,""]
[null,null,"","","",null,null,null,null,null,null,""]
[null,null,"","","",null,null,null,null,null,null,""]
[null,null,"","","",null,null,null,null,null,null,""]
[null,null,"","","",null,null,null,null,null,null,""]
[null,null,"","","",null,null,null,null,null,null,""]
[null,null,"","","",null,null,null,null,null,null,""]
[null,null,"","","",null,null,null,null,null,null,""]
[null,null,"","","",null,null,null,null,null,null,""]
[null,null,"","","",null,null,null,null,null,null,""]
[null,null,"","","",null,null,null,null,null,null,""]
[null,null,"","","",null,null,null,null,null,null,""]
[null,null,"","","",null,null,null,null,null,null,""]
[null,null,"","","",null,null,null,null,null,null,""]
[null,null,"","","",null,null,null,null,null,null,""]
[null,null,"","","",null,null,null,null,null,null,""]
[null,null,"","","",null,null,null,null,null,null,""]
[null,null,"","","",null,null,null,null,null,null,""]
[null,null,"","","",null,null,null,null,null,null,""]
[null,null,"","","",null,null,null,null,null,null,""]
[null,null,"","","",null,null,null,null,null,null,""]
[null,null,"","","",null,null,null,null,null,null,""]
[null,null,"","","",null,null,null,null,null,null,""]
[null,null,"","","",null,null,null,null,null,null,""]
[null,null,"","","",null,null,null,null,null,null,""]
[null,null,"","","",null,null,null,null,null,null,""]
[null,null,"","","",null,null,null,null,null,null,""]
[null,null,"","","",null,null,null,null,null,null,""]
[null,null,"","","",null,null,null,null,null,null,""]
[null,null,"","","",null,null,null,null,null,null,""]
[null,null,"","","",null,null,null,null,null,null,""]
[null,null,"","","",null,null,null,null,null,null,""]
[null,null,"","","",null,null,null,null,null,null,""]
[null,null,"","","",null,null,null,null,null,null,""]
[null,null,"","","",null,null,null,null,null,null,""]
[null,null,"","","",null,null,null,null,null,null,""]
[null,null,"","","",null,null,null,null,null,null,""]
[null,null,"","","",null,null,null,null,null,null,""]
[null,null,"","",{"$f":"IF(B4093=\"\",\"\",VLOOKUP(B4093,itemsdata,3,\"false\"))","v":""},null,null,null,null,null,null,""]
[null,null,"","","",null,null,null,null,null,null,{"$f":"IF(G4094<>\"\",IF(F4094=\"sell\",D4094*G4094,-D4094*G4094),\"\")","v":""}]
[null,null,"","","",null,null,null,null,null,null,""]
[null,null,"","","",null,null,null,null,null,null,""]
[null,null,"","","",null,null,null,null,null,null,""]
[null,null,"","","",null,null,null,null,null,null,""]
[null,null,"","","",null,null,null,null,null,null,""]
[null,null,"","","",null,null,null,null,null,null,""]
[null,null,"","","",null,null,null,null,null,null,""]
[null,null,"","","",null,null,null,null,null,null,""]
[null,null,"","","",null,null,null,null,null,null,""]
[null,null,"","","",null,null,null,null,null,null,""]
[null,null,"","","",null,null,null,null,null,null,""]
[null,null,"","","",null,null,null,null,null,null,""]
[null,null,"","","",null,null,null,null,null,null,""]
[null,null,"","","",null,null,null,null,null,null,""]
[null,null,"","","",null,null,null,null,null,null,""]
[null,null,"","","",null,null,null,null,null,null,""]
[null,null,"","","",null,null,null,null,null,null,""]
[null,null,"","","",null,null,null,null,null,null,""]
[null,null,"","","",null,null,null,null,null,null,""]
[null,null,"","","",null,null,null,null,null,null,""]
[null,null,"","","",null,null,null,null,null,null,""]
[null,null,"","","",null,null,null,null,null,null,""]
[null,null,"","","",null,null,null,null,null,null,""]
[null,null,{"$f":"IF(B4118=\"\",\"\",VLOOKUP(B4118,itemsdata,2,\"false\"))","v":""},{"$f":"IF(B4118=\"\",\"\",VLOOKUP(B4118,itemsdata,5,\"false\"))","v":""},"",null,null,null,null,null,null,""]
[null,null,"","","",null,null,null,null,null,null,""]
[null,null,"","","",null,null,null,null,null,null,""]
[null,null,"","","",null,null,null,null,null,null,""]
[null,null,"","","",null,null,null,null,null,null,""]
[null,null,"","","",null,null,null,null,null,null,""]
[null,null,"","","",null,null,null,null,null,null,""]
[null,null,"","","",null,null,null,null,null,null,""]
[null,null,"","","",null,null,null,null,null,null,""]
[null,null,"","","",null,null,null,null,null,null,""]
[null,null,"","","",null,null,null,null,null,null,""]
[null,null,"","","",null,null,null,null,null,null,""]
[null,null,"","","",null,null,null,null,null,null,""]
[null,null,"","","",null,null,null,null,null,null,""]
[null,null,"","","",null,null,null,null,null,null,""]
[null,null,"","","",null,null,null,null,null,null,""]
[null,null,"","","",null,null,null,null,null,null,""]
[null,null,"","","",null,null,null,null,null,null,""]
[null,null,"","","",null,null,null,null,null,null,""]
[null,null,"","","",null,null,null,null,null,null,""]
[null,null,"","","",null,null,null,null,null,null,""]
[null,null,"","","",null,null,null,null,null,null,""]
[null,null,"","","",null,null,null,null,null,null,""]
[null,null,"","","",null,null,null,null,null,null,""]
[null,null,"","","",null,null,null,null,null,null,""]
[null,null,"","","",null,null,null,null,null,null,""]
[null,null,"","","",null,null,null,null,null,null,""]
[null,null,"","","",null,null,null,null,null,null,""]
[null,null,"","","",null,null,null,null,null,null,""]
[null,null,"","","",null,null,null,null,null,null,""]
[null,null,"","","",null,null,null,null,null,null,""]
[null,null,"","","",null,null,null,null,null,null,""]
[null,null,"","","",null,null,null,null,null,null,""]
[null,null,"","","",null,null,null,null,null,null,""]
[null,null,"","","",null,null,null,null,null,null,""]
[null,null,"","","",null,null,null,null,null,null,""]
[null,null,"","","",null,null,null,null,null,null,""]
[null,null,"","","",null,null,null,null,null,null,""]
[null,null,"","","",null,null,null,null,null,null,""]
[null,null,"","",{"$f":"IF(B4157=\"\",\"\",VLOOKUP(B4157,itemsdata,3,\"false\"))","v":""},null,null,null,null,null,null,""]
[null,null,"","","",null,null,null,null,null,null,{"$f":"IF(G4158<>\"\",IF(F4158=\"sell\",D4158*G4158,-D4158*G4158),\"\")","v":""}]
[null,null,"","","",null,null,null,null,null,null,""]
[null,null,"","","",null,null,null,null,null,null,""]
[null,null,"","","",null,null,null,null,null,null,""]
[null,null,"","","",null,null,null,null,null,null,""]
[null,null,"","","",null,null,null,null,null,null,""]
[null,null,"","","",null,null,null,null,null,null,""]
[null,null,"","","",null,null,null,null,null,null,""]
[null,null,"","","",null,null,null,null,null,null,""]
[null,null,"","","",null,null,null,null,null,null,""]
[null,null,"","","",null,null,null,null,null,null,""]
[null,null,"","","",null,null,null,null,null,null,""]
[null,null,"","","",null,null,null,null,null,null,""]
[null,null,"","","",null,null,null,null,null,null,""]
[null,null,"","","",null,null,null,null,null,null,""]
[null,null,"","","",null,null,null,null,null,null,""]
[null,null,"","","",null,null,null,null,null,null,""]
[null,null,"","","",null,null,null,null,null,null,""]
[null,null,"","","",null,null,null,null,null,null,""]
[null,null,"","","",null,null,null,null,null,null,""]
[null,null,"","","",null,null,null,null,null,null,""]
[null,null,"","","",null,null,null,null,null,null,""]
[null,null,"","","",null,null,null,null,null,null,""]
[null,null,"","","",null,null,null,null,null,null,""]
[null,null,{"$f":"IF(B4182=\"\",\"\",VLOOKUP(B4182,itemsdata,2,\"false\"))","v":""},{"$f":"IF(B4182=\"\",\"\",VLOOKUP(B4182,itemsdata,5,\"false\"))","v":""},"",null,null,null,null,null,null,""]
[null,null,"","","",null,null,null,null,null,null,""]
[null,null,"","","",null,null,null,null,null,null,""]
[null,null,"","","",null,null,null,null,null,null,""]
[null,null,"","","",null,null,null,null,null,null,""]
[null,null,"","","",null,null,null,null,null,null,""]
[null,null,"","","",null,null,null,null,null,null,""]
[null,null,"","","",null,null,null,null,null,null,""]
[null,null,"","","",null,null,null,null,null,null,""]
[null,null,"","","",null,null,null,null,null,null,""]
[null,null,"","","",null,null,null,null,null,null,""]
[null,null,"","","",null,null,null,null,null,null,""]
[null,null,"","","",null,null,null,null,null,null,""]
[null,null,"","","",null,null,null,null,null,null,""]
[null,null,"","","",null,null,null,null,null,null,""]
[null,null,"","","",null,null,null,null,null,null,""]
[null,null,"","","",null,null,null,null,null,null,""]
[null,null,"","","",null,null,null,null,null,null,""]
[null,null,"","","",null,null,null,null,null,null,""]
[null,null,"","","",null,null,null,null,null,null,""]
[null,null,"","","",null,null,null,null,null,null,""]
[null,null,"","","",null,null,null,null,null,null,""]
[null,null,"","","",null,null,null,null,null,null,""]
[null,null,"","","",null,null,null,null,null,null,""]
[null,null,"","","",null,null,null,null,null,null,""]
[null,null,"","","",null,null,null,null,null,null,""]
[null,null,"","","",null,null,null,null,null,null,""]
[null,null,"","","",null,null,null,null,null,null,""]
[null,null,"","","",null,null,null,null,null,null,""]
[null,null,"","","",null,null,null,null,null,null,""]
[null,null,"","","",null,null,null,null,null,null,""]
[null,null,"","","",null,null,null,null,null,null,""]
[null,null,"","","",null,null,null,null,null,null,""]
[null,null,"","","",null,null,null,null,null,null,""]
[null,null,"","","",null,null,null,null,null,null,""]
[null,null,"","","",null,null,null,null,null,null,""]
[null,null,"","","",null,null,null,null,null,null,""]
[null,null,"","","",null,null,null,null,null,null,""]
[null,null,"","","",null,null,null,null,null,null,""]
[null,null,"","",{"$f":"IF(B4221=\"\",\"\",VLOOKUP(B4221,itemsdata,3,\"false\"))","v":""},null,null,null,null,null,null,""]
[null,null,"","","",null,null,null,null,null,null,{"$f":"IF(G4222<>\"\",IF(F4222=\"sell\",D4222*G4222,-D4222*G4222),\"\")","v":""}]
[null,null,"","","",null,null,null,null,null,null,""]
[null,null,"","","",null,null,null,null,null,null,""]
[null,null,"","","",null,null,null,null,null,null,""]
[null,null,"","","",null,null,null,null,null,null,""]
[null,null,"","","",null,null,null,null,null,null,""]
[null,null,"","","",null,null,null,null,null,null,""]
[null,null,"","","",null,null,null,null,null,null,""]
[null,null,"","","",null,null,null,null,null,null,""]
[null,null,"","","",null,null,null,null,null,null,""]
[null,null,"","","",null,null,null,null,null,null,""]
[null,null,"","","",null,null,null,null,null,null,""]
[null,null,"","","",null,null,null,null,null,null,""]
[null,null,"","","",null,null,null,null,null,null,""]
[null,null,"","","",null,null,null,null,null,null,""]
[null,null,"","","",null,null,null,null,null,null,""]
[null,null,"","","",null,null,null,null,null,null,""]
[null,null,"","","",null,null,null,null,null,null,""]
[null,null,"","","",null,null,null,null,null,null,""]
[null,null,"","","",null,null,null,null,null,null,""]
[null,null,"","","",null,null,null,null,null,null,""]
[null,null,"","","",null,null,null,null,null,null,""]
[null,null,"","","",null,null,null,null,null,null,""]
[null,null,"","","",null,null,null,null,null,null,""]
[null,null,{"$f":"IF(B4246=\"\",\"\",VLOOKUP(B4246,itemsdata,2,\"false\"))","v":""},{"$f":"IF(B4246=\"\",\"\",VLOOKUP(B4246,itemsdata,5,\"false\"))","v":""},"",null,null,null,null,null,null,""]
[null,null,"","","",null,null,null,null,null,null,""]
[null,null,"","","",null,null,null,null,null,null,""]
[null,null,"","","",null,null,null,null,null,null,""]
[null,null,"","","",null,null,null,null,null,null,""]
[null,null,"","","",null,null,null,null,null,null,""]
[null,null,"","","",null,null,null,null,null,null,""]
[null,null,"","","",null,null,null,null,null,null,""]
[null,null,"","","",null,null,null,null,null,null,""]
[null,null,"","","",null,null,null,null,null,null,""]
[null,null,"","","",null,null,null,null,null,null,""]
[null,null,"","","",null,null,null,null,null,null,""]
[null,null,"","","",null,null,null,null,null,null,""]
[null,null,"","","",null,null,null,null,null,null,""]
[null,null,"","","",null,null,null,null,null,null,""]
[null,null,"","","",null,null,null,null,null,null,""]
[null,null,"","","",null,null,null,null,null,null,""]
[null,null,"","","",null,null,null,null,null,null,""]
[null,null,"","","",null,null,null,null,null,null,""]
[null,null,"","","",null,null,null,null,null,null,""]
[null,null,"","","",null,null,null,null,null,null,""]
[null,null,"","","",null,null,null,null,null,null,""]
[null,null,"","","",null,null,null,null,null,null,""]
[null,null,"","","",null,null,null,null,null,null,""]
[null,null,"","","",null,null,null,null,null,null,""]
[null,null,"","","",null,null,null,null,null,null,""]
[null,null,"","","",null,null,null,null,null,null,""]
[null,null,"","","",null,null,null,null,null,null,""]
[null,null,"","","",null,null,null,null,null,null,""]
[null,null,"","","",null,null,null,null,null,null,""]
[null,null,"","","",null,null,null,null,null,null,""]
[null,null,"","","",null,null,null,null,null,null,""]
[null,null,"","","",null,null,null,null,null,null,""]
[null,null,"","","",null,null,null,null,null,null,""]
[null,null,"","","",null,null,null,null,null,null,""]
[null,null,"","","",null,null,null,null,null,null,""]
[null,null,"","","",null,null,null,null,null,null,""]
[null,null,"","","",null,null,null,null,null,null,""]
[null,null,"","","",null,null,null,null,null,null,""]
[null,null,"","",{"$f":"IF(B4285=\"\",\"\",VLOOKUP(B4285,itemsdata,3,\"false\"))","v":""},null,null,null,null,null,null,""]
[null,null,"","","",null,null,null,null,null,null,{"$f":"IF(G4286<>\"\",IF(F4286=\"sell\",D4286*G4286,-D4286*G4286),\"\")","v":""}]
[null,null,"","","",null,null,null,null,null,null,""]
[null,null,"","","",null,null,null,null,null,null,""]
[null,null,"","","",null,null,null,null,null,null,""]
[null,null,"","","",null,null,null,null,null,null,""]
[null,null,"","","",null,null,null,null,null,null,""]
[null,null,"","","",null,null,null,null,null,null,""]
[null,null,"","","",null,null,null,null,null,null,""]
[null,null,"","","",null,null,null,null,null,null,""]
[null,null,"","","",null,null,null,null,null,null,""]
[null,null,"","","",null,null,null,null,null,null,""]
[null,null,"","","",null,null,null,null,null,null,""]
[null,null,"","","",null,null,null,null,null,null,""]
[null,null,"","","",null,null,null,null,null,null,""]
[null,null,"","","",null,null,null,null,null,null,""]
[null,null,"","","",null,null,null,null,null,null,""]
[null,null,"","","",null,null,null,null,null,null,""]
[null,null,"","","",null,null,null,null,null,null,""]
[null,null,"","","",null,null,null,null,null,null,""]
[null,null,"","","",null,null,null,null,null,null,""]
[null,null,"","","",null,null,null,null,null,null,""]
[null,null,"","","",null,null,null,null,null,null,""]
[null,null,"","","",null,null,null,null,null,null,""]
[null,null,"","","",null,null,null,null,null,null,""]
[null,null,{"$f":"IF(B4310=\"\",\"\",VLOOKUP(B4310,itemsdata,2,\"false\"))","v":""},{"$f":"IF(B4310=\"\",\"\",VLOOKUP(B4310,itemsdata,5,\"false\"))","v":""},"",null,null,null,null,null,null,""]
[null,null,"","","",null,null,null,null,null,null,""]
[null,null,"","","",null,null,null,null,null,null,""]
[null,null,"","","",null,null,null,null,null,null,""]
[null,null,"","","",null,null,null,null,null,null,""]
[null,null,"","","",null,null,null,null,null,null,""]
[null,null,"","","",null,null,null,null,null,null,""]
[null,null,"","","",null,null,null,null,null,null,""]
[null,null,"","","",null,null,null,null,null,null,""]
[null,null,"","","",null,null,null,null,null,null,""]
[null,null,"","","",null,null,null,null,null,null,""]
[null,null,"","","",null,null,null,null,null,null,""]
[null,null,"","","",null,null,null,null,null,null,""]
[null,null,"","","",null,null,null,null,null,null,""]
[null,null,"","","",null,null,null,null,null,null,""]
[null,null,"","","",null,null,null,null,null,null,""]
[null,null,"","","",null,null,null,null,null,null,""]
[null,null,"","","",null,null,null,null,null,null,""]
[null,null,"","","",null,null,null,null,null,null,""]
[null,null,"","","",null,null,null,null,null,null,""]
[null,null,"","","",null,null,null,null,null,null,""]
[null,null,"","","",null,null,null,null,null,null,""]
[null,null,"","","",null,null,null,null,null,null,""]
[null,null,"","","",null,null,null,null,null,null,""]
[null,null,"","","",null,null,null,null,null,null,""]
[null,null,"","","",null,null,null,null,null,null,""]
[null,null,"","","",null,null,null,null,null,null,""]
[null,null,"","","",null,null,null,null,null,null,""]
[null,null,"","","",null,null,null,null,null,null,""]
[null,null,"","","",null,null,null,null,null,null,""]
[null,null,"","","",null,null,null,null,null,null,""]
[null,null,"","","",null,null,null,null,null,null,""]
[null,null,"","","",null,null,null,null,null,null,""]
[null,null,"","","",null,null,null,null,null,null,""]
[null,null,"","","",null,null,null,null,null,null,""]
[null,null,"","","",null,null,null,null,null,null,""]
[null,null,"","","",null,null,null,null,null,null,""]
[null,null,"","","",null,null,null,null,null,null,""]
[null,null,"","","",null,null,null,null,null,null,""]
[null,null,"","",{"$f":"IF(B4349=\"\",\"\",VLOOKUP(B4349,itemsdata,3,\"false\"))","v":""},null,null,null,null,null,null,""]
[null,null,"","","",null,null,null,null,null,null,{"$f":"IF(G4350<>\"\",IF(F4350=\"sell\",D4350*G4350,-D4350*G4350),\"\")","v":""}]
[null,null,"","","",null,null,null,null,null,null,""]
[null,null,"","","",null,null,null,null,null,null,""]
[null,null,"","","",null,null,null,null,null,null,""]
[null,null,"","","",null,null,null,null,null,null,""]
[null,null,"","","",null,null,null,null,null,null,""]
[null,null,"","","",null,null,null,null,null,null,""]
[null,null,"","","",null,null,null,null,null,null,""]
[null,null,"","","",null,null,null,null,null,null,""]
[null,null,"","","",null,null,null,null,null,null,""]
[null,null,"","","",null,null,null,null,null,null,""]
[null,null,"","","",null,null,null,null,null,null,""]
[null,null,"","","",null,null,null,null,null,null,""]
[null,null,"","","",null,null,null,null,null,null,""]
[null,null,"","","",null,null,null,null,null,null,""]
[null,null,"","","",null,null,null,null,null,null,""]
[null,null,"","","",null,null,null,null,null,null,""]
[null,null,"","","",null,null,null,null,null,null,""]
[null,null,"","","",null,null,null,null,null,null,""]
[null,null,"","","",null,null,null,null,null,null,""]
[null,null,"","","",null,null,null,null,null,null,""]
[null,null,"","","",null,null,null,null,null,null,""]
[null,null,"","","",null,null,null,null,null,null,""]
[null,null,"","","",null,null,null,null,null,null,""]
[null,null,{"$f":"IF(B4374=\"\",\"\",VLOOKUP(B4374,itemsdata,2,\"false\"))","v":""},{"$f":"IF(B4374=\"\",\"\",VLOOKUP(B4374,itemsdata,5,\"false\"))","v":""},"",null,null,null,null,null,null,""]
[null,null,"","","",null,null,null,null,null,null,""]
[null,null,"","","",null,null,null,null,null,null,""]
[null,null,"","","",null,null,null,null,null,null,""]
[null,null,"","","",null,null,null,null,null,null,""]
[null,null,"","","",null,null,null,null,null,null,""]
[null,null,"","","",null,null,null,null,null,null,""]
[null,null,"","","",null,null,null,null,null,null,""]
[null,null,"","","",null,null,null,null,null,null,""]
[null,null,"","","",null,null,null,null,null,null,""]
[null,null,"","","",null,null,null,null,null,null,""]
[null,null,"","","",null,null,null,null,null,null,""]
[null,null,"","","",null,null,null,null,null,null,""]
[null,null,"","","",null,null,null,null,null,null,""]
[null,null,"","","",null,null,null,null,null,null,""]
[null,null,"","","",null,null,null,null,null,null,""]
[null,null,"","","",null,null,null,null,null,null,""]
[null,null,"","","",null,null,null,null,null,null,""]
[null,null,"","","",null,null,null,null,null,null,""]
[null,null,"","","",null,null,null,null,null,null,""]
[null,null,"","","",null,null,null,null,null,null,""]
[null,null,"","","",null,null,null,null,null,null,""]
[null,null,"","","",null,null,null,null,null,null,""]
[null,null,"","","",null,null,null,null,null,null,""]
[null,null,"","","",null,null,null,null,null,null,""]
[null,null,"","","",null,null,null,null,null,null,""]
[null,null,"","","",null,null,null,null,null,null,""]
[null,null,"","","",null,null,null,null,null,null,""]
[null,null,"","","",null,null,null,null,null,null,""]
[null,null,"","","",null,null,null,null,null,null,""]
[null,null,"","","",null,null,null,null,null,null,""]
[null,null,"","","",null,null,null,null,null,null,""]
[null,null,"","","",null,null,null,null,null,null,""]
[null,null,"","","",null,null,null,null,null,null,""]
[null,null,"","","",null,null,null,null,null,null,""]
[null,null,"","","",null,null,null,null,null,null,""]
[null,null,"","","",null,null,null,null,null,null,""]
[null,null,"","","",null,null,null,null,null,null,""]
[null,null,"","","",null,null,null,null,null,null,""]
[null,null,"","",{"$f":"IF(B4413=\"\",\"\",VLOOKUP(B4413,itemsdata,3,\"false\"))","v":""},null,null,null,null,null,null,""]
[null,null,"","","",null,null,null,null,null,null,{"$f":"IF(G4414<>\"\",IF(F4414=\"sell\",D4414*G4414,-D4414*G4414),\"\")","v":""}]
[null,null,"","","",null,null,null,null,null,null,""]
[null,null,"","","",null,null,null,null,null,null,""]
[null,null,"","","",null,null,null,null,null,null,""]
[null,null,"","","",null,null,null,null,null,null,""]
[null,null,"","","",null,null,null,null,null,null,""]
[null,null,"","","",null,null,null,null,null,null,""]
[null,null,"","","",null,null,null,null,null,null,""]
[null,null,"","","",null,null,null,null,null,null,""]
[null,null,"","","",null,null,null,null,null,null,""]
[null,null,"","","",null,null,null,null,null,null,""]
[null,null,"","","",null,null,null,null,null,null,""]
[null,null,"","","",null,null,null,null,null,null,""]
[null,null,"","","",null,null,null,null,null,null,""]
[null,null,"","","",null,null,null,null,null,null,""]
[null,null,"","","",null,null,null,null,null,null,""]
[null,null,"","","",null,null,null,null,null,null,""]
[null,null,"","","",null,null,null,null,null,null,""]
[null,null,"","","",null,null,null,null,null,null,""]
[null,null,"","","",null,null,null,null,null,null,""]
[null,null,"","","",null,null,null,null,null,null,""]
[null,null,"","","",null,null,null,null,null,null,""]
[null,null,"","","",null,null,null,null,null,null,""]
[null,null,"","","",null,null,null,null,null,null,""]
[null,null,{"$f":"IF(B4438=\"\",\"\",VLOOKUP(B4438,itemsdata,2,\"false\"))","v":""},{"$f":"IF(B4438=\"\",\"\",VLOOKUP(B4438,itemsdata,5,\"false\"))","v":""},"",null,null,null,null,null,null,""]
[null,null,"","","",null,null,null,null,null,null,""]
[null,null,"","","",null,null,null,null,null,null,""]
[null,null,"","","",null,null,null,null,null,null,""]
[null,null,"","","",null,null,null,null,null,null,""]
[null,null,"","","",null,null,null,null,null,null,""]
[null,null,"","","",null,null,null,null,null,null,""]
[null,null,"","","",null,null,null,null,null,null,""]
[null,null,"","","",null,null,null,null,null,null,""]
[null,null,"","","",null,null,null,null,null,null,""]
[null,null,"","","",null,null,null,null,null,null,""]
[null,null,"","","",null,null,null,null,null,null,""]
[null,null,"","","",null,null,null,null,null,null,""]
[null,null,"","","",null,null,null,null,null,null,""]
[null,null,"","","",null,null,null,null,null,null,""]
[null,null,"","","",null,null,null,null,null,null,""]
[null,null,"","","",null,null,null,null,null,null,""]
[null,null,"","","",null,null,null,null,null,null,""]
[null,null,"","","",null,null,null,null,null,null,""]
[null,null,"","","",null,null,null,null,null,null,""]
[null,null,"","","",null,null,null,null,null,null,""]
[null,null,"","","",null,null,null,null,null,null,""]
[null,null,"","","",null,null,null,null,null,null,""]
[null,null,"","","",null,null,null,null,null,null,""]
[null,null,"","","",null,null,null,null,null,null,""]
[null,null,"","","",null,null,null,null,null,null,""]
[null,null,"","","",null,null,null,null,null,null,""]
[null,null,"","","",null,null,null,null,null,null,""]
[null,null,"","","",null,null,null,null,null,null,""]
[null,null,"","","",null,null,null,null,null,null,""]
[null,null,"","","",null,null,null,null,null,null,""]
[null,null,"","","",null,null,null,null,null,null,""]
[null,null,"","","",null,null,null,null,null,null,""]
[null,null,"","","",null,null,null,null,null,null,""]
[null,null,"","","",null,null,null,null,null,null,""]
[null,null,"","","",null,null,null,null,null,null,""]
[null,null,"","","",null,null,null,null,null,null,""]
[null,null,"","","",null,null,null,null,null,null,""]
[null,null,"","","",null,null,null,null,null,null,""]
[null,null,"","",{"$f":"IF(B4477=\"\",\"\",VLOOKUP(B4477,itemsdata,3,\"false\"))","v":""},null,null,null,null,null,null,""]
[null,null,"","","",null,null,null,null,null,null,{"$f":"IF(G4478<>\"\",IF(F4478=\"sell\",D4478*G4478,-D4478*G4478),\"\")","v":""}]
[null,null,"","","",null,null,null,null,null,null,""]
[null,null,"","","",null,null,null,null,null,null,""]
[null,null,"","","",null,null,null,null,null,null,""]
[null,null,"","","",null,null,null,null,null,null,""]
[null,null,"","","",null,null,null,null,null,null,""]
[null,null,"","","",null,null,null,null,null,null,""]
[null,null,"","","",null,null,null,null,null,null,""]
[null,null,"","","",null,null,null,null,null,null,""]
[null,null,"","","",null,null,null,null,null,null,""]
[null,null,"","","",null,null,null,null,null,null,""]
[null,null,"","","",null,null,null,null,null,null,""]
[null,null,"","","",null,null,null,null,null,null,""]
[null,null,"","","",null,null,null,null,null,null,""]
[null,null,"","","",null,null,null,null,null,null,""]
[null,null,"","","",null,null,null,null,null,null,""]
[null,null,"","","",null,null,null,null,null,null,""]
[null,null,"","","",null,null,null,null,null,null,""]
[null,null,"","","",null,null,null,null,null,null,""]
[null,null,"","","",null,null,null,null,null,null,""]
[null,null,"","","",null,null,null,null,null,null,""]
[null,null,"","","",null,null,null,null,null,null,""]
[null,null,"","","",null,null,null,null,null,null,""]
[null,null,"","","",null,null,null,null,null,null,""]
[null,null,{"$f":"IF(B4502=\"\",\"\",VLOOKUP(B4502,itemsdata,2,\"false\"))","v":""},{"$f":"IF(B4502=\"\",\"\",VLOOKUP(B4502,itemsdata,5,\"false\"))","v":""},"",null,null,null,null,null,null,""]
[null,null,"","","",null,null,null,null,null,null,""]
[null,null,"","","",null,null,null,null,null,null,""]
[null,null,"","","",null,null,null,null,null,null,""]
[null,null,"","","",null,null,null,null,null,null,""]
[null,null,"","","",null,null,null,null,null,null,""]
[null,null,"","","",null,null,null,null,null,null,""]
[null,null,"","","",null,null,null,null,null,null,""]
[null,null,"","","",null,null,null,null,null,null,""]
[null,null,"","","",null,null,null,null,null,null,""]
[null,null,"","",""]
[null,null,"","",""]
[null,null,"","",""]
[null,null,"","",""]
[null,null,"","",""]
[null,null,"","",""]
[null,null,"","",""]
[null,null,"","",""]
[null,null,"","",""]
[null,null,"","",""]
[null,null,"","",""]
[null,null,"","",""]
[null,null,"","",""]
[null,null,"","",""]
[null,null,"","",""]
[null,null,"","",""]
[null,null,"","",""]
[null,null,"","",""]
[null,null,"","",""]
[null,null,"","",""]
[null,null,"","",""]
[null,null,"","",""]
[null,null,"","",""]
[null,null,"","",""]
[null,null,"","",""]
[null,null,"","",""]
[null,null,"","",""]
[null,null,"","",""]
[null,null,"","",""]
[null,null,"","",{"$f":"IF(B4541=\"\",\"\",VLOOKUP(B4541,itemsdata,3,\"false\"))","v":""}]
[null,null,"","",""]
[null,null,"","",""]
[null,null,"","",""]
[null,null,"","",""]
[null,null,"","",""]
[null,null,"","",""]
[null,null,"","",""]
[null,null,"","",""]
[null,null,"","",""]
[null,null,"","",""]
[null,null,"","",""]
[null,null,"","",""]
[null,null,"","",""]
[null,null,"","",""]
[null,null,"","",""]
[null,null,"","",""]
[null,null,"","",""]
[null,null,"","",""]
[null,null,"","",""]
[null,null,"","",""]
[null,null,"","",""]
[null,null,"","",""]
[null,null,"","",""]
[null,null,"","",""]
[null,null,{"$f":"IF(B4566=\"\",\"\",VLOOKUP(B4566,itemsdata,2,\"false\"))","v":""},{"$f":"IF(B4566=\"\",\"\",VLOOKUP(B4566,itemsdata,5,\"false\"))","v":""},""]
[null,null,"","",""]
[null,null,"","",""]
[null,null,"","",""]
[null,null,"","",""]
[null,null,"","",""]
[null,null,"","",""]
[null,null,"","",""]
[null,null,"","",""]
[null,null,"","",""]
[null,null,"","",""]
[null,null,"","",""]
[null,null,"","",""]
[null,null,"","",""]
[null,null,"","",""]
[null,null,"","",""]
[null,null,"","",""]
[null,null,"","",""]
[null,null,"","",""]
[null,null,"","",""]
[null,null,"","",""]
[null,null,"","",""]
[null,null,"","",""]
[null,null,"","",""]
[null,null,"","",""]
[null,null,"","",""]
[null,null,"","",""]
[null,null,"","",""]
[null,null,"","",""]
[null,null,"","",""]
[null,null,"","",""]
[null,null,"","",""]
[null,null,"","",""]
[null,null,"","",""]
[null,null,"","",""]
[null,null,"","",""]
[null,null,"","",""]
[null,null,"","",""]
[null,null,"","",""]
[null,null,"","",{"$f":"IF(B4605=\"\",\"\",VLOOKUP(B4605,itemsdata,3,\"false\"))","v":""}]
[null,null,"","",""]
[null,null,"","",""]
[null,null,"","",""]
[null,null,"","",""]
[null,null,"","",""]
[null,null,"","",""]
[null,null,"","",""]
[null,null,"","",""]
[null,null,"","",""]
[null,null,"","",""]
[null,null,"","",""]
[null,null,"","",""]
[null,null,"","",""]
[null,null,"","",""]
[null,null,"","",""]
[null,null,"","",""]
[null,null,"","",""]
[null,null,"","",""]
[null,null,"","",""]
[null,null,"","",""]
[null,null,"","",""]
[null,null,"","",""]
[null,null,"","",""]
[null,null,"","",""]
[null,null,{"$f":"IF(B4630=\"\",\"\",VLOOKUP(B4630,itemsdata,2,\"false\"))","v":""},{"$f":"IF(B4630=\"\",\"\",VLOOKUP(B4630,itemsdata,5,\"false\"))","v":""},""]
[null,null,"","",""]
[null,null,"","",""]
[null,null,"","",""]
[null,null,"","",""]
[null,null,"","",""]
[null,null,"","",""]
[null,null,"","",""]
[null,null,"","",""]
[null,null,"","",""]
[null,null,"","",""]
[null,null,"","",""]
[null,null,"","",""]
[null,null,"","",""]
[null,null,"","",""]
[null,null,"","",""]
[null,null,"","",""]
[null,null,"","",""]
[null,null,"","",""]
[null,null,"","",""]
[null,null,"","",""]
[null,null,"","",""]
[null,null,"","",""]
[null,null,"","",""]
[null,null,"","",""]
[null,null,"","",""]
[null,null,"","",""]
[null,null,"","",""]
[null,null,"","",""]
[null,null,"","",""]
[null,null,"","",""]
[null,null,"","",""]
[null,null,"","",""]
[null,null,"","",""]
[null,null,"","",""]
[null,null,"","",""]
[null,null,"","",""]
[null,null,"","",""]
[null,null,"","",""]
[null,null,"","",{"$f":"IF(B4669=\"\",\"\",VLOOKUP(B4669,itemsdata,3,\"false\"))","v":""}]
[null,null,"","",""]
[null,null,"","",""]
[null,null,"","",""]
[null,null,"","",""]
[null,null,"","",""]
[null,null,"","",""]
[null,null,"","",""]
[null,null,"","",""]
[null,null,"","",""]
[null,null,"","",""]
[null,null,"","",""]
[null,null,"","",""]
[null,null,"","",""]
[null,null,"","",""]
[null,null,"","",""]
[null,null,"","",""]
[null,null,"","",""]
[null,null,"","",""]
[null,null,"","",""]
[null,null,"","",""]
[null,null,"","",""]
[null,null,"","",""]
[null,null,"","",""]
[null,null,"","",""]
[null,null,{"$f":"IF(B4694=\"\",\"\",VLOOKUP(B4694,itemsdata,2,\"false\"))","v":""},{"$f":"IF(B4694=\"\",\"\",VLOOKUP(B4694,itemsdata,5,\"false\"))","v":""},""]
[null,null,"","",""]
[null,null,"","",""]
[null,null,"","",""]
[null,null,"","",""]
[null,null,"","",""]
[null,null,"","",""]
[null,null,"","",""]
[null,null,"","",""]
[null,null,"","",""]
[null,null,"","",""]
[null,null,"","",""]
[null,null,"","",""]
[null,null,"","",""]
[null,null,"","",""]
[null,null,"","",""]
[null,null,"","",""]
[null,null,"","",""]
[null,null,"","",""]
[null,null,"","",""]
[null,null,"","",""]
[null,null,"","",""]
[null,null,"","",""]
[null,null,"","",""]
[null,null,"","",""]
[null,null,"","",""]
[null,null,"","",""]
[null,null,"","",""]
[null,null,"","",""]
[null,null,"","",""]
[null,null,"","",""]
[null,null,"","",""]
[null,null,"","",""]
[null,null,"","",""]
[null,null,"","",""]
[null,null,"","",""]
[null,null,"","",""]
[null,null,"","",""]
[null,null,"","",""]
[null,null,"","",{"$f":"IF(B4733=\"\",\"\",VLOOKUP(B4733,itemsdata,3,\"false\"))","v":""}]
[null,null,"","",""]
[null,null,"","",""]
[null,null,"","",""]
[null,null,"","",""]
[null,null,"","",""]
[null,null,"","",""]
[null,null,"","",""]
[null,null,"","",""]
[null,null,"","",""]
[null,null,"","",""]
[null,null,"","",""]
[null,null,"","",""]
[null,null,"","",""]
[null,null,"","",""]
[null,null,"","",""]
[null,null,"","",""]
[null,null,"","",""]
[null,null,"","",""]
[null,null,"","",""]
[null,null,"","",""]
[null,null,"","",""]
[null,null,"","",""]
[null,null,"","",""]
[null,null,"","",""]
[null,null,{"$f":"IF(B4758=\"\",\"\",VLOOKUP(B4758,itemsdata,2,\"false\"))","v":""},{"$f":"IF(B4758=\"\",\"\",VLOOKUP(B4758,itemsdata,5,\"false\"))","v":""},""]
[null,null,"","",""]
[null,null,"","",""]
[null,null,"","",""]
[null,null,"","",""]
[null,null,"","",""]
[null,null,"","",""]
[null,null,"","",""]
[null,null,"","",""]
[null,null,"","",""]
[null,null,"","",""]
[null,null,"","",""]
[null,null,"","",""]
[null,null,"","",""]
[null,null,"","",""]
[null,null,"","",""]
[null,null,"","",""]
[null,null,"","",""]
[null,null,{"$f":"IF(B4776=\"\",\"\",VLOOKUP(B4776,itemsdata,2,\"false\"))","v":""},{"$f":"IF(B4776=\"\",\"\",VLOOKUP(B4776,itemsdata,5,\"false\"))","v":""},{"$f":"IF(B4776=\"\",\"\",VLOOKUP(B4776,itemsdata,3,\"false\"))","v":""}]
[null,null,"","",""]
[null,null,"","",""]
[null,null,"","",""]
[null,null,"","",""]
[null,null,"","",""]
[null,null,"","",""]
[null,null,"","",""]
[null,null,"","",""]
[null,null,"","",""]
[null,null,"","",""]
[null,null,"","",""]
[null,null,"","",""]
[null,null,"","",""]
[null,null,"","",""]
[null,null,"","",""]
[null,null,"","",""]
[null,null,"","",""]
[null,null,"","",""]
[null,null,"","",""]
[null,null,"","",""]
[null,null,"","",""]
[null,null,"","",""]
[null,null,"","",""]
[null,null,"","",""]
[null,null,"","",""]
[null,null,"","",""]
[null,null,"","",""]
[null,null,"","",""]
[null,null,"","",""]
[null,null,"","",""]
[null,null,"","",""]
[null,null,"","",""]
[null,null,"","",""]
[null,null,"","",""]
[null,null,"","",""]
[null,null,"","",""]
[null,null,{"$f":"IF(B4813=\"\",\"\",VLOOKUP(B4813,itemsdata,2,\"false\"))","v":""},{"$f":"IF(B4813=\"\",\"\",VLOOKUP(B4813,itemsdata,5,\"false\"))","v":""},{"$f":"IF(B4813=\"\",\"\",VLOOKUP(B4813,itemsdata,3,\"false\"))","v":""}]
[null,null,"","",""]
[null,null,"","",""]
[null,null,"","",""]
[null,null,"","",""]
[null,null,"","",""]
[null,null,"","",""]
[null,null,"","",""]
[null,null,"","",""]
[null,null,"","",""]
[null,null,"","",""]
[null,null,"","",""]
[null,null,"","",""]
[null,null,"","",""]
[null,null,"","",""]
[null,null,"","",""]
[null,null,"","",""]
[null,null,"","",""]
[null,null,"","",""]
[null,null,"","",""]
[null,null,"","",""]
[null,null,"","",""]
[null,null,"","",""]
[null,null,"","",""]
[null,null,"","",""]
[null,null,"","",""]
[null,null,"","",""]
[null,null,"","",""]
[null,null,"","",""]
[null,null,"","",""]
[null,null,"","",""]
[null,null,"","",""]
[null,null,"","",""]
[null,null,"","",""]
[null,null,"","",""]
[null,null,"","",""]
[null,null,"","",""]
[null,null,"","",""]
[null,null,"","",""]
[null,null,"","",""]
[null,null,"","",""]
[null,null,"","",""]
[null,null,"","",""]
[null,null,"","",""]
[null,null,"","",""]
[null,null,"","",""]
[null,null,"","",""]
[null,null,"","",""]
[null,null,"","",""]
[null,null,"","",""]
[null,null,"","",""]
[null,null,"","",""]
[null,null,"","",""]
[null,null,"","",""]
[null,null,"","",""]
[null,null,"","",""]
[null,null,"","",""]
[null,null,"","",""]
[null,null,"","",""]
[null,null,"","",""]
[null,null,"","",""]
[null,null,"","",""]
[null,null,"","",""]
[null,null,"","",""]
[null,null,{"$f":"IF(B4877=\"\",\"\",VLOOKUP(B4877,itemsdata,2,\"false\"))","v":""},{"$f":"IF(B4877=\"\",\"\",VLOOKUP(B4877,itemsdata,5,\"false\"))","v":""},{"$f":"IF(B4877=\"\",\"\",VLOOKUP(B4877,itemsdata,3,\"false\"))","v":""}]
[null,null,"","",""]
[null,null,"","",""]
[null,null,"","",""]
[null,null,"","",""]
[null,null,"","",""]
[null,null,"","",""]
[null,null,"","",""]
[null,null,"","",""]
[null,null,"","",""]
[null,null,"","",""]
[null,null,"","",""]
[null,null,"","",""]
[null,null,"","",""]
[null,null,"","",""]
[null,null,"","",""]
[null,null,"","",""]
[null,null,"","",""]
[null,null,"","",""]
[null,null,"","",""]
[null,null,"","",""]
[null,null,"","",""]
[null,null,"","",""]
[null,null,"","",""]
[null,null,"","",""]
[null,null,"","",""]
[null,null,"","",""]
[null,null,"","",""]
[null,null,"","",""]
[null,null,"","",""]
[null,null,"","",""]
[null,null,"","",""]
[null,null,"","",""]
[null,null,"","",""]
[null,null,"","",""]
[null,null,"","",""]
[null,null,"","",""]
[null,null,"","",""]
[null,null,"","",""]
[null,null,"","",""]
[null,null,"","",""]
[null,null,"","",""]
[null,null,"","",""]
[null,null,"","",""]
[null,null,"","",""]
[null,null,"","",""]
[null,null,"","",""]
[null,null,"","",""]
[null,null,"","",""]
[null,null,"","",""]
[null,null,"","",""]
[null,null,"","",""]
[null,null,"","",""]
[null,null,"","",""]
[null,null,"","",""]
[null,null,"","",""]
[null,null,"","",""]
[null,null,"","",""]
[null,null,"","",""]
[null,null,"","",""]
[null,null,""]
[null,null,""]
[null,null,""]
[null,null,""]
[null,null,{"$f":"IF(B4941=\"\",\"\",VLOOKUP(B4941,itemsdata,2,\"false\"))","v":""}]
[null,null,""]
[null,null,""]
[null,null,""]
[null,null,""]
[null,null,""]
[null,null,""]
[null,null,""]
[null,null,""]
[null,null,""]
[null,null,""]
[null,null,""]
[null,null,""]
[null,null,""]
[null,null,""]
[null,null,""]
[null,null,""]
[null,null,""]
[null,null,""]
[null,null,""]
[null,null,""]
[null,null,""]
[null,null,""]
[null,null,""]
[null,null,""]
[null,null,""]
[null,null,""]
[null,null,""]
[null,null,""]
[null,null,""]
[null,null,""]
[null,null,""]
[null,null,""]
[null,null,""]
[null,null,""]
[null,null,""]
[null,null,""]
[null,null,""]
[null,null,""]
[null,null,""]
[null,null,""]
[null,null,""]
[null,null,""]
[null,null,""]
[null,null,""]
[null,null,""]
[null,null,""]
[null,null,""]
[null,null,""]
[null,null,""]
[null,null,""]
[null,null,""]
[null,null,""]
[null,null,""]
[null,null,""]
[null,null,""]
[null,null,""]
[null,null,""]
[null,null,""]
[null,null,""]
[null,null,""]
[null,null,""]
[null,null,""]
[null,null,""]
[null,null,{"$f":"IF(B5005=\"\",\"\",VLOOKUP(B5005,itemsdata,2,\"false\"))","v":""}]
[null,null,""]
[null,null,""]
[null,null,""]
[null,null,""]
[null,null,""]
[null,null,""]
[null,null,""]
[null,null,""]
[null,null,""]
[null,null,""]
[null,null,""]
[null,null,""]
[null,null,""]
[null,null,""]
[null,null,""]
[null,null,""]
[null,null,""]
[null,null,""]
[null,null,""]
[null,null,""]
[null,null,""]
[null,null,""]
[null,null,""]
[null,null,""]
[null,null,""]
[null,null,""]
[null,null,""]
[null,null,""]
[null,null,""]
[null,null,""]
[null,null,""]
[null,null,""]
[null,null,""]
[null,null,""]
[null,null,""]
[null,null,""]
[null,null,""]
[null,null,""]
[null,null,""]
[null,null,""]
[null,null,""]
[null,null,""]
[null,null,""]
[null,null,""]
[null,null,""]
[null,null,""]
[null,null,""]
[null,null,""]
[null,null,""]
[null,null,""]
[null,null,""]
[null,null,""]
[null,null,""]
[null,null,""]
[null,null,""]
[null,null,""]
[null,null,""]
[null,null,""]
[null,null,""]
[null,null,""]
[null,null,""]
[null,null,""]
[null,null,""]
[null,null,{"$f":"IF(B5069=\"\",\"\",VLOOKUP(B5069,itemsdata,2,\"false\"))","v":""}]
[null,null,""]
[null,null,""]
[null,null,""]
[null,null,""]
[null,null,""]
[null,null,""]
[null,null,""]
[null,null,""]
[null,null,""]
[null,null,""]
[null,null,""]
[null,null,""]
[null,null,""]
[null,null,""]
[null,null,""]
[null,null,""]
[null,null,""]
[null,null,""]
[null,null,""]
[null,null,""]
[null,null,""]
[null,null,""]
[null,null,""]
[null,null,""]
[null,null,""]
[null,null,""]
[null,null,""]
[null,null,""]
[null,null,""]
[null,null,""]
[null,null,""]
[null,null,""]
[null,null,""]
[null,null,""]
[null,null,""]
[null,null,""]
[null,null,""]
[null,null,""]
[null,null,""]
[null,null,""]
[null,null,""]
[null,null,""]
[null,null,""]
[null,null,""]
[null,null,""]
[null,null,""]
[null,null,""]
[null,null,""]
[null,null,""]
[null,null,""]
[null,null,""]
[null,null,""]
[null,null,""]
[null,null,""]
[null,null,""]
[null,null,""]
[null,null,""]
[null,null,""]
[null,null,""]
[null,null,""]
[null,null,""]
[null,null,""]
[null,null,""]
[null,null,{"$f":"IF(B5133=\"\",\"\",VLOOKUP(B5133,itemsdata,2,\"false\"))","v":""}]
[null,null,""]
[null,null,""]
[null,null,""]
[null,null,""]
[null,null,""]
[null,null,""]
[null,null,""]
[null,null,""]
[null,null,""]
[null,null,""]
[null,null,""]
[null,null,""]
[null,null,""]
[null,null,""]
[null,null,""]
[null,null,""]
[null,null,""]
[null,null,""]
[null,null,""]
[null,null,""]
[null,null,""]
[null,null,""]
[null,null,""]
[null,null,""]
[null,null,""]
[null,null,""]
[null,null,""]
[null,null,""]
[null,null,""]
[null,null,""]
[null,null,""]
[null,null,""]
[null,null,""]
[null,null,""]
[null,null,""]
[null,null,""]
[null,null,""]
[null,null,""]
[null,null,""]
[null,null,""]
[null,null,""]
[null,null,""]
[null,null,""]
[null,null,""]
[null,null,""]
[null,null,""]
[null,null,""]
[null,null,""]
[null,null,""]
[null,null,""]
[null,null,""]
[null,null,""]
[null,null,""]
[null,null,""]
[null,null,""]
[null,null,""]
[null,null,""]
[null,null,""]
[null,null,""]
[null,null,""]
[null,null,""]
[null,null,""]
[null,null,""]
[null,null,{"$f":"IF(B5197=\"\",\"\",VLOOKUP(B5197,itemsdata,2,\"false\"))","v":""}]
[null,null,""]
[null,null,""]
[null,null,""]
[null,null,""]
[null,null,""]
[null,null,""]
[null,null,""]
[null,null,""]
[null,null,""]
[null,null,""]
[null,null,""]
[null,null,""]
[null,null,""]
[null,null,""]
[null,null,""]
[null,null,""]
[null,null,""]
[null,null,""]
[null,null,""]
[null,null,""]
[null,null,""]
[null,null,""]
[null,null,""]
[null,null,""]
[null,null,""]
[null,null,""]
[null,null,""]
[null,null,""]
[null,null,""]
[null,null,""]
[null,null,""]
[null,null,""]
[null,null,""]
[null,null,""]
[null,null,""]
[null,null,""]
[null,null,""]
[null,null,""]
[null,null,""]
[null,null,""]
[null,null,""]
[null,null,""]
[null,null,""]
[null,null,""]
[null,null,""]
[null,null,""]
[null,null,""]
[null,null,""]
[null,null,""]
[null,null,""]
[null,null,""]
[null,null,""]
[null,null,""]
[null,null,""]
[null,null,""]
[null,null,""]
[null,null,""]
[null,null,""]
[null,null,""]
[null,null,""]
[null,null,""]
[null,null,""]
[null,null,""]
[null,null,{"$f":"IF(B5261=\"\",\"\",VLOOKUP(B5261,itemsdata,2,\"false\"))","v":""}]
[null,null,""]
[null,null,""]
[null,null,""]
[null,null,""]
[null,null,""]
[null,null,""]
[null,null,""]
[null,null,""]
[null,null,""]
[null,null,""]
[null,null,""]
[null,null,""]
[null,null,""]
[null,null,""]
[null,null,""]
[null,null,""]
[null,null,""]
[null,null,""]
[null,null,""]
[null,null,""]
[null,null,""]
[null,null,""]
[null,null,""]
[null,null,""]
[null,null,""]
[null,null,""]
[null,null,""]
[null,null,""]
[null,null,""]
[null,null,""]
[null,null,""]
[null,null,""]
[null,null,""]
[null,null,""]
[null,null,""]
[null,null,""]
[null,null,""]
[null,null,""]
[null,null,""]
[null,null,""]
[null,null,""]
[null,null,""]
[null,null,""]
[null,null,""]
[null,null,""]
[null,null,""]
[null,null,""]
[null,null,""]
[null,null,""]
[null,null,""]
[null,null,""]
[null,null,""]
[null,null,""]
[null,null,""]
[null,null,""]
[null,null,""]
[null,null,""]
[null,null,""]
[null,null,""]
[null,null,""]
[null,null,""]
[null,null,""]
[null,null,""]
[null,null,{"$f":"IF(B5325=\"\",\"\",VLOOKUP(B5325,itemsdata,2,\"false\"))","v":""}]
[null,null,""]
[null,null,""]
[null,null,""]
[null,null,""]
[null,null,""]
[null,null,""]
[null,null,""]
[null,null,""]
[null,null,""]
[null,null,""]
[null,null,""]
[null,null,""]
[null,null,""]
[null,null,""]
[null,null,""]
[null,null,""]

{"sheet":"OldStock2021-2022","index":1,"n_rows":166,"n_cols":12,"rows_kept":166,"cut":false,"hidden":false,"merged":[]}
["CategoryNb","Category","ItemCode","Item Description-Category Desc","Quantity in Stock","Size","Price (LBP)","Size Description","Notes","Original Quantity in Stock"]
["O01","CA-BL-SS-Blue","CA-BL-SS-Blue-4","بلوزة قطنية زرقاء كم قصير ",47,4,80000,null,null,47,"بلوزة قطنية زرقاء كم قصير - قياس : 4"]
["O01","CA-BL-SS-Blue","CA-BL-SS-Blue-6","بلوزة قطنية زرقاء كم قصير ",133,6,80000,null,null,136,"بلوزة قطنية زرقاء كم قصير - قياس : 6"]
["O01","CA-BL-SS-Blue","CA-BL-SS-Blue-8","بلوزة قطنية زرقاء كم قصير ",106,8,80000,null,null,122,"بلوزة قطنية زرقاء كم قصير - قياس : 8"]
["O01","CA-BL-SS-Blue","CA-BL-SS-Blue-10","بلوزة قطنية زرقاء كم قصير ",124,10,80000,null,null,154,"بلوزة قطنية زرقاء كم قصير - قياس : 10"]
["O01","CA-BL-SS-Blue","CA-BL-SS-Blue-12","بلوزة قطنية زرقاء كم قصير ",129,12,80000,null,null,150,"بلوزة قطنية زرقاء كم قصير - قياس : 12"]
["O01","CA-BL-SS-Blue","CA-BL-SS-Blue-14","بلوزة قطنية زرقاء كم قصير ",176,14,80000,null,null,194,"بلوزة قطنية زرقاء كم قصير - قياس : 14"]
["O01","CA-BL-SS-Blue","CA-BL-SS-Blue-16","بلوزة قطنية زرقاء كم قصير ",152,16,80000,null,null,152,"بلوزة قطنية زرقاء كم قصير - قياس : 16"]
["O01","CA-BL-SS-Blue","CA-BL-SS-Blue-18","بلوزة قطنية زرقاء كم قصير ",31,18,80000,null,null,41,"بلوزة قطنية زرقاء كم قصير - قياس : 18"]
["O01","CA-BL-SS-Blue","CA-BL-SS-Blue-S","بلوزة قطنية زرقاء كم قصير ",69,"S",80000,null,null,77,"بلوزة قطنية زرقاء كم قصير - قياس : S"]
["O01","CA-BL-SS-Blue","CA-BL-SS-Blue-M","بلوزة قطنية زرقاء كم قصير ",144,"M",80000,null,null,144,"بلوزة قطنية زرقاء كم قصير - قياس : M"]
["O01","CA-BL-SS-Blue","CA-BL-SS-Blue-L","بلوزة قطنية زرقاء كم قصير ",171,"L",80000,null,null,174,"بلوزة قطنية زرقاء كم قصير - قياس : L"]
["O01","CA-BL-SS-Blue","CA-BL-SS-Blue-XL","بلوزة قطنية زرقاء كم قصير ",81,"XL",80000,null,null,81,"بلوزة قطنية زرقاء كم قصير - قياس : XL"]
["O01","CA-BL-SS-Blue","CA-BL-SS-Blue-XXL","بلوزة قطنية زرقاء كم قصير ",49,"XXL",80000,null,null,49,"بلوزة قطنية زرقاء كم قصير - قياس : XXL"]
["O02","CA-BL-LS-Blue","CA-BL-LS-Blue-4","بلوزة قطنية زرقاء كم طويل",71,4,110000,null,null,73,"بلوزة قطنية زرقاء كم طويل- قياس : 4"]
["O02","CA-BL-LS-Blue","CA-BL-LS-Blue-6","بلوزة قطنية زرقاء كم طويل",26,6,110000,null,null,32,"بلوزة قطنية زرقاء كم طويل- قياس : 6"]
["O02","CA-BL-LS-Blue","CA-BL-LS-Blue-8","بلوزة قطنية زرقاء كم طويل",67,8,110000,null,null,104,"بلوزة قطنية زرقاء كم طويل- قياس : 8"]
["O02","CA-BL-LS-Blue","CA-BL-LS-Blue-10","بلوزة قطنية زرقاء كم طويل",186,10,110000,null,null,220,"بلوزة قطنية زرقاء كم طويل- قياس : 10"]
["O02","CA-BL-LS-Blue","CA-BL-LS-Blue-12","بلوزة قطنية زرقاء كم طويل",178,12,110000,null,null,218,"بلوزة قطنية زرقاء كم طويل- قياس : 12"]
["O02","CA-BL-LS-Blue","CA-BL-LS-Blue-14","بلوزة قطنية زرقاء كم طويل",80,14,110000,null,null,104,"بلوزة قطنية زرقاء كم طويل- قياس : 14"]
["O02","CA-BL-LS-Blue","CA-BL-LS-Blue-16","بلوزة قطنية زرقاء كم طويل",151,16,110000,null,null,181,"بلوزة قطنية زرقاء كم طويل- قياس : 16"]
["O02","CA-BL-LS-Blue","CA-BL-LS-Blue-18","بلوزة قطنية زرقاء كم طويل",18,18,110000,null,null,33,"بلوزة قطنية زرقاء كم طويل- قياس : 18"]
["O02","CA-BL-LS-Blue","CA-BL-LS-Blue-S","بلوزة قطنية زرقاء كم طويل",35,"S",110000,null,null,50,"بلوزة قطنية زرقاء كم طويل- قياس : S"]
["O02","CA-BL-LS-Blue","CA-BL-LS-Blue-M","بلوزة قطنية زرقاء كم طويل",63,"M",110000,null,null,69,"بلوزة قطنية زرقاء كم طويل- قياس : M"]
["O02","CA-BL-LS-Blue","CA-BL-LS-Blue-L","بلوزة قطنية زرقاء كم طويل",82,"L",110000,null,null,86,"بلوزة قطنية زرقاء كم طويل- قياس : L"]
["O02","CA-BL-LS-Blue","CA-BL-LS-Blue-XL","بلوزة قطنية زرقاء كم طويل",26,"XL",110000,null,null,29,"بلوزة قطنية زرقاء كم طويل- قياس : XL"]
["O02","CA-BL-LS-Blue","CA-BL-LS-Blue-XXL","بلوزة قطنية زرقاء كم طويل",38,"XXL",110000,null,null,38,"بلوزة قطنية زرقاء كم طويل- قياس : XXL"]
["O03","CA-BL-LS-Turq","CA-BL-LS-Turq-10","بلوزة قطنية تركواز كم  طويلPOLO ",24,10,95000,null,null,24,"بلوزة قطنية تركواز كم  طويلPOLO - قياس : 10"]
["O03","CA-BL-LS-Turq","CA-BL-LS-Turq-12","بلوزة قطنية تركواز كم  طويلPOLO ",96,12,95000,null,null,96,"بلوزة قطنية تركواز كم  طويلPOLO - قياس : 12"]
["O03","CA-BL-LS-Turq","CA-BL-LS-Turq-14","بلوزة قطنية تركواز كم  طويلPOLO ",73,14,95000,null,null,74,"بلوزة قطنية تركواز كم  طويلPOLO - قياس : 14"]
["O03","CA-BL-LS-Turq","CA-BL-LS-Turq-16","بلوزة قطنية تركواز كم  طويلPOLO ",18,16,95000,null,null,19,"بلوزة قطنية تركواز كم  طويلPOLO - قياس : 16"]
["O03","CA-BL-LS-Turq","CA-BL-LS-Turq-18","بلوزة قطنية تركواز كم  طويلPOLO ",25,18,95000,null,null,27,"بلوزة قطنية تركواز كم  طويلPOLO - قياس : 18"]
["O03","CA-BL-LS-Turq","CA-BL-LS-Turq-S","بلوزة قطنية تركواز كم  طويلPOLO ",81,"S",95000,null,null,82,"بلوزة قطنية تركواز كم  طويلPOLO - قياس : S"]
["O03","CA-BL-LS-Turq","CA-BL-LS-Turq-M","بلوزة قطنية تركواز كم  طويلPOLO ",2,"M",95000,null,null,2,"بلوزة قطنية تركواز كم  طويلPOLO - قياس : M"]
["O03","CA-BL-LS-Turq","CA-BL-LS-Turq-L","بلوزة قطنية تركواز كم  طويلPOLO ",43,"L",95000,null,null,43,"بلوزة قطنية تركواز كم  طويلPOLO - قياس : L"]
["O03","CA-BL-LS-Turq","CA-BL-LS-Turq-XL","بلوزة قطنية تركواز كم  طويلPOLO ",55,"XL",95000,null,null,55,"بلوزة قطنية تركواز كم  طويلPOLO - قياس : XL"]
["O03","CA-BL-LS-Turq","CA-BL-LS-Turq-XXL","بلوزة قطنية تركواز كم  طويلPOLO ",35,"XXL",95000,null,null,35,"بلوزة قطنية تركواز كم  طويلPOLO - قياس : XXL"]
["O04","CA-BL-SS-Turq","CA-BL-SS-Turq-10","بلوزة قطنية تركواز كم قصير POLO ",41,10,80000,null,null,41,"بلوزة قطنية تركواز كم قصير POLO - قياس : 10"]
["O04","CA-BL-SS-Turq","CA-BL-SS-Turq-12","بلوزة قطنية تركواز كم قصير POLO ",139,12,80000,null,null,139,"بلوزة قطنية تركواز كم قصير POLO - قياس : 12"]
["O04","CA-BL-SS-Turq","CA-BL-SS-Turq-14","بلوزة قطنية تركواز كم قصير POLO ",22,14,80000,null,null,23,"بلوزة قطنية تركواز كم قصير POLO - قياس : 14"]
["O04","CA-BL-SS-Turq","CA-BL-SS-Turq-16","بلوزة قطنية تركواز كم قصير POLO ",0,16,80000,null,null,0,"بلوزة قطنية تركواز كم قصير POLO - قياس : 16"]
["O04","CA-BL-SS-Turq","CA-BL-SS-Turq-18","بلوزة قطنية تركواز كم قصير POLO ",7,18,80000,null,null,7,"بلوزة قطنية تركواز كم قصير POLO - قياس : 18"]
["O04","CA-BL-SS-Turq","CA-BL-SS-Turq-S","بلوزة قطنية تركواز كم قصير POLO ",6,"S",80000,null,null,6,"بلوزة قطنية تركواز كم قصير POLO - قياس : S"]
["O04","CA-BL-SS-Turq","CA-BL-SS-Turq-M","بلوزة قطنية تركواز كم قصير POLO ",29,"M",80000,null,null,29,"بلوزة قطنية تركواز كم قصير POLO - قياس : M"]
["O04","CA-BL-SS-Turq","CA-BL-SS-Turq-L","بلوزة قطنية تركواز كم قصير POLO ",89,"L",80000,null,null,89,"بلوزة قطنية تركواز كم قصير POLO - قياس : L"]
["O04","CA-BL-SS-Turq","CA-BL-SS-Turq-XL","بلوزة قطنية تركواز كم قصير POLO ",27,"XL",80000,null,null,27,"بلوزة قطنية تركواز كم قصير POLO - قياس : XL"]
["O04","CA-BL-SS-Turq","CA-BL-SS-Turq-XXL","بلوزة قطنية تركواز كم قصير POLO ",2,"XXL",80000,null,null,2,"بلوزة قطنية تركواز كم قصير POLO - قياس : XXL"]
["O05","CA-BL-SS-Car","CA-BL-SS-Car-4","قميص كارو كم قصير",100,4,50000,null,null,100,"قميص كارو كم قصير- قياس : 4"]
["O05","CA-BL-SS-Car","CA-BL-SS-Car-14","قميص كارو كم قصير",12,14,50000,null,null,12,"قميص كارو كم قصير- قياس : 14"]
["O05","CA-BL-SS-Car","CA-BL-SS-Car-16","قميص كارو كم قصير",69,16,50000,null,null,69,"قميص كارو كم قصير- قياس : 16"]
["O05","CA-BL-SS-Car","CA-BL-SS-Car-S","قميص كارو كم قصير",60,"S",50000,null,null,61,"قميص كارو كم قصير- قياس : S"]
["O06","CA-BL-LS-Car","CA-BL-LS-Car-4","قميص كارو كم طويل",44,4,50000,null,null,44,"قميص كارو كم طويل- قياس : 4"]
["O06","CA-BL-LS-Car","CA-BL-LS-Car-14","قميص كارو كم طويل",36,14,50000,null,null,36,"قميص كارو كم طويل- قياس : 14"]
["O06","CA-BL-LS-Car","CA-BL-LS-Car-16","قميص كارو كم طويل",214,16,50000,null,null,215,"قميص كارو كم طويل- قياس : 16"]
["O06","CA-BL-LS-Car","CA-BL-LS-Car-S","قميص كارو كم طويل",86,"S",50000,null,null,86,"قميص كارو كم طويل- قياس : S"]
["O07","CA-Chazwel","CA-Chazwel-4","شازوبل بناتي افرادي",49,4,80000,null,null,49,"شازوبل بناتي افرادي- قياس : 4"]
["O07","CA-Chazwel","CA-Chazwel-6","شازوبل بناتي افرادي",120,6,80000,null,null,120,"شازوبل بناتي افرادي- قياس : 6"]
["O07","CA-Chazwel","CA-Chazwel-XL","شازوبل بناتي افرادي",0,"XL",80000,null,null,2,"شازوبل بناتي افرادي- قياس : XL"]
["O08","CA-F-LS-White","CA-F-LS-White-4","قميص ابيض بناتي",53,4,50000,null,null,53,"قميص ابيض بناتي- قياس : 4"]
["O08","CA-F-LS-White","CA-F-LS-White-6","قميص ابيض بناتي",56,6,50000,null,null,56,"قميص ابيض بناتي- قياس : 6"]
["O08","CA-F-LS-White","CA-F-LS-White-7","قميص ابيض بناتي",2,7,50000,null,null,2,"قميص ابيض بناتي- قياس : 7"]
["O08","CA-F-LS-White","CA-F-LS-White-12","قميص ابيض بناتي",1,12,50000,null,null,1,"قميص ابيض بناتي- قياس : 12"]
["O08","CA-F-LS-White","CA-F-LS-White-14","قميص ابيض بناتي",47,14,50000,null,null,47,"قميص ابيض بناتي- قياس : 14"]
["O08","CA-F-LS-White","CA-F-LS-White-S","قميص ابيض بناتي",22,"S",50000,null,null,22,"قميص ابيض بناتي- قياس : S"]
["O08","CA-F-LS-White","CA-F-LS-White-M","قميص ابيض بناتي",25,"M",50000,null,null,25,"قميص ابيض بناتي- قياس : M"]
["O08","CA-F-LS-White","CA-F-LS-White-L","قميص ابيض بناتي",23,"L",50000,null,null,23,"قميص ابيض بناتي- قياس : L"]
["O08","CA-F-LS-White","CA-F-LS-White-XL","قميص ابيض بناتي",12,"XL",50000,null,null,12,"قميص ابيض بناتي- قياس : XL"]
["O09","CA-SpSuit-Sum","CA-SpSuit-Sum-3XS","طقم رياضة صيفي. TECTEL",97,"3XS",190000,null,null,99,"طقم رياضة صيفي. TECTEL- قياس : 3XS","99 -1 - tot 98 minus 1 splited short-blouse"]
["O09","CA-SpSuit-Sum","CA-SpSuit-Sum-2XS","طقم رياضة صيفي. TECTEL",115,"2XS",190000,null,null,120,"طقم رياضة صيفي. TECTEL- قياس : 2XS"]
["O09","CA-SpSuit-Sum","CA-SpSuit-Sum-XS","طقم رياضة صيفي. TECTEL",129,"XS",190000,null,null,133,"طقم رياضة صيفي. TECTEL- قياس : XS"]
["O09","CA-SpSuit-Sum","CA-SpSuit-Sum-S","طقم رياضة صيفي. TECTEL",128,"S",190000,null,null,131,"طقم رياضة صيفي. TECTEL- قياس : S"]
["O09","CA-SpSuit-Sum","CA-SpSuit-Sum-M","طقم رياضة صيفي. TECTEL",124,"M",190000,null,null,127,"طقم رياضة صيفي. TECTEL- قياس : M"]
["O09","CA-SpSuit-Sum","CA-SpSuit-Sum-L","طقم رياضة صيفي. TECTEL",57,"L",190000,null,null,59,"طقم رياضة صيفي. TECTEL- قياس : L"]
["O09","CA-SpSuit-Sum","CA-SpSuit-Sum-XL","طقم رياضة صيفي. TECTEL",116,"XL",190000,null,null,117,"طقم رياضة صيفي. TECTEL- قياس : XL"]
["O09","CA-SpSuit-Sum","CA-SpSuit-Sum-XXL","طقم رياضة صيفي. TECTEL",83,"XXL",190000,null,null,83,"طقم رياضة صيفي. TECTEL- قياس : XXL"]
["O09","CA-SpSuit-Sum","CA-SpSuit-Sum-3XL","طقم رياضة صيفي. TECTEL",41,"3XL",190000,null,null,41,"طقم رياضة صيفي. TECTEL- قياس : 3XL"]
["O10","CA-SpSuit-Win","CA-SpSuit-Win-4","طقم رياضة شتوي",36,4,295000,null,null,39,"طقم رياضة شتوي- قياس : 4"]
["O10","CA-SpSuit-Win","CA-SpSuit-Win-6","طقم رياضة شتوي",188,6,295000,null,null,195,"طقم رياضة شتوي- قياس : 6"]
["O10","CA-SpSuit-Win","CA-SpSuit-Win-8","طقم رياضة شتوي",102,8,295000,null,null,105,"طقم رياضة شتوي- قياس : 8"]
["O10","CA-SpSuit-Win","CA-SpSuit-Win-10","طقم رياضة شتوي",89,10,295000,null,null,100,"طقم رياضة شتوي- قياس : 10"]
["O10","CA-SpSuit-Win","CA-SpSuit-Win-12","طقم رياضة شتوي",219,12,295000,null,null,226,"طقم رياضة شتوي- قياس : 12"]
["O10","CA-SpSuit-Win","CA-SpSuit-Win-14","طقم رياضة شتوي",134,14,295000,null,null,139,"طقم رياضة شتوي- قياس : 14"]
["O10","CA-SpSuit-Win","CA-SpSuit-Win-16","طقم رياضة شتوي",110,16,295000,null,null,112,"طقم رياضة شتوي- قياس : 16"]
["O10","CA-SpSuit-Win","CA-SpSuit-Win-S","طقم رياضة شتوي",97,"S",295000,null,null,99,"طقم رياضة شتوي- قياس : S"]
["O10","CA-SpSuit-Win","CA-SpSuit-Win-M","طقم رياضة شتوي",55,"M",295000,null,null,55,"طقم رياضة شتوي- قياس : M"]
["O10","CA-SpSuit-Win","CA-SpSuit-Win-L","طقم رياضة شتوي",152,"L",295000,null,null,153,"طقم رياضة شتوي- قياس : L"]
["O10","CA-SpSuit-Win","CA-SpSuit-Win-XL","طقم رياضة شتوي",99,"XL",295000,null,null,100,"طقم رياضة شتوي- قياس : XL"]
["O10","CA-SpSuit-Win","CA-SpSuit-Win-XXL","طقم رياضة شتوي",42,"XXL",295000,null,null,42,"طقم رياضة شتوي- قياس : XXL"]
["O11","CA-SpShort","CA-SpShort-4","شورت رياضة قطن",25,4,55000,null,null,26,"شورت رياضة قطن- قياس : 4"]
["O11","CA-SpShort","CA-SpShort-6","شورت رياضة قطن",60,6,55000,null,null,65,"شورت رياضة قطن- قياس : 6"]
["O11","CA-SpShort","CA-SpShort-8","شورت رياضة قطن",67,8,55000,null,null,78,"شورت رياضة قطن- قياس : 8"]
["O11","CA-SpShort","CA-SpShort-10","شورت رياضة قطن",58,10,55000,null,null,74,"شورت رياضة قطن- قياس : 10"]
["O11","CA-SpShort","CA-SpShort-12","شورت رياضة قطن",67,12,55000,null,null,77,"شورت رياضة قطن- قياس : 12"]
["O11","CA-SpShort","CA-SpShort-14","شورت رياضة قطن",122,14,55000,null,null,135,"شورت رياضة قطن- قياس : 14"]
["O11","CA-SpShort","CA-SpShort-S","شورت رياضة قطن",7,"S",55000,null,null,10,"شورت رياضة قطن- قياس : S"]
["O12","CA-SPPant","CA-SPPant-4","بنطلون رياضة افرادي",56,4,160000,null,null,57,"بنطلون رياضة افرادي- قياس : 4"]
["O12","CA-SPPant","CA-SPPant-6","بنطلون رياضة افرادي",89,6,160000,null,null,92,"بنطلون رياضة افرادي- قياس : 6"]
["O12","CA-SPPant","CA-SPPant-8","بنطلون رياضة افرادي",42,8,160000,null,null,50,"بنطلون رياضة افرادي- قياس : 8"]
["O12","CA-SPPant","CA-SPPant-10","بنطلون رياضة افرادي",42,10,160000,null,null,45,"بنطلون رياضة افرادي- قياس : 10"]
["O12","CA-SPPant","CA-SPPant-12","بنطلون رياضة افرادي",21,12,160000,null,null,25,"بنطلون رياضة افرادي- قياس : 12"]
["O12","CA-SPPant","CA-SPPant-14","بنطلون رياضة افرادي",21,14,160000,null,null,24,"بنطلون رياضة افرادي- قياس : 14"]
["O12","CA-SPPant","CA-SPPant-16","بنطلون رياضة افرادي",48,16,160000,null,null,53,"بنطلون رياضة افرادي- قياس : 16"]
["O12","CA-SPPant","CA-SPPant-S","بنطلون رياضة افرادي",84,"S",160000,null,null,87,"بنطلون رياضة افرادي- قياس : S"]
["O12","CA-SPPant","CA-SPPant-M","بنطلون رياضة افرادي",1,"M",160000,null,null,0,"بنطلون رياضة افرادي- قياس : M"]
["O12","CA-SPPant","CA-SPPant-L","بنطلون رياضة افرادي",0,"L",160000,null,null,1,"بنطلون رياضة افرادي- قياس : L","1 added from a suit"]
["O12","CA-SPPant","CA-SPPant-XL","بنطلون رياضة افرادي",51,"XL",160000,null,null,51,"بنطلون رياضة افرادي- قياس : XL"]
["O12","CA-SPPant","CA-SPPant-XXL","بنطلون رياضة افرادي",27,"XXL",160000,null,null,27,"بنطلون رياضة افرادي- قياس : XXL"]
["O13","C0-uniform","C0-uniform-3","مريول روضات جديد",56,3,50000,null,null,56,"مريول روضات جديد- قياس : 3"]
["O13","C0-uniform","C0-uniform-4","مريول روضات جديد",255,4,50000,null,null,255,"مريول روضات جديد- قياس : 4"]
["O13","C0-uniform","C0-uniform-5","مريول روضات جديد",162,5,50000,null,null,162,"مريول روضات جديد- قياس : 5"]
["O13","C0-uniform","C0-uniform-6","مريول روضات جديد",25,6,50000,null,null,25,"مريول روضات جديد- قياس : 6"]
["O13","C0-uniform","C0-uniform-7","مريول روضات جديد",20,7,50000,null,null,20,"مريول روضات جديد- قياس : 7"]
["O13","C0-uniform","C0-uniform-8","مريول روضات جديد",110,8,50000,null,null,110,"مريول روضات جديد- قياس : 8"]
["O14","C0-BL-Wool","C0-BL-Wool-0","بلوزة صوف كحلي روضات","-",0,40000,null,null,"-","بلوزة صوف كحلي روضات- قياس : 0"]
["O14","C0-BL-Wool","C0-BL-Wool-1","بلوزة صوف كحلي روضات","-",1,40000,null,null,"-","بلوزة صوف كحلي روضات- قياس : 1"]
["O14","C0-BL-Wool","C0-BL-Wool-2","بلوزة صوف كحلي روضات","-",2,40000,null,null,"-","بلوزة صوف كحلي روضات- قياس : 2"]
["O14","C0-BL-Wool","C0-BL-Wool-3","بلوزة صوف كحلي روضات","-",3,40000,null,null,"-","بلوزة صوف كحلي روضات- قياس : 3"]
["O15","CA-BL-Wool","CA-BL-Wool-4","بلوزة صوف كحلية","-",4,50000,null,null,"-","بلوزة صوف كحلية- قياس : 4"]
["O15","CA-BL-Wool","CA-BL-Wool-5","بلوزة صوف كحلية","-",5,50000,null,null,"-","بلوزة صوف كحلية- قياس : 5"]
["O15","CA-BL-Wool","CA-BL-Wool-6","بلوزة صوف كحلية",19,6,50000,null,null,19,"بلوزة صوف كحلية- قياس : 6"]
["O15","CA-BL-Wool","CA-BL-Wool-7","بلوزة صوف كحلية",40,7,50000,null,null,40,"بلوزة صوف كحلية- قياس : 7"]
["O15","CA-BL-Wool","CA-BL-Wool-M","بلوزة صوف كحلية",44,"M",50000,null,null,44,"بلوزة صوف كحلية- قياس : M"]
["O16","CA-BL-SS-White","CA-BL-SS-White-14-16-S","بلوزة قطنية كم قصير ابيض",178,"14-16-S",45000,null,null,178,"بلوزة قطنية كم قصير ابيض- قياس : 14-16-S"]
["O16","CA-BL-SS-White","CA-BL-SS-White-M","بلوزة قطنية كم قصير ابيض",42,"M",45000,null,null,42,"بلوزة قطنية كم قصير ابيض- قياس : M"]
["O16","CA-BL-SS-White","CA-BL-SS-White-XL+L","بلوزة قطنية كم قصير ابيض","-","XL+L",45000,null,null,"-","بلوزة قطنية كم قصير ابيض- قياس : XL+L"]
["O17","CA-JacNavy-Win","CA-JacNavy-Win-4","جاكيت شتوي كحلي",2,4,135000,null,null,2,"جاكيت شتوي كحلي- قياس : 4"]
["O17","CA-JacNavy-Win","CA-JacNavy-Win-6","جاكيت شتوي كحلي",89,6,135000,null,null,101,"جاكيت شتوي كحلي- قياس : 6"]
["O17","CA-JacNavy-Win","CA-JacNavy-Win-8","جاكيت شتوي كحلي",35,8,135000,null,null,63,"جاكيت شتوي كحلي- قياس : 8"]
["O17","CA-JacNavy-Win","CA-JacNavy-Win-10","جاكيت شتوي كحلي",180,10,135000,null,null,194,"جاكيت شتوي كحلي- قياس : 10"]
["O17","CA-JacNavy-Win","CA-JacNavy-Win-12","جاكيت شتوي كحلي",99,12,135000,null,null,112,"جاكيت شتوي كحلي- قياس : 12"]
["O17","CA-JacNavy-Win","CA-JacNavy-Win-14","جاكيت شتوي كحلي",131,14,135000,null,null,137,"جاكيت شتوي كحلي- قياس : 14"]
["O17","CA-JacNavy-Win","CA-JacNavy-Win-16","جاكيت شتوي كحلي",80,16,135000,null,null,93,"جاكيت شتوي كحلي- قياس : 16"]
["O17","CA-JacNavy-Win","CA-JacNavy-Win-S","جاكيت شتوي كحلي",143,"S",135000,null,null,152,"جاكيت شتوي كحلي- قياس : S"]
["O17","CA-JacNavy-Win","CA-JacNavy-Win-M","جاكيت شتوي كحلي",59,"M",135000,null,null,67,"جاكيت شتوي كحلي- قياس : M"]
["O17","CA-JacNavy-Win","CA-JacNavy-Win-L","جاكيت شتوي كحلي",135,"L",135000,null,null,136,"جاكيت شتوي كحلي- قياس : L"]
["O17","CA-JacNavy-Win","CA-JacNavy-Win-XL","جاكيت شتوي كحلي",131,"XL",135000,null,null,131,"جاكيت شتوي كحلي- قياس : XL"]
["O17","CA-JacNavy-Win","CA-JacNavy-Win-XXL","جاكيت شتوي كحلي",12,"XXL",135000,null,null,13,"جاكيت شتوي كحلي- قياس : XXL"]
["O17","CA-JacNavy-Win","CA-JacNavy-Win-XS","جاكيت شتوي كحلي",1,"XS",135000,null,null,1,"جاكيت شتوي كحلي- قياس : XS"]
["O18","CA-Sp-Jacket","CA-Sp-Jacket-4","جاكيت رياضة افرادي",34,4,135000,null,null,34,"جاكيت رياضة افرادي- قياس : 4"]
["O18","CA-Sp-Jacket","CA-Sp-Jacket-6","جاكيت رياضة افرادي",45,6,135000,null,null,44,"جاكيت رياضة افرادي- قياس : 6"]
["O18","CA-Sp-Jacket","CA-Sp-Jacket-8","جاكيت رياضة افرادي",46,8,135000,null,null,50,"جاكيت رياضة افرادي- قياس : 8"]
["O18","CA-Sp-Jacket","CA-Sp-Jacket-10","جاكيت رياضة افرادي",43,10,135000,null,null,46,"جاكيت رياضة افرادي- قياس : 10"]
["O18","CA-Sp-Jacket","CA-Sp-Jacket-12","جاكيت رياضة افرادي",89,12,135000,null,null,91,"جاكيت رياضة افرادي- قياس : 12"]
["O18","CA-Sp-Jacket","CA-Sp-Jacket-14","جاكيت رياضة افرادي",171,14,135000,null,null,174,"جاكيت رياضة افرادي- قياس : 14"]
["O18","CA-Sp-Jacket","CA-Sp-Jacket-16","جاكيت رياضة افرادي",76,16,135000,null,null,78,"جاكيت رياضة افرادي- قياس : 16"]
["O18","CA-Sp-Jacket","CA-Sp-Jacket-S","جاكيت رياضة افرادي",90,"S",135000,null,null,90,"جاكيت رياضة افرادي- قياس : S"]
["O18","CA-Sp-Jacket","CA-Sp-Jacket-M","جاكيت رياضة افرادي",43,"M",135000,null,null,45,"جاكيت رياضة افرادي- قياس : M"]
["O18","CA-Sp-Jacket","CA-Sp-Jacket-L","جاكيت رياضة افرادي",33,"L",135000,null,null,32,"جاكيت رياضة افرادي- قياس : L","1 added from a suit"]
["O18","CA-Sp-Jacket","CA-Sp-Jacket-XL","جاكيت رياضة افرادي","-","XL",135000,null,null,"-","جاكيت رياضة افرادي- قياس : XL"]
["O18","CA-Sp-Jacket","CA-Sp-Jacket-XXL","جاكيت رياضة افرادي","-","XXL",135000,null,null,"-","جاكيت رياضة افرادي- قياس : XXL"]
["O19","CA-SP-Blouse","CA-SP-Blouse-3XS","TECTELبلوزة رياضة  ",0,"3XS",100000,null,null,1,"TECTELبلوزة رياضة  - قياس : 3XS"]
["O19","CA-SP-Blouse","CA-SP-Blouse-2XS","TECTELبلوزة رياضة  ",13,"2XS",100000,null,null,15,"TECTELبلوزة رياضة  - قياس : 2XS"]
["O19","CA-SP-Blouse","CA-SP-Blouse-XS","TECTELبلوزة رياضة  ",50,"XS",100000,null,null,51,"TECTELبلوزة رياضة  - قياس : XS"]
["O19","CA-SP-Blouse","CA-SP-Blouse-S","TECTELبلوزة رياضة  ",5,"S",100000,null,null,8,"TECTELبلوزة رياضة  - قياس : S"]
["O19","CA-SP-Blouse","CA-SP-Blouse-M","TECTELبلوزة رياضة  ",22,"M",100000,null,null,24,"TECTELبلوزة رياضة  - قياس : M"]
["O19","CA-SP-Blouse","CA-SP-Blouse-L","TECTELبلوزة رياضة  ",141,"L",100000,null,null,141,"TECTELبلوزة رياضة  - قياس : L"]
["O19","CA-SP-Blouse","CA-SP-Blouse-XL","TECTELبلوزة رياضة  ",1,"XL",100000,null,null,1,"TECTELبلوزة رياضة  - قياس : XL"]
["O20","CA-SP-Short","CA-SP-Short-3XS","شورت رياضة TECTEL",67,"3XS",90000,null,null,67,"شورت رياضة TECTEL- قياس : 3XS","added one to 66 from suit"]
["O20","CA-SP-Short","CA-SP-Short-2XS","شورت رياضة TECTEL",133,"2XS",90000,null,null,133,"شورت رياضة TECTEL- قياس : 2XS"]
["O20","CA-SP-Short","CA-SP-Short-XS","شورت رياضة TECTEL",105,"XS",90000,null,null,107,"شورت رياضة TECTEL- قياس : XS"]
["O20","CA-SP-Short","CA-SP-Short-S","شورت رياضة TECTEL",98,"S",90000,null,null,99,"شورت رياضة TECTEL- قياس : S"]
["O20","CA-SP-Short","CA-SP-Short-M","شورت رياضة TECTEL",63,"M",90000,null,null,65,"شورت رياضة TECTEL- قياس : M"]
["O20","CA-SP-Short","CA-SP-Short-L","شورت رياضة TECTEL",159,"L",90000,null,null,160,"شورت رياضة TECTEL- قياس : L"]
["O20","CA-SP-Short","CA-SP-Short-XL","شورت رياضة TECTEL",104,"XL",90000,null,null,105,"شورت رياضة TECTEL- قياس : XL"]
["O20","CA-SP-Short","CA-SP-Short-XXL","شورت رياضة TECTEL",90,"XXL",90000,null,null,90,"شورت رياضة TECTEL- قياس : XXL"]
["O20","CA-SP-Short","CA-SP-Short-3XL","شورت رياضة TECTEL",42,"3XL",90000,null,null,42,"شورت رياضة TECTEL- قياس : 3XL"]